Workbook

Sheet DashBoard Igraze
I1: DASHBOARD
BC3: Resultats approfondie mois par mois de la différence entre le besoin et la ressource disponible
BC9: OBSERVATIONS | BF9: Resultats
BC11: Différence de la Courbe objectif moins le Besoin
H12: Farm' Name
BF13: Groupe de production(Chiffre) | BH13: Périodes(Durée)
BC14: Janvier | BD14: ='Diffentre Besoin et dispo'!C19 -> -1559610 | BF14: ='Diffentre Besoin et dispo'!E19 ->  | BH14: ='Diffentre Besoin et dispo'!G19 -> 
BC15: Février | BD15: ='Diffentre Besoin et dispo'!C20 -> -1659368.4 | BF15: ='Diffentre Besoin et dispo'!E20 ->  | BH15: ='Diffentre Besoin et dispo'!G20 -> 
BC16: Mars | BD16: ='Diffentre Besoin et dispo'!C21 -> -1043106.6 | BF16: ='Diffentre Besoin et dispo'!E21 -> -4262085 | BH16: ='Diffentre Besoin et dispo'!G21 -> January-March
BC17: Avril | BD17: ='Diffentre Besoin et dispo'!C22 -> 807552 | BF17: ='Diffentre Besoin et dispo'!E22 ->  | BH17: ='Diffentre Besoin et dispo'!G22 ->  | BR17: On produit moins que le besoin animal | BU17: On produit plus que le besoin animal
BC18: Mai | BD18: ='Diffentre Besoin et dispo'!C23 -> 5502345 | BF18: ='Diffentre Besoin et dispo'!E23 ->  | BH18: ='Diffentre Besoin et dispo'!G23 -> 
C19: Mandatory Stage | BC19: Juin | BD19: ='Diffentre Besoin et dispo'!C24 -> 4753800 | BF19: ='Diffentre Besoin et dispo'!E24 ->  | BH19: ='Diffentre Besoin et dispo'!G24 ->  | BR19: =Accueuil!H2 -> We got more ressource then requirements so its ok
BC20: Juillet | BD20: ='Diffentre Besoin et dispo'!C25 -> 4334599.8 | BF20: ='Diffentre Besoin et dispo'!E25 ->  | BH20: ='Diffentre Besoin et dispo'!G25 -> 
BC21: Août | BD21: ='Diffentre Besoin et dispo'!C26 -> 1552318.8 | BF21: ='Diffentre Besoin et dispo'!E26 ->  | BH21: ='Diffentre Besoin et dispo'!G26 -> 
BC22: Septembre | BD22: ='Diffentre Besoin et dispo'!C27 -> 2348334 | BF22: ='Diffentre Besoin et dispo'!E27 ->  | BH22: ='Diffentre Besoin et dispo'!G27 -> 
BC23: Octobre | BD23: ='Diffentre Besoin et dispo'!C28 -> 997164.6 | BF23: ='Diffentre Besoin et dispo'!E28 -> 20296114.2 | BH23: ='Diffentre Besoin et dispo'!G28 -> April-October
BC24: Novembre | BD24: ='Diffentre Besoin et dispo'!C29 -> -42444 | BF24: ='Diffentre Besoin et dispo'!E29 ->  | BH24: ='Diffentre Besoin et dispo'!G29 -> 
C25: Optional Stage or Work In Progress | BC25: Décembre | BD25: ='Diffentre Besoin et dispo'!C30 -> -654794.4 | BF25: ='Diffentre Besoin et dispo'!E30 -> -697238.4 | BH25: ='Diffentre Besoin et dispo'!G30 -> November-December
BC26: Dec | BD26: =BD9-BE9 -> 0
BC27: Année | BD27: =SUM(BD14:BE25) -> 15336790.8
BC28: Resultat | BD28: =BD27 -> 15336790.8
C33: Results
CI47: =IF(BJ104>2000,afficheCache13("vert",TRUE),afficheCache13("vert",FALSE)) ->  | CJ47: =IF(AND(BJ104<2000,BJ104>-2000),afficheCache15("orange",TRUE),afficheCache15("orange",FALSE)) -> 
CI48: =IF(BJ104<-2000,afficheCache14("rouge",TRUE),afficheCache14("rouge",FALSE)) -> 
CJ53: TRUE
CJ54: TRUE
BD55: Summary | BH55: Summary of the Study , Dashboard overall | CJ55: TRUE
D56: Specific Sward and Livestock | BD56: Paddock Size | BF56: =BI294 -> 120 | CJ56: TRUE
BD57: Livestock number | BF57: =BI295 -> 440 | CJ57: TRUE
BD58: %Coeff Passiv/active | BF58: =P346 -> 30 | CJ58: TRUE
BD59: % Objective MJME curve | BF59: =P457 -> 80 | CJ59: FALSE
D61: Passive Dry-Matter curve | G61: (Quality) Seasonal Megajoule MJEM | J61: MJEM Livestock requirements/day | M61: Dry-Matter Livestock requirements
BD62: Affichage des Courbes
AD63: =BG268 -> Enter Block Name 1 | AM63: =BM268 -> Enter Block Name 2
C64: January | D64: 2 | G64: 7 | H64: 7 | I64: 7 | J64: 10 | M64: 1.5 | AD64: Indicate Annual or Monthly | AM64: Indicate Annual or Monthly
C65: February | D65: 7 | G65: 8 | H65: 8 | I65: 8 | J65: 11 | M65: 2.5
C66: March | D66: 15 | G66: 10 | H66: 10 | I66: 10 | J66: 11 | M66: 2.8
C67: April | D67: 30 | G67: 10.5 | H67: 10.5 | I67: 10.5 | J67: 12 | M67: 4.5 | AD67: Entry Height | AG67: 2500 | AM67: Entry Height | AP67: 2500
C68: May | D68: 65 | G68: 12 | H68: 12 | I68: 12 | J68: 12 | M68: 6 | AD68: Residual | AG68: 1200 | AM68: Residual | AP68: 1200
C69: June | D69: 60 | G69: 11 | H69: 11 | I69: 11 | J69: 12 | M69: 5
C70: July | D70: 45 | G70: 9 | H70: 9 | I70: 9 | J70: 10 | M70: 1.5 | AE70: Residual | AG70: Entry Height | AN70: Residual | AP70: Entry Height
C71: August | D71: 23 | G71: 6 | H71: 6 | I71: 6 | J71: 9 | M71: 1.5 | AD71: January | AE71: =$AG$68 -> 1200 | AG71: =$AG$67 -> 2500 | AM71: January | AN71: =$AP$68 -> 1200 | AP71: =$AP$67 -> 2500
C72: September | D72: 30 | G72: 10 | H72: 10 | I72: 10 | J72: 10 | M72: 1.8 | AD72: February | AE72: =$AG$68 -> 1200 | AG72: =$AG$67 -> 2500 | AM72: February | AN72: =$AP$68 -> 1200 | AP72: =$AP$67 -> 2500
C73: October | D73: 20 | G73: 11 | H73: 11 | I73: 11 | J73: 11 | M73: 1.8 | AD73: March | AE73: 1200 | AG73: 2500 | AM73: March | AN73: 1200 | AP73: 2500
C74: November | D74: 10 | G74: 9 | H74: 9 | I74: 9 | J74: 10 | M74: 1.6 | AD74: April | AE74: 1200 | AG74: 2500 | AM74: April | AN74: 1200 | AP74: 2500
C75: December | D75: 3 | G75: 7 | H75: 7 | I75: 7 | J75: 9 | M75: 1.5 | AD75: May | AE75: 1200 | AG75: 2500 | AM75: May | AN75: 1200 | AP75: 2500
AD76: June | AE76: 1200 | AG76: 2500 | AM76: June | AN76: 1200 | AP76: 2500
AD77: July | AE77: 1200 | AG77: 2500 | AM77: July | AN77: 1200 | AP77: 2500
AD78: August | AE78: 1200 | AG78: 2500 | AM78: August | AN78: 1200 | AP78: 2500
AD79: September | AE79: 1200 | AG79: 2500 | AM79: September | AN79: 1200 | AP79: 2500
AD80: October | AE80: 1200 | AG80: 2500 | AM80: October | AN80: 1200 | AP80: 2500
AD81: November | AE81: 1200 | AG81: 2500 | AM81: November | AN81: 1200 | AP81: 2500
AD82: December | AE82: 1200 | AG82: 2500 | AM82: December | AN82: 1200 | AP82: 2500
BJ84: Results
AD86: =BS268 -> Enter Block Name 3 | AM86: =BY268 -> Enter Block Name 4
AD87: Indicate Annual or Monthly | AM87: Indicate Annual or Monthly
BJ89: More or Less ressource to requirement | BM89: Periods
AD90: Entry Height | AG90: 2500 | AM90: Entry Height | AP90: 2500 | BJ90: =BF14 ->  | BM90: =BH14 -> 
AD91: Residual | AG91: 1200 | AM91: Residual | AP91: 1200 | BJ91: =BF15 ->  | BM91: =BH15 -> 
BJ92: -4262085 | BM92: January-March
AE93: Residual | AG93: Entry Height | AN93: Residual | AP93: Entry Height
AD94: January | AE94: =$AG$91 -> 1200 | AG94: =$AG$90 -> 2500 | AM94: January | AN94: =$AP$91 -> 1200 | AP94: =$AP$90 -> 2500
AD95: February | AE95: =$AG$91 -> 1200 | AG95: =$AG$90 -> 2500 | AM95: February | AN95: =$AP$91 -> 1200 | AP95: =$AP$90 -> 2500
AD96: March | AE96: 1200 | AG96: 2500 | AM96: March | AN96: 1200 | AP96: 2500
AD97: April | AE97: 1200 | AG97: 2500 | AM97: April | AN97: 1200 | AP97: 2500
AD98: May | AE98: 1200 | AG98: 2500 | AM98: May | AN98: 1200 | AP98: 2500
AD99: June | AE99: 1200 | AG99: 2500 | AM99: June | AN99: 1200 | AP99: 2500 | BJ99: 20296114.2 | BM99: April-October
AD100: July | AE100: 1200 | AG100: 2500 | AM100: July | AN100: 1200 | AP100: 2500
AD101: August | AE101: 1200 | AG101: 2500 | AM101: August | AN101: 1200 | AP101: 2500 | BJ101: -697238.4 | BM101: November-December
AD102: September | AE102: 1200 | AG102: 2500 | AM102: September | AN102: 1200 | AP102: 2500 | BJ102: ='Diffentre Besoin et dispo'!C32 -> 127806.59 | BM102: Annual
AD103: October | AE103: 1200 | AG103: 2500 | AM103: October | AN103: 1200 | AP103: 2500
AD104: November | AE104: 1200 | AG104: 2500 | AM104: November | AN104: 1200 | AP104: 2500 | BJ104: ='Diffentre Besoin et dispo'!D39 -> 129328.03 | BM104: =TODAY() -> 2016-10-15 | BQ104: Requirement is more important then ressource | BT104: Ressource is more important then requirement
AD105: December | AE105: 1200 | AG105: 2500 | AM105: December | AN105: 1200 | AP105: 2500
BQ106: =Accueuil!H2 -> We got more ressource then requirements so its ok
BE108: Results by Block
BL120: =N300 -> 0
BL121: 0
BL122: 0
BL123: 0
BL124: 0
BL125: 0
BL126: 0
BL127: 0
BL128: 0
BL129: 0
C136: Chargement à l'hectare | M136: 7
CL193: zz
AJ200: WORK IN PROGRESS
AK208: Creation d'une courbe: modification de la taille du lot de Cheptel en saison
AL212: Mois | AM212: Nombre d'animaux a l'ha
AL213: Janvier | AM213: 2
AL214: Fevrier | AM214: 2
AL215: Mars | AM215: 2
AL216: Avril | AM216: 2
AL217: Mai | AM217: 2
AL218: Juin | AM218: 2
AL219: Juillet | AM219: 2
AL220: Août | AM220: 2
AL221: Septembre | AM221: 2
AL222: Octobre | AM222: 2
AL223: Novembre | AM223: 2
AL224: Décembre | AM224: 2
BL264: Enter your Block, if the chaptel or pasture is special , fill the next board and choose Test in list
BG268: Enter Block Name 1 | BM268: Enter Block Name 2 | BS268: Enter Block Name 3 | BY268: Enter Block Name 4
BG270: Sward Type | BI270: Test | BM270: Sward Type | BP270: Summer Dry | BS270: Sward Type | BV270: Medium hill inbye | BY270: Sward Type | CB270: HQ dairy pasture
BG271: Mob / Livestock Class | BI271: dairy 12mnthr | BM271: Mob/ Livestock Class | BP271: test | BS271: Mob/ Livestock Class | BV271: dairy 12mnthr | BY271: Mob/ Livestock Class | CB271: spring lmb Waireres
BG272: Paddock Size | BI272: 20 | BM272: Paddock Size | BP272: 40 | BS272: Paddock Size | BV272: 40 | BY272: Paddock Size | CB272: 20
BG273: Livestock number | BI273: 35 | BM273: Livestock number | BP273: 180 | BS273: Livestock number | BV273: 45 | BY273: Livestock number | CB273: 180
BG292: Total all of Blocks
BG294: Paddock Size | BI294: =BI272+BP272+BV272+CB272 -> 120
BG295: Livestock number | BI295: =BI273+BP273+BV273+CB273 -> 440
F346: Passive to Active Coefficient (%) | P346: 30
H349: (Exemple 1,3=30)
F457: Megajoule Target Curve (%) | P457: 80
H460: (Exemple 0,8=80)
DJ479: Image ilot1 +courbe
DJ481: =IF(DJ559>2000,afficheCache("vertilot1",TRUE),afficheCache("vertilot1",FALSE)) ->  | DK481: =IF(AND(DJ559<2000,DJ558>-2000),afficheCache3("orangeilot1",TRUE),afficheCache3("orangeilot1",FALSE)) -> 
DJ482: =IF(DJ559<-2000,afficheCache2("rougeilot1",TRUE),afficheCache2("rougeilot1",FALSE)) -> 
DJ483: TRUE
DJ484: TRUE
DJ485: TRUE
DJ486: TRUE
DJ487: TRUE
DJ488: TRUE
DJ489: FALSE
DE522: Block 1
DC528: Summary
DC531: =BG268 -> Enter Block Name 1
DC533: Sward Type | DE533: =BI270 -> Test
DC534: Mob and Livestock | DE534: =BI271 -> dairy 12mnthr
DC535: Paddock Size | DE535: 20
DC536: Livestock number | DE536: 35
DC537: Entry Height ( Annual) | DE537: =AG67 -> 2500
DC538: Residual ( Annual) | DE538: =AG68 -> 1200
DC539: Passive-Active | DE539: =P346/100 -> 0.3
DC540: Objective Target MJME | DE540: =P457/100 -> 0.8
DI544: Results
DI545: More or Less Ressource to requierement | DJ545: Period
DI546: ='Diffentre Besoin et dispo 1'!E19 ->  | DJ546: ='Diffentre Besoin et dispo 1'!G19 -> 
DI547: ='Diffentre Besoin et dispo 1'!E20 ->  | DJ547: ='Diffentre Besoin et dispo 1'!G20 -> 
DI548: ='Diffentre Besoin et dispo 1'!E21 ->  | DJ548: ='Diffentre Besoin et dispo 1'!G21 -> 
DI549: ='Diffentre Besoin et dispo 1'!E22 -> -17779.18 | DJ549: ='Diffentre Besoin et dispo 1'!G22 -> January-April
DI550: ='Diffentre Besoin et dispo 1'!E23 ->  | DJ550: ='Diffentre Besoin et dispo 1'!G23 -> 
DI551: ='Diffentre Besoin et dispo 1'!E24 ->  | DJ551: ='Diffentre Besoin et dispo 1'!G24 -> 
DI552: ='Diffentre Besoin et dispo 1'!E25 -> 24020.4 | DJ552: ='Diffentre Besoin et dispo 1'!G25 -> May-July
DI553: ='Diffentre Besoin et dispo 1'!E26 -> -5098.88 | DJ553: ='Diffentre Besoin et dispo 1'!G26 -> August-August
DI554: ='Diffentre Besoin et dispo 1'!E27 -> 907.5 | DJ554: ='Diffentre Besoin et dispo 1'!G27 -> September-September
DI555: ='Diffentre Besoin et dispo 1'!E28 ->  | DJ555: ='Diffentre Besoin et dispo 1'!G28 -> 
DI556: ='Diffentre Besoin et dispo 1'!E29 ->  | DJ556: ='Diffentre Besoin et dispo 1'!G29 -> 
DI557: ='Diffentre Besoin et dispo 1'!E30 -> -8579.41 | DJ557: ='Diffentre Besoin et dispo 1'!G30 -> October-December
DI558: Annual | DJ558: ='Diffentre Besoin et dispo 1'!C32 -> -6529.57
DI559: =DI564 -> 2016-10-15 | DJ559: ='Diffentre Besoin et dispo 1'!D39 -> 1623.09
DC560: 2016-01-01 | DD560: Number of day for a rotation | DE560: Paddock Size | DG560: Requirement | DH560: =LARGE(DG562:DG580,1) -> 41.40769231 | DI560: Biggest requirement in Ha needed
DC561: Date | DF561: Étiquettes de lignes | DG561: Ha per Rotation | DH561: =LARGE(DE562:DE582,1) -> 0.5169230769 | DI561: Biggest paddock size needed
DC562: 2016-04-10 | DD562: =DC562-DC560 -> 100 | DE562: =IFERROR(DG562/DD562,"") -> 0.4140769231 | DF562: 1 | DG562: 41.40769231 | DH562: Enter todays date or whatever you want to see
DC563: 2016-05-07 | DD563: =IF(DC563>0,DC563-DC562-1,"") -> 26 | DE563: 0.4618343195 | DF563: 2 | DG563: 12.00769231
DC564: 2016-05-23 | DD564: 15 | DE564: 0.5169230769 | DF564: 3 | DG564: 7.753846154 | DH564: =DI564-30 -> 2016-09-15 | DI564: =TODAY() -> 2016-10-15 | DJ564: =DI564+30 -> 2016-11-14
DC565: 2016-06-09 | DD565: 16 | DE565: 0.5149038462 | DF565: 4 | DG565: 8.238461538
DC566: 2016-06-26 | DD566: 16 | DE566: 0.5149038462 | DF566: 5 | DG566: 8.238461538
DC567: 2016-07-17 | DD567: 20 | DE567: 0.5088461538 | DF567: 6 | DG567: 10.17692308
DC568: 2016-08-17 | DD568: 30 | DE568: 0.4702564103 | DF568: 7 | DG568: 14.10769231
DC569: 2016-09-23 | DD569: 36 | DE569: 0.4083333333 | DF569: 8 | DG569: 14.7
DC570: 2016-11-18 | DD570: 55 | DE570: 0.3661538462 | DF570: 9 | DG570: 20.13846154
DD582: =IF(DC588>0,DC588-DC587-1,"") ->  | DE582: =IFERROR(DG582/DD582,"") -> 
K583: Ilot 1 | AL583: Ilot 2 | BO583: Ilot 3
DI650: Courbe
DI652: TRUE | DJ652: =IF(DJ719>2000,afficheCache4("vertilot2",TRUE),afficheCache4("vertilot2",FALSE)) ->  | DK652: =IF(AND(DJ719<2000,DJ718>-2000),afficheCache6("orangeilot2",TRUE),afficheCache6("orangeilot2",FALSE)) -> 
DI653: TRUE | DJ653: =IF(DJ719<-2000,afficheCache5("rougeilot2",TRUE),afficheCache5("rougeilot2",FALSE)) -> 
DI654: TRUE
DI655: TRUE
DI656: TRUE
DI657: TRUE
DI658: FALSE
DE683: Block 2
DC689: Summary
DC692: =BM268 -> Enter Block Name 2
DC694: Sward Type | DE694: =BP270 -> Summer Dry
DC695: Mob and Livestock | DE695: =BP271 -> test
DC696: Paddock Size | DE696: =BP272 -> 40
DC697: Livestock number | DE697: =BP273 -> 180
DC698: Entry Height ( Annual) | DE698: =AP67 -> 2500
DC699: Residual ( Annual) | DE699: =AP68 -> 1200
AP700: Ilot 4 | DC700: Passive-Active | DE700: =P346/100 -> 0.3
DC701: Objective Target MJME | DE701: =P457/100 -> 0.8
DI704: Results
DI705: More or Less ressource to requirement | DJ705: Periods
DI706: ='Diffentre Besoin et dispo 2'!E19 ->  | DJ706: ='Diffentre Besoin et dispo 2'!G19 -> 
DI707: ='Diffentre Besoin et dispo 2'!E20 -> -1445.85 | DJ707: ='Diffentre Besoin et dispo 2'!G20 -> January-February
DI708: ='Diffentre Besoin et dispo 2'!E21 ->  | DJ708: ='Diffentre Besoin et dispo 2'!G21 -> 
DI709: ='Diffentre Besoin et dispo 2'!E22 ->  | DJ709: ='Diffentre Besoin et dispo 2'!G22 -> 
DI710: ='Diffentre Besoin et dispo 2'!E23 ->  | DJ710: ='Diffentre Besoin et dispo 2'!G23 -> 
DI711: ='Diffentre Besoin et dispo 2'!E24 ->  | DJ711: ='Diffentre Besoin et dispo 2'!G24 -> 
DI712: ='Diffentre Besoin et dispo 2'!E25 -> 34515.9 | DJ712: ='Diffentre Besoin et dispo 2'!G25 -> March-July
DI713: ='Diffentre Besoin et dispo 2'!E26 -> -754.85 | DJ713: ='Diffentre Besoin et dispo 2'!G26 -> August-August
DI714: ='Diffentre Besoin et dispo 2'!E27 ->  | DJ714: ='Diffentre Besoin et dispo 2'!G27 -> 
DI715: ='Diffentre Besoin et dispo 2'!E28 ->  | DJ715: ='Diffentre Besoin et dispo 2'!G28 -> 
DI716: ='Diffentre Besoin et dispo 2'!E29 ->  | DJ716: ='Diffentre Besoin et dispo 2'!G29 -> 
DI717: ='Diffentre Besoin et dispo 2'!E30 -> 12292.65 | DJ717: ='Diffentre Besoin et dispo 2'!G30 -> September-December
DI718: Annual | DJ718: ='Diffentre Besoin et dispo 2'!C32 -> 44607.85
DI719: =DI724 -> 2016-10-15 | DJ719: ='Diffentre Besoin et dispo 2'!D39 -> 39234.7
... 104 more rows

Sheet Accueuil (hidden)
B1: Choix de different aspect | H1: IMPORTANT | N1: Gestion Des Courbes
B2: Type de Chaptel | C2: test | H2: =IF('Diffentre Besoin et dispo'!C32>0,"We got more ressource then requirements so its ok"," Your requirements is bigger then ressource, so you cant do this") -> We got more ressource then requirements so its ok | M2: Menu déroulant pour l'activation des differentes courbes
B3: Nombre | C3: ='DashBoard Igraze'!M136 -> 7 | N3: Courbe Passive | P3: Activé
B4: Type de Flore | C4: Test | D4: =1+C5/100 -> 1.3 | N4: Courbe Active | P4: Activé
B5: %Coeff Passiv/active | C5: ='DashBoard Igraze'!$P$346 -> 30 | D5: Dont Touch | N5: Megajoule Passive | P5: Activé
B6: % Objectif de la courbe | C6: ='DashBoard Igraze'!P457 -> 80 | D6: =C6% -> 0.8 | N6: Megajoule Actif | P6: Activé
N7: Besoin Chaptel | P7: Activé
N8: Megajoule Objectif | P8: Activé
N9: Besoin different | P9: Activé
A18: Mois | B18: Nombre d'animaux
A19: Janvier | B19: ='DashBoard Igraze'!AM213 -> 2
A20: Fevrier | B20: ='DashBoard Igraze'!AM214 -> 2
A21: Mars | B21: ='DashBoard Igraze'!AM215 -> 2
A22: Avril | B22: ='DashBoard Igraze'!AM216 -> 2
A23: Mai | B23: ='DashBoard Igraze'!AM217 -> 2
A24: Juin | B24: ='DashBoard Igraze'!AM218 -> 2
A25: Juillet | B25: ='DashBoard Igraze'!AM219 -> 2
A26: Août | B26: ='DashBoard Igraze'!AM220 -> 2
A27: Septembre | B27: ='DashBoard Igraze'!AM221 -> 2
A28: Octobre | B28: ='DashBoard Igraze'!AM222 -> 2
A29: Novembre | B29: ='DashBoard Igraze'!AM223 -> 2
A30: Décembre | B30: ='DashBoard Igraze'!AM224 -> 2

Sheet Calcul Et Courbes total (hidden)
I1: Code couleur en fonction des Courbes
A3: Courbe étude POTENTIEL ET OBJECTIVE | F3: (Tableau automatisé , Pour modification voir Page accueuil ou base de données) | O3: Activé | P3: Activé | Q3: Activé | R3: Activé | S3: Activé | T3: Activé | U3: Activé
E4: Total/mois | F4: Total/mois | G4: Qualité Passive | H4: Qualité | I4: MS x MJME | J4: Total MjME Passive/mois | K4: Total/mois | L4: TOTAL | O4: Pas Touche (Données prise sur le coté +calculs)
C5: PASSIVE | D5: ACTIVE | E5: PASSIVE | F5: ACTIVE MS | G5: MJ ME /jr | H5: MJ ME /jr | I5: /jour | K5: MJ ME | L5: Annuel | O5: =IF(Accueuil!$P$3="Activé",Y20,Z20) -> 1 | P5: =IF(Accueuil!$P$4="Activé",Y20,Z20) -> 1 | Q5: =IF(Accueuil!$P$5="Activé",Y20,Z20) -> 1 | R5: =IF(Accueuil!$P$6="Activé",Y20,Z20) -> 1 | S5: =IF(Accueuil!$P$7="Activé",Y20,Z20) -> 1 | T5: =IF(Accueuil!$P$8="Activé",Y20,Z20) -> 1 | U5: =IF(Accueuil!$P$9="Activé",Y20,Z20) -> 1
O6: Curve Passive | P6: Curve Active | Q6: Curve MJME Passive | R6: Curve MJME Active | S6: Requirement curve livestock | T6: Curve Objectif MJME | U6: Secondary Livestock
E7: Dont Touch ( pour faire des test , changer les valeurs dans la base de donnés) | N7: Janvier | O7: =I156*$O$5*$O$19 -> 124 | P7: =J156*$P$5*$P$19 -> 161.2 | Q7: =K156*$Q$5*$Q$19 -> 934.6969697 | R7: =L156*$R$5*$R$19 -> 1336.616667 | S7: =M156*$S$5*$S$19 -> 4012.95 | T7: =N156*Accueuil!$D$6*$T$5*$T$19 -> 855.4346667 | U7: =O156*Accueuil!B19*$U$5*$U$19 -> 0
A8: Mois | B8: jrs/mois | C8: kg/MS/Ha/jr | D8: =Accueuil!D4 -> 1.3 | E8: kg/MS/Ha | F8: kg/MS/Ha | G8: 1.1 | K8: kg/MS/Ha | L8: 64 Ha | N8: Février | O8: =I157*$O$5*$O$19 -> 256.1666667 | P8: =J157*$P$5*$P$19 -> 333.0166667 | Q8: =K157*$Q$5*$Q$19 -> 2065.151515 | R8: =L157*$R$5*$R$19 -> 2953.166667 | S8: =M157*$S$5*$S$19 -> 5446.683333 | T8: =N157*Accueuil!$D$6*$T$5*$T$19 -> 1890.026667 | U8: =O157*Accueuil!B20*$U$5*$U$19 -> 0
A9: jan | B9: 31 | C9: =INDEX('Base de donnée simple'!$B$23:'Base de donnée simple'!$E$34,MATCH('Calcul Et Courbes total'!G49,'Base de donnée simple'!$A$6:'Base de donnée simple'!$A$17,0),MATCH(Accueuil!$C$4,Tableau13[#Headers],0)) -> 2 | D9: =C9*$D$8 -> 2.6 | E9: =B9*C9 -> 62 | F9: =E9*$D$8 -> 80.6 | G9: =H9/$G$8 -> 6.363636364 | H9: =INDEX('Base de donnée simple'!$B$6:'Base de donnée simple'!$E$17,MATCH('Calcul Et Courbes total'!G49,'Base de donnée simple'!$A$6:'Base de donnée simple'!$A$17,0),MATCH(Accueuil!$C$4,Tableau1[#Headers],0)) -> 7 | I9: =H9*D9 -> 18.2 | J9: =G9*C9*B9 -> 394.5454545 | K9: =I9*B9 -> 564.2 | L9: =K9*64 -> 36108.8 | N9: Mars | O9: 470.1666667 | P9: 611.2166667 | Q9: 4222.575758 | R9: 6038.283333 | S9: 6656.345833 | T9: =N158*Accueuil!$D$6*$T$5*$T$19 -> 3864.501333 | U9: =O158*Accueuil!B21*$U$5*$U$19 -> 0
A10: fev | B10: 29 | C10: =INDEX('Base de donnée simple'!$B$23:'Base de donnée simple'!$E$34,MATCH('Calcul Et Courbes total'!G50,'Base de donnée simple'!$A$6:'Base de donnée simple'!$A$17,0),MATCH(Accueuil!$C$4,Tableau13[#Headers],0)) -> 7 | D10: =C10*$D$8 -> 9.1 | E10: =B10*C10 -> 203 | F10: =E10*$D$8 -> 263.9 | G10: =H10/$G$8 -> 7.272727273 | H10: =INDEX('Base de donnée simple'!$B$6:'Base de donnée simple'!$E$17,MATCH('Calcul Et Courbes total'!G50,'Base de donnée simple'!$A$6:'Base de donnée simple'!$A$17,0),MATCH(Accueuil!$C$4,Tableau1[#Headers],0)) -> 8 | I10: =H10*D10 -> 72.8 | J10: 1476.363636 | K10: 2111.2 | L10: =K10*64 -> 135116.8 | N10: Avril | O10: 920 | P10: 1196 | Q10: 9386.363636 | R10: 13422.5 | S10: 8547 | T10: =N159*Accueuil!$D$6*$T$5*$T$19 -> 8590.4 | U10: =O159*Accueuil!B22*$U$5*$U$19 -> 0
A11: mars | B11: 31 | C11: =INDEX('Base de donnée simple'!$B$23:'Base de donnée simple'!$E$34,MATCH('Calcul Et Courbes total'!G51,'Base de donnée simple'!$A$6:'Base de donnée simple'!$A$17,0),MATCH(Accueuil!$C$4,Tableau13[#Headers],0)) -> 15 | D11: 19.5 | E11: 465 | F11: 604.5 | G11: 9.090909091 | H11: =INDEX('Base de donnée simple'!$B$6:'Base de donnée simple'!$E$17,MATCH('Calcul Et Courbes total'!G51,'Base de donnée simple'!$A$6:'Base de donnée simple'!$A$17,0),MATCH(Accueuil!$C$4,Tableau1[#Headers],0)) -> 10 | I11: 195 | J11: 4227.272727 | K11: 6045 | L11: 386880 | N11: Mai | O11: 1813.5 | P11: 2357.55 | Q11: 19468.93939 | R11: 27840.58333 | S11: 10788 | T11: =N160*Accueuil!$D$6*$T$5*$T$19 -> 17817.97333 | U11: =O160*Accueuil!B23*$U$5*$U$19 -> 0
A12: avril | B12: 30 | C12: =INDEX('Base de donnée simple'!$B$23:'Base de donnée simple'!$E$34,MATCH('Calcul Et Courbes total'!G52,'Base de donnée simple'!$A$6:'Base de donnée simple'!$A$17,0),MATCH(Accueuil!$C$4,Tableau13[#Headers],0)) -> 30 | D12: 39 | E12: 900 | F12: 1170 | G12: 9.545454545 | H12: =INDEX('Base de donnée simple'!$B$6:'Base de donnée simple'!$E$17,MATCH('Calcul Et Courbes total'!G52,'Base de donnée simple'!$A$6:'Base de donnée simple'!$A$17,0),MATCH(Accueuil!$C$4,Tableau1[#Headers],0)) -> 10.5 | I12: 409.5 | J12: 8590.909091 | K12: 12285 | L12: 786240 | N12: Juin | O12: 1700 | P12: 2210 | Q12: 17818.18182 | R12: 25480 | S12: 9742.5 | T12: =N161*Accueuil!$D$6*$T$5*$T$19 -> 16307.2 | U12: =O161*Accueuil!B24*$U$5*$U$19 -> 0
A13: mai | B13: 31 | C13: =INDEX('Base de donnée simple'!$B$23:'Base de donnée simple'!$E$34,MATCH('Calcul Et Courbes total'!G53,'Base de donnée simple'!$A$6:'Base de donnée simple'!$A$17,0),MATCH(Accueuil!$C$4,Tableau13[#Headers],0)) -> 65 | D13: 84.5 | E13: 2015 | F13: 2619.5 | G13: 10.90909091 | H13: =INDEX('Base de donnée simple'!$B$6:'Base de donnée simple'!$E$17,MATCH('Calcul Et Courbes total'!G53,'Base de donnée simple'!$A$6:'Base de donnée simple'!$A$17,0),MATCH(Accueuil!$C$4,Tableau1[#Headers],0)) -> 12 | I13: 1014 | J13: 21981.81818 | K13: 31434 | L13: 2011776 | N13: Juillet | O13: 1286.5 | P13: 1672.45 | Q13: 12569.09091 | R13: 17973.8 | S13: 5477.7 | T13: =N162*Accueuil!$D$6*$T$5*$T$19 -> 11503.232 | U13: =O162*Accueuil!B25*$U$5*$U$19 -> 0
A14: juin | B14: 30 | C14: =INDEX('Base de donnée simple'!$B$23:'Base de donnée simple'!$E$34,MATCH('Calcul Et Courbes total'!G54,'Base de donnée simple'!$A$6:'Base de donnée simple'!$A$17,0),MATCH(Accueuil!$C$4,Tableau13[#Headers],0)) -> 60 | D14: 78 | E14: 1800 | F14: 2340 | G14: 10 | H14: =INDEX('Base de donnée simple'!$B$6:'Base de donnée simple'!$E$17,MATCH('Calcul Et Courbes total'!G54,'Base de donnée simple'!$A$6:'Base de donnée simple'!$A$17,0),MATCH(Accueuil!$C$4,Tableau1[#Headers],0)) -> 11 | I14: 858 | J14: 18000 | K14: 25740 | L14: 1647360 | N14: Août | O14: 728.5 | P14: 947.05 | Q14: 6556.969697 | R14: 9376.466667 | S14: 4720.783333 | T14: =N163*Accueuil!$D$6*$T$5*$T$19 -> 6000.938667 | U14: =O163*Accueuil!B26*$U$5*$U$19 -> 0
A15: juillet | B15: 31 | C15: =INDEX('Base de donnée simple'!$B$23:'Base de donnée simple'!$E$34,MATCH('Calcul Et Courbes total'!G55,'Base de donnée simple'!$A$6:'Base de donnée simple'!$A$17,0),MATCH(Accueuil!$C$4,Tableau13[#Headers],0)) -> 45 | D15: 58.5 | E15: 1395 | F15: 1813.5 | G15: 8.181818182 | H15: =INDEX('Base de donnée simple'!$B$6:'Base de donnée simple'!$E$17,MATCH('Calcul Et Courbes total'!G55,'Base de donnée simple'!$A$6:'Base de donnée simple'!$A$17,0),MATCH(Accueuil!$C$4,Tableau1[#Headers],0)) -> 9 | I15: 526.5 | J15: 11413.63636 | K15: 16321.5 | L15: 1044576 | N15: Septembre | O15: 820 | P15: 1066 | Q15: 7913.636364 | R15: 11316.5 | S15: 4671.25 | T15: =N164*Accueuil!$D$6*$T$5*$T$19 -> 7242.56 | U15: =O164*Accueuil!B27*$U$5*$U$19 -> 0
A16: aout | B16: 31 | C16: =INDEX('Base de donnée simple'!$B$23:'Base de donnée simple'!$E$34,MATCH('Calcul Et Courbes total'!G56,'Base de donnée simple'!$A$6:'Base de donnée simple'!$A$17,0),MATCH(Accueuil!$C$4,Tableau13[#Headers],0)) -> 23 | D16: 29.9 | E16: 713 | F16: 926.9 | G16: 5.454545455 | H16: =INDEX('Base de donnée simple'!$B$6:'Base de donnée simple'!$E$17,MATCH('Calcul Et Courbes total'!G56,'Base de donnée simple'!$A$6:'Base de donnée simple'!$A$17,0),MATCH(Accueuil!$C$4,Tableau1[#Headers],0)) -> 6 | I16: 179.4 | J16: 3889.090909 | K16: 5561.4 | L16: 355929.6 | N16: Octobre | O16: 589 | P16: 765.7 | Q16: 5528.333333 | R16: 7905.516667 | S16: 4642.25 | T16: =N165*Accueuil!$D$6*$T$5*$T$19 -> 5059.530667 | U16: =O165*Accueuil!B28*$U$5*$U$19 -> 0
A17: sept | B17: 30 | C17: =INDEX('Base de donnée simple'!$B$23:'Base de donnée simple'!$E$34,MATCH('Calcul Et Courbes total'!G57,'Base de donnée simple'!$A$6:'Base de donnée simple'!$A$17,0),MATCH(Accueuil!$C$4,Tableau13[#Headers],0)) -> 30 | D17: 39 | E17: 900 | F17: 1170 | G17: 9.090909091 | H17: =INDEX('Base de donnée simple'!$B$6:'Base de donnée simple'!$E$17,MATCH('Calcul Et Courbes total'!G57,'Base de donnée simple'!$A$6:'Base de donnée simple'!$A$17,0),MATCH(Accueuil!$C$4,Tableau1[#Headers],0)) -> 10 | I17: 390 | J17: 8181.818182 | K17: 11700 | L17: 748800 | N17: Novembre | O17: 380 | P17: 494 | Q17: 3195.454545 | R17: 4569.5 | S17: 3675.75 | T17: =N166*Accueuil!$D$6*$T$5*$T$19 -> 2924.48 | U17: =O166*Accueuil!B29*$U$5*$U$19 -> 0
A18: oct | B18: 31 | C18: =INDEX('Base de donnée simple'!$B$23:'Base de donnée simple'!$E$34,MATCH('Calcul Et Courbes total'!G58,'Base de donnée simple'!$A$6:'Base de donnée simple'!$A$17,0),MATCH(Accueuil!$C$4,Tableau13[#Headers],0)) -> 20 | D18: 26 | E18: 620 | F18: 806 | G18: 10 | H18: =INDEX('Base de donnée simple'!$B$6:'Base de donnée simple'!$E$17,MATCH('Calcul Et Courbes total'!G58,'Base de donnée simple'!$A$6:'Base de donnée simple'!$A$17,0),MATCH(Accueuil!$C$4,Tableau1[#Headers],0)) -> 11 | I18: 286 | J18: 6200 | K18: 8866 | L18: 567424 | N18: Décembre | O18: 222.1666667 | P18: 288.8166667 | Q18: 1714.393939 | R18: 2451.583333 | S18: 3073.65 | T18: =N167*Accueuil!$D$6*$T$5*$T$19 -> 1569.013333 | U18: =O167*Accueuil!B30*$U$5*$U$19 -> 0 | X18: Modificateur de courbe , Dont touch
A19: nov | B19: 30 | C19: =INDEX('Base de donnée simple'!$B$23:'Base de donnée simple'!$E$34,MATCH('Calcul Et Courbes total'!G59,'Base de donnée simple'!$A$6:'Base de donnée simple'!$A$17,0),MATCH(Accueuil!$C$4,Tableau13[#Headers],0)) -> 10 | D19: 13 | E19: 300 | F19: 390 | G19: 8.181818182 | H19: =INDEX('Base de donnée simple'!$B$6:'Base de donnée simple'!$E$17,MATCH('Calcul Et Courbes total'!G59,'Base de donnée simple'!$A$6:'Base de donnée simple'!$A$17,0),MATCH(Accueuil!$C$4,Tableau1[#Headers],0)) -> 9 | I19: 117 | J19: 2454.545455 | K19: 3510 | L19: 224640 | M19: Forcage | N19: 1/0 | O19: ='DashBoard Igraze'!CJ53*1 -> 1 | P19: ='DashBoard Igraze'!CJ54*1 -> 1 | Q19: ='DashBoard Igraze'!CJ55*1 -> 1 | R19: ='DashBoard Igraze'!CJ56*1 -> 1 | S19: ='DashBoard Igraze'!CJ57*1 -> 1 | T19: ='DashBoard Igraze'!CJ58*1 -> 1 | U19: ='DashBoard Igraze'!CJ59*1 -> 0 | Y19: Activé | Z19: Desactivé
A20: dec | B20: 31 | C20: =INDEX('Base de donnée simple'!$B$23:'Base de donnée simple'!$E$34,MATCH('Calcul Et Courbes total'!G60,'Base de donnée simple'!$A$6:'Base de donnée simple'!$A$17,0),MATCH(Accueuil!$C$4,Tableau13[#Headers],0)) -> 3 | D20: 3.9 | E20: 93 | F20: 120.9 | G20: 6.363636364 | H20: =INDEX('Base de donnée simple'!$B$6:'Base de donnée simple'!$E$17,MATCH('Calcul Et Courbes total'!G60,'Base de donnée simple'!$A$6:'Base de donnée simple'!$A$17,0),MATCH(Accueuil!$C$4,Tableau1[#Headers],0)) -> 7 | I20: 27.3 | J20: 591.8181818 | K20: 846.3 | L20: 54163.2 | O20: Permet d'activer ou desactivé les courbes directement ici | Y20: 1 | Z20: 0
C21: =SUM(C9:C20) -> 310 | D21: =SUM(D9:D20) -> 403 | E21: =SUM(E9:E20) -> 9466 | F21: =SUM(F9:F20) -> 12305.8 | G21: =AVERAGE(G9:G20) -> 8.371212121 | H21: =AVERAGE(H9:H20) -> 9.208333333 | I21: =SUM(I9:I20) -> 4093.7 | J21: =AVERAGE(J9:J20) -> 7283.484848 | K21: =SUM(K9:K20) -> 124984.6 | L21: =SUM(L9:L20) -> 7999014.4
H22: Moy
A25: Besoins MS/MJME | D25: (Tableau automatisé , Pour modification voir Page accueuil ou base de données)
A27: Mois | B27: MJME/jr | C27: KgMS/day | D27: Total/jr | E27: Total/mois | F27: Total nombre d'animaux/mois | H27: Nombre d'animaux | K27: =Accueuil!C3 -> 7
A28: jan | B28: =INDEX('Base de donnée simple'!$I$6:'Base de donnée simple'!$L$17,MATCH('Calcul Et Courbes total'!K49,'Base de donnée simple'!$H$6:'Base de donnée simple'!$H$17,0),MATCH(Accueuil!$C$2,Tableau3[#Headers],0)) -> 10 | C28: =INDEX('Base de donnée simple'!$I$23:'Base de donnée simple'!$L$34,MATCH('Calcul Et Courbes total'!K49,'Base de donnée simple'!$H$6:'Base de donnée simple'!$H$17,0),MATCH(Accueuil!$C$2,Tableau3[#Headers],0)) -> 1.5 | D28: =C28*B28 -> 15 | E28: =D28*B9 -> 465 | F28: =E28*$K$27 -> 3255 | H28: A renseigné Page "accueuil"
A29: fev | B29: =INDEX('Base de donnée simple'!$I$6:'Base de donnée simple'!$L$17,MATCH('Calcul Et Courbes total'!K50,'Base de donnée simple'!$H$6:'Base de donnée simple'!$H$17,0),MATCH(Accueuil!$C$2,Tableau3[#Headers],0)) -> 11 | C29: =INDEX('Base de donnée simple'!$I$23:'Base de donnée simple'!$L$34,MATCH('Calcul Et Courbes total'!K50,'Base de donnée simple'!$H$6:'Base de donnée simple'!$H$17,0),MATCH(Accueuil!$C$2,Tableau3[#Headers],0)) -> 2.5 | D29: =C29*B29 -> 27.5 | E29: 797.5 | F29: =E29*$K$27 -> 5582.5
A30: mars | B30: =INDEX('Base de donnée simple'!$I$6:'Base de donnée simple'!$L$17,MATCH('Calcul Et Courbes total'!K51,'Base de donnée simple'!$H$6:'Base de donnée simple'!$H$17,0),MATCH(Accueuil!$C$2,Tableau3[#Headers],0)) -> 11 | C30: =INDEX('Base de donnée simple'!$I$23:'Base de donnée simple'!$L$34,MATCH('Calcul Et Courbes total'!K51,'Base de donnée simple'!$H$6:'Base de donnée simple'!$H$17,0),MATCH(Accueuil!$C$2,Tableau3[#Headers],0)) -> 2.8 | D30: 30.8 | E30: 954.8 | F30: =E30*$K$27 -> 6683.6
A31: avril | B31: =INDEX('Base de donnée simple'!$I$6:'Base de donnée simple'!$L$17,MATCH('Calcul Et Courbes total'!K52,'Base de donnée simple'!$H$6:'Base de donnée simple'!$H$17,0),MATCH(Accueuil!$C$2,Tableau3[#Headers],0)) -> 12 | C31: =INDEX('Base de donnée simple'!$I$23:'Base de donnée simple'!$L$34,MATCH('Calcul Et Courbes total'!K52,'Base de donnée simple'!$H$6:'Base de donnée simple'!$H$17,0),MATCH(Accueuil!$C$2,Tableau3[#Headers],0)) -> 4.5 | D31: 54 | E31: 1620 | F31: 11340
A32: mai | B32: =INDEX('Base de donnée simple'!$I$6:'Base de donnée simple'!$L$17,MATCH('Calcul Et Courbes total'!K53,'Base de donnée simple'!$H$6:'Base de donnée simple'!$H$17,0),MATCH(Accueuil!$C$2,Tableau3[#Headers],0)) -> 12 | C32: =INDEX('Base de donnée simple'!$I$23:'Base de donnée simple'!$L$34,MATCH('Calcul Et Courbes total'!K53,'Base de donnée simple'!$H$6:'Base de donnée simple'!$H$17,0),MATCH(Accueuil!$C$2,Tableau3[#Headers],0)) -> 6 | D32: 72 | E32: 2232 | F32: 15624
A33: juin | B33: =INDEX('Base de donnée simple'!$I$6:'Base de donnée simple'!$L$17,MATCH('Calcul Et Courbes total'!K54,'Base de donnée simple'!$H$6:'Base de donnée simple'!$H$17,0),MATCH(Accueuil!$C$2,Tableau3[#Headers],0)) -> 12 | C33: =INDEX('Base de donnée simple'!$I$23:'Base de donnée simple'!$L$34,MATCH('Calcul Et Courbes total'!K54,'Base de donnée simple'!$H$6:'Base de donnée simple'!$H$17,0),MATCH(Accueuil!$C$2,Tableau3[#Headers],0)) -> 5 | D33: 60 | E33: 1800 | F33: 12600
A34: juillet | B34: =INDEX('Base de donnée simple'!$I$6:'Base de donnée simple'!$L$17,MATCH('Calcul Et Courbes total'!K55,'Base de donnée simple'!$H$6:'Base de donnée simple'!$H$17,0),MATCH(Accueuil!$C$2,Tableau3[#Headers],0)) -> 10 | C34: =INDEX('Base de donnée simple'!$I$23:'Base de donnée simple'!$L$34,MATCH('Calcul Et Courbes total'!K55,'Base de donnée simple'!$H$6:'Base de donnée simple'!$H$17,0),MATCH(Accueuil!$C$2,Tableau3[#Headers],0)) -> 1.5 | D34: 15 | E34: 465 | F34: 3255
A35: aout | B35: =INDEX('Base de donnée simple'!$I$6:'Base de donnée simple'!$L$17,MATCH('Calcul Et Courbes total'!K56,'Base de donnée simple'!$H$6:'Base de donnée simple'!$H$17,0),MATCH(Accueuil!$C$2,Tableau3[#Headers],0)) -> 9 | C35: =INDEX('Base de donnée simple'!$I$23:'Base de donnée simple'!$L$34,MATCH('Calcul Et Courbes total'!K56,'Base de donnée simple'!$H$6:'Base de donnée simple'!$H$17,0),MATCH(Accueuil!$C$2,Tableau3[#Headers],0)) -> 1.5 | D35: 13.5 | E35: 418.5 | F35: 2929.5
A36: sept | B36: =INDEX('Base de donnée simple'!$I$6:'Base de donnée simple'!$L$17,MATCH('Calcul Et Courbes total'!K57,'Base de donnée simple'!$H$6:'Base de donnée simple'!$H$17,0),MATCH(Accueuil!$C$2,Tableau3[#Headers],0)) -> 10 | C36: =INDEX('Base de donnée simple'!$I$23:'Base de donnée simple'!$L$34,MATCH('Calcul Et Courbes total'!K57,'Base de donnée simple'!$H$6:'Base de donnée simple'!$H$17,0),MATCH(Accueuil!$C$2,Tableau3[#Headers],0)) -> 1.8 | D36: 18 | E36: 540 | F36: 3780
A37: oct | B37: =INDEX('Base de donnée simple'!$I$6:'Base de donnée simple'!$L$17,MATCH('Calcul Et Courbes total'!K58,'Base de donnée simple'!$H$6:'Base de donnée simple'!$H$17,0),MATCH(Accueuil!$C$2,Tableau3[#Headers],0)) -> 11 | C37: =INDEX('Base de donnée simple'!$I$23:'Base de donnée simple'!$L$34,MATCH('Calcul Et Courbes total'!K58,'Base de donnée simple'!$H$6:'Base de donnée simple'!$H$17,0),MATCH(Accueuil!$C$2,Tableau3[#Headers],0)) -> 1.8 | D37: 19.8 | E37: 613.8 | F37: 4296.6
A38: nov | B38: =INDEX('Base de donnée simple'!$I$6:'Base de donnée simple'!$L$17,MATCH('Calcul Et Courbes total'!K59,'Base de donnée simple'!$H$6:'Base de donnée simple'!$H$17,0),MATCH(Accueuil!$C$2,Tableau3[#Headers],0)) -> 10 | C38: =INDEX('Base de donnée simple'!$I$23:'Base de donnée simple'!$L$34,MATCH('Calcul Et Courbes total'!K59,'Base de donnée simple'!$H$6:'Base de donnée simple'!$H$17,0),MATCH(Accueuil!$C$2,Tableau3[#Headers],0)) -> 1.6 | D38: 16 | E38: 480 | F38: 3360
A39: dec | B39: =INDEX('Base de donnée simple'!$I$6:'Base de donnée simple'!$L$17,MATCH('Calcul Et Courbes total'!K60,'Base de donnée simple'!$H$6:'Base de donnée simple'!$H$17,0),MATCH(Accueuil!$C$2,Tableau3[#Headers],0)) -> 9 | C39: =INDEX('Base de donnée simple'!$I$23:'Base de donnée simple'!$L$34,MATCH('Calcul Et Courbes total'!K60,'Base de donnée simple'!$H$6:'Base de donnée simple'!$H$17,0),MATCH(Accueuil!$C$2,Tableau3[#Headers],0)) -> 1.5 | D39: 13.5 | E39: 418.5 | F39: 2929.5
C40: Besoin brebis MJME/MS/an | E40: =SUM(E28:E39) -> 10805.1
P45: Pas touche !(Données prise tableurs au dessus)
H47: Mes grigri de devellopement je vais les effacer rapidement | P47: Curve Passive | Q47: Curve Active | R47: Curve MJME Passive | S47: Curve MJME Active | T47: Requirement curve livestock | U47: Curve Objectif MJME | V47: Secondary Livestock
H48: MEGA active | J48: Passive | M48: Chaptel | N48: Chaptel 2 | O48: October | P48: =O16 -> 589 | Q48: 765.7 | R48: 5528.333333 | S48: 7905.516667 | T48: 4642.25 | U48: 5059.530667 | V48: 0
G49: 1 | I49: =INDEX('Base de donnée simple'!$B$6:'Base de donnée simple'!$D$17,MATCH('Calcul Et Courbes total'!G49,'Base de donnée simple'!$A$6:'Base de donnée simple'!$A$17,0),MATCH(Accueuil!$C$4,Tableau1[#Headers],0)) ->  | J49: =INDEX('Base de donnée simple'!$B$23:'Base de donnée simple'!$D$34,MATCH('Calcul Et Courbes total'!G49,'Base de donnée simple'!$A$6:'Base de donnée simple'!$A$17,0),MATCH(Accueuil!$C$4,Tableau13[#Headers],0)) ->  | K49: 1 | M49: =INDEX('Base de donnée simple'!$I$6:'Base de donnée simple'!$K$17,MATCH('Calcul Et Courbes total'!K49,'Base de donnée simple'!$H$6:'Base de donnée simple'!$H$17,0),MATCH(Accueuil!$C$2,Tableau3[#Headers],0)) ->  | N49: =INDEX('Base de donnée simple'!$I$23:'Base de donnée simple'!$K$34,MATCH('Calcul Et Courbes total'!K49,'Base de donnée simple'!$H$6:'Base de donnée simple'!$H$17,0),MATCH(Accueuil!$C$2,Tableau3[#Headers],0)) ->  | O49: November | P49: =O17 -> 380 | Q49: 494 | R49: 3195.454545 | S49: 4569.5 | T49: 3675.75 | U49: =T17 -> 2924.48 | V49: =U17 -> 0
G50: 2 | I50: =INDEX('Base de donnée simple'!$B$6:'Base de donnée simple'!$D$17,MATCH('Calcul Et Courbes total'!G50,'Base de donnée simple'!$A$6:'Base de donnée simple'!$A$17,0),MATCH(Accueuil!$C$4,Tableau1[#Headers],0)) ->  | J50: =INDEX('Base de donnée simple'!$B$23:'Base de donnée simple'!$D$34,MATCH('Calcul Et Courbes total'!G50,'Base de donnée simple'!$A$6:'Base de donnée simple'!$A$17,0),MATCH(Accueuil!$C$4,Tableau13[#Headers],0)) ->  | K50: 2 | M50: =INDEX('Base de donnée simple'!$I$6:'Base de donnée simple'!$K$17,MATCH('Calcul Et Courbes total'!K50,'Base de donnée simple'!$H$6:'Base de donnée simple'!$H$17,0),MATCH(Accueuil!$C$2,Tableau3[#Headers],0)) ->  | N50: =INDEX('Base de donnée simple'!$I$23:'Base de donnée simple'!$K$34,MATCH('Calcul Et Courbes total'!K50,'Base de donnée simple'!$H$6:'Base de donnée simple'!$H$17,0),MATCH(Accueuil!$C$2,Tableau3[#Headers],0)) ->  | O50: December | P50: 222.1666667 | Q50: 288.8166667 | R50: 1714.393939 | S50: 2451.583333 | T50: 3073.65 | U50: =T18 -> 1569.013333 | V50: =U18 -> 0
G51: 3 | I51: =INDEX('Base de donnée simple'!$B$6:'Base de donnée simple'!$D$17,MATCH('Calcul Et Courbes total'!G51,'Base de donnée simple'!$A$6:'Base de donnée simple'!$A$17,0),MATCH(Accueuil!$C$4,Tableau1[#Headers],0)) ->  | J51: =INDEX('Base de donnée simple'!$B$23:'Base de donnée simple'!$D$34,MATCH('Calcul Et Courbes total'!G51,'Base de donnée simple'!$A$6:'Base de donnée simple'!$A$17,0),MATCH(Accueuil!$C$4,Tableau13[#Headers],0)) ->  | K51: 3 | M51: =INDEX('Base de donnée simple'!$I$6:'Base de donnée simple'!$K$17,MATCH('Calcul Et Courbes total'!K51,'Base de donnée simple'!$H$6:'Base de donnée simple'!$H$17,0),MATCH(Accueuil!$C$2,Tableau3[#Headers],0)) ->  | N51: =INDEX('Base de donnée simple'!$I$23:'Base de donnée simple'!$K$34,MATCH('Calcul Et Courbes total'!K51,'Base de donnée simple'!$H$6:'Base de donnée simple'!$H$17,0),MATCH(Accueuil!$C$2,Tableau3[#Headers],0)) ->  | O51: January | P51: =O7 -> 124 | Q51: 161.2 | R51: 934.6969697 | S51: 1336.616667 | T51: 4012.95 | U51: 855.4346667 | V51: 0
G52: 4 | I52: =INDEX('Base de donnée simple'!$B$6:'Base de donnée simple'!$D$17,MATCH('Calcul Et Courbes total'!G52,'Base de donnée simple'!$A$6:'Base de donnée simple'!$A$17,0),MATCH(Accueuil!$C$4,Tableau1[#Headers],0)) ->  | J52: =INDEX('Base de donnée simple'!$B$23:'Base de donnée simple'!$D$34,MATCH('Calcul Et Courbes total'!G52,'Base de donnée simple'!$A$6:'Base de donnée simple'!$A$17,0),MATCH(Accueuil!$C$4,Tableau13[#Headers],0)) ->  | K52: 4 | M52: =INDEX('Base de donnée simple'!$I$6:'Base de donnée simple'!$K$17,MATCH('Calcul Et Courbes total'!K52,'Base de donnée simple'!$H$6:'Base de donnée simple'!$H$17,0),MATCH(Accueuil!$C$2,Tableau3[#Headers],0)) ->  | N52: =INDEX('Base de donnée simple'!$I$23:'Base de donnée simple'!$K$34,MATCH('Calcul Et Courbes total'!K52,'Base de donnée simple'!$H$6:'Base de donnée simple'!$H$17,0),MATCH(Accueuil!$C$2,Tableau3[#Headers],0)) ->  | O52: February | P52: =O8 -> 256.1666667 | Q52: 333.0166667 | R52: 2065.151515 | S52: =R8 -> 2953.166667 | T52: 5446.683333 | U52: 1890.026667 | V52: 0
G53: 5 | I53: =INDEX('Base de donnée simple'!$B$6:'Base de donnée simple'!$D$17,MATCH('Calcul Et Courbes total'!G53,'Base de donnée simple'!$A$6:'Base de donnée simple'!$A$17,0),MATCH(Accueuil!$C$4,Tableau1[#Headers],0)) ->  | J53: =INDEX('Base de donnée simple'!$B$23:'Base de donnée simple'!$D$34,MATCH('Calcul Et Courbes total'!G53,'Base de donnée simple'!$A$6:'Base de donnée simple'!$A$17,0),MATCH(Accueuil!$C$4,Tableau13[#Headers],0)) ->  | K53: 5 | M53: =INDEX('Base de donnée simple'!$I$6:'Base de donnée simple'!$K$17,MATCH('Calcul Et Courbes total'!K53,'Base de donnée simple'!$H$6:'Base de donnée simple'!$H$17,0),MATCH(Accueuil!$C$2,Tableau3[#Headers],0)) ->  | N53: =INDEX('Base de donnée simple'!$I$23:'Base de donnée simple'!$K$34,MATCH('Calcul Et Courbes total'!K53,'Base de donnée simple'!$H$6:'Base de donnée simple'!$H$17,0),MATCH(Accueuil!$C$2,Tableau3[#Headers],0)) ->  | O53: March | P53: 470.1666667 | Q53: 611.2166667 | R53: 4222.575758 | S53: 6038.283333 | T53: 6656.345833 | U53: 3864.501333 | V53: 0
G54: 6 | I54: =INDEX('Base de donnée simple'!$B$6:'Base de donnée simple'!$D$17,MATCH('Calcul Et Courbes total'!G54,'Base de donnée simple'!$A$6:'Base de donnée simple'!$A$17,0),MATCH(Accueuil!$C$4,Tableau1[#Headers],0)) ->  | J54: =INDEX('Base de donnée simple'!$B$23:'Base de donnée simple'!$D$34,MATCH('Calcul Et Courbes total'!G54,'Base de donnée simple'!$A$6:'Base de donnée simple'!$A$17,0),MATCH(Accueuil!$C$4,Tableau13[#Headers],0)) ->  | K54: 6 | M54: =INDEX('Base de donnée simple'!$I$6:'Base de donnée simple'!$K$17,MATCH('Calcul Et Courbes total'!K54,'Base de donnée simple'!$H$6:'Base de donnée simple'!$H$17,0),MATCH(Accueuil!$C$2,Tableau3[#Headers],0)) ->  | N54: =INDEX('Base de donnée simple'!$I$23:'Base de donnée simple'!$K$34,MATCH('Calcul Et Courbes total'!K54,'Base de donnée simple'!$H$6:'Base de donnée simple'!$H$17,0),MATCH(Accueuil!$C$2,Tableau3[#Headers],0)) ->  | O54: April | P54: 920 | Q54: 1196 | R54: 9386.363636 | S54: 13422.5 | T54: 8547 | U54: 8590.4 | V54: 0
G55: 7 | I55: =INDEX('Base de donnée simple'!$B$6:'Base de donnée simple'!$D$17,MATCH('Calcul Et Courbes total'!G55,'Base de donnée simple'!$A$6:'Base de donnée simple'!$A$17,0),MATCH(Accueuil!$C$4,Tableau1[#Headers],0)) ->  | J55: =INDEX('Base de donnée simple'!$B$23:'Base de donnée simple'!$D$34,MATCH('Calcul Et Courbes total'!G55,'Base de donnée simple'!$A$6:'Base de donnée simple'!$A$17,0),MATCH(Accueuil!$C$4,Tableau13[#Headers],0)) ->  | K55: 7 | M55: =INDEX('Base de donnée simple'!$I$6:'Base de donnée simple'!$K$17,MATCH('Calcul Et Courbes total'!K55,'Base de donnée simple'!$H$6:'Base de donnée simple'!$H$17,0),MATCH(Accueuil!$C$2,Tableau3[#Headers],0)) ->  | N55: =INDEX('Base de donnée simple'!$I$23:'Base de donnée simple'!$K$34,MATCH('Calcul Et Courbes total'!K55,'Base de donnée simple'!$H$6:'Base de donnée simple'!$H$17,0),MATCH(Accueuil!$C$2,Tableau3[#Headers],0)) ->  | O55: May | P55: 1813.5 | Q55: 2357.55 | R55: 19468.93939 | S55: 27840.58333 | T55: 10788 | U55: 17817.97333 | V55: 0
G56: 8 | I56: =INDEX('Base de donnée simple'!$B$6:'Base de donnée simple'!$D$17,MATCH('Calcul Et Courbes total'!G56,'Base de donnée simple'!$A$6:'Base de donnée simple'!$A$17,0),MATCH(Accueuil!$C$4,Tableau1[#Headers],0)) ->  | J56: =INDEX('Base de donnée simple'!$B$23:'Base de donnée simple'!$D$34,MATCH('Calcul Et Courbes total'!G56,'Base de donnée simple'!$A$6:'Base de donnée simple'!$A$17,0),MATCH(Accueuil!$C$4,Tableau13[#Headers],0)) ->  | K56: 8 | M56: =INDEX('Base de donnée simple'!$I$6:'Base de donnée simple'!$K$17,MATCH('Calcul Et Courbes total'!K56,'Base de donnée simple'!$H$6:'Base de donnée simple'!$H$17,0),MATCH(Accueuil!$C$2,Tableau3[#Headers],0)) ->  | N56: =INDEX('Base de donnée simple'!$I$23:'Base de donnée simple'!$K$34,MATCH('Calcul Et Courbes total'!K56,'Base de donnée simple'!$H$6:'Base de donnée simple'!$H$17,0),MATCH(Accueuil!$C$2,Tableau3[#Headers],0)) ->  | O56: June | P56: 1700 | Q56: 2210 | R56: 17818.18182 | S56: 25480 | T56: 9742.5 | U56: 16307.2 | V56: 0
G57: 9 | I57: =INDEX('Base de donnée simple'!$B$6:'Base de donnée simple'!$D$17,MATCH('Calcul Et Courbes total'!G57,'Base de donnée simple'!$A$6:'Base de donnée simple'!$A$17,0),MATCH(Accueuil!$C$4,Tableau1[#Headers],0)) ->  | J57: =INDEX('Base de donnée simple'!$B$23:'Base de donnée simple'!$D$34,MATCH('Calcul Et Courbes total'!G57,'Base de donnée simple'!$A$6:'Base de donnée simple'!$A$17,0),MATCH(Accueuil!$C$4,Tableau13[#Headers],0)) ->  | K57: 9 | M57: =INDEX('Base de donnée simple'!$I$6:'Base de donnée simple'!$K$17,MATCH('Calcul Et Courbes total'!K57,'Base de donnée simple'!$H$6:'Base de donnée simple'!$H$17,0),MATCH(Accueuil!$C$2,Tableau3[#Headers],0)) ->  | N57: =INDEX('Base de donnée simple'!$I$23:'Base de donnée simple'!$K$34,MATCH('Calcul Et Courbes total'!K57,'Base de donnée simple'!$H$6:'Base de donnée simple'!$H$17,0),MATCH(Accueuil!$C$2,Tableau3[#Headers],0)) ->  | O57: July | P57: 1286.5 | Q57: 1672.45 | R57: 12569.09091 | S57: 17973.8 | T57: 5477.7 | U57: 11503.232 | V57: 0
G58: 10 | I58: =INDEX('Base de donnée simple'!$B$6:'Base de donnée simple'!$D$17,MATCH('Calcul Et Courbes total'!G58,'Base de donnée simple'!$A$6:'Base de donnée simple'!$A$17,0),MATCH(Accueuil!$C$4,Tableau1[#Headers],0)) ->  | J58: =INDEX('Base de donnée simple'!$B$23:'Base de donnée simple'!$D$34,MATCH('Calcul Et Courbes total'!G58,'Base de donnée simple'!$A$6:'Base de donnée simple'!$A$17,0),MATCH(Accueuil!$C$4,Tableau13[#Headers],0)) ->  | K58: 10 | M58: =INDEX('Base de donnée simple'!$I$6:'Base de donnée simple'!$K$17,MATCH('Calcul Et Courbes total'!K58,'Base de donnée simple'!$H$6:'Base de donnée simple'!$H$17,0),MATCH(Accueuil!$C$2,Tableau3[#Headers],0)) ->  | N58: =INDEX('Base de donnée simple'!$I$23:'Base de donnée simple'!$K$34,MATCH('Calcul Et Courbes total'!K58,'Base de donnée simple'!$H$6:'Base de donnée simple'!$H$17,0),MATCH(Accueuil!$C$2,Tableau3[#Headers],0)) ->  | O58: August | P58: 728.5 | Q58: 947.05 | R58: 6556.969697 | S58: 9376.466667 | T58: 4720.783333 | U58: 6000.938667 | V58: 0
G59: 11 | I59: =INDEX('Base de donnée simple'!$B$6:'Base de donnée simple'!$D$17,MATCH('Calcul Et Courbes total'!G59,'Base de donnée simple'!$A$6:'Base de donnée simple'!$A$17,0),MATCH(Accueuil!$C$4,Tableau1[#Headers],0)) ->  | J59: =INDEX('Base de donnée simple'!$B$23:'Base de donnée simple'!$D$34,MATCH('Calcul Et Courbes total'!G59,'Base de donnée simple'!$A$6:'Base de donnée simple'!$A$17,0),MATCH(Accueuil!$C$4,Tableau13[#Headers],0)) ->  | K59: 11 | M59: =INDEX('Base de donnée simple'!$I$6:'Base de donnée simple'!$K$17,MATCH('Calcul Et Courbes total'!K59,'Base de donnée simple'!$H$6:'Base de donnée simple'!$H$17,0),MATCH(Accueuil!$C$2,Tableau3[#Headers],0)) ->  | N59: =INDEX('Base de donnée simple'!$I$23:'Base de donnée simple'!$K$34,MATCH('Calcul Et Courbes total'!K59,'Base de donnée simple'!$H$6:'Base de donnée simple'!$H$17,0),MATCH(Accueuil!$C$2,Tableau3[#Headers],0)) ->  | O59: September | P59: 820 | Q59: 1066 | R59: 7913.636364 | S59: 11316.5 | T59: 4671.25 | U59: 7242.56 | V59: 0
G60: 12 | I60: =INDEX('Base de donnée simple'!$B$6:'Base de donnée simple'!$D$17,MATCH('Calcul Et Courbes total'!G60,'Base de donnée simple'!$A$6:'Base de donnée simple'!$A$17,0),MATCH(Accueuil!$C$4,Tableau1[#Headers],0)) ->  | J60: =INDEX('Base de donnée simple'!$B$23:'Base de donnée simple'!$D$34,MATCH('Calcul Et Courbes total'!G60,'Base de donnée simple'!$A$6:'Base de donnée simple'!$A$17,0),MATCH(Accueuil!$C$4,Tableau13[#Headers],0)) ->  | K60: 12 | M60: =INDEX('Base de donnée simple'!$I$6:'Base de donnée simple'!$K$17,MATCH('Calcul Et Courbes total'!K60,'Base de donnée simple'!$H$6:'Base de donnée simple'!$H$17,0),MATCH(Accueuil!$C$2,Tableau3[#Headers],0)) ->  | N60: =INDEX('Base de donnée simple'!$I$23:'Base de donnée simple'!$K$34,MATCH('Calcul Et Courbes total'!K60,'Base de donnée simple'!$H$6:'Base de donnée simple'!$H$17,0),MATCH(Accueuil!$C$2,Tableau3[#Headers],0)) ->  | O60: October | P60: 589 | Q60: 765.7 | R60: 5528.333333 | S60: 7905.516667 | T60: 4642.25 | U60: 5059.530667 | V60: 0
O61: November | P61: 380 | Q61: 494 | R61: 3195.454545 | S61: 4569.5 | T61: 3675.75 | U61: 2924.48 | V61: 0
O62: December | P62: 222.1666667 | Q62: 288.8166667 | R62: 1714.393939 | S62: 2451.583333 | T62: 3073.65 | U62: 1569.013333 | V62: 0
O63: January | P63: =O7 -> 124 | Q63: 161.2 | R63: 934.6969697 | S63: 1336.616667 | T63: 4012.95 | U63: 855.4346667 | V63: 0
O64: February | P64: =O8 -> 256.1666667 | Q64: 333.0166667 | R64: 2065.151515 | S64: 2953.166667 | T64: 5446.683333 | U64: 1890.026667 | V64: 0
O65: March | P65: 470.1666667 | Q65: 611.2166667 | R65: 4222.575758 | S65: 6038.283333 | T65: 6656.345833 | U65: 3864.501333 | V65: 0
E114: Nombre Animal | F114: ='DashBoard Igraze'!BI273 -> 35 | O114: Nombre Animal | P114: ='DashBoard Igraze'!BV273 -> 45
E115: nombre HA | F115: ='DashBoard Igraze'!BI272 -> 20 | O115: nombre HA | P115: ='DashBoard Igraze'!BV272 -> 40
E116: Ilot 1 | O116: Ilot 3
E117: Courbe Passive | F117: Courbe active | G117: Courbe megajoule( Passive) | H117: Courbe megajoule dispo(active) | I117: Courbe besoin chaptel | J117: Courbe Megajoule Objectif | K117: Besoin different | O117: Courbe Passive | P117: Courbe active | Q117: Courbe megajoule( Passive) | R117: Courbe megajoule dispo(active) | S117: Courbe besoin chaptel | T117: Courbe Megajoule Objectif | U117: Besoin different
D118: Janvier | E118: =IF('DashBoard Igraze'!$BI$272>0,'Calcul Et Courbes 1'!O7,0) -> 62 | F118: =IF('DashBoard Igraze'!$BI$272>0,'Calcul Et Courbes 1'!P7,0) -> 80.6 | G118: =IF('DashBoard Igraze'!$BI$272>0,'Calcul Et Courbes 1'!Q7,0) -> 394.5454545 | H118: =IF('DashBoard Igraze'!$BI$272>0,'Calcul Et Courbes 1'!R7,0) -> 564.2 | I118: =IF('DashBoard Igraze'!$BI$272>0,'Calcul Et Courbes 1'!S7,0) -> 6835.5 | J118: =IF('DashBoard Igraze'!$BI$272>0,'Calcul Et Courbes 1'!T7,0) -> 451.36 | K118: =IF('DashBoard Igraze'!$BI$272>0,'Calcul Et Courbes 1'!U7,0) -> 7812 | N118: Janvier | O118: =IF('DashBoard Igraze'!$BV$272>0,'Calcul Et Courbes 3'!O7,0) -> 62 | P118: =IF('DashBoard Igraze'!$BV$272>0,'Calcul Et Courbes 3'!P7,0) -> 80.6 | Q118: =IF('DashBoard Igraze'!$BV$272>0,'Calcul Et Courbes 3'!Q7,0) -> 394.5454545 | R118: =IF('DashBoard Igraze'!$BV$272>0,'Calcul Et Courbes 3'!R7,0) -> 564.2 | S118: =IF('DashBoard Igraze'!$BV$272>0,'Calcul Et Courbes 3'!S7,0) -> 4394.25 | T118: =IF('DashBoard Igraze'!$BV$272>0,'Calcul Et Courbes 3'!T7,0) -> 451.36 | U118: =IF('DashBoard Igraze'!$BV$272>0,'Calcul Et Courbes 3'!U7,0) -> 7812
D119: Février | E119: =IF('DashBoard Igraze'!$BI$272>0,'Calcul Et Courbes 1'!O8,0) -> 203 | F119: =IF('DashBoard Igraze'!$BI$272>0,'Calcul Et Courbes 1'!P8,0) -> 263.9 | G119: =IF('DashBoard Igraze'!$BI$272>0,'Calcul Et Courbes 1'!Q8,0) -> 1476.363636 | H119: =IF('DashBoard Igraze'!$BI$272>0,'Calcul Et Courbes 1'!R8,0) -> 2111.2 | I119: =IF('DashBoard Igraze'!$BI$272>0,'Calcul Et Courbes 1'!S8,0) -> 8120 | J119: =IF('DashBoard Igraze'!$BI$272>0,'Calcul Et Courbes 1'!T8,0) -> 1688.96 | K119: =IF('DashBoard Igraze'!$BI$272>0,'Calcul Et Courbes 1'!U8,0) -> 9280 | N119: Février | O119: =IF('DashBoard Igraze'!$BV$272>0,'Calcul Et Courbes 3'!O8,0) -> 174 | P119: =IF('DashBoard Igraze'!$BV$272>0,'Calcul Et Courbes 3'!P8,0) -> 226.2 | Q119: =IF('DashBoard Igraze'!$BV$272>0,'Calcul Et Courbes 3'!Q8,0) -> 1107.272727 | R119: =IF('DashBoard Igraze'!$BV$272>0,'Calcul Et Courbes 3'!R8,0) -> 1583.4 | S119: =IF('DashBoard Igraze'!$BV$272>0,'Calcul Et Courbes 3'!S8,0) -> 5220 | T119: =IF('DashBoard Igraze'!$BV$272>0,'Calcul Et Courbes 3'!T8,0) -> 1266.72 | U119: =IF('DashBoard Igraze'!$BV$272>0,'Calcul Et Courbes 3'!U8,0) -> 9280
D120: Mars | E120: =IF('DashBoard Igraze'!$BI$272>0,'Calcul Et Courbes 1'!O9,0) -> 465 | F120: =IF('DashBoard Igraze'!$BI$272>0,'Calcul Et Courbes 1'!P9,0) -> 604.5 | G120: =IF('DashBoard Igraze'!$BI$272>0,'Calcul Et Courbes 1'!Q9,0) -> 4227.272727 | H120: =IF('DashBoard Igraze'!$BI$272>0,'Calcul Et Courbes 1'!R9,0) -> 6045 | I120: =IF('DashBoard Igraze'!$BI$272>0,'Calcul Et Courbes 1'!S9,0) -> 9548 | J120: =IF('DashBoard Igraze'!$BI$272>0,'Calcul Et Courbes 1'!T9,0) -> 4836 | K120: =IF('DashBoard Igraze'!$BI$272>0,'Calcul Et Courbes 1'!U9,0) -> 10912 | N120: Mars | O120: =IF('DashBoard Igraze'!$BV$272>0,'Calcul Et Courbes 3'!O9,0) -> 372 | P120: =IF('DashBoard Igraze'!$BV$272>0,'Calcul Et Courbes 3'!P9,0) -> 483.6 | Q120: =IF('DashBoard Igraze'!$BV$272>0,'Calcul Et Courbes 3'!Q9,0) -> 2705.454545 | R120: =IF('DashBoard Igraze'!$BV$272>0,'Calcul Et Courbes 3'!R9,0) -> 3868.8 | S120: =IF('DashBoard Igraze'!$BV$272>0,'Calcul Et Courbes 3'!S9,0) -> 6138 | T120: =IF('DashBoard Igraze'!$BV$272>0,'Calcul Et Courbes 3'!T9,0) -> 3095.04 | U120: =IF('DashBoard Igraze'!$BV$272>0,'Calcul Et Courbes 3'!U9,0) -> 10912
D121: Avril | E121: =IF('DashBoard Igraze'!$BI$272>0,'Calcul Et Courbes 1'!O10,0) -> 900 | F121: =IF('DashBoard Igraze'!$BI$272>0,'Calcul Et Courbes 1'!P10,0) -> 1170 | G121: =IF('DashBoard Igraze'!$BI$272>0,'Calcul Et Courbes 1'!Q10,0) -> 8590.909091 | H121: =IF('DashBoard Igraze'!$BI$272>0,'Calcul Et Courbes 1'!R10,0) -> 12285 | I121: =IF('DashBoard Igraze'!$BI$272>0,'Calcul Et Courbes 1'!S10,0) -> 10080 | J121: =IF('DashBoard Igraze'!$BI$272>0,'Calcul Et Courbes 1'!T10,0) -> 9828 | K121: =IF('DashBoard Igraze'!$BI$272>0,'Calcul Et Courbes 1'!U10,0) -> 11520 | N121: Avril | O121: =IF('DashBoard Igraze'!$BV$272>0,'Calcul Et Courbes 3'!O10,0) -> 600 | P121: =IF('DashBoard Igraze'!$BV$272>0,'Calcul Et Courbes 3'!P10,0) -> 780 | Q121: =IF('DashBoard Igraze'!$BV$272>0,'Calcul Et Courbes 3'!Q10,0) -> 5727.272727 | R121: =IF('DashBoard Igraze'!$BV$272>0,'Calcul Et Courbes 3'!R10,0) -> 8190 | S121: =IF('DashBoard Igraze'!$BV$272>0,'Calcul Et Courbes 3'!S10,0) -> 6480 | T121: =IF('DashBoard Igraze'!$BV$272>0,'Calcul Et Courbes 3'!T10,0) -> 6552 | U121: =IF('DashBoard Igraze'!$BV$272>0,'Calcul Et Courbes 3'!U10,0) -> 11520
D122: Mai | E122: =IF('DashBoard Igraze'!$BI$272>0,'Calcul Et Courbes 1'!O11,0) -> 2015 | F122: =IF('DashBoard Igraze'!$BI$272>0,'Calcul Et Courbes 1'!P11,0) -> 2619.5 | G122: =IF('DashBoard Igraze'!$BI$272>0,'Calcul Et Courbes 1'!Q11,0) -> 21981.81818 | H122: =IF('DashBoard Igraze'!$BI$272>0,'Calcul Et Courbes 1'!R11,0) -> 31434 | I122: =IF('DashBoard Igraze'!$BI$272>0,'Calcul Et Courbes 1'!S11,0) -> 12206.25 | J122: =IF('DashBoard Igraze'!$BI$272>0,'Calcul Et Courbes 1'!T11,0) -> 25147.2 | K122: =IF('DashBoard Igraze'!$BI$272>0,'Calcul Et Courbes 1'!U11,0) -> 13950 | N122: Mai | O122: =IF('DashBoard Igraze'!$BV$272>0,'Calcul Et Courbes 3'!O11,0) -> 1550 | P122: =IF('DashBoard Igraze'!$BV$272>0,'Calcul Et Courbes 3'!P11,0) -> 2015 | Q122: =IF('DashBoard Igraze'!$BV$272>0,'Calcul Et Courbes 3'!Q11,0) -> 15500 | R122: =IF('DashBoard Igraze'!$BV$272>0,'Calcul Et Courbes 3'!R11,0) -> 22165 | S122: =IF('DashBoard Igraze'!$BV$272>0,'Calcul Et Courbes 3'!S11,0) -> 7846.875 | T122: =IF('DashBoard Igraze'!$BV$272>0,'Calcul Et Courbes 3'!T11,0) -> 17732 | U122: =IF('DashBoard Igraze'!$BV$272>0,'Calcul Et Courbes 3'!U11,0) -> 13950
D123: Juin | E123: =IF('DashBoard Igraze'!$BI$272>0,'Calcul Et Courbes 1'!O12,0) -> 1800 | F123: =IF('DashBoard Igraze'!$BI$272>0,'Calcul Et Courbes 1'!P12,0) -> 2340 | G123: =IF('DashBoard Igraze'!$BI$272>0,'Calcul Et Courbes 1'!Q12,0) -> 18000 | H123: =IF('DashBoard Igraze'!$BI$272>0,'Calcul Et Courbes 1'!R12,0) -> 25740 | I123: =IF('DashBoard Igraze'!$BI$272>0,'Calcul Et Courbes 1'!S12,0) -> 11340 | J123: =IF('DashBoard Igraze'!$BI$272>0,'Calcul Et Courbes 1'!T12,0) -> 20592 | K123: =IF('DashBoard Igraze'!$BI$272>0,'Calcul Et Courbes 1'!U12,0) -> 12960 | N123: Juin | O123: =IF('DashBoard Igraze'!$BV$272>0,'Calcul Et Courbes 3'!O12,0) -> 1800 | P123: =IF('DashBoard Igraze'!$BV$272>0,'Calcul Et Courbes 3'!P12,0) -> 2340 | Q123: =IF('DashBoard Igraze'!$BV$272>0,'Calcul Et Courbes 3'!Q12,0) -> 19636.36364 | R123: =IF('DashBoard Igraze'!$BV$272>0,'Calcul Et Courbes 3'!R12,0) -> 28080 | S123: =IF('DashBoard Igraze'!$BV$272>0,'Calcul Et Courbes 3'!S12,0) -> 7290 | T123: =IF('DashBoard Igraze'!$BV$272>0,'Calcul Et Courbes 3'!T12,0) -> 22464 | U123: =IF('DashBoard Igraze'!$BV$272>0,'Calcul Et Courbes 3'!U12,0) -> 12960
D124: Juillet | E124: =IF('DashBoard Igraze'!$BI$272>0,'Calcul Et Courbes 1'!O13,0) -> 1395 | F124: =IF('DashBoard Igraze'!$BI$272>0,'Calcul Et Courbes 1'!P13,0) -> 1813.5 | G124: =IF('DashBoard Igraze'!$BI$272>0,'Calcul Et Courbes 1'!Q13,0) -> 11413.63636 | H124: =IF('DashBoard Igraze'!$BI$272>0,'Calcul Et Courbes 1'!R13,0) -> 16321.5 | I124: =IF('DashBoard Igraze'!$BI$272>0,'Calcul Et Courbes 1'!S13,0) -> 11229.75 | J124: =IF('DashBoard Igraze'!$BI$272>0,'Calcul Et Courbes 1'!T13,0) -> 13057.2 | K124: =IF('DashBoard Igraze'!$BI$272>0,'Calcul Et Courbes 1'!U13,0) -> 12834 | N124: Juillet | O124: =IF('DashBoard Igraze'!$BV$272>0,'Calcul Et Courbes 3'!O13,0) -> 1550 | P124: =IF('DashBoard Igraze'!$BV$272>0,'Calcul Et Courbes 3'!P13,0) -> 2015 | Q124: =IF('DashBoard Igraze'!$BV$272>0,'Calcul Et Courbes 3'!Q13,0) -> 16909.09091 | R124: =IF('DashBoard Igraze'!$BV$272>0,'Calcul Et Courbes 3'!R13,0) -> 24180 | S124: =IF('DashBoard Igraze'!$BV$272>0,'Calcul Et Courbes 3'!S13,0) -> 7219.125 | T124: =IF('DashBoard Igraze'!$BV$272>0,'Calcul Et Courbes 3'!T13,0) -> 19344 | U124: =IF('DashBoard Igraze'!$BV$272>0,'Calcul Et Courbes 3'!U13,0) -> 12834
D125: Août | E125: =IF('DashBoard Igraze'!$BI$272>0,'Calcul Et Courbes 1'!O14,0) -> 713 | F125: =IF('DashBoard Igraze'!$BI$272>0,'Calcul Et Courbes 1'!P14,0) -> 926.9 | G125: =IF('DashBoard Igraze'!$BI$272>0,'Calcul Et Courbes 1'!Q14,0) -> 3889.090909 | H125: =IF('DashBoard Igraze'!$BI$272>0,'Calcul Et Courbes 1'!R14,0) -> 5561.4 | I125: =IF('DashBoard Igraze'!$BI$272>0,'Calcul Et Courbes 1'!S14,0) -> 9548 | J125: =IF('DashBoard Igraze'!$BI$272>0,'Calcul Et Courbes 1'!T14,0) -> 4449.12 | K125: =IF('DashBoard Igraze'!$BI$272>0,'Calcul Et Courbes 1'!U14,0) -> 10912 | N125: Août | O125: =IF('DashBoard Igraze'!$BV$272>0,'Calcul Et Courbes 3'!O14,0) -> 930 | P125: =IF('DashBoard Igraze'!$BV$272>0,'Calcul Et Courbes 3'!P14,0) -> 1209 | Q125: =IF('DashBoard Igraze'!$BV$272>0,'Calcul Et Courbes 3'!Q14,0) -> 9300 | R125: =IF('DashBoard Igraze'!$BV$272>0,'Calcul Et Courbes 3'!R14,0) -> 13299 | S125: =IF('DashBoard Igraze'!$BV$272>0,'Calcul Et Courbes 3'!S14,0) -> 6138 | T125: =IF('DashBoard Igraze'!$BV$272>0,'Calcul Et Courbes 3'!T14,0) -> 10639.2 | U125: =IF('DashBoard Igraze'!$BV$272>0,'Calcul Et Courbes 3'!U14,0) -> 10912
D126: Septembre | E126: =IF('DashBoard Igraze'!$BI$272>0,'Calcul Et Courbes 1'!O15,0) -> 900 | F126: =IF('DashBoard Igraze'!$BI$272>0,'Calcul Et Courbes 1'!P15,0) -> 1170 | G126: =IF('DashBoard Igraze'!$BI$272>0,'Calcul Et Courbes 1'!Q15,0) -> 8181.818182 | H126: =IF('DashBoard Igraze'!$BI$272>0,'Calcul Et Courbes 1'!R15,0) -> 11700 | I126: =IF('DashBoard Igraze'!$BI$272>0,'Calcul Et Courbes 1'!S15,0) -> 8452.5 | J126: =IF('DashBoard Igraze'!$BI$272>0,'Calcul Et Courbes 1'!T15,0) -> 9360 | K126: =IF('DashBoard Igraze'!$BI$272>0,'Calcul Et Courbes 1'!U15,0) -> 9660 | N126: Septembre | O126: =IF('DashBoard Igraze'!$BV$272>0,'Calcul Et Courbes 3'!O15,0) -> 600 | P126: =IF('DashBoard Igraze'!$BV$272>0,'Calcul Et Courbes 3'!P15,0) -> 780 | Q126: =IF('DashBoard Igraze'!$BV$272>0,'Calcul Et Courbes 3'!Q15,0) -> 6272.727273 | R126: =IF('DashBoard Igraze'!$BV$272>0,'Calcul Et Courbes 3'!R15,0) -> 8970 | S126: =IF('DashBoard Igraze'!$BV$272>0,'Calcul Et Courbes 3'!S15,0) -> 5433.75 | T126: =IF('DashBoard Igraze'!$BV$272>0,'Calcul Et Courbes 3'!T15,0) -> 7176 | U126: =IF('DashBoard Igraze'!$BV$272>0,'Calcul Et Courbes 3'!U15,0) -> 9660
D127: Octobre | E127: =IF('DashBoard Igraze'!$BI$272>0,'Calcul Et Courbes 1'!O16,0) -> 620 | F127: =IF('DashBoard Igraze'!$BI$272>0,'Calcul Et Courbes 1'!P16,0) -> 806 | G127: =IF('DashBoard Igraze'!$BI$272>0,'Calcul Et Courbes 1'!Q16,0) -> 6200 | H127: =IF('DashBoard Igraze'!$BI$272>0,'Calcul Et Courbes 1'!R16,0) -> 8866 | I127: =IF('DashBoard Igraze'!$BI$272>0,'Calcul Et Courbes 1'!S16,0) -> 7974.75 | J127: =IF('DashBoard Igraze'!$BI$272>0,'Calcul Et Courbes 1'!T16,0) -> 7092.8 | K127: =IF('DashBoard Igraze'!$BI$272>0,'Calcul Et Courbes 1'!U16,0) -> 9114 | N127: Octobre | O127: =IF('DashBoard Igraze'!$BV$272>0,'Calcul Et Courbes 3'!O16,0) -> 310 | P127: =IF('DashBoard Igraze'!$BV$272>0,'Calcul Et Courbes 3'!P16,0) -> 403 | Q127: =IF('DashBoard Igraze'!$BV$272>0,'Calcul Et Courbes 3'!Q16,0) -> 2536.363636 | R127: =IF('DashBoard Igraze'!$BV$272>0,'Calcul Et Courbes 3'!R16,0) -> 3627 | S127: =IF('DashBoard Igraze'!$BV$272>0,'Calcul Et Courbes 3'!S16,0) -> 5126.625 | T127: =IF('DashBoard Igraze'!$BV$272>0,'Calcul Et Courbes 3'!T16,0) -> 2901.6 | U127: =IF('DashBoard Igraze'!$BV$272>0,'Calcul Et Courbes 3'!U16,0) -> 9114
D128: Novembre | E128: =IF('DashBoard Igraze'!$BI$272>0,'Calcul Et Courbes 1'!O17,0) -> 300 | F128: =IF('DashBoard Igraze'!$BI$272>0,'Calcul Et Courbes 1'!P17,0) -> 390 | G128: =IF('DashBoard Igraze'!$BI$272>0,'Calcul Et Courbes 1'!Q17,0) -> 2454.545455 | H128: =IF('DashBoard Igraze'!$BI$272>0,'Calcul Et Courbes 1'!R17,0) -> 3510 | I128: =IF('DashBoard Igraze'!$BI$272>0,'Calcul Et Courbes 1'!S17,0) -> 6300 | J128: =IF('DashBoard Igraze'!$BI$272>0,'Calcul Et Courbes 1'!T17,0) -> 2808 | K128: =IF('DashBoard Igraze'!$BI$272>0,'Calcul Et Courbes 1'!U17,0) -> 7200 | N128: Novembre | O128: =IF('DashBoard Igraze'!$BV$272>0,'Calcul Et Courbes 3'!O17,0) -> 240 | P128: =IF('DashBoard Igraze'!$BV$272>0,'Calcul Et Courbes 3'!P17,0) -> 312 | Q128: =IF('DashBoard Igraze'!$BV$272>0,'Calcul Et Courbes 3'!Q17,0) -> 1745.454545 | R128: =IF('DashBoard Igraze'!$BV$272>0,'Calcul Et Courbes 3'!R17,0) -> 2496 | S128: =IF('DashBoard Igraze'!$BV$272>0,'Calcul Et Courbes 3'!S17,0) -> 4050 | T128: =IF('DashBoard Igraze'!$BV$272>0,'Calcul Et Courbes 3'!T17,0) -> 1996.8 | U128: =IF('DashBoard Igraze'!$BV$272>0,'Calcul Et Courbes 3'!U17,0) -> 7200
D129: Décembre | E129: =IF('DashBoard Igraze'!$BI$272>0,'Calcul Et Courbes 1'!O18,0) -> 93 | F129: =IF('DashBoard Igraze'!$BI$272>0,'Calcul Et Courbes 1'!P18,0) -> 120.9 | G129: =IF('DashBoard Igraze'!$BI$272>0,'Calcul Et Courbes 1'!Q18,0) -> 591.8181818 | H129: =IF('DashBoard Igraze'!$BI$272>0,'Calcul Et Courbes 1'!R18,0) -> 846.3 | I129: =IF('DashBoard Igraze'!$BI$272>0,'Calcul Et Courbes 1'!S18,0) -> 4882.5 | J129: =IF('DashBoard Igraze'!$BI$272>0,'Calcul Et Courbes 1'!T18,0) -> 677.04 | K129: =IF('DashBoard Igraze'!$BI$272>0,'Calcul Et Courbes 1'!U18,0) -> 5580 | N129: Décembre | O129: =IF('DashBoard Igraze'!$BV$272>0,'Calcul Et Courbes 3'!O18,0) -> 124 | P129: =IF('DashBoard Igraze'!$BV$272>0,'Calcul Et Courbes 3'!P18,0) -> 161.2 | Q129: =IF('DashBoard Igraze'!$BV$272>0,'Calcul Et Courbes 3'!Q18,0) -> 789.0909091 | R129: =IF('DashBoard Igraze'!$BV$272>0,'Calcul Et Courbes 3'!R18,0) -> 1128.4 | S129: =IF('DashBoard Igraze'!$BV$272>0,'Calcul Et Courbes 3'!S18,0) -> 3138.75 | T129: =IF('DashBoard Igraze'!$BV$272>0,'Calcul Et Courbes 3'!T18,0) -> 902.72 | U129: =IF('DashBoard Igraze'!$BV$272>0,'Calcul Et Courbes 3'!U18,0) -> 5580
E131: nombre HA | F131: ='DashBoard Igraze'!BP272 -> 40 | G131: Nombre Animal | H131: ='DashBoard Igraze'!BP273 -> 180 | O131: nombre HA | P131: ='DashBoard Igraze'!CB272 -> 20 | Q131: Nombre Animal | R131: ='DashBoard Igraze'!CB273 -> 180
E132: Ilot 2 | O132: Ilot 4
E133: Courbe Passive | F133: Courbe active | G133: Courbe megajoule( Passive) | H133: Courbe megajoule dispo(active) | I133: Courbe besoin chaptel | J133: Courbe Megajoule Objectif | K133: Besoin different | O133: Courbe Passive | P133: Courbe active | Q133: Courbe megajoule( Passive) | R133: Courbe megajoule dispo(active) | S133: Courbe besoin chaptel | T133: Courbe Megajoule Objectif | U133: Besoin different
D134: Janvier | E134: =IF('DashBoard Igraze'!$BP$272>0,'Calcul Et Courbes 2'!O7,0) -> 155 | F134: =IF('DashBoard Igraze'!$BP$272>0,'Calcul Et Courbes 2'!P7,0) -> 201.5 | G134: =IF('DashBoard Igraze'!$BP$272>0,'Calcul Et Courbes 2'!Q7,0) -> 1197.727273 | H134: =IF('DashBoard Igraze'!$BP$272>0,'Calcul Et Courbes 2'!R7,0) -> 1712.75 | I134: =IF('DashBoard Igraze'!$BP$272>0,'Calcul Et Courbes 2'!S7,0) -> 2092.5 | J134: =IF('DashBoard Igraze'!$BP$272>0,'Calcul Et Courbes 2'!T7,0) -> 1370.2 | K134: =IF('DashBoard Igraze'!$BP$272>0,'Calcul Et Courbes 2'!U7,0) -> 23.25 | N134: Janvier | O134: =IF('DashBoard Igraze'!$CB$272>0,'Calcul Et Courbes 4'!O7,0) -> 248 | P134: =IF('DashBoard Igraze'!$CB$272>0,'Calcul Et Courbes 4'!P7,0) -> 322.4 | Q134: =IF('DashBoard Igraze'!$CB$272>0,'Calcul Et Courbes 4'!Q7,0) -> 2029.090909 | R134: =IF('DashBoard Igraze'!$CB$272>0,'Calcul Et Courbes 4'!R7,0) -> 2901.6 | S134: =IF('DashBoard Igraze'!$CB$272>0,'Calcul Et Courbes 4'!S7,0) -> 4268.7 | T134: =IF('DashBoard Igraze'!$CB$272>0,'Calcul Et Courbes 4'!T7,0) -> 2321.28 | U134: =IF('DashBoard Igraze'!$CB$272>0,'Calcul Et Courbes 4'!U7,0) -> 0
D135: Février | E135: =IF('DashBoard Igraze'!$BP$272>0,'Calcul Et Courbes 2'!O8,0) -> 290 | F135: =IF('DashBoard Igraze'!$BP$272>0,'Calcul Et Courbes 2'!P8,0) -> 377 | G135: =IF('DashBoard Igraze'!$BP$272>0,'Calcul Et Courbes 2'!Q8,0) -> 2504.545455 | H135: =IF('DashBoard Igraze'!$BP$272>0,'Calcul Et Courbes 2'!R8,0) -> 3581.5 | I135: =IF('DashBoard Igraze'!$BP$272>0,'Calcul Et Courbes 2'!S8,0) -> 3588.75 | J135: =IF('DashBoard Igraze'!$BP$272>0,'Calcul Et Courbes 2'!T8,0) -> 2865.2 | K135: =IF('DashBoard Igraze'!$BP$272>0,'Calcul Et Courbes 2'!U8,0) -> 39.875 | N135: Février | O135: =IF('DashBoard Igraze'!$CB$272>0,'Calcul Et Courbes 4'!O8,0) -> 406 | P135: =IF('DashBoard Igraze'!$CB$272>0,'Calcul Et Courbes 4'!P8,0) -> 527.8 | Q135: =IF('DashBoard Igraze'!$CB$272>0,'Calcul Et Courbes 4'!Q8,0) -> 3690.909091 | R135: =IF('DashBoard Igraze'!$CB$272>0,'Calcul Et Courbes 4'!R8,0) -> 5278 | S135: =IF('DashBoard Igraze'!$CB$272>0,'Calcul Et Courbes 4'!S8,0) -> 6942.6 | T135: =IF('DashBoard Igraze'!$CB$272>0,'Calcul Et Courbes 4'!T8,0) -> 4222.4 | U135: =IF('DashBoard Igraze'!$CB$272>0,'Calcul Et Courbes 4'!U8,0) -> 0
D136: Mars | E136: =IF('DashBoard Igraze'!$BP$272>0,'Calcul Et Courbes 2'!O9,0) -> 465 | F136: =IF('DashBoard Igraze'!$BP$272>0,'Calcul Et Courbes 2'!P9,0) -> 604.5 | G136: =IF('DashBoard Igraze'!$BP$272>0,'Calcul Et Courbes 2'!Q9,0) -> 4438.636364 | H136: =IF('DashBoard Igraze'!$BP$272>0,'Calcul Et Courbes 2'!R9,0) -> 6347.25 | I136: =IF('DashBoard Igraze'!$BP$272>0,'Calcul Et Courbes 2'!S9,0) -> 4296.6 | J136: =IF('DashBoard Igraze'!$BP$272>0,'Calcul Et Courbes 2'!T9,0) -> 5077.8 | K136: =IF('DashBoard Igraze'!$BP$272>0,'Calcul Et Courbes 2'!U9,0) -> 47.74 | N136: Mars | O136: =IF('DashBoard Igraze'!$CB$272>0,'Calcul Et Courbes 4'!O9,0) -> 682 | P136: =IF('DashBoard Igraze'!$CB$272>0,'Calcul Et Courbes 4'!P9,0) -> 886.6 | Q136: =IF('DashBoard Igraze'!$CB$272>0,'Calcul Et Courbes 4'!Q9,0) -> 6820 | R136: =IF('DashBoard Igraze'!$CB$272>0,'Calcul Et Courbes 4'!R9,0) -> 9752.6 | S136: =IF('DashBoard Igraze'!$CB$272>0,'Calcul Et Courbes 4'!S9,0) -> 9520.875 | T136: =IF('DashBoard Igraze'!$CB$272>0,'Calcul Et Courbes 4'!T9,0) -> 7802.08 | U136: =IF('DashBoard Igraze'!$CB$272>0,'Calcul Et Courbes 4'!U9,0) -> 0
D137: Avril | E137: =IF('DashBoard Igraze'!$BP$272>0,'Calcul Et Courbes 2'!O10,0) -> 1140 | F137: =IF('DashBoard Igraze'!$BP$272>0,'Calcul Et Courbes 2'!P10,0) -> 1482 | G137: =IF('DashBoard Igraze'!$BP$272>0,'Calcul Et Courbes 2'!Q10,0) -> 11918.18182 | H137: =IF('DashBoard Igraze'!$BP$272>0,'Calcul Et Courbes 2'!R10,0) -> 17043 | I137: =IF('DashBoard Igraze'!$BP$272>0,'Calcul Et Courbes 2'!S10,0) -> 7290 | J137: =IF('DashBoard Igraze'!$BP$272>0,'Calcul Et Courbes 2'!T10,0) -> 13634.4 | K137: =IF('DashBoard Igraze'!$BP$272>0,'Calcul Et Courbes 2'!U10,0) -> 81 | N137: Avril | O137: =IF('DashBoard Igraze'!$CB$272>0,'Calcul Et Courbes 4'!O10,0) -> 1140 | P137: =IF('DashBoard Igraze'!$CB$272>0,'Calcul Et Courbes 4'!P10,0) -> 1482 | Q137: =IF('DashBoard Igraze'!$CB$272>0,'Calcul Et Courbes 4'!Q10,0) -> 12436.36364 | R137: =IF('DashBoard Igraze'!$CB$272>0,'Calcul Et Courbes 4'!R10,0) -> 17784 | S137: =IF('DashBoard Igraze'!$CB$272>0,'Calcul Et Courbes 4'!S10,0) -> 13662 | T137: =IF('DashBoard Igraze'!$CB$272>0,'Calcul Et Courbes 4'!T10,0) -> 14227.2 | U137: =IF('DashBoard Igraze'!$CB$272>0,'Calcul Et Courbes 4'!U10,0) -> 0
D138: Mai | E138: =IF('DashBoard Igraze'!$BP$272>0,'Calcul Et Courbes 2'!O11,0) -> 1860 | F138: =IF('DashBoard Igraze'!$BP$272>0,'Calcul Et Courbes 2'!P11,0) -> 2418 | G138: =IF('DashBoard Igraze'!$BP$272>0,'Calcul Et Courbes 2'!Q11,0) -> 20290.90909 | H138: =IF('DashBoard Igraze'!$BP$272>0,'Calcul Et Courbes 2'!R11,0) -> 29016 | I138: =IF('DashBoard Igraze'!$BP$272>0,'Calcul Et Courbes 2'!S11,0) -> 10044 | J138: =IF('DashBoard Igraze'!$BP$272>0,'Calcul Et Courbes 2'!T11,0) -> 23212.8 | K138: =IF('DashBoard Igraze'!$BP$272>0,'Calcul Et Courbes 2'!U11,0) -> 111.6 | N138: Mai | O138: =IF('DashBoard Igraze'!$CB$272>0,'Calcul Et Courbes 4'!O11,0) -> 2046 | P138: =IF('DashBoard Igraze'!$CB$272>0,'Calcul Et Courbes 4'!P11,0) -> 2659.8 | Q138: =IF('DashBoard Igraze'!$CB$272>0,'Calcul Et Courbes 4'!Q11,0) -> 23250 | R138: =IF('DashBoard Igraze'!$CB$272>0,'Calcul Et Courbes 4'!R11,0) -> 33247.5 | S138: =IF('DashBoard Igraze'!$CB$272>0,'Calcul Et Courbes 4'!S11,0) -> 16740 | T138: =IF('DashBoard Igraze'!$CB$272>0,'Calcul Et Courbes 4'!T11,0) -> 26598 | U138: =IF('DashBoard Igraze'!$CB$272>0,'Calcul Et Courbes 4'!U11,0) -> 0
D139: Juin | E139: =IF('DashBoard Igraze'!$BP$272>0,'Calcul Et Courbes 2'!O12,0) -> 1500 | F139: =IF('DashBoard Igraze'!$BP$272>0,'Calcul Et Courbes 2'!P12,0) -> 1950 | G139: =IF('DashBoard Igraze'!$BP$272>0,'Calcul Et Courbes 2'!Q12,0) -> 15000 | H139: =IF('DashBoard Igraze'!$BP$272>0,'Calcul Et Courbes 2'!R12,0) -> 21450 | I139: =IF('DashBoard Igraze'!$BP$272>0,'Calcul Et Courbes 2'!S12,0) -> 8100 | J139: =IF('DashBoard Igraze'!$BP$272>0,'Calcul Et Courbes 2'!T12,0) -> 17160 | K139: =IF('DashBoard Igraze'!$BP$272>0,'Calcul Et Courbes 2'!U12,0) -> 90 | N139: Juin | O139: =IF('DashBoard Igraze'!$CB$272>0,'Calcul Et Courbes 4'!O12,0) -> 1800 | P139: =IF('DashBoard Igraze'!$CB$272>0,'Calcul Et Courbes 4'!P12,0) -> 2340 | Q139: =IF('DashBoard Igraze'!$CB$272>0,'Calcul Et Courbes 4'!Q12,0) -> 19636.36364 | R139: =IF('DashBoard Igraze'!$CB$272>0,'Calcul Et Courbes 4'!R12,0) -> 28080 | S139: =IF('DashBoard Igraze'!$CB$272>0,'Calcul Et Courbes 4'!S12,0) -> 16335 | T139: =IF('DashBoard Igraze'!$CB$272>0,'Calcul Et Courbes 4'!T12,0) -> 22464 | U139: =IF('DashBoard Igraze'!$CB$272>0,'Calcul Et Courbes 4'!U12,0) -> 0
D140: Juillet | E140: =IF('DashBoard Igraze'!$BP$272>0,'Calcul Et Courbes 2'!O13,0) -> 775 | F140: =IF('DashBoard Igraze'!$BP$272>0,'Calcul Et Courbes 2'!P13,0) -> 1007.5 | G140: =IF('DashBoard Igraze'!$BP$272>0,'Calcul Et Courbes 2'!Q13,0) -> 6340.909091 | H140: =IF('DashBoard Igraze'!$BP$272>0,'Calcul Et Courbes 2'!R13,0) -> 9067.5 | I140: =IF('DashBoard Igraze'!$BP$272>0,'Calcul Et Courbes 2'!S13,0) -> 2092.5 | J140: =IF('DashBoard Igraze'!$BP$272>0,'Calcul Et Courbes 2'!T13,0) -> 7254 | K140: =IF('DashBoard Igraze'!$BP$272>0,'Calcul Et Courbes 2'!U13,0) -> 23.25 | N140: Juillet | O140: =IF('DashBoard Igraze'!$CB$272>0,'Calcul Et Courbes 4'!O13,0) -> 1674 | P140: =IF('DashBoard Igraze'!$CB$272>0,'Calcul Et Courbes 4'!P13,0) -> 2176.2 | Q140: =IF('DashBoard Igraze'!$CB$272>0,'Calcul Et Courbes 4'!Q13,0) -> 17500.90909 | R140: =IF('DashBoard Igraze'!$CB$272>0,'Calcul Et Courbes 4'!R13,0) -> 25026.3 | S140: =IF('DashBoard Igraze'!$CB$272>0,'Calcul Et Courbes 4'!S13,0) -> 3013.2 | T140: =IF('DashBoard Igraze'!$CB$272>0,'Calcul Et Courbes 4'!T13,0) -> 20021.04 | U140: =IF('DashBoard Igraze'!$CB$272>0,'Calcul Et Courbes 4'!U13,0) -> 0
D141: Août | E141: =IF('DashBoard Igraze'!$BP$272>0,'Calcul Et Courbes 2'!O14,0) -> 155 | F141: =IF('DashBoard Igraze'!$BP$272>0,'Calcul Et Courbes 2'!P14,0) -> 201.5 | G141: =IF('DashBoard Igraze'!$BP$272>0,'Calcul Et Courbes 2'!Q14,0) -> 986.3636364 | H141: =IF('DashBoard Igraze'!$BP$272>0,'Calcul Et Courbes 2'!R14,0) -> 1410.5 | I141: =IF('DashBoard Igraze'!$BP$272>0,'Calcul Et Courbes 2'!S14,0) -> 1883.25 | J141: =IF('DashBoard Igraze'!$BP$272>0,'Calcul Et Courbes 2'!T14,0) -> 1128.4 | K141: =IF('DashBoard Igraze'!$BP$272>0,'Calcul Et Courbes 2'!U14,0) -> 20.925 | N141: Août | O141: =IF('DashBoard Igraze'!$CB$272>0,'Calcul Et Courbes 4'!O14,0) -> 1488 | P141: =IF('DashBoard Igraze'!$CB$272>0,'Calcul Et Courbes 4'!P14,0) -> 1934.4 | Q141: =IF('DashBoard Igraze'!$CB$272>0,'Calcul Et Courbes 4'!Q14,0) -> 14880 | R141: =IF('DashBoard Igraze'!$CB$272>0,'Calcul Et Courbes 4'!R14,0) -> 21278.4 | S141: =IF('DashBoard Igraze'!$CB$272>0,'Calcul Et Courbes 4'!S14,0) -> 2734.2 | T141: =IF('DashBoard Igraze'!$CB$272>0,'Calcul Et Courbes 4'!T14,0) -> 17022.72 | U141: =IF('DashBoard Igraze'!$CB$272>0,'Calcul Et Courbes 4'!U14,0) -> 0
D142: Septembre | E142: =IF('DashBoard Igraze'!$BP$272>0,'Calcul Et Courbes 2'!O15,0) -> 750 | F142: =IF('DashBoard Igraze'!$BP$272>0,'Calcul Et Courbes 2'!P15,0) -> 975 | G142: =IF('DashBoard Igraze'!$BP$272>0,'Calcul Et Courbes 2'!Q15,0) -> 6477.272727 | H142: =IF('DashBoard Igraze'!$BP$272>0,'Calcul Et Courbes 2'!R15,0) -> 9262.5 | I142: =IF('DashBoard Igraze'!$BP$272>0,'Calcul Et Courbes 2'!S15,0) -> 2430 | J142: =IF('DashBoard Igraze'!$BP$272>0,'Calcul Et Courbes 2'!T15,0) -> 7410 | K142: =IF('DashBoard Igraze'!$BP$272>0,'Calcul Et Courbes 2'!U15,0) -> 27 | N142: Septembre | O142: =IF('DashBoard Igraze'!$CB$272>0,'Calcul Et Courbes 4'!O15,0) -> 1320 | P142: =IF('DashBoard Igraze'!$CB$272>0,'Calcul Et Courbes 4'!P15,0) -> 1716 | Q142: =IF('DashBoard Igraze'!$CB$272>0,'Calcul Et Courbes 4'!Q15,0) -> 13800 | R142: =IF('DashBoard Igraze'!$CB$272>0,'Calcul Et Courbes 4'!R15,0) -> 19734 | S142: =IF('DashBoard Igraze'!$CB$272>0,'Calcul Et Courbes 4'!S15,0) -> 3847.5 | T142: =IF('DashBoard Igraze'!$CB$272>0,'Calcul Et Courbes 4'!T15,0) -> 15787.2 | U142: =IF('DashBoard Igraze'!$CB$272>0,'Calcul Et Courbes 4'!U15,0) -> 0
D143: Octobre | E143: =IF('DashBoard Igraze'!$BP$272>0,'Calcul Et Courbes 2'!O16,0) -> 620 | F143: =IF('DashBoard Igraze'!$BP$272>0,'Calcul Et Courbes 2'!P16,0) -> 806 | G143: =IF('DashBoard Igraze'!$BP$272>0,'Calcul Et Courbes 2'!Q16,0) -> 5918.181818 | H143: =IF('DashBoard Igraze'!$BP$272>0,'Calcul Et Courbes 2'!R16,0) -> 8463 | I143: =IF('DashBoard Igraze'!$BP$272>0,'Calcul Et Courbes 2'!S16,0) -> 2762.1 | J143: =IF('DashBoard Igraze'!$BP$272>0,'Calcul Et Courbes 2'!T16,0) -> 6770.4 | K143: =IF('DashBoard Igraze'!$BP$272>0,'Calcul Et Courbes 2'!U16,0) -> 30.69 | N143: Octobre | O143: =IF('DashBoard Igraze'!$CB$272>0,'Calcul Et Courbes 4'!O16,0) -> 1054 | P143: =IF('DashBoard Igraze'!$CB$272>0,'Calcul Et Courbes 4'!P16,0) -> 1370.2 | Q143: =IF('DashBoard Igraze'!$CB$272>0,'Calcul Et Courbes 4'!Q16,0) -> 10060.90909 | R143: =IF('DashBoard Igraze'!$CB$272>0,'Calcul Et Courbes 4'!R16,0) -> 14387.1 | S143: =IF('DashBoard Igraze'!$CB$272>0,'Calcul Et Courbes 4'!S16,0) -> 4101.3 | T143: =IF('DashBoard Igraze'!$CB$272>0,'Calcul Et Courbes 4'!T16,0) -> 11509.68 | U143: =IF('DashBoard Igraze'!$CB$272>0,'Calcul Et Courbes 4'!U16,0) -> 0
D144: Novembre | E144: =IF('DashBoard Igraze'!$BP$272>0,'Calcul Et Courbes 2'!O17,0) -> 450 | F144: =IF('DashBoard Igraze'!$BP$272>0,'Calcul Et Courbes 2'!P17,0) -> 585 | G144: =IF('DashBoard Igraze'!$BP$272>0,'Calcul Et Courbes 2'!Q17,0) -> 3886.363636 | H144: =IF('DashBoard Igraze'!$BP$272>0,'Calcul Et Courbes 2'!R17,0) -> 5557.5 | I144: =IF('DashBoard Igraze'!$BP$272>0,'Calcul Et Courbes 2'!S17,0) -> 2160 | J144: =IF('DashBoard Igraze'!$BP$272>0,'Calcul Et Courbes 2'!T17,0) -> 4446 | K144: =IF('DashBoard Igraze'!$BP$272>0,'Calcul Et Courbes 2'!U17,0) -> 24 | N144: Novembre | O144: =IF('DashBoard Igraze'!$CB$272>0,'Calcul Et Courbes 4'!O17,0) -> 600 | P144: =IF('DashBoard Igraze'!$CB$272>0,'Calcul Et Courbes 4'!P17,0) -> 780 | Q144: =IF('DashBoard Igraze'!$CB$272>0,'Calcul Et Courbes 4'!Q17,0) -> 5454.545455 | R144: =IF('DashBoard Igraze'!$CB$272>0,'Calcul Et Courbes 4'!R17,0) -> 7800 | S144: =IF('DashBoard Igraze'!$CB$272>0,'Calcul Et Courbes 4'!S17,0) -> 3334.5 | T144: =IF('DashBoard Igraze'!$CB$272>0,'Calcul Et Courbes 4'!T17,0) -> 6240 | U144: =IF('DashBoard Igraze'!$CB$272>0,'Calcul Et Courbes 4'!U17,0) -> 0
D145: Décembre | E145: =IF('DashBoard Igraze'!$BP$272>0,'Calcul Et Courbes 2'!O18,0) -> 310 | F145: =IF('DashBoard Igraze'!$BP$272>0,'Calcul Et Courbes 2'!P18,0) -> 403 | G145: =IF('DashBoard Igraze'!$BP$272>0,'Calcul Et Courbes 2'!Q18,0) -> 2536.363636 | H145: =IF('DashBoard Igraze'!$BP$272>0,'Calcul Et Courbes 2'!R18,0) -> 3627 | I145: =IF('DashBoard Igraze'!$BP$272>0,'Calcul Et Courbes 2'!S18,0) -> 1883.25 | J145: =IF('DashBoard Igraze'!$BP$272>0,'Calcul Et Courbes 2'!T18,0) -> 2901.6 | K145: =IF('DashBoard Igraze'!$BP$272>0,'Calcul Et Courbes 2'!U18,0) -> 20.925 | N145: Décembre | O145: =IF('DashBoard Igraze'!$CB$272>0,'Calcul Et Courbes 4'!O18,0) -> 372 | P145: =IF('DashBoard Igraze'!$CB$272>0,'Calcul Et Courbes 4'!P18,0) -> 483.6 | Q145: =IF('DashBoard Igraze'!$CB$272>0,'Calcul Et Courbes 4'!Q18,0) -> 3043.636364 | R145: =IF('DashBoard Igraze'!$CB$272>0,'Calcul Et Courbes 4'!R18,0) -> 4352.4 | S145: =IF('DashBoard Igraze'!$CB$272>0,'Calcul Et Courbes 4'!S18,0) -> 3515.4 | T145: =IF('DashBoard Igraze'!$CB$272>0,'Calcul Et Courbes 4'!T18,0) -> 3481.92 | U145: =IF('DashBoard Igraze'!$CB$272>0,'Calcul Et Courbes 4'!U18,0) -> 0
I147: kgMJ/ha/mois
U152: =I118*F$115/J$153+S118*P$115/J$153+I134*$F$131/J$153+S134*$P$131/J$153 -> 4012.95
I153: nombre HA | J153: ='DashBoard Igraze'!BI294 -> 120 | K153: Nombre Animal | L153: =H131+R131+P114+F114 -> 440
I154: Total | U154: =(J118*$F$115)/$J$153+(J134*$F$131)/$J$153+(T118*$P$115)/$J$153+(T134*$P$131)/$J$153 -> 1069.293333
I155: Courbe Passive | J155: Courbe active | K155: Courbe megajoule( Passive) | L155: Courbe megajoule dispo(active) | M155: test | N155: Courbe Megajoule Objectif | O155: Besoin different
H156: Janvier | I156: =(E118*$F$115)/$J$153+(E134*$F$131)/$J$153+O118*$P$115/$J$153+O134*$P$131/$J$153 -> 124 | J156: =(F118*$F$115)/$J$153+(F134*$F$131)/$J$153+(P118*$P$115)/$J$153+(P134*$P$131)/$J$153 -> 161.2 | K156: =(G118*$F$115)/$J$153+(G134*$F$131)/$J$153+(Q118*$P$115)/$J$153+(Q134*$P$131)/$J$153 -> 934.6969697 | L156: =(H118*$F$115)/$J$153+(H134*$F$131)/$J$153+(R118*$P$115)/$J$153+(R134*$P$131)/$J$153 -> 1336.616667 | M156: =I118*$F$115/$J$153+I134*$F$131/$J$153+S118*$P$115/$J$153+S134*$P$131/$J$153 -> 4012.95 | N156: =(J118*$F$115)/$J$153+(J134*$F$131)/$J$153+(T118*$P$115)/$J$153+(T134*$P$131)/$J$153 -> 1069.293333 | O156: =K118*$F$114/$L$153+K134*$H$131/$L$153+U134*$R$131/$L$153+U118*$P$114/$L$153 -> 1429.875
H157: Février | I157: =(E119*$F$115)/$J$153+(E135*$F$131)/$J$153+O119*$P$115/$J$153+O135*$P$131/$J$153 -> 256.1666667 | J157: =(F119*$F$115)/$J$153+(F135*$F$131)/$J$153+(P119*$P$115)/$J$153+(P135*$P$131)/$J$153 -> 333.0166667 | K157: =(G119*$F$115)/$J$153+(G135*$F$131)/$J$153+(Q119*$P$115)/$J$153+(Q135*$P$131)/$J$153 -> 2065.151515 | L157: =(H119*$F$115)/$J$153+(H135*$F$131)/$J$153+(R119*$P$115)/$J$153+(R135*$P$131)/$J$153 -> 2953.166667 | M157: =I119*$F$115/$J$153+I135*$F$131/$J$153+S119*$P$115/$J$153+S135*$P$131/$J$153 -> 5446.683333 | N157: =(J119*$F$115)/$J$153+(J135*$F$131)/$J$153+(T119*$P$115)/$J$153+(T135*$P$131)/$J$153 -> 2362.533333 | O157: =K119*$F$114/$L$153+K135*$H$131/$L$153+U135*$R$131/$L$153+U119*$P$114/$L$153 -> 1703.585227
H158: Mars | I158: 470.1666667 | J158: 611.2166667 | K158: 4222.575758 | L158: 6038.283333 | M158: 6656.345833 | N158: 4830.626667 | O158: 2003.53
H159: Avril | I159: 920 | J159: 1196 | K159: 9386.363636 | L159: 13422.5 | M159: 8547 | N159: 10738 | O159: 2127.681818
H160: Mai | I160: 1813.5 | J160: 2357.55 | K160: 19468.93939 | L160: 27840.58333 | M160: 10788 | N160: 22272.46667 | O160: 2582.018182
H161: Juin | I161: 1700 | J161: 2210 | K161: 17818.18182 | L161: 25480 | M161: 9742.5 | N161: 20384 | O161: 2393.181818
H162: Juillet | I162: 1286.5 | J162: 1672.45 | K162: 12569.09091 | L162: 17973.8 | M162: 5477.7 | N162: 14379.04 | O162: 2342.965909
H163: Août | I163: 728.5 | J163: 947.05 | K163: 6556.969697 | L163: 9376.466667 | M163: 4720.783333 | N163: 7501.173333 | O163: 1992.560227
H164: Septembre | I164: 820 | J164: 1066 | K164: 7913.636364 | L164: 11316.5 | M164: 4671.25 | N164: 9053.2 | O164: 1767.409091
H165: Octobre | I165: 589 | J165: 765.7 | K165: 5528.333333 | L165: 7905.516667 | M165: 4642.25 | N165: 6324.413333 | O165: 1669.645909
H166: Novembre | I166: 380 | J166: 494 | K166: 3195.454545 | L166: 4569.5 | M166: 3675.75 | N166: 3655.6 | O166: 1318.909091
H167: Décembre | I167: 222.1666667 | J167: 288.8166667 | K167: 1714.393939 | L167: 2451.583333 | M167: 3073.65 | N167: 1961.266667 | O167: 1023.105682
K172: =(J118+T118+J134+T134)*$J$153 -> 551304 | L172: =(I118+I134+S118+S134)*$J$153 -> 2110914 | M172: =I118*$F$115+I134*$F$131+S118*$P$115+S134*$P$131 -> 481554 | N172: =(J118*$F$115)+(J134*$F$131)+(T118*$P$115)+(T134*$P$131) -> 128315.2
K173: =(J119+T119+J135+T135)*$J$153 -> 1205193.6 | L173: =(I119+I135+S119+S135)*$J$153 -> 2864562 | M173: =I119*$F$115+I135*$F$131+S119*$P$115+S135*$P$131 -> 653602 | N173: =(J119*$F$115)+(J135*$F$131)+(T119*$P$115)+(T135*$P$131) -> 283504
K174: 2497310.4 | L174: 3540417 | M174: 798761.5 | N174: 579675.2
K175: 5308992 | L175: 4501440 | M175: 1025640 | N175: 1288560
K176: 11122800 | L176: 5620455 | M176: 1294560 | N176: 2672696
K177: 9921600 | L177: 5167800 | M177: 1169100 | N177: 2446080
K178: 7161148.8 | L178: 2826549 | M178: 657324 | N178: 1725484.8
K179: 3988732.8 | L179: 2436414 | M179: 566494 | N179: 900140.8
K180: 4767984 | L180: 2419650 | M180: 560550 | N180: 1086384
K181: 3392937.6 | L181: 2395773 | M181: 557070 | N181: 758929.6
K182: 1858896 | L182: 1901340 | M182: 441090 | N182: 438672
K183: 955593.6 | L183: 1610388 | M183: 368838 | N183: 235352

Sheet Diffentre Besoin et dispo (hidden)
C2: Données prise feuilles calculs | E2: Pour les courbes , pas besoin de regardez cela
C3: ='Calcul Et Courbes total'!T6 -> Curve Objectif MJME | D3: ='Calcul Et Courbes total'!S6 -> Requirement curve livestock | E3: Ecart | G3: Négatif | H3: Positif
B4: January | C4: ='Calcul Et Courbes total'!T7 -> 855.4346667 | D4: ='Calcul Et Courbes total'!S7 -> 4012.95 | E4: =D4-C4 -> 3157.515333 | G4: =IF(E4<0,E4,"") ->  | H4: =IF(E4>0,E4,"") -> 3157.515333
B5: February | C5: ='Calcul Et Courbes total'!T8 -> 1890.026667 | D5: ='Calcul Et Courbes total'!S8 -> 5446.683333 | E5: =D5-C5 -> 3556.656667 | G5: =IF(E5<0,E5,"") ->  | H5: =IF(E5>0,E5,"") -> 3556.656667
B6: March | C6: ='Calcul Et Courbes total'!T9 -> 3864.501333 | D6: ='Calcul Et Courbes total'!S9 -> 6656.345833 | E6: 2791.8445 | H6: 2791.8445
B7: April | C7: ='Calcul Et Courbes total'!T10 -> 8590.4 | D7: ='Calcul Et Courbes total'!S10 -> 8547 | E7: -43.4 | G7: -43.4
B8: May | C8: ='Calcul Et Courbes total'!T11 -> 17817.97333 | D8: ='Calcul Et Courbes total'!S11 -> 10788 | E8: -7029.973333 | G8: -7029.973333
B9: June | C9: ='Calcul Et Courbes total'!T12 -> 16307.2 | D9: ='Calcul Et Courbes total'!S12 -> 9742.5 | E9: -6564.7 | G9: -6564.7
B10: July | C10: ='Calcul Et Courbes total'!T13 -> 11503.232 | D10: ='Calcul Et Courbes total'!S13 -> 5477.7 | E10: -6025.532 | G10: -6025.532
B11: August | C11: ='Calcul Et Courbes total'!T14 -> 6000.938667 | D11: ='Calcul Et Courbes total'!S14 -> 4720.783333 | E11: -1280.155333 | G11: -1280.155333
B12: September | C12: ='Calcul Et Courbes total'!T15 -> 7242.56 | D12: ='Calcul Et Courbes total'!S15 -> 4671.25 | E12: -2571.31 | G12: -2571.31
B13: October | C13: ='Calcul Et Courbes total'!T16 -> 5059.530667 | D13: ='Calcul Et Courbes total'!S16 -> 4642.25 | E13: -417.2806667 | G13: -417.2806667
B14: November | C14: ='Calcul Et Courbes total'!T17 -> 2924.48 | D14: ='Calcul Et Courbes total'!S17 -> 3675.75 | E14: 751.27 | H14: 751.27
B15: December | C15: ='Calcul Et Courbes total'!T18 -> 1569.013333 | D15: ='Calcul Et Courbes total'!S18 -> 3073.65 | E15: 1504.636667 | H15: 1504.636667
C17: Dont Touch( Resultats pris au dessus) | E17: Resultats
C18: Différence de la Courbe objectif moins le Besoin | E18: Groupe de production(Chiffre) | G18: Périodes(Durée) | H18: Masquer
B19: January | C19: =E70 -> -1559610 | E19: =IF(SIGN(C19)=SIGN(C20),"",SUM($C$19:C19)-SUM($E18:E$19)) ->  | G19: =IF(E19="","",OFFSET(B19,1-COUNTIF($H$19:H19,H19),)&"-"&B19) ->  | H19: =SUM(H18)+IF(G18="",0,1) -> 1
B20: February | C20: =E71 -> -1659368.4 | E20: =IF(SIGN(C20)=SIGN(C21),"",SUM($C$19:C20)-SUM($E19:E$19)) ->  | G20: =IF(E20="","",OFFSET(B20,1-COUNTIF($H$19:H20,H20),)&"-"&B20) ->  | H20: =SUM(H19)+IF(G19="",0,1) -> 1
B21: March | C21: -1043106.6 | E21: =IF(SIGN(C21)=SIGN(C22),"",SUM($C$19:C21)-SUM($E$19:E20)) -> -4262085 | G21: =IF(E21="","",OFFSET(B21,1-COUNTIF($H$19:H21,H21),)&"-"&B21) -> January-March | H21: 1
B22: April | C22: 807552 | E22: =IF(SIGN(C22)=SIGN(C23),"",SUM($C$19:C22)-SUM($E$19:E21)) ->  | G22: =IF(E22="","",OFFSET(B22,1-COUNTIF($H$19:H22,H22),)&"-"&B22) ->  | H22: 2
B23: May | C23: 5502345 | E23: =IF(SIGN(C23)=SIGN(C24),"",SUM($C$19:C23)-SUM($E$19:E22)) ->  | G23: =IF(E23="","",OFFSET(B23,1-COUNTIF($H$19:H23,H23),)&"-"&B23) ->  | H23: 2
B24: June | C24: 4753800 | E24: =IF(SIGN(C24)=SIGN(C25),"",SUM($C$19:C24)-SUM($E$19:E23)) ->  | G24: =IF(E24="","",OFFSET(B24,1-COUNTIF($H$19:H24,H24),)&"-"&B24) ->  | H24: 2
B25: July | C25: 4334599.8 | E25: =IF(SIGN(C25)=SIGN(C26),"",SUM($C$19:C25)-SUM($E$19:E24)) ->  | G25: =IF(E25="","",OFFSET(B25,1-COUNTIF($H$19:H25,H25),)&"-"&B25) ->  | H25: 2
B26: August | C26: 1552318.8 | E26: =IF(SIGN(C26)=SIGN(C27),"",SUM($C$19:C26)-SUM($E$19:E25)) ->  | G26: =IF(E26="","",OFFSET(B26,1-COUNTIF($H$19:H26,H26),)&"-"&B26) ->  | H26: 2
B27: September | C27: 2348334 | E27: =IF(SIGN(C27)=SIGN(C28),"",SUM($C$19:C27)-SUM($E$19:E26)) ->  | G27: =IF(E27="","",OFFSET(B27,1-COUNTIF($H$19:H27,H27),)&"-"&B27) ->  | H27: 2
B28: October | C28: 997164.6 | E28: =IF(SIGN(C28)=SIGN(C29),"",SUM($C$19:C28)-SUM($E$19:E27)) -> 20296114.2 | G28: =IF(E28="","",OFFSET(B28,1-COUNTIF($H$19:H28,H28),)&"-"&B28) -> April-October | H28: 2
B29: November | C29: -42444 | E29: =IF(SIGN(C29)=SIGN(C30),"",SUM($C$19:C29)-SUM($E$19:E28)) ->  | G29: =IF(E29="","",OFFSET(B29,1-COUNTIF($H$19:H29,H29),)&"-"&B29) ->  | H29: 3
B30: December | C30: -654794.4 | E30: =IF(SIGN(C30)=SIGN(C31),"",SUM($C$19:C30)-SUM($E$19:E29)) -> -697238.4 | G30: =IF(E30="","",OFFSET(B30,1-COUNTIF($H$19:H30,H30),)&"-"&B30) -> November-December | H30: 3
B31: Dec | C31: =C16-D16 -> 0 | H31: 4
B32: Année | C32: =SUM(C19:D30)/'Calcul Et Courbes total'!J153 -> 127806.59 | H32: 4
B33: Resultat | C33: =C32 -> 127806.59 | H33: 4
G35: =IF(E35="","",OFFSET(B35,1-COUNTIF($H$19:H35,H35),)&"-"&B35) -> 
C39: ='DashBoard Igraze'!DI564 -> 2016-10-15 | D39: =(SUMPRODUCT(OFFSET($C$19:$C$30,,,MONTH(C39)-1))+OFFSET($C$19,MONTH(C39)-1,)*DAY(C39)/(EDATE(C39,1)-C39))/'Calcul Et Courbes total'!J153 -> 129328.03
C40: ='Diffentre Besoin et dispo 1'!C32+'Diffentre Besoin et dispo 2'!C32+'Diffentre Besoin et dispo 3'!C32+'Diffentre Besoin et dispo 4'!C32 -> 127806.59
C69: uno | D69: deux | F69: neg | G69: pos
B70: janvier | C70: ='Calcul Et Courbes total'!K172 -> 551304 | D70: ='Calcul Et Courbes total'!L172 -> 2110914 | E70: =C70-D70 -> -1559610 | F70: =IF(E70<0,E70,"") -> -1559610 | G70: =IF(E70>0,E70,"") ->  | H70: =SUM(E70:E77) -> 12688530.6
B71: février | C71: ='Calcul Et Courbes total'!K173 -> 1205193.6 | D71: ='Calcul Et Courbes total'!L173 -> 2864562 | E71: =C71-D71 -> -1659368.4 | F71: =IF(E71<0,E71,"") -> -1659368.4 | G71: =IF(E71>0,E71,"") -> 
B72: mars | C72: ='Calcul Et Courbes total'!K174 -> 2497310.4 | D72: ='Calcul Et Courbes total'!L174 -> 3540417 | E72: -1043106.6 | F72: -1043106.6
B73: avril | C73: ='Calcul Et Courbes total'!K175 -> 5308992 | D73: ='Calcul Et Courbes total'!L175 -> 4501440 | E73: 807552 | G73: 807552
B74: mai | C74: ='Calcul Et Courbes total'!K176 -> 11122800 | D74: ='Calcul Et Courbes total'!L176 -> 5620455 | E74: 5502345 | G74: 5502345
B75: juin | C75: ='Calcul Et Courbes total'!K177 -> 9921600 | D75: ='Calcul Et Courbes total'!L177 -> 5167800 | E75: 4753800 | G75: 4753800
B76: juillet | C76: ='Calcul Et Courbes total'!K178 -> 7161148.8 | D76: ='Calcul Et Courbes total'!L178 -> 2826549 | E76: 4334599.8 | G76: 4334599.8
B77: août | C77: ='Calcul Et Courbes total'!K179 -> 3988732.8 | D77: ='Calcul Et Courbes total'!L179 -> 2436414 | E77: 1552318.8 | G77: 1552318.8
B78: septembre | C78: ='Calcul Et Courbes total'!K180 -> 4767984 | D78: ='Calcul Et Courbes total'!L180 -> 2419650 | E78: 2348334 | G78: 2348334
B79: octobre | C79: ='Calcul Et Courbes total'!K181 -> 3392937.6 | D79: ='Calcul Et Courbes total'!L181 -> 2395773 | E79: 997164.6 | G79: 997164.6
B80: novembre | C80: ='Calcul Et Courbes total'!K182 -> 1858896 | D80: ='Calcul Et Courbes total'!L182 -> 1901340 | E80: -42444 | F80: -42444
B81: décembre | C81: ='Calcul Et Courbes total'!K183 -> 955593.6 | D81: ='Calcul Et Courbes total'!L183 -> 1610388 | E81: -654794.4 | F81: -654794.4
E82: =SUM(E70:E81)/120 -> 127806.59 | G82: 127806.59

Sheet Decoupage et Rotation total (hidden)
I1: Decoupage et rotation avec Dates et nombre de jours
B3: Valeurs prise grace au base de donnée( Choisir page 1)
B4: Courbe active (Pousse/jour) | Z4: 2016-01-01 | AA4: Nombre de jour pour la rotation | AB4: Besoin en Ha pour la rotation
B5: ='Calcul Et Courbes total'!P7/'Calcul Et Courbes total'!B9 -> 5.2 | H5: Calendrier | I5: Pousse/Jour | J5: Total pousse | K5: Date des rotations | L5: Compteur de jours de rotations | Q5: Moyenne du besoin par rota | S5: Besoin Moyen | U5: Dispo/Besoin Moyen | X5: Parcelle | Y5: Total rota | Z5: Dates des rotations
B6: ='Calcul Et Courbes total'!P8/'Calcul Et Courbes total'!B10 -> 11.48333333 | Z6: 2016-01-01 | AA6: =Z6-Z4 -> 0 | AB6: =IF(Y8>0,Y8,Y9) -> 
B7: ='Calcul Et Courbes total'!P9/'Calcul Et Courbes total'!B11 -> 19.71666667 | J7: =D46 -> 0 | Z7: 2016-01-02 | AA7: =IF(Z7>0,Z7-Z6-1,"") -> 0 | AB7: =IF(Y9>0,Y9,Y10) -> 
B8: ='Calcul Et Courbes total'!P10/'Calcul Et Courbes total'!B12 -> 39.86666667 | H8: 2016-01-01 | I8: =$B$5 -> 5.2 | J8: =IF(J7>$E$46,$D$46+I8,J7+I8) -> 5.2 | K8: =IF(J7>$E$46,H7,"") ->  | L8: =IF(K8="",1+L7,0) -> 1 | N8: =$D$26 -> 120 | P8: =IF(L8=0,N8,N8+P7) -> 120 | Q8: =IF(L8=0,P7/L7,"") ->  | S8: =IF(L8=0,P7/L7,"") ->  | U8: =IF(L8=0,$D$21/S8,"") ->  | X8: =IF(L8=0,1/U8,"") ->  | Y8: =IF(L8=0,X8*L7,"") ->  | Z8: 2016-01-03 | AA8: 0
B9: ='Calcul Et Courbes total'!P11/'Calcul Et Courbes total'!B13 -> 76.05 | H9: 2016-01-02 | I9: 5.2 | J9: =IF(J8>$E$46,$D$46+I9,J8+I9) -> 5.2 | K9: =IF(J8>$E$46,H8,"") -> 2016-01-01 | L9: =IF(K9="",1+L8,0) -> 0 | N9: =$D$26 -> 120 | P9: =IF(L9=0,N9,N9+P8) -> 120 | Q9: =IF(L9=0,P8/L8,"") -> 120 | S9: =IF(L9=0,P8/L8,"") -> 120 | U9: =IF(L9=0,$D$21/S9,"") -> 0 | Z9: 2016-01-04 | AA9: 0
B10: ='Calcul Et Courbes total'!P12/'Calcul Et Courbes total'!B14 -> 73.66666667 | H10: 2016-01-03 | I10: 5.2 | J10: 5.2 | K10: 2016-01-02 | L10: 0 | N10: 120 | P10: 120 | Z10: 2016-01-05 | AA10: 0
B11: ='Calcul Et Courbes total'!P13/'Calcul Et Courbes total'!B15 -> 53.95 | H11: 2016-01-04 | I11: 5.2 | J11: 5.2 | K11: 2016-01-03 | L11: 0 | N11: 120 | P11: 120 | Z11: 2016-01-06 | AA11: 0
B12: ='Calcul Et Courbes total'!P14/'Calcul Et Courbes total'!B16 -> 30.55 | H12: 2016-01-05 | I12: 5.2 | J12: 5.2 | K12: 2016-01-04 | L12: 0 | N12: 120 | P12: 120 | Z12: 2016-01-07 | AA12: 0
B13: ='Calcul Et Courbes total'!P15/'Calcul Et Courbes total'!B17 -> 35.53333333 | H13: 2016-01-06 | I13: 5.2 | J13: 5.2 | K13: 2016-01-05 | L13: 0 | N13: 120 | P13: 120 | Z13: 2016-01-08 | AA13: 0
B14: ='Calcul Et Courbes total'!P16/'Calcul Et Courbes total'!B18 -> 24.7 | H14: 2016-01-07 | I14: 5.2 | J14: 5.2 | K14: 2016-01-06 | L14: 0 | N14: 120 | P14: 120 | Z14: 2016-01-09 | AA14: 0
B15: ='Calcul Et Courbes total'!P17/'Calcul Et Courbes total'!B19 -> 16.46666667 | H15: 2016-01-08 | I15: 5.2 | J15: 5.2 | K15: 2016-01-07 | L15: 0 | N15: 120 | P15: 120 | Z15: 2016-01-10 | AA15: 0
B16: ='Calcul Et Courbes total'!P18/'Calcul Et Courbes total'!B20 -> 9.316666667 | H16: 2016-01-09 | I16: 5.2 | J16: 5.2 | K16: 2016-01-08 | L16: 0 | N16: 120 | P16: 120 | Z16: 2016-01-11 | AA16: 0 | AB16: =IFERROR(AA16*$D$39,"") -> 
H17: 2016-01-10 | I17: 5.2 | J17: 5.2 | K17: 2016-01-09 | L17: 0 | N17: 120 | P17: 120 | Z17: 2016-01-12 | AA17: 0
C18: Coupe haute | D18: ='DashBoard Igraze'!AR51 -> 0 | H18: 2016-01-11 | I18: 5.2 | J18: 5.2 | K18: 2016-01-10 | L18: 0 | N18: 120 | P18: 120 | Z18: 2016-01-13 | AA18: 0
C19: Coupe basse | D19: ='DashBoard Igraze'!AR54 -> 0 | H19: 2016-01-12 | I19: 5.2 | J19: 5.2 | K19: 2016-01-11 | L19: 0 | N19: 120 | P19: 120 | Z19: 2016-01-14 | AA19: 0
C20: A Remplir | H20: 2016-01-13 | I20: 5.2 | J20: 5.2 | K20: 2016-01-12 | L20: 0 | N20: 120 | P20: 120 | Z20: 2016-01-15 | AA20: 0
C21: Ressource dispo | D21: =D18-D19 -> 0 | H21: 2016-01-14 | I21: 5.2 | J21: 5.2 | K21: 2016-01-13 | L21: 0 | N21: 120 | P21: 120 | Z21: 2016-01-16 | AA21: 0
H22: 2016-01-15 | I22: 5.2 | J22: 5.2 | K22: 2016-01-14 | L22: 0 | N22: 120 | P22: 120 | Z22: 2016-01-17 | AA22: 0
H23: 2016-01-16 | I23: 5.2 | J23: 5.2 | K23: 2016-01-15 | L23: 0 | N23: 120 | P23: 120 | Z23: 2016-01-18 | AA23: 0
A24: Taille du chaptel | B24: Besoin par animal KgMS/day | D24: Besoin du chaptel par jour | H24: 2016-01-17 | I24: 5.2 | J24: 5.2 | K24: 2016-01-16 | L24: 0 | N24: 120 | P24: 120 | Z24: 2016-01-19 | AA24: 0
H25: 2016-01-18 | I25: 5.2 | J25: 5.2 | K25: 2016-01-17 | L25: 0 | N25: 120 | P25: 120 | Z25: 2016-01-20 | AA25: 0
A26: 80 | B26: ='Calcul Et Courbes total'!C28 -> 1.5 | D26: =B26*$A$26 -> 120 | H26: 2016-01-19 | I26: 5.2 | J26: 5.2 | K26: 2016-01-18 | L26: 0 | N26: 120 | P26: 120 | Z26: 2016-01-21 | AA26: 0
B27: ='Calcul Et Courbes total'!C29 -> 2.5 | D27: =B27*$A$26 -> 200 | H27: 2016-01-20 | I27: 5.2 | J27: 5.2 | K27: 2016-01-19 | L27: 0 | N27: 120 | P27: 120 | Z27: 2016-01-22 | AA27: 0
B28: ='Calcul Et Courbes total'!C30 -> 2.8 | D28: 224 | H28: 2016-01-21 | I28: 5.2 | J28: 5.2 | K28: 2016-01-20 | L28: 0 | N28: 120 | P28: 120 | U28: =IF(L28=0,$D$21/S28,"") ->  | Z28: 2016-01-23 | AA28: 0
B29: ='Calcul Et Courbes total'!C31 -> 4.5 | D29: 360 | H29: 2016-01-22 | I29: 5.2 | J29: 5.2 | K29: 2016-01-21 | L29: 0 | N29: 120 | P29: 120 | Z29: 2016-01-24 | AA29: 0
B30: ='Calcul Et Courbes total'!C32 -> 6 | D30: 480 | H30: 2016-01-23 | I30: 5.2 | J30: 5.2 | K30: 2016-01-22 | L30: 0 | N30: 120 | P30: 120 | Z30: 2016-01-25 | AA30: 0
B31: ='Calcul Et Courbes total'!C33 -> 5 | D31: 400 | H31: 2016-01-24 | I31: 5.2 | J31: 5.2 | K31: 2016-01-23 | L31: 0 | N31: 120 | P31: 120 | Z31: 2016-01-26 | AA31: 0
B32: ='Calcul Et Courbes total'!C34 -> 1.5 | D32: 120 | H32: 2016-01-25 | I32: 5.2 | J32: 5.2 | K32: 2016-01-24 | L32: 0 | N32: 120 | P32: 120 | Z32: 2016-01-27 | AA32: 0
B33: ='Calcul Et Courbes total'!C35 -> 1.5 | D33: 120 | H33: 2016-01-26 | I33: 5.2 | J33: 5.2 | K33: 2016-01-25 | L33: 0 | N33: 120 | P33: 120 | Z33: 2016-01-28 | AA33: 0
B34: ='Calcul Et Courbes total'!C36 -> 1.8 | D34: 144 | H34: 2016-01-27 | I34: 5.2 | J34: 5.2 | K34: 2016-01-26 | L34: 0 | N34: 120 | P34: 120 | Z34: 2016-01-29 | AA34: 0
B35: ='Calcul Et Courbes total'!C37 -> 1.8 | D35: 144 | H35: 2016-01-28 | I35: 5.2 | J35: 5.2 | K35: 2016-01-27 | L35: 0 | N35: 120 | P35: 120 | Z35: 2016-01-30 | AA35: 0
B36: ='Calcul Et Courbes total'!C38 -> 1.6 | D36: 128 | H36: 2016-01-29 | I36: 5.2 | J36: 5.2 | K36: 2016-01-28 | L36: 0 | N36: 120 | P36: 120 | Z36: 2016-01-31 | AA36: 0
B37: ='Calcul Et Courbes total'!C39 -> 1.5 | D37: 120 | H37: 2016-01-30 | I37: 5.2 | J37: 5.2 | K37: 2016-01-29 | L37: 0 | N37: 120 | P37: 120 | Z37: 2016-02-01 | AA37: 0
A38: Valeur la plus haute pour determiné les parcelles en HA | E38: =LARGE(D26:D37,1) -> 480 | H38: 2016-01-31 | I38: 5.2 | J38: 5.2 | K38: 2016-01-30 | L38: 0 | N38: 120 | P38: 120 | Z38: 2016-02-02 | AA38: 0
C39: Parcelles aire pour 24h en Ha | D39: =E38/D21 ->  | H39: 2016-02-01 | I39: =$B$6 -> 11.48333333 | J39: =IF(J38>$E$47,$D$47+I39,J38+I39) -> 11.48333333 | K39: =IF(J38>$E$47,H38,"") -> 2016-01-31 | L39: 0 | N39: =$D$27 -> 200 | P39: 200 | Z39: 2016-02-03 | AA39: 0
H40: 2016-02-02 | I40: 11.48333333 | J40: =IF(J39>$E$47,$D$47+I40,J39+I40) -> 11.48333333 | K40: =IF(J39>$E$47,H39,"") -> 2016-02-01 | L40: 0 | N40: =$D$27 -> 200 | P40: 200 | Z40: 2016-02-04 | AA40: 0
H41: 2016-02-03 | I41: 11.48333333 | J41: 11.48333333 | K41: 2016-02-02 | L41: 0 | N41: 200 | P41: 200 | Z41: 2016-02-05 | AA41: 0
H42: 2016-02-04 | I42: 11.48333333 | J42: 11.48333333 | K42: 2016-02-03 | L42: 0 | N42: 200 | P42: 200 | Z42: 2016-02-06 | AA42: 0
H43: 2016-02-05 | I43: 11.48333333 | J43: 11.48333333 | K43: 2016-02-04 | L43: 0 | N43: 200 | P43: 200 | Z43: 2016-02-07 | AA43: 0
A44: Incrémentation mensuelle des coupes | D44: Resultat | H44: 2016-02-06 | I44: 11.48333333 | J44: 11.48333333 | K44: 2016-02-05 | L44: 0 | N44: 200 | P44: 200 | Z44: 2016-02-08 | AA44: 0
B45: Coupe basse | C45: Coupe haute | D45: Coupe Basse | E45: Coupe haute | H45: 2016-02-07 | I45: 11.48333333 | J45: 11.48333333 | K45: 2016-02-06 | L45: 0 | N45: 200 | P45: 200 | Z45: 2016-02-09 | AA45: 0
A46: Janvier | B46: ='DashBoard Igraze'!AH139 -> 0 | C46: ='DashBoard Igraze'!AJ139 -> 0 | D46: ='DashBoard Igraze'!AL139 -> 0 | E46: ='DashBoard Igraze'!AN139 -> 0 | H46: 2016-02-08 | I46: 11.48333333 | J46: 11.48333333 | K46: 2016-02-07 | L46: 0 | N46: 200 | P46: 200 | Z46: 2016-02-10 | AA46: 0
A47: Février | B47: ='DashBoard Igraze'!AH140 -> 0 | C47: ='DashBoard Igraze'!AJ140 -> 0 | D47: ='DashBoard Igraze'!AL140 -> 0 | E47: ='DashBoard Igraze'!AN140 -> 0 | H47: 2016-02-09 | I47: 11.48333333 | J47: 11.48333333 | K47: 2016-02-08 | L47: 0 | N47: 200 | P47: 200 | Z47: 2016-02-11
A48: Mars | B48: ='DashBoard Igraze'!AH141 -> 0 | C48: ='DashBoard Igraze'!AJ141 -> 0 | D48: ='DashBoard Igraze'!AL141 -> 0 | E48: ='DashBoard Igraze'!AN141 -> 0 | H48: 2016-02-10 | I48: 11.48333333 | J48: 11.48333333 | K48: 2016-02-09 | L48: 0 | N48: 200 | P48: 200 | Z48: 2016-02-12
A49: Avril | B49: ='DashBoard Igraze'!AH142 -> 0 | C49: ='DashBoard Igraze'!AJ142 -> 0 | D49: ='DashBoard Igraze'!AL142 -> 0 | E49: ='DashBoard Igraze'!AN142 -> 0 | H49: 2016-02-11 | I49: 11.48333333 | J49: 11.48333333 | K49: 2016-02-10 | L49: 0 | N49: 200 | P49: 200 | Z49: 2016-02-13
A50: Mai | B50: ='DashBoard Igraze'!AH143 -> 0 | C50: ='DashBoard Igraze'!AJ143 -> 0 | D50: ='DashBoard Igraze'!AL143 -> 0 | E50: ='DashBoard Igraze'!AN143 -> 0 | H50: 2016-02-12 | I50: 11.48333333 | J50: 11.48333333 | K50: 2016-02-11 | L50: 0 | N50: 200 | P50: 200 | Z50: 2016-02-14
A51: Juin | B51: ='DashBoard Igraze'!AH144 -> 0 | C51: ='DashBoard Igraze'!AJ144 -> 0 | D51: ='DashBoard Igraze'!AL144 -> 0 | E51: ='DashBoard Igraze'!AN144 -> 0 | H51: 2016-02-13 | I51: 11.48333333 | J51: 11.48333333 | K51: 2016-02-12 | L51: 0 | N51: 200 | P51: 200 | Z51: 2016-02-15
A52: Juillet | B52: ='DashBoard Igraze'!AH145 -> 0 | C52: ='DashBoard Igraze'!AJ145 -> 0 | D52: ='DashBoard Igraze'!AL145 -> 0 | E52: ='DashBoard Igraze'!AN145 -> 0 | H52: 2016-02-14 | I52: 11.48333333 | J52: 11.48333333 | K52: 2016-02-13 | L52: 0 | N52: 200 | P52: 200 | Z52: 2016-02-16
A53: Août | B53: ='DashBoard Igraze'!AH146 -> 0 | C53: ='DashBoard Igraze'!AJ146 -> 0 | D53: ='DashBoard Igraze'!AL146 -> 0 | E53: ='DashBoard Igraze'!AN146 -> 0 | H53: 2016-02-15 | I53: 11.48333333 | J53: 11.48333333 | K53: 2016-02-14 | L53: 0 | N53: 200 | P53: 200 | Z53: 2016-02-17
A54: Septembre | B54: ='DashBoard Igraze'!AH147 -> 0 | C54: ='DashBoard Igraze'!AJ147 -> 0 | D54: ='DashBoard Igraze'!AL147 -> 0 | E54: ='DashBoard Igraze'!AN147 -> 0 | H54: 2016-02-16 | I54: 11.48333333 | J54: 11.48333333 | K54: 2016-02-15 | L54: 0 | N54: 200 | P54: 200 | Z54: 2016-02-18
A55: Octobre | B55: ='DashBoard Igraze'!AH148 -> 0 | C55: ='DashBoard Igraze'!AJ148 -> 0 | D55: ='DashBoard Igraze'!AL148 -> 0 | E55: ='DashBoard Igraze'!AN148 -> 0 | H55: 2016-02-17 | I55: 11.48333333 | J55: 11.48333333 | K55: 2016-02-16 | L55: 0 | N55: 200 | P55: 200 | Z55: 2016-02-19
A56: Novembre | B56: ='DashBoard Igraze'!AH149 -> 0 | C56: ='DashBoard Igraze'!AJ149 -> 0 | D56: ='DashBoard Igraze'!AL149 -> 0 | E56: ='DashBoard Igraze'!AN149 -> 0 | H56: 2016-02-18 | I56: 11.48333333 | J56: 11.48333333 | K56: 2016-02-17 | L56: 0 | N56: 200 | P56: 200 | Z56: 2016-02-20
A57: Décembre | B57: ='DashBoard Igraze'!AH150 -> 0 | C57: ='DashBoard Igraze'!AJ150 -> 0 | D57: ='DashBoard Igraze'!AL150 -> 0 | E57: ='DashBoard Igraze'!AN150 -> 0 | H57: 2016-02-19 | I57: 11.48333333 | J57: 11.48333333 | K57: 2016-02-18 | L57: 0 | N57: 200 | P57: 200 | Z57: 2016-02-21
A58: A remplir avec + X ou -X | D58: Ne pas touchez | H58: 2016-02-20 | I58: 11.48333333 | J58: 11.48333333 | K58: 2016-02-19 | L58: 0 | N58: 200 | P58: 200 | Z58: 2016-02-22
H59: 2016-02-21 | I59: 11.48333333 | J59: 11.48333333 | K59: 2016-02-20 | L59: 0 | N59: 200 | P59: 200 | Z59: 2016-02-23
H60: 2016-02-22 | I60: 11.48333333 | J60: 11.48333333 | K60: 2016-02-21 | L60: 0 | N60: 200 | P60: 200 | Z60: 2016-02-24
H61: 2016-02-23 | I61: 11.48333333 | J61: 11.48333333 | K61: 2016-02-22 | L61: 0 | N61: 200 | P61: 200 | Z61: 2016-02-25
H62: 2016-02-24 | I62: 11.48333333 | J62: 11.48333333 | K62: 2016-02-23 | L62: 0 | N62: 200 | P62: 200 | Z62: 2016-02-26
H63: 2016-02-25 | I63: 11.48333333 | J63: 11.48333333 | K63: 2016-02-24 | L63: 0 | N63: 200 | P63: 200 | Z63: 2016-02-27
H64: 2016-02-26 | I64: 11.48333333 | J64: 11.48333333 | K64: 2016-02-25 | L64: 0 | N64: 200 | P64: 200 | Z64: 2016-02-28
H65: 2016-02-27 | I65: 11.48333333 | J65: 11.48333333 | K65: 2016-02-26 | L65: 0 | N65: 200 | P65: 200 | Z65: 2016-03-01
H66: 2016-02-28 | I66: 11.48333333 | J66: 11.48333333 | K66: 2016-02-27 | L66: 0 | N66: 200 | P66: 200 | Z66: 2016-03-02
H67: 2016-03-01 | I67: =$B$7 -> 19.71666667 | J67: =IF(J66>$E$48,$D$48+I67,J66+I67) -> 19.71666667 | K67: =IF(J66>$E$48,H66,"") -> 2016-02-28 | L67: 0 | N67: =$D$28 -> 224 | P67: 224 | Z67: 2016-03-03
H68: 2016-03-02 | I68: 19.71666667 | J68: =IF(J67>$E$48,$D$48+I68,J67+I68) -> 19.71666667 | K68: =IF(J67>$E$48,H67,"") -> 2016-03-01 | L68: 0 | N68: =$D$28 -> 224 | P68: 224 | Z68: 2016-03-04
H69: 2016-03-03 | I69: 19.71666667 | J69: 19.71666667 | K69: 2016-03-02 | L69: 0 | N69: 224 | P69: 224 | Z69: 2016-03-05
H70: 2016-03-04 | I70: 19.71666667 | J70: 19.71666667 | K70: 2016-03-03 | L70: 0 | N70: 224 | P70: 224 | Z70: 2016-03-06
H71: 2016-03-05 | I71: 19.71666667 | J71: 19.71666667 | K71: 2016-03-04 | L71: 0 | N71: 224 | P71: 224 | Z71: 2016-03-07
H72: 2016-03-06 | I72: 19.71666667 | J72: 19.71666667 | K72: 2016-03-05 | L72: 0 | N72: 224 | P72: 224 | X72: =IF(L72=0,1/U72,"") ->  | Y72: =IF(L72=0,X72*L71,"") ->  | Z72: 2016-03-08
H73: 2016-03-07 | I73: 19.71666667 | J73: 19.71666667 | K73: 2016-03-06 | L73: =IF(K73="",1+L72,0) -> 0 | N73: 224 | P73: =IF(L73=0,N73,N73+P72) -> 224 | Q73: =IF(L73=0,P72/L72,"") ->  | S73: =IF(L73=0,P72/L72,"") ->  | U73: =IF(L73=0,$D$21/S73,"") ->  | Z73: 2016-03-09
H74: 2016-03-08 | I74: 19.71666667 | J74: 19.71666667 | K74: 2016-03-07 | L74: 0 | N74: 224 | P74: 224 | Z74: 2016-03-10
H75: 2016-03-09 | I75: 19.71666667 | J75: 19.71666667 | K75: 2016-03-08 | L75: 0 | N75: 224 | P75: 224 | Z75: 2016-03-11
H76: 2016-03-10 | I76: 19.71666667 | J76: 19.71666667 | K76: 2016-03-09 | L76: 0 | N76: 224 | P76: 224 | Z76: 2016-03-12
H77: 2016-03-11 | I77: 19.71666667 | J77: 19.71666667 | K77: 2016-03-10 | L77: 0 | N77: 224 | P77: 224 | Z77: 2016-03-13
H78: 2016-03-12 | I78: 19.71666667 | J78: 19.71666667 | K78: 2016-03-11 | L78: 0 | N78: 224 | P78: 224 | Z78: 2016-03-14
H79: 2016-03-13 | I79: 19.71666667 | J79: 19.71666667 | K79: 2016-03-12 | L79: 0 | N79: 224 | P79: 224 | Z79: 2016-03-15
H80: 2016-03-14 | I80: 19.71666667 | J80: 19.71666667 | K80: 2016-03-13 | L80: 0 | N80: 224 | P80: 224 | Z80: 2016-03-16
H81: 2016-03-15 | I81: 19.71666667 | J81: 19.71666667 | K81: 2016-03-14 | L81: 0 | N81: 224 | P81: 224 | Z81: 2016-03-17
H82: 2016-03-16 | I82: 19.71666667 | J82: 19.71666667 | K82: 2016-03-15 | L82: 0 | N82: 224 | P82: 224 | Z82: 2016-03-18
H83: 2016-03-17 | I83: 19.71666667 | J83: 19.71666667 | K83: 2016-03-16 | L83: 0 | N83: 224 | P83: 224 | Z83: 2016-03-19
H84: 2016-03-18 | I84: 19.71666667 | J84: 19.71666667 | K84: 2016-03-17 | L84: 0 | N84: 224 | P84: 224 | Z84: 2016-03-20
H85: 2016-03-19 | I85: 19.71666667 | J85: 19.71666667 | K85: 2016-03-18 | L85: 0 | N85: 224 | P85: 224 | Z85: 2016-03-21
H86: 2016-03-20 | I86: 19.71666667 | J86: 19.71666667 | K86: 2016-03-19 | L86: 0 | N86: 224 | P86: 224 | Z86: 2016-03-22
H87: 2016-03-21 | I87: 19.71666667 | J87: 19.71666667 | K87: 2016-03-20 | L87: 0 | N87: 224 | P87: 224 | Z87: 2016-03-23
H88: 2016-03-22 | I88: 19.71666667 | J88: 19.71666667 | K88: 2016-03-21 | L88: 0 | N88: 224 | P88: 224 | Z88: 2016-03-24
H89: 2016-03-23 | I89: 19.71666667 | J89: 19.71666667 | K89: 2016-03-22 | L89: 0 | N89: 224 | P89: 224 | Z89: 2016-03-25
H90: 2016-03-24 | I90: 19.71666667 | J90: =IF(J89>$E$48,$D$48+I90,J89+I90) -> 19.71666667 | K90: 2016-03-23 | L90: 0 | N90: 224 | P90: 224 | Z90: 2016-03-26
H91: 2016-03-25 | I91: 19.71666667 | J91: 19.71666667 | K91: 2016-03-24 | L91: 0 | N91: 224 | P91: 224 | Z91: 2016-03-27
H92: 2016-03-26 | I92: 19.71666667 | J92: 19.71666667 | K92: 2016-03-25 | L92: 0 | N92: 224 | P92: 224 | Z92: 2016-03-28
H93: 2016-03-27 | I93: 19.71666667 | J93: 19.71666667 | K93: 2016-03-26 | L93: 0 | N93: 224 | P93: 224 | Z93: 2016-03-29
H94: 2016-03-28 | I94: 19.71666667 | J94: 19.71666667 | K94: 2016-03-27 | L94: 0 | N94: 224 | P94: 224 | Z94: 2016-03-30
H95: 2016-03-29 | I95: 19.71666667 | J95: 19.71666667 | K95: 2016-03-28 | L95: 0 | N95: 224 | P95: 224 | Z95: 2016-03-31
H96: 2016-03-30 | I96: 19.71666667 | J96: 19.71666667 | K96: 2016-03-29 | L96: 0 | N96: 224 | P96: 224 | Z96: 2016-04-01
H97: 2016-03-31 | I97: 19.71666667 | J97: 19.71666667 | K97: 2016-03-30 | L97: 0 | N97: 224 | P97: 224 | Z97: 2016-04-02
H98: 2016-04-01 | I98: =$B$8 -> 39.86666667 | J98: =IF(J97>$E$49,$D$49+I98,J97+I98) -> 39.86666667 | K98: =IF(J97>$E$49,H97,"") -> 2016-03-31 | L98: 0 | N98: =$D$29 -> 360 | P98: 360 | Z98: 2016-04-03
H99: 2016-04-02 | I99: 39.86666667 | J99: =IF(J98>$E$49,$D$49+I99,J98+I99) -> 39.86666667 | K99: =IF(J98>$E$49,H98,"") -> 2016-04-01 | L99: 0 | N99: =$D$29 -> 360 | P99: 360 | Z99: 2016-04-04
H100: 2016-04-03 | I100: 39.86666667 | J100: 39.86666667 | K100: 2016-04-02 | L100: 0 | N100: 360 | P100: 360 | Z100: 2016-04-05
H101: 2016-04-04 | I101: 39.86666667 | J101: 39.86666667 | K101: 2016-04-03 | L101: 0 | N101: 360 | P101: 360 | Z101: 2016-04-06
H102: 2016-04-05 | I102: 39.86666667 | J102: 39.86666667 | K102: 2016-04-04 | L102: 0 | N102: 360 | P102: 360 | Z102: 2016-04-07
H103: 2016-04-06 | I103: 39.86666667 | J103: 39.86666667 | K103: 2016-04-05 | L103: 0 | N103: 360 | P103: 360 | Z103: 2016-04-08
H104: 2016-04-07 | I104: 39.86666667 | J104: 39.86666667 | K104: 2016-04-06 | L104: 0 | N104: 360 | P104: 360 | Z104: 2016-04-09
H105: 2016-04-08 | I105: 39.86666667 | J105: 39.86666667 | K105: 2016-04-07 | L105: 0 | N105: 360 | P105: 360 | Z105: 2016-04-10
H106: 2016-04-09 | I106: 39.86666667 | J106: 39.86666667 | K106: 2016-04-08 | L106: 0 | N106: 360 | P106: 360 | Z106: 2016-04-11
H107: 2016-04-10 | I107: 39.86666667 | J107: 39.86666667 | K107: 2016-04-09 | L107: 0 | N107: 360 | P107: 360 | Z107: 2016-04-12
H108: 2016-04-11 | I108: 39.86666667 | J108: 39.86666667 | K108: 2016-04-10 | L108: 0 | N108: 360 | P108: 360 | Z108: 2016-04-13
H109: 2016-04-12 | I109: 39.86666667 | J109: 39.86666667 | K109: 2016-04-11 | L109: 0 | N109: 360 | P109: 360 | Z109: 2016-04-14
H110: 2016-04-13 | I110: 39.86666667 | J110: 39.86666667 | K110: 2016-04-12 | L110: 0 | N110: 360 | P110: 360 | Z110: 2016-04-15
H111: 2016-04-14 | I111: 39.86666667 | J111: 39.86666667 | K111: 2016-04-13 | L111: 0 | N111: 360 | P111: 360 | Z111: 2016-04-16
H112: 2016-04-15 | I112: 39.86666667 | J112: 39.86666667 | K112: 2016-04-14 | L112: 0 | N112: 360 | P112: 360 | Z112: 2016-04-17
H113: 2016-04-16 | I113: 39.86666667 | J113: 39.86666667 | K113: 2016-04-15 | L113: 0 | N113: 360 | P113: 360 | Z113: 2016-04-18
H114: 2016-04-17 | I114: 39.86666667 | J114: 39.86666667 | K114: 2016-04-16 | L114: 0 | N114: 360 | P114: 360 | Z114: 2016-04-19
H115: 2016-04-18 | I115: 39.86666667 | J115: 39.86666667 | K115: 2016-04-17 | L115: 0 | N115: 360 | P115: 360 | Z115: 2016-04-20
H116: 2016-04-19 | I116: 39.86666667 | J116: 39.86666667 | K116: 2016-04-18 | L116: 0 | N116: 360 | P116: 360 | Z116: 2016-04-21
H117: 2016-04-20 | I117: 39.86666667 | J117: 39.86666667 | K117: 2016-04-19 | L117: 0 | N117: 360 | P117: 360 | Z117: 2016-04-22
H118: 2016-04-21 | I118: 39.86666667 | J118: 39.86666667 | K118: 2016-04-20 | L118: 0 | N118: 360 | P118: 360 | Z118: 2016-04-23
H119: 2016-04-22 | I119: 39.86666667 | J119: 39.86666667 | K119: 2016-04-21 | L119: 0 | N119: 360 | P119: 360 | Z119: 2016-04-24
H120: 2016-04-23 | I120: 39.86666667 | J120: 39.86666667 | K120: 2016-04-22 | L120: 0 | N120: 360 | P120: 360 | Z120: 2016-04-25
H121: 2016-04-24 | I121: 39.86666667 | J121: 39.86666667 | K121: 2016-04-23 | L121: 0 | N121: 360 | P121: 360 | Z121: 2016-04-26
H122: 2016-04-25 | I122: 39.86666667 | J122: 39.86666667 | K122: 2016-04-24 | L122: 0 | N122: 360 | P122: 360 | Z122: 2016-04-27
H123: 2016-04-26 | I123: 39.86666667 | J123: 39.86666667 | K123: 2016-04-25 | L123: 0 | N123: 360 | P123: 360 | Z123: 2016-04-28
H124: 2016-04-27 | I124: 39.86666667 | J124: 39.86666667 | K124: =IF(J123>$E$49,H123,"") -> 2016-04-26 | L124: 0 | N124: 360 | P124: 360 | Z124: 2016-04-29
H125: 2016-04-28 | I125: 39.86666667 | J125: 39.86666667 | K125: 2016-04-27 | L125: 0 | N125: 360 | P125: 360 | Z125: 2016-04-30
H126: 2016-04-29 | I126: 39.86666667 | J126: 39.86666667 | K126: 2016-04-28 | L126: 0 | N126: 360 | P126: 360 | Z126: 2016-05-01
H127: 2016-04-30 | I127: 39.86666667 | J127: 39.86666667 | K127: 2016-04-29 | L127: 0 | N127: 360 | P127: 360 | Z127: 2016-05-02
H128: 2016-05-01 | I128: =$B$9 -> 76.05 | J128: =IF(J127>$E$50,$D$50+I128,J127+I128) -> 76.05 | K128: =IF(J127>$E$50,H127,"") -> 2016-04-30 | L128: 0 | N128: =$D$30 -> 480 | P128: 480 | Z128: 2016-05-03
H129: 2016-05-02 | I129: 76.05 | J129: =IF(J128>$E$50,$D$50+I129,J128+I129) -> 76.05 | K129: =IF(J128>$E$50,H128,"") -> 2016-05-01 | L129: 0 | N129: =$D$30 -> 480 | P129: 480 | Z129: 2016-05-04
H130: 2016-05-03 | I130: 76.05 | J130: 76.05 | K130: 2016-05-02 | L130: 0 | N130: 480 | P130: 480 | Z130: 2016-05-05
H131: 2016-05-04 | I131: 76.05 | J131: 76.05 | K131: 2016-05-03 | L131: 0 | N131: 480 | P131: 480 | Z131: 2016-05-06
H132: 2016-05-05 | I132: 76.05 | J132: 76.05 | K132: 2016-05-04 | L132: 0 | N132: 480 | P132: 480 | Z132: 2016-05-07
H133: 2016-05-06 | I133: 76.05 | J133: 76.05 | K133: 2016-05-05 | L133: 0 | N133: 480 | P133: 480 | Z133: 2016-05-08
H134: 2016-05-07 | I134: 76.05 | J134: 76.05 | K134: 2016-05-06 | L134: 0 | N134: 480 | P134: 480 | Z134: 2016-05-09
H135: 2016-05-08 | I135: 76.05 | J135: 76.05 | K135: 2016-05-07 | L135: 0 | N135: 480 | P135: 480 | Z135: 2016-05-10
H136: 2016-05-09 | I136: 76.05 | J136: 76.05 | K136: 2016-05-08 | L136: 0 | N136: 480 | P136: 480 | X136: =IF(L136=0,1/U136,"") ->  | Y136: =IF(L136=0,X136*L135,"") ->  | Z136: 2016-05-11
H137: 2016-05-10 | I137: 76.05 | J137: 76.05 | K137: 2016-05-09 | L137: =IF(K137="",1+L136,0) -> 0 | N137: 480 | P137: =IF(L137=0,N137,N137+P136) -> 480 | Q137: =IF(L137=0,P136/L136,"") ->  | S137: =IF(L137=0,P136/L136,"") ->  | U137: =IF(L137=0,$D$21/S137,"") ->  | Z137: 2016-05-12
H138: 2016-05-11 | I138: 76.05 | J138: 76.05 | K138: 2016-05-10 | L138: 0 | N138: 480 | P138: 480 | Z138: 2016-05-13
H139: 2016-05-12 | I139: 76.05 | J139: 76.05 | K139: 2016-05-11 | L139: 0 | N139: 480 | P139: 480 | Z139: 2016-05-14
H140: 2016-05-13 | I140: 76.05 | J140: 76.05 | K140: 2016-05-12 | L140: 0 | N140: 480 | P140: 480 | Z140: 2016-05-15
H141: 2016-05-14 | I141: 76.05 | J141: 76.05 | K141: 2016-05-13 | L141: 0 | N141: 480 | P141: 480 | Z141: 2016-05-16
H142: 2016-05-15 | I142: 76.05 | J142: 76.05 | K142: 2016-05-14 | L142: 0 | N142: 480 | P142: 480 | Z142: 2016-05-17
H143: 2016-05-16 | I143: 76.05 | J143: 76.05 | K143: 2016-05-15 | L143: 0 | N143: 480 | P143: 480 | Z143: 2016-05-18
H144: 2016-05-17 | I144: 76.05 | J144: 76.05 | K144: 2016-05-16 | L144: 0 | N144: 480 | P144: 480 | Z144: 2016-05-19
H145: 2016-05-18 | I145: 76.05 | J145: 76.05 | K145: 2016-05-17 | L145: 0 | N145: 480 | P145: 480 | Z145: 2016-05-20
H146: 2016-05-19 | I146: 76.05 | J146: 76.05 | K146: 2016-05-18 | L146: 0 | N146: 480 | P146: 480 | Z146: 2016-05-21
H147: 2016-05-20 | I147: 76.05 | J147: 76.05 | K147: 2016-05-19 | L147: 0 | N147: 480 | P147: 480 | Z147: 2016-05-22
H148: 2016-05-21 | I148: 76.05 | J148: 76.05 | K148: 2016-05-20 | L148: 0 | N148: 480 | P148: 480 | Z148: 2016-05-23
H149: 2016-05-22 | I149: 76.05 | J149: 76.05 | K149: 2016-05-21 | L149: 0 | N149: 480 | P149: 480 | Z149: 2016-05-24
H150: 2016-05-23 | I150: 76.05 | J150: 76.05 | K150: 2016-05-22 | L150: 0 | N150: 480 | P150: 480 | Z150: 2016-05-25
H151: 2016-05-24 | I151: 76.05 | J151: 76.05 | K151: 2016-05-23 | L151: 0 | N151: 480 | P151: 480 | Z151: 2016-05-26
H152: 2016-05-25 | I152: 76.05 | J152: 76.05 | K152: 2016-05-24 | L152: 0 | N152: 480 | P152: 480 | Z152: 2016-05-27
H153: 2016-05-26 | I153: 76.05 | J153: 76.05 | K153: 2016-05-25 | L153: 0 | N153: 480 | P153: 480 | Z153: 2016-05-28
H154: 2016-05-27 | I154: 76.05 | J154: 76.05 | K154: 2016-05-26 | L154: 0 | N154: 480 | P154: 480 | Z154: 2016-05-29
H155: 2016-05-28 | I155: 76.05 | J155: 76.05 | K155: 2016-05-27 | L155: 0 | N155: 480 | P155: 480 | Z155: 2016-05-30
H156: 2016-05-29 | I156: 76.05 | J156: 76.05 | K156: 2016-05-28 | L156: 0 | N156: 480 | P156: 480 | Z156: 2016-05-31
H157: 2016-05-30 | I157: 76.05 | J157: 76.05 | K157: 2016-05-29 | L157: 0 | N157: 480 | P157: 480 | Z157: 2016-06-01
H158: 2016-05-31 | I158: 76.05 | J158: 76.05 | K158: 2016-05-30 | L158: 0 | N158: 480 | P158: 480 | Z158: 2016-06-02
H159: 2016-06-01 | I159: =$B$10 -> 73.66666667 | J159: =IF(J158>$E$51,$D$51+I159,J158+I159) -> 73.66666667 | K159: =IF(J158>$E$51,H158,"") -> 2016-05-31 | L159: 0 | N159: =$D$31 -> 400 | P159: 400 | Z159: 2016-06-03
H160: 2016-06-02 | I160: 73.66666667 | J160: =IF(J159>$E$51,$D$51+I160,J159+I160) -> 73.66666667 | K160: =IF(J159>$E$51,H159,"") -> 2016-06-01 | L160: 0 | N160: =$D$31 -> 400 | P160: 400 | Z160: 2016-06-04
H161: 2016-06-03 | I161: 73.66666667 | J161: 73.66666667 | K161: 2016-06-02 | L161: 0 | N161: 400 | P161: 400 | Z161: 2016-06-05
H162: 2016-06-04 | I162: 73.66666667 | J162: 73.66666667 | K162: 2016-06-03 | L162: 0 | N162: 400 | P162: 400 | Z162: 2016-06-06
H163: 2016-06-05 | I163: 73.66666667 | J163: 73.66666667 | K163: 2016-06-04 | L163: 0 | N163: 400 | P163: 400 | Z163: 2016-06-07
H164: 2016-06-06 | I164: 73.66666667 | J164: 73.66666667 | K164: 2016-06-05 | L164: 0 | N164: 400 | P164: 400 | Z164: 2016-06-08
H165: 2016-06-07 | I165: 73.66666667 | J165: 73.66666667 | K165: 2016-06-06 | L165: 0 | N165: 400 | P165: 400 | Z165: 2016-06-09
H166: 2016-06-08 | I166: 73.66666667 | J166: 73.66666667 | K166: 2016-06-07 | L166: 0 | N166: 400 | P166: 400 | Z166: 2016-06-10
H167: 2016-06-09 | I167: 73.66666667 | J167: 73.66666667 | K167: 2016-06-08 | L167: 0 | N167: 400 | P167: 400 | Z167: 2016-06-11
H168: 2016-06-10 | I168: 73.66666667 | J168: 73.66666667 | K168: 2016-06-09 | L168: 0 | N168: 400 | P168: 400 | Z168: 2016-06-12
H169: 2016-06-11 | I169: 73.66666667 | J169: 73.66666667 | K169: 2016-06-10 | L169: 0 | N169: 400 | P169: 400 | Z169: 2016-06-13
H170: 2016-06-12 | I170: 73.66666667 | J170: 73.66666667 | K170: 2016-06-11 | L170: 0 | N170: 400 | P170: 400 | Z170: 2016-06-14
H171: 2016-06-13 | I171: 73.66666667 | J171: 73.66666667 | K171: 2016-06-12 | L171: 0 | N171: 400 | P171: 400 | Z171: 2016-06-15
H172: 2016-06-14 | I172: 73.66666667 | J172: 73.66666667 | K172: 2016-06-13 | L172: 0 | N172: 400 | P172: 400 | Z172: 2016-06-16
H173: 2016-06-15 | I173: 73.66666667 | J173: 73.66666667 | K173: 2016-06-14 | L173: 0 | N173: 400 | P173: 400 | Z173: 2016-06-17
H174: 2016-06-16 | I174: 73.66666667 | J174: 73.66666667 | K174: 2016-06-15 | L174: 0 | N174: 400 | P174: 400 | Z174: 2016-06-18
H175: 2016-06-17 | I175: 73.66666667 | J175: 73.66666667 | K175: 2016-06-16 | L175: 0 | N175: 400 | P175: 400 | Z175: 2016-06-19
H176: 2016-06-18 | I176: 73.66666667 | J176: 73.66666667 | K176: 2016-06-17 | L176: 0 | N176: 400 | P176: 400 | Z176: 2016-06-20
H177: 2016-06-19 | I177: 73.66666667 | J177: 73.66666667 | K177: 2016-06-18 | L177: 0 | N177: 400 | P177: 400 | Z177: 2016-06-21
H178: 2016-06-20 | I178: 73.66666667 | J178: 73.66666667 | K178: 2016-06-19 | L178: 0 | N178: 400 | P178: 400 | Z178: 2016-06-22
H179: 2016-06-21 | I179: 73.66666667 | J179: 73.66666667 | K179: 2016-06-20 | L179: 0 | N179: 400 | P179: 400 | Z179: 2016-06-23
H180: 2016-06-22 | I180: 73.66666667 | J180: 73.66666667 | K180: 2016-06-21 | L180: 0 | N180: 400 | P180: 400 | Z180: 2016-06-24
H181: 2016-06-23 | I181: 73.66666667 | J181: 73.66666667 | K181: 2016-06-22 | L181: 0 | N181: 400 | P181: 400 | Z181: 2016-06-25
H182: 2016-06-24 | I182: 73.66666667 | J182: 73.66666667 | K182: 2016-06-23 | L182: 0 | N182: 400 | P182: 400 | Z182: 2016-06-26
H183: 2016-06-25 | I183: 73.66666667 | J183: 73.66666667 | K183: 2016-06-24 | L183: 0 | N183: 400 | P183: 400 | Z183: 2016-06-27
H184: 2016-06-26 | I184: 73.66666667 | J184: 73.66666667 | K184: 2016-06-25 | L184: 0 | N184: 400 | P184: 400 | Z184: 2016-06-28
H185: 2016-06-27 | I185: 73.66666667 | J185: 73.66666667 | K185: 2016-06-26 | L185: 0 | N185: 400 | P185: 400 | Z185: 2016-06-29
H186: 2016-06-28 | I186: 73.66666667 | J186: 73.66666667 | K186: 2016-06-27 | L186: 0 | N186: 400 | P186: 400 | Z186: 2016-06-30
H187: 2016-06-29 | I187: 73.66666667 | J187: 73.66666667 | K187: 2016-06-28 | L187: 0 | N187: 400 | P187: 400 | Z187: 2016-07-01
H188: 2016-06-30 | I188: 73.66666667 | J188: 73.66666667 | K188: 2016-06-29 | L188: 0 | N188: 400 | P188: 400 | Z188: 2016-07-02
H189: 2016-07-01 | I189: =$B$11 -> 53.95 | J189: =IF(J188>$E$52,$D$52+I189,J188+I189) -> 53.95 | K189: =IF(J188>$E$52,H188,"") -> 2016-06-30 | L189: 0 | N189: =$D$32 -> 120 | P189: 120 | Z189: 2016-07-03
H190: 2016-07-02 | I190: 53.95 | J190: =IF(J189>$E$52,$D$52+I190,J189+I190) -> 53.95 | K190: =IF(J189>$E$52,H189,"") -> 2016-07-01 | L190: 0 | N190: =$D$32 -> 120 | P190: 120 | Z190: 2016-07-04
H191: 2016-07-03 | I191: 53.95 | J191: 53.95 | K191: 2016-07-02 | L191: 0 | N191: 120 | P191: 120 | Z191: 2016-07-05
H192: 2016-07-04 | I192: 53.95 | J192: 53.95 | K192: 2016-07-03 | L192: 0 | N192: 120 | P192: 120 | Z192: 2016-07-06
H193: 2016-07-05 | I193: 53.95 | J193: 53.95 | K193: 2016-07-04 | L193: 0 | N193: 120 | P193: 120 | Z193: 2016-07-07
H194: 2016-07-06 | I194: 53.95 | J194: 53.95 | K194: 2016-07-05 | L194: 0 | N194: 120 | P194: 120 | Z194: 2016-07-08
H195: 2016-07-07 | I195: 53.95 | J195: 53.95 | K195: 2016-07-06 | L195: 0 | N195: 120 | P195: 120 | Z195: 2016-07-09
H196: 2016-07-08 | I196: 53.95 | J196: 53.95 | K196: 2016-07-07 | L196: 0 | N196: 120 | P196: 120 | Z196: 2016-07-10
H197: 2016-07-09 | I197: 53.95 | J197: 53.95 | K197: 2016-07-08 | L197: 0 | N197: 120 | P197: 120 | Z197: 2016-07-11
H198: 2016-07-10 | I198: 53.95 | J198: 53.95 | K198: 2016-07-09 | L198: 0 | N198: 120 | P198: 120 | Z198: 2016-07-12
H199: 2016-07-11 | I199: 53.95 | J199: 53.95 | K199: 2016-07-10 | L199: 0 | N199: 120 | P199: 120 | Z199: 2016-07-13
H200: 2016-07-12 | I200: 53.95 | J200: 53.95 | K200: 2016-07-11 | L200: 0 | N200: 120 | P200: 120 | X200: =IF(L200=0,1/U200,"") ->  | Y200: =IF(L200=0,X200*L199,"") ->  | Z200: 2016-07-14
H201: 2016-07-13 | I201: 53.95 | J201: 53.95 | K201: 2016-07-12 | L201: =IF(K201="",1+L200,0) -> 0 | N201: 120 | P201: =IF(L201=0,N201,N201+P200) -> 120 | Q201: =IF(L201=0,P200/L200,"") ->  | S201: =IF(L201=0,P200/L200,"") ->  | U201: =IF(L201=0,$D$21/S201,"") ->  | Z201: 2016-07-15
... 171 more rows

Sheet Diffentre Besoin et dispo 1 (hidden)
C2: Données prise feuilles calculs | E2: Pour les courbes , pas besoin de regardez cela | Q2: 1er janvier
C3: ='Calcul Et Courbes total'!T6 -> Curve Objectif MJME | D3: ='Calcul Et Courbes total'!S6 -> Requirement curve livestock | E3: Ecart | G3: Négatif | H3: Positif | Q3: 2e janvier
B4: January | C4: ='Calcul Et Courbes 1'!T7 -> 451.36 | D4: ='Calcul Et Courbes 1'!F28 -> 6835.5 | E4: =D4-C4 -> 6384.14 | G4: =IF(E4<0,E4,"") ->  | H4: =IF(E4>0,E4,"") -> 6384.14 | Q4: 3e janvier
B5: February | C5: ='Calcul Et Courbes 1'!T8 -> 1688.96 | D5: ='Calcul Et Courbes 1'!F29 -> 8120 | E5: =D5-C5 -> 6431.04 | G5: =IF(E5<0,E5,"") ->  | H5: =IF(E5>0,E5,"") -> 6431.04 | Q5: 4e janvier
B6: March | C6: ='Calcul Et Courbes 1'!T9 -> 4836 | D6: ='Calcul Et Courbes 1'!F30 -> 9548 | E6: 4712 | H6: 4712 | Q6: 5e janvier
B7: April | C7: ='Calcul Et Courbes 1'!T10 -> 9828 | D7: ='Calcul Et Courbes 1'!F31 -> 10080 | E7: 252 | H7: 252
B8: May | C8: ='Calcul Et Courbes 1'!T11 -> 25147.2 | D8: ='Calcul Et Courbes 1'!F32 -> 12206.25 | E8: -12940.95 | G8: -12940.95
B9: June | C9: ='Calcul Et Courbes 1'!T12 -> 20592 | D9: ='Calcul Et Courbes 1'!F33 -> 11340 | E9: -9252 | G9: -9252
B10: July | C10: ='Calcul Et Courbes 1'!T13 -> 13057.2 | D10: ='Calcul Et Courbes 1'!F34 -> 11229.75 | E10: -1827.45 | G10: -1827.45
B11: August | C11: ='Calcul Et Courbes 1'!T14 -> 4449.12 | D11: ='Calcul Et Courbes 1'!F35 -> 9548 | E11: 5098.88 | H11: 5098.88
B12: September | C12: ='Calcul Et Courbes 1'!T15 -> 9360 | D12: ='Calcul Et Courbes 1'!F36 -> 8452.5 | E12: -907.5 | G12: -907.5
B13: October | C13: ='Calcul Et Courbes 1'!T16 -> 7092.8 | D13: ='Calcul Et Courbes 1'!F37 -> 7974.75 | E13: 881.95 | H13: 881.95
B14: November | C14: ='Calcul Et Courbes 1'!T17 -> 2808 | D14: ='Calcul Et Courbes 1'!F38 -> 6300 | E14: 3492 | H14: 3492
B15: December | C15: ='Calcul Et Courbes 1'!T18 -> 677.04 | D15: ='Calcul Et Courbes 1'!F39 -> 4882.5 | E15: 4205.46 | H15: 4205.46
C17: Dont Touch( Resultats pris au dessus) | E17: Resultats
C18: Différence de la Courbe objectif moins le Besoin | E18: Groupe de production(Chiffre) | G18: Périodes(Durée) | H18: Masquer
B19: January | C19: =C4-D4 -> -6384.14 | E19: =IF(SIGN(C19)=SIGN(C20),"",SUM($C$19:C19)-SUM($E18:E$19)) ->  | G19: =IF(E19="","",OFFSET(B19,1-COUNTIF($H$19:H19,H19),)&"-"&B19) ->  | H19: =SUM(H18)+IF(G18="",0,1) -> 1
B20: February | C20: =C5-D5 -> -6431.04 | E20: =IF(SIGN(C20)=SIGN(C21),"",SUM($C$19:C20)-SUM($E19:E$19)) ->  | G20: =IF(E20="","",OFFSET(B20,1-COUNTIF($H$19:H20,H20),)&"-"&B20) ->  | H20: =SUM(H19)+IF(G19="",0,1) -> 1
B21: March | C21: -4712 | E21: =IF(SIGN(C21)=SIGN(C22),"",SUM($C$19:C21)-SUM($E$19:E20)) ->  | G21: =IF(E21="","",OFFSET(B21,1-COUNTIF($H$19:H21,H21),)&"-"&B21) ->  | H21: 1
B22: April | C22: -252 | E22: =IF(SIGN(C22)=SIGN(C23),"",SUM($C$19:C22)-SUM($E$19:E21)) -> -17779.18 | G22: =IF(E22="","",OFFSET(B22,1-COUNTIF($H$19:H22,H22),)&"-"&B22) -> January-April | H22: 1
B23: May | C23: 12940.95 | E23: =IF(SIGN(C23)=SIGN(C24),"",SUM($C$19:C23)-SUM($E$19:E22)) ->  | G23: =IF(E23="","",OFFSET(B23,1-COUNTIF($H$19:H23,H23),)&"-"&B23) ->  | H23: 2
B24: June | C24: 9252 | E24: =IF(SIGN(C24)=SIGN(C25),"",SUM($C$19:C24)-SUM($E$19:E23)) ->  | G24: =IF(E24="","",OFFSET(B24,1-COUNTIF($H$19:H24,H24),)&"-"&B24) ->  | H24: 2
B25: July | C25: 1827.45 | E25: =IF(SIGN(C25)=SIGN(C26),"",SUM($C$19:C25)-SUM($E$19:E24)) -> 24020.4 | G25: =IF(E25="","",OFFSET(B25,1-COUNTIF($H$19:H25,H25),)&"-"&B25) -> May-July | H25: 2
B26: August | C26: -5098.88 | E26: =IF(SIGN(C26)=SIGN(C27),"",SUM($C$19:C26)-SUM($E$19:E25)) -> -5098.88 | G26: =IF(E26="","",OFFSET(B26,1-COUNTIF($H$19:H26,H26),)&"-"&B26) -> August-August | H26: 3
B27: September | C27: 907.5 | E27: =IF(SIGN(C27)=SIGN(C28),"",SUM($C$19:C27)-SUM($E$19:E26)) -> 907.5 | G27: =IF(E27="","",OFFSET(B27,1-COUNTIF($H$19:H27,H27),)&"-"&B27) -> September-September | H27: 4
B28: October | C28: -881.95 | E28: =IF(SIGN(C28)=SIGN(C29),"",SUM($C$19:C28)-SUM($E$19:E27)) ->  | G28: =IF(E28="","",OFFSET(B28,1-COUNTIF($H$19:H28,H28),)&"-"&B28) ->  | H28: 5
B29: November | C29: -3492 | E29: =IF(SIGN(C29)=SIGN(C30),"",SUM($C$19:C29)-SUM($E$19:E28)) ->  | G29: =IF(E29="","",OFFSET(B29,1-COUNTIF($H$19:H29,H29),)&"-"&B29) ->  | H29: 5
B30: December | C30: -4205.46 | E30: =IF(SIGN(C30)=SIGN(C31),"",SUM($C$19:C30)-SUM($E$19:E29)) -> -8579.41 | G30: =IF(E30="","",OFFSET(B30,1-COUNTIF($H$19:H30,H30),)&"-"&B30) -> October-December | H30: 5
B31: Dec | C31: =C16-D16 -> 0 | H31: 6
B32: Année | C32: =SUM(C19:D30) -> -6529.57 | H32: 6
B33: Resultat | C33: =C32 -> -6529.57 | H33: 6
G35: =IF(E35="","",OFFSET(B35,1-COUNTIF($H$19:H35,H35),)&"-"&B35) -> 
C39: ='DashBoard Igraze'!DI564 -> 2016-10-15 | D39: =SUMPRODUCT(OFFSET($C$19:$C$30,,,MONTH(C39)-1))+OFFSET($C$19,MONTH(C39)-1,)*DAY(C39)/(EDATE(C39,1)-C39) -> 1623.09
C40: ='DashBoard Igraze'!BM104 -> 2016-10-15 | D40: =SUMPRODUCT(OFFSET($C$19:$C$30,,,MONTH(C40)-1))+OFFSET($C$19,MONTH(C40)-1,)*DAY(C39)/(EDATE(C40,1)-C40) -> 1623.09

Sheet Diffentre Besoin et dispo 3 (hidden)
C2: Données prise feuilles calculs | E2: Pour les courbes , pas besoin de regardez cela
C3: ='Calcul Et Courbes total'!T6 -> Curve Objectif MJME | D3: ='Calcul Et Courbes total'!S6 -> Requirement curve livestock | E3: Ecart | G3: Négatif | H3: Positif
B4: January | C4: ='Calcul Et Courbes 3'!T7 -> 451.36 | D4: ='Calcul Et Courbes 3'!F28 -> 4394.25 | E4: =D4-C4 -> 3942.89 | G4: =IF(E4<0,E4,"") ->  | H4: =IF(E4>0,E4,"") -> 3942.89
B5: February | C5: ='Calcul Et Courbes 3'!T8 -> 1266.72 | D5: ='Calcul Et Courbes 3'!F29 -> 5220 | E5: =D5-C5 -> 3953.28 | G5: =IF(E5<0,E5,"") ->  | H5: =IF(E5>0,E5,"") -> 3953.28
B6: March | C6: ='Calcul Et Courbes 3'!T9 -> 3095.04 | D6: ='Calcul Et Courbes 3'!F30 -> 6138 | E6: 3042.96 | H6: 3042.96
B7: April | C7: ='Calcul Et Courbes 3'!T10 -> 6552 | D7: ='Calcul Et Courbes 3'!F31 -> 6480 | E7: -72 | G7: -72
B8: May | C8: ='Calcul Et Courbes 3'!T11 -> 17732 | D8: ='Calcul Et Courbes 3'!F32 -> 7846.875 | E8: -9885.125 | G8: -9885.125
B9: June | C9: ='Calcul Et Courbes 3'!T12 -> 22464 | D9: ='Calcul Et Courbes 3'!F33 -> 7290 | E9: -15174 | G9: -15174
B10: July | C10: ='Calcul Et Courbes 3'!T13 -> 19344 | D10: ='Calcul Et Courbes 3'!F34 -> 7219.125 | E10: -12124.875 | G10: -12124.875
B11: August | C11: ='Calcul Et Courbes 3'!T14 -> 10639.2 | D11: ='Calcul Et Courbes 3'!F35 -> 6138 | E11: -4501.2 | G11: -4501.2
B12: September | C12: ='Calcul Et Courbes 3'!T15 -> 7176 | D12: ='Calcul Et Courbes 3'!F36 -> 5433.75 | E12: -1742.25 | G12: -1742.25
B13: October | C13: ='Calcul Et Courbes 3'!T16 -> 2901.6 | D13: ='Calcul Et Courbes 3'!F37 -> 5126.625 | E13: 2225.025 | H13: 2225.025
B14: November | C14: ='Calcul Et Courbes 3'!T17 -> 1996.8 | D14: ='Calcul Et Courbes 3'!F38 -> 4050 | E14: 2053.2 | H14: 2053.2
B15: December | C15: ='Calcul Et Courbes 3'!T18 -> 902.72 | D15: ='Calcul Et Courbes 3'!F39 -> 3138.75 | E15: 2236.03 | H15: 2236.03
C17: Dont Touch( Resultats pris au dessus) | E17: Resultats
C18: Différence de la Courbe objectif moins le Besoin | E18: Groupe de production(Chiffre) | G18: Périodes(Durée) | H18: Masquer
B19: January | C19: =C4-D4 -> -3942.89 | E19: =IF(SIGN(C19)=SIGN(C20),"",SUM($C$19:C19)-SUM($E18:E$19)) ->  | G19: =IF(E19="","",OFFSET(B19,1-COUNTIF($H$19:H19,H19),)&"-"&B19) ->  | H19: =SUM(H18)+IF(G18="",0,1) -> 1
B20: February | C20: =C5-D5 -> -3953.28 | E20: =IF(SIGN(C20)=SIGN(C21),"",SUM($C$19:C20)-SUM($E19:E$19)) ->  | G20: =IF(E20="","",OFFSET(B20,1-COUNTIF($H$19:H20,H20),)&"-"&B20) ->  | H20: =SUM(H19)+IF(G19="",0,1) -> 1
B21: March | C21: -3042.96 | E21: =IF(SIGN(C21)=SIGN(C22),"",SUM($C$19:C21)-SUM($E$19:E20)) -> -10939.13 | G21: =IF(E21="","",OFFSET(B21,1-COUNTIF($H$19:H21,H21),)&"-"&B21) -> January-March | H21: 1
B22: April | C22: 72 | E22: =IF(SIGN(C22)=SIGN(C23),"",SUM($C$19:C22)-SUM($E$19:E21)) ->  | G22: =IF(E22="","",OFFSET(B22,1-COUNTIF($H$19:H22,H22),)&"-"&B22) ->  | H22: 2
B23: May | C23: 9885.125 | E23: =IF(SIGN(C23)=SIGN(C24),"",SUM($C$19:C23)-SUM($E$19:E22)) ->  | G23: =IF(E23="","",OFFSET(B23,1-COUNTIF($H$19:H23,H23),)&"-"&B23) ->  | H23: 2
B24: June | C24: 15174 | E24: =IF(SIGN(C24)=SIGN(C25),"",SUM($C$19:C24)-SUM($E$19:E23)) ->  | G24: =IF(E24="","",OFFSET(B24,1-COUNTIF($H$19:H24,H24),)&"-"&B24) ->  | H24: 2
B25: July | C25: 12124.875 | E25: =IF(SIGN(C25)=SIGN(C26),"",SUM($C$19:C25)-SUM($E$19:E24)) ->  | G25: =IF(E25="","",OFFSET(B25,1-COUNTIF($H$19:H25,H25),)&"-"&B25) ->  | H25: 2
B26: August | C26: 4501.2 | E26: =IF(SIGN(C26)=SIGN(C27),"",SUM($C$19:C26)-SUM($E$19:E25)) ->  | G26: =IF(E26="","",OFFSET(B26,1-COUNTIF($H$19:H26,H26),)&"-"&B26) ->  | H26: 2
B27: September | C27: 1742.25 | E27: =IF(SIGN(C27)=SIGN(C28),"",SUM($C$19:C27)-SUM($E$19:E26)) -> 43499.45 | G27: =IF(E27="","",OFFSET(B27,1-COUNTIF($H$19:H27,H27),)&"-"&B27) -> April-September | H27: 2
B28: October | C28: -2225.025 | E28: =IF(SIGN(C28)=SIGN(C29),"",SUM($C$19:C28)-SUM($E$19:E27)) ->  | G28: =IF(E28="","",OFFSET(B28,1-COUNTIF($H$19:H28,H28),)&"-"&B28) ->  | H28: 3
B29: November | C29: -2053.2 | E29: =IF(SIGN(C29)=SIGN(C30),"",SUM($C$19:C29)-SUM($E$19:E28)) ->  | G29: =IF(E29="","",OFFSET(B29,1-COUNTIF($H$19:H29,H29),)&"-"&B29) ->  | H29: 3
B30: December | C30: -2236.03 | E30: =IF(SIGN(C30)=SIGN(C31),"",SUM($C$19:C30)-SUM($E$19:E29)) -> -6514.255 | G30: =IF(E30="","",OFFSET(B30,1-COUNTIF($H$19:H30,H30),)&"-"&B30) -> October-December | H30: 3
B31: Dec | C31: =C16-D16 -> 0 | H31: 4
B32: Année | C32: =SUM(C19:D30) -> 26046.065 | H32: 4
B33: Resultat | C33: =C32 -> 26046.065 | H33: 4
G35: =IF(E35="","",OFFSET(B35,1-COUNTIF($H$19:H35,H35),)&"-"&B35) -> 
C39: ='DashBoard Igraze'!DI821 -> 2016-10-15 | D39: =SUMPRODUCT(OFFSET($C$19:$C$30,,,MONTH(C39)-1))+OFFSET($C$19,MONTH(C39)-1,)*DAY(C39)/(EDATE(C39,1)-C39) -> 31483.695
C40: ='DashBoard Igraze'!BM104 -> 2016-10-15 | D40: =SUMPRODUCT(OFFSET($C$19:$C$30,,,MONTH(C40)-1))+OFFSET($C$19,MONTH(C40)-1,)*DAY(C39)/(EDATE(C40,1)-C40) -> 31483.695

Sheet Diffentre Besoin et dispo 4 (hidden)
C2: Données prise feuilles calculs | E2: Pour les courbes , pas besoin de regardez cela
C3: ='Calcul Et Courbes total'!T6 -> Curve Objectif MJME | D3: ='Calcul Et Courbes total'!S6 -> Requirement curve livestock | E3: Ecart | G3: Négatif | H3: Positif
B4: January | C4: ='Calcul Et Courbes 4'!T7 -> 2321.28 | D4: ='Calcul Et Courbes 4'!F28 -> 4268.7 | E4: =D4-C4 -> 1947.42 | G4: =IF(E4<0,E4,"") ->  | H4: =IF(E4>0,E4,"") -> 1947.42
B5: February | C5: ='Calcul Et Courbes 4'!T8 -> 4222.4 | D5: ='Calcul Et Courbes 4'!F29 -> 6942.6 | E5: =D5-C5 -> 2720.2 | G5: =IF(E5<0,E5,"") ->  | H5: =IF(E5>0,E5,"") -> 2720.2
B6: March | C6: ='Calcul Et Courbes 4'!T9 -> 7802.08 | D6: ='Calcul Et Courbes 4'!F30 -> 9520.875 | E6: 1718.795 | H6: 1718.795
B7: April | C7: ='Calcul Et Courbes 4'!T10 -> 14227.2 | D7: ='Calcul Et Courbes 4'!F31 -> 13662 | E7: -565.2 | G7: -565.2
B8: May | C8: ='Calcul Et Courbes 4'!T11 -> 26598 | D8: ='Calcul Et Courbes 4'!F32 -> 16740 | E8: -9858 | G8: -9858
B9: June | C9: ='Calcul Et Courbes 4'!T12 -> 22464 | D9: ='Calcul Et Courbes 4'!F33 -> 16335 | E9: -6129 | G9: -6129
B10: July | C10: ='Calcul Et Courbes 4'!T13 -> 20021.04 | D10: ='Calcul Et Courbes 4'!F34 -> 3013.2 | E10: -17007.84 | G10: -17007.84
B11: August | C11: ='Calcul Et Courbes 4'!T14 -> 17022.72 | D11: ='Calcul Et Courbes 4'!F35 -> 2734.2 | E11: -14288.52 | G11: -14288.52
B12: September | C12: ='Calcul Et Courbes 4'!T15 -> 15787.2 | D12: ='Calcul Et Courbes 4'!F36 -> 3847.5 | E12: -11939.7 | G12: -11939.7
B13: October | C13: ='Calcul Et Courbes 4'!T16 -> 11509.68 | D13: ='Calcul Et Courbes 4'!F37 -> 4101.3 | E13: -7408.38 | G13: -7408.38
B14: November | C14: ='Calcul Et Courbes 4'!T17 -> 6240 | D14: ='Calcul Et Courbes 4'!F38 -> 3334.5 | E14: -2905.5 | G14: -2905.5
B15: December | C15: ='Calcul Et Courbes 4'!T18 -> 3481.92 | D15: ='Calcul Et Courbes 4'!F39 -> 3515.4 | E15: 33.48 | H15: 33.48
C17: Dont Touch( Resultats pris au dessus) | E17: Resultats
C18: Différence de la Courbe objectif moins le Besoin | E18: Groupe de production(Chiffre) | G18: Périodes(Durée) | H18: Masquer
B19: January | C19: =C4-D4 -> -1947.42 | E19: =IF(SIGN(C19)=SIGN(C20),"",SUM($C$19:C19)-SUM($E18:E$19)) ->  | G19: =IF(E19="","",OFFSET(B19,1-COUNTIF($H$19:H19,H19),)&"-"&B19) ->  | H19: =SUM(H18)+IF(G18="",0,1) -> 1
B20: February | C20: =C5-D5 -> -2720.2 | E20: =IF(SIGN(C20)=SIGN(C21),"",SUM($C$19:C20)-SUM($E19:E$19)) ->  | G20: =IF(E20="","",OFFSET(B20,1-COUNTIF($H$19:H20,H20),)&"-"&B20) ->  | H20: =SUM(H19)+IF(G19="",0,1) -> 1
B21: March | C21: -1718.795 | E21: =IF(SIGN(C21)=SIGN(C22),"",SUM($C$19:C21)-SUM($E$19:E20)) -> -6386.415 | G21: =IF(E21="","",OFFSET(B21,1-COUNTIF($H$19:H21,H21),)&"-"&B21) -> January-March | H21: 1
B22: April | C22: 565.2 | E22: =IF(SIGN(C22)=SIGN(C23),"",SUM($C$19:C22)-SUM($E$19:E21)) ->  | G22: =IF(E22="","",OFFSET(B22,1-COUNTIF($H$19:H22,H22),)&"-"&B22) ->  | H22: 2
B23: May | C23: 9858 | E23: =IF(SIGN(C23)=SIGN(C24),"",SUM($C$19:C23)-SUM($E$19:E22)) ->  | G23: =IF(E23="","",OFFSET(B23,1-COUNTIF($H$19:H23,H23),)&"-"&B23) ->  | H23: 2
B24: June | C24: 6129 | E24: =IF(SIGN(C24)=SIGN(C25),"",SUM($C$19:C24)-SUM($E$19:E23)) ->  | G24: =IF(E24="","",OFFSET(B24,1-COUNTIF($H$19:H24,H24),)&"-"&B24) ->  | H24: 2
B25: July | C25: 17007.84 | E25: =IF(SIGN(C25)=SIGN(C26),"",SUM($C$19:C25)-SUM($E$19:E24)) ->  | G25: =IF(E25="","",OFFSET(B25,1-COUNTIF($H$19:H25,H25),)&"-"&B25) ->  | H25: 2
B26: August | C26: 14288.52 | E26: =IF(SIGN(C26)=SIGN(C27),"",SUM($C$19:C26)-SUM($E$19:E25)) ->  | G26: =IF(E26="","",OFFSET(B26,1-COUNTIF($H$19:H26,H26),)&"-"&B26) ->  | H26: 2
B27: September | C27: 11939.7 | E27: =IF(SIGN(C27)=SIGN(C28),"",SUM($C$19:C27)-SUM($E$19:E26)) ->  | G27: =IF(E27="","",OFFSET(B27,1-COUNTIF($H$19:H27,H27),)&"-"&B27) ->  | H27: 2
B28: October | C28: 7408.38 | E28: =IF(SIGN(C28)=SIGN(C29),"",SUM($C$19:C28)-SUM($E$19:E27)) ->  | G28: =IF(E28="","",OFFSET(B28,1-COUNTIF($H$19:H28,H28),)&"-"&B28) ->  | H28: 2
B29: November | C29: 2905.5 | E29: =IF(SIGN(C29)=SIGN(C30),"",SUM($C$19:C29)-SUM($E$19:E28)) -> 70102.14 | G29: =IF(E29="","",OFFSET(B29,1-COUNTIF($H$19:H29,H29),)&"-"&B29) -> April-November | H29: 2
B30: December | C30: -33.48 | E30: =IF(SIGN(C30)=SIGN(C31),"",SUM($C$19:C30)-SUM($E$19:E29)) -> -33.48 | G30: =IF(E30="","",OFFSET(B30,1-COUNTIF($H$19:H30,H30),)&"-"&B30) -> December-December | H30: 3
B31: Dec | C31: =C16-D16 -> 0 | H31: 4
B32: Année | C32: =SUM(C19:D30) -> 63682.245 | H32: 4
B33: Resultat | C33: =C32 -> 63682.245 | H33: 4
G35: =IF(E35="","",OFFSET(B35,1-COUNTIF($H$19:H35,H35),)&"-"&B35) -> 
C39: ='DashBoard Igraze'!DI918 -> 2016-10-15 | D39: =SUMPRODUCT(OFFSET($C$19:$C$30,,,MONTH(C39)-1))+OFFSET($C$19,MONTH(C39)-1,)*DAY(C39)/(EDATE(C39,1)-C39) -> 56986.545
C40: ='DashBoard Igraze'!BM104 -> 2016-10-15 | D40: =SUMPRODUCT(OFFSET($C$19:$C$30,,,MONTH(C40)-1))+OFFSET($C$19,MONTH(C40)-1,)*DAY(C39)/(EDATE(C40,1)-C40) -> 56986.545

Sheet Diffentre Besoin et dispo 2 (hidden)
C2: Données prise feuilles calculs | E2: Pour les courbes , pas besoin de regardez cela
C3: ='Calcul Et Courbes total'!T6 -> Curve Objectif MJME | D3: ='Calcul Et Courbes total'!S6 -> Requirement curve livestock | E3: Ecart | G3: Négatif | H3: Positif
B4: January | C4: ='Calcul Et Courbes 2'!T7 -> 1370.2 | D4: ='Calcul Et Courbes 2'!F28 -> 2092.5 | E4: =D4-C4 -> 722.3 | G4: =IF(E4<0,E4,"") ->  | H4: =IF(E4>0,E4,"") -> 722.3
B5: February | C5: ='Calcul Et Courbes 2'!T8 -> 2865.2 | D5: ='Calcul Et Courbes 2'!F29 -> 3588.75 | E5: =D5-C5 -> 723.55 | G5: =IF(E5<0,E5,"") ->  | H5: =IF(E5>0,E5,"") -> 723.55
B6: March | C6: ='Calcul Et Courbes 2'!T9 -> 5077.8 | D6: ='Calcul Et Courbes 2'!F30 -> 4296.6 | E6: -781.2 | G6: -781.2
B7: April | C7: ='Calcul Et Courbes 2'!T10 -> 13634.4 | D7: ='Calcul Et Courbes 2'!F31 -> 7290 | E7: -6344.4 | G7: -6344.4
B8: May | C8: ='Calcul Et Courbes 2'!T11 -> 23212.8 | D8: ='Calcul Et Courbes 2'!F32 -> 10044 | E8: -13168.8 | G8: -13168.8
B9: June | C9: ='Calcul Et Courbes 2'!T12 -> 17160 | D9: ='Calcul Et Courbes 2'!F33 -> 8100 | E9: -9060 | G9: -9060
B10: July | C10: ='Calcul Et Courbes 2'!T13 -> 7254 | D10: ='Calcul Et Courbes 2'!F34 -> 2092.5 | E10: -5161.5 | G10: -5161.5
B11: August | C11: ='Calcul Et Courbes 2'!T14 -> 1128.4 | D11: ='Calcul Et Courbes 2'!F35 -> 1883.25 | E11: 754.85 | H11: 754.85
B12: September | C12: ='Calcul Et Courbes 2'!T15 -> 7410 | D12: ='Calcul Et Courbes 2'!F36 -> 2430 | E12: -4980 | G12: -4980
B13: October | C13: ='Calcul Et Courbes 2'!T16 -> 6770.4 | D13: ='Calcul Et Courbes 2'!F37 -> 2762.1 | E13: -4008.3 | G13: -4008.3
B14: November | C14: ='Calcul Et Courbes 2'!T17 -> 4446 | D14: ='Calcul Et Courbes 2'!F38 -> 2160 | E14: -2286 | G14: -2286
B15: December | C15: ='Calcul Et Courbes 2'!T18 -> 2901.6 | D15: ='Calcul Et Courbes 2'!F39 -> 1883.25 | E15: -1018.35 | G15: -1018.35
C17: Dont Touch( Resultats pris au dessus) | E17: Resultats
C18: Différence de la Courbe objectif moins le Besoin | E18: Groupe de production(Chiffre) | G18: Périodes(Durée) | H18: Masquer
B19: January | C19: =C4-D4 -> -722.3 | E19: =IF(SIGN(C19)=SIGN(C20),"",SUM($C$19:C19)-SUM($E18:E$19)) ->  | G19: =IF(E19="","",OFFSET(B19,1-COUNTIF($H$19:H19,H19),)&"-"&B19) ->  | H19: =SUM(H18)+IF(G18="",0,1) -> 1
B20: February | C20: =C5-D5 -> -723.55 | E20: =IF(SIGN(C20)=SIGN(C21),"",SUM($C$19:C20)-SUM($E19:E$19)) -> -1445.85 | G20: =IF(E20="","",OFFSET(B20,1-COUNTIF($H$19:H20,H20),)&"-"&B20) -> January-February | H20: =SUM(H19)+IF(G19="",0,1) -> 1
B21: March | C21: 781.2 | E21: =IF(SIGN(C21)=SIGN(C22),"",SUM($C$19:C21)-SUM($E$19:E20)) ->  | G21: =IF(E21="","",OFFSET(B21,1-COUNTIF($H$19:H21,H21),)&"-"&B21) ->  | H21: 2
B22: April | C22: 6344.4 | E22: =IF(SIGN(C22)=SIGN(C23),"",SUM($C$19:C22)-SUM($E$19:E21)) ->  | G22: =IF(E22="","",OFFSET(B22,1-COUNTIF($H$19:H22,H22),)&"-"&B22) ->  | H22: 2
B23: May | C23: 13168.8 | E23: =IF(SIGN(C23)=SIGN(C24),"",SUM($C$19:C23)-SUM($E$19:E22)) ->  | G23: =IF(E23="","",OFFSET(B23,1-COUNTIF($H$19:H23,H23),)&"-"&B23) ->  | H23: 2
B24: June | C24: 9060 | E24: =IF(SIGN(C24)=SIGN(C25),"",SUM($C$19:C24)-SUM($E$19:E23)) ->  | G24: =IF(E24="","",OFFSET(B24,1-COUNTIF($H$19:H24,H24),)&"-"&B24) ->  | H24: 2
B25: July | C25: 5161.5 | E25: =IF(SIGN(C25)=SIGN(C26),"",SUM($C$19:C25)-SUM($E$19:E24)) -> 34515.9 | G25: =IF(E25="","",OFFSET(B25,1-COUNTIF($H$19:H25,H25),)&"-"&B25) -> March-July | H25: 2
B26: August | C26: -754.85 | E26: =IF(SIGN(C26)=SIGN(C27),"",SUM($C$19:C26)-SUM($E$19:E25)) -> -754.85 | G26: =IF(E26="","",OFFSET(B26,1-COUNTIF($H$19:H26,H26),)&"-"&B26) -> August-August | H26: 3
B27: September | C27: 4980 | E27: =IF(SIGN(C27)=SIGN(C28),"",SUM($C$19:C27)-SUM($E$19:E26)) ->  | G27: =IF(E27="","",OFFSET(B27,1-COUNTIF($H$19:H27,H27),)&"-"&B27) ->  | H27: 4
B28: October | C28: 4008.3 | E28: =IF(SIGN(C28)=SIGN(C29),"",SUM($C$19:C28)-SUM($E$19:E27)) ->  | G28: =IF(E28="","",OFFSET(B28,1-COUNTIF($H$19:H28,H28),)&"-"&B28) ->  | H28: 4
B29: November | C29: 2286 | E29: =IF(SIGN(C29)=SIGN(C30),"",SUM($C$19:C29)-SUM($E$19:E28)) ->  | G29: =IF(E29="","",OFFSET(B29,1-COUNTIF($H$19:H29,H29),)&"-"&B29) ->  | H29: 4
B30: December | C30: 1018.35 | E30: =IF(SIGN(C30)=SIGN(C31),"",SUM($C$19:C30)-SUM($E$19:E29)) -> 12292.65 | G30: =IF(E30="","",OFFSET(B30,1-COUNTIF($H$19:H30,H30),)&"-"&B30) -> September-December | H30: 4
B31: Dec | C31: =C16-D16 -> 0 | H31: 5
B32: Année | C32: =SUM(C19:D30) -> 44607.85 | H32: 5
B33: Resultat | C33: =C32 -> 44607.85 | H33: 5
G35: =IF(E35="","",OFFSET(B35,1-COUNTIF($H$19:H35,H35),)&"-"&B35) -> 
C39: ='DashBoard Igraze'!DI724 -> 2016-10-15 | D39: =SUMPRODUCT(OFFSET($C$19:$C$30,,,MONTH(C39)-1))+OFFSET($C$19,MONTH(C39)-1,)*DAY(C39)/(EDATE(C39,1)-C39) -> 39234.7
C40: ='DashBoard Igraze'!BM104 -> 2016-10-15 | D40: =SUMPRODUCT(OFFSET($C$19:$C$30,,,MONTH(C40)-1))+OFFSET($C$19,MONTH(C40)-1,)*DAY(C39)/(EDATE(C40,1)-C40) -> 39234.7

Sheet Base de donnée simple (hidden)
B2: Courbe Active (Qualité en MJ ME /jr) | I2: Chaptel MJME/jr
B3: Summer Dry | C3: Medium hill inbye | D3: HQ dairy pasture | E3: Test | I3: dairy 12mnthr | J3: beef finisher R2 | K3: spring lmb Waireres | L3: test
A6: 1 | B6: 8.5 | C6: 7 | D6: 9 | E6: ='DashBoard Igraze'!G64 -> 7 | H6: 1 | I6: 9 | J6: 8.5 | K6: 8.5 | L6: ='DashBoard Igraze'!J64 -> 10
A7: 2 | B7: 9.5 | C7: 7 | D7: 10 | E7: ='DashBoard Igraze'!G65 -> 8 | H7: 2 | I7: 10 | J7: 9.5 | K7: 9.5 | L7: ='DashBoard Igraze'!J65 -> 11
A8: 3 | B8: 10.5 | C8: 8 | D8: 11 | E8: ='DashBoard Igraze'!G66 -> 10 | H8: 3 | I8: 11 | J8: 10.5 | K8: 10.5 | L8: ='DashBoard Igraze'!J66 -> 11
A9: 4 | B9: 11.5 | C9: 10.5 | D9: 12 | E9: ='DashBoard Igraze'!G67 -> 10.5 | H9: 4 | I9: 12 | J9: 11.5 | K9: 11.5 | L9: ='DashBoard Igraze'!J67 -> 12
A10: 5 | B10: 12 | C10: 11 | D10: 12.5 | E10: ='DashBoard Igraze'!G68 -> 12 | H10: 5 | I10: 12.5 | J10: 12 | K10: 12 | L10: ='DashBoard Igraze'!J68 -> 12
A11: 6 | B11: 11 | C11: 12 | D11: 12 | E11: ='DashBoard Igraze'!G69 -> 11 | H11: 6 | I11: 12 | J11: 11 | K11: 11 | L11: ='DashBoard Igraze'!J69 -> 12
A12: 7 | B12: 9 | C12: 12 | D12: 11.5 | E12: ='DashBoard Igraze'!G70 -> 9 | H12: 7 | I12: 11.5 | J12: 9 | K12: 9 | L12: ='DashBoard Igraze'!J70 -> 10
A13: 8 | B13: 7 | C13: 11 | D13: 11 | E13: ='DashBoard Igraze'!G71 -> 6 | H13: 8 | I13: 11 | J13: 7 | K13: 7 | L13: ='DashBoard Igraze'!J71 -> 9
A14: 9 | B14: 9.5 | C14: 11.5 | D14: 11.5 | E14: ='DashBoard Igraze'!G72 -> 10 | H14: 9 | I14: 11.5 | J14: 9.5 | K14: 9.5 | L14: ='DashBoard Igraze'!J72 -> 10
A15: 10 | B15: 10.5 | C15: 9 | D15: 10.5 | E15: ='DashBoard Igraze'!G73 -> 11 | H15: 10 | I15: 10.5 | J15: 10.5 | K15: 10.5 | L15: ='DashBoard Igraze'!J73 -> 11
A16: 11 | B16: 9.5 | C16: 8 | D16: 10 | E16: ='DashBoard Igraze'!G74 -> 9 | H16: 11 | I16: 10 | J16: 9.5 | K16: 9.5 | L16: ='DashBoard Igraze'!J74 -> 10
A17: 12 | B17: 9 | C17: 7 | D17: 9 | E17: ='DashBoard Igraze'!G75 -> 7 | H17: 12 | I17: 9 | J17: 9 | K17: 9 | L17: ='DashBoard Igraze'!J75 -> 9
B19: Courbe passive en kgMs/jr | I19: Chaptel 2 KgMS/day
B20: Summer Dry | C20: Medium hill inbye | D20: HQ dairy pasture | E20: Test | I20: dairy 12mnthr | J20: beef finisher R2 | K20: spring lmb Waireres | L20: Test
B23: 5 | C23: 2 | D23: 8 | E23: ='DashBoard Igraze'!D64 -> 2 | H23: 1 | I23: 14 | J23: 12 | K23: 1.8 | L23: ='DashBoard Igraze'!M64 -> 1.5
B24: 10 | C24: 6 | D24: 14 | E24: ='DashBoard Igraze'!D65 -> 7 | H24: 2 | I24: 16 | J24: 14 | K24: 2.8 | L24: ='DashBoard Igraze'!M65 -> 2.5
B25: 15 | C25: 12 | D25: 22 | E25: ='DashBoard Igraze'!D66 -> 15 | H25: 3 | I25: 16 | J25: 14 | K25: 3.25 | L25: ='DashBoard Igraze'!M66 -> 2.8
B26: 38 | C26: 20 | D26: 38 | E26: ='DashBoard Igraze'!D67 -> 30 | H26: 4 | I26: 16 | J26: 16 | K26: 4.4 | L26: ='DashBoard Igraze'!M67 -> 4.5
B27: 60 | C27: 50 | D27: 66 | E27: ='DashBoard Igraze'!D68 -> 65 | H27: 5 | I27: 18 | J27: 16 | K27: 5 | L27: ='DashBoard Igraze'!M68 -> 6
B28: 50 | C28: 60 | D28: 60 | E28: ='DashBoard Igraze'!D69 -> 60 | H28: 6 | I28: 18 | J28: 16 | K28: 5.5 | L28: ='DashBoard Igraze'!M69 -> 5
B29: 25 | C29: 50 | D29: 54 | E29: ='DashBoard Igraze'!D70 -> 45 | H29: 7 | I29: 18 | J29: 18 | K29: 1.2 | L29: ='DashBoard Igraze'!M70 -> 1.5
B30: 5 | C30: 30 | D30: 48 | E30: ='DashBoard Igraze'!D71 -> 23 | H30: 8 | I30: 16 | J30: 18 | K30: 1.4 | L30: ='DashBoard Igraze'!M71 -> 1.5
B31: 25 | C31: 20 | D31: 44 | E31: ='DashBoard Igraze'!D72 -> 30 | H31: 9 | I31: 14 | J31: 18 | K31: 1.5 | L31: ='DashBoard Igraze'!M72 -> 1.8
B32: 20 | C32: 10 | D32: 34 | E32: ='DashBoard Igraze'!D73 -> 20 | H32: 10 | I32: 14 | J32: 14 | K32: 1.4 | L32: ='DashBoard Igraze'!M73 -> 1.8
B33: 15 | C33: 8 | D33: 20 | E33: ='DashBoard Igraze'!D74 -> 10 | H33: 11 | I33: 12 | J33: 12 | K33: 1.3 | L33: ='DashBoard Igraze'!M74 -> 1.6
B34: 10 | C34: 4 | D34: 12 | E34: ='DashBoard Igraze'!D75 -> 3 | H34: 12 | I34: 10 | J34: 12 | K34: 1.4 | L34: ='DashBoard Igraze'!M75 -> 1.5

Sheet Calcul Et Courbes 1 (hidden)
I1: Code couleur en fonction des Courbes
A3: Courbe étude POTENTIEL ET OBJECTIVE | F3: (Tableau automatisé , Pour modification voir Page accueuil ou base de données) | O3: Activé | P3: Activé | Q3: Activé | R3: Activé | S3: Activé | T3: Activé | U3: Activé
E4: Total/mois | F4: Total/mois | G4: Qualité Passive | H4: Qualité | I4: MS x MJME | J4: Total MjME Passive/mois | K4: Total/mois | L4: TOTAL | O4: Pas Touche (Données prise sur le coté +calculs)
C5: PASSIVE | D5: ACTIVE | E5: PASSIVE | F5: ACTIVE MS | G5: MJ ME /jr | H5: MJ ME /jr | I5: /jour | K5: MJ ME | L5: Annuel | O5: ='DashBoard Igraze'!DJ483 -> TRUE | P5: ='DashBoard Igraze'!DJ484 -> TRUE | Q5: ='DashBoard Igraze'!DJ485 -> TRUE | R5: ='DashBoard Igraze'!DJ486 -> TRUE | S5: ='DashBoard Igraze'!DJ487 -> TRUE | T5: ='DashBoard Igraze'!DJ488 -> TRUE | U5: ='DashBoard Igraze'!DJ489 -> FALSE
O6: Curve Passive | P6: Curve Active | Q6: Curve MJME Passive | R6: Curve MJME Active | S6: Requirement curve livestock | T6: Curve Objectif MJME | U6: Secondary Livestock
E7: Dont Touch ( pour faire des test , changer les valeurs dans la base de donnés) | N7: Janvier | O7: =E9*$O$19 -> 62 | P7: =F9*$P$19 -> 80.6 | Q7: =J9*$Q$19 -> 394.5454545 | R7: =K9*$R$19 -> 564.2 | S7: =F28*$S$19 -> 6835.5 | T7: =K9*Accueuil!$D$6*$T$19 -> 451.36 | U7: =E28*Accueuil!B19*$U$19 -> 7812
A8: Mois | B8: jrs/mois | C8: kg/MS/Ha/jr | D8: =Accueuil!D4 -> 1.3 | E8: kg/MS/Ha | F8: kg/MS/Ha | G8: 1.1 | K8: kg/MS/Ha | L8: 64 Ha | N8: Février | O8: =E10*$O$19 -> 203 | P8: =F10*$P$19 -> 263.9 | Q8: =J10*$Q$19 -> 1476.363636 | R8: =K10*$R$19 -> 2111.2 | S8: =F29*$S$19 -> 8120 | T8: =K10*Accueuil!$D$6*$T$19 -> 1688.96 | U8: =E29*Accueuil!B20*$U$19 -> 9280
A9: jan | B9: 31 | C9: =INDEX('Base de donnée simple'!$B$23:'Base de donnée simple'!$E$34,MATCH('Calcul Et Courbes 1'!G49,'Base de donnée simple'!$A$6:'Base de donnée simple'!$A$17,0),MATCH('DashBoard Igraze'!$BI$270,Tableau13[#Headers],0)) -> 2 | D9: =C9*$D$8 -> 2.6 | E9: =B9*C9 -> 62 | F9: =E9*$D$8 -> 80.6 | G9: =H9/$G$8 -> 6.363636364 | H9: =INDEX('Base de donnée simple'!$B$6:'Base de donnée simple'!$E$17,MATCH('Calcul Et Courbes 1'!G49,'Base de donnée simple'!$A$6:'Base de donnée simple'!$A$17,0),MATCH('DashBoard Igraze'!$BI$270,Tableau1[#Headers],0)) -> 7 | I9: =H9*D9 -> 18.2 | J9: =G9*C9*B9 -> 394.5454545 | K9: =I9*B9 -> 564.2 | L9: =K9*64 -> 36108.8 | N9: Mars | O9: 465 | P9: 604.5 | Q9: 4227.272727 | R9: 6045 | S9: 9548 | T9: =K11*Accueuil!$D$6*$T$19 -> 4836 | U9: =E30*Accueuil!B21*$U$19 -> 10912
A10: fev | B10: 29 | C10: =INDEX('Base de donnée simple'!$B$23:'Base de donnée simple'!$E$34,MATCH('Calcul Et Courbes 1'!G50,'Base de donnée simple'!$A$6:'Base de donnée simple'!$A$17,0),MATCH('DashBoard Igraze'!$BI$270,Tableau13[#Headers],0)) -> 7 | D10: =C10*$D$8 -> 9.1 | E10: =B10*C10 -> 203 | F10: =E10*$D$8 -> 263.9 | G10: =H10/$G$8 -> 7.272727273 | H10: =INDEX('Base de donnée simple'!$B$6:'Base de donnée simple'!$E$17,MATCH('Calcul Et Courbes 1'!G50,'Base de donnée simple'!$A$6:'Base de donnée simple'!$A$17,0),MATCH('DashBoard Igraze'!$BI$270,Tableau1[#Headers],0)) -> 8 | I10: =H10*D10 -> 72.8 | J10: 1476.363636 | K10: 2111.2 | L10: =K10*64 -> 135116.8 | N10: Avril | O10: 900 | P10: 1170 | Q10: 8590.909091 | R10: 12285 | S10: 10080 | T10: =K12*Accueuil!$D$6*$T$19 -> 9828 | U10: =E31*Accueuil!B22*$U$19 -> 11520
A11: mars | B11: 31 | C11: =INDEX('Base de donnée simple'!$B$23:'Base de donnée simple'!$E$34,MATCH('Calcul Et Courbes 1'!G51,'Base de donnée simple'!$A$6:'Base de donnée simple'!$A$17,0),MATCH('DashBoard Igraze'!$BI$270,Tableau13[#Headers],0)) -> 15 | D11: 19.5 | E11: 465 | F11: 604.5 | G11: 9.090909091 | H11: =INDEX('Base de donnée simple'!$B$6:'Base de donnée simple'!$E$17,MATCH('Calcul Et Courbes 1'!G51,'Base de donnée simple'!$A$6:'Base de donnée simple'!$A$17,0),MATCH('DashBoard Igraze'!$BI$270,Tableau1[#Headers],0)) -> 10 | I11: 195 | J11: 4227.272727 | K11: 6045 | L11: 386880 | N11: Mai | O11: 2015 | P11: 2619.5 | Q11: 21981.81818 | R11: 31434 | S11: 12206.25 | T11: =K13*Accueuil!$D$6*$T$19 -> 25147.2 | U11: =E32*Accueuil!B23*$U$19 -> 13950
A12: avril | B12: 30 | C12: =INDEX('Base de donnée simple'!$B$23:'Base de donnée simple'!$E$34,MATCH('Calcul Et Courbes 1'!G52,'Base de donnée simple'!$A$6:'Base de donnée simple'!$A$17,0),MATCH('DashBoard Igraze'!$BI$270,Tableau13[#Headers],0)) -> 30 | D12: 39 | E12: 900 | F12: 1170 | G12: 9.545454545 | H12: =INDEX('Base de donnée simple'!$B$6:'Base de donnée simple'!$E$17,MATCH('Calcul Et Courbes 1'!G52,'Base de donnée simple'!$A$6:'Base de donnée simple'!$A$17,0),MATCH('DashBoard Igraze'!$BI$270,Tableau1[#Headers],0)) -> 10.5 | I12: 409.5 | J12: 8590.909091 | K12: 12285 | L12: 786240 | N12: Juin | O12: 1800 | P12: 2340 | Q12: 18000 | R12: 25740 | S12: 11340 | T12: =K14*Accueuil!$D$6*$T$19 -> 20592 | U12: =E33*Accueuil!B24*$U$19 -> 12960
A13: mai | B13: 31 | C13: =INDEX('Base de donnée simple'!$B$23:'Base de donnée simple'!$E$34,MATCH('Calcul Et Courbes 1'!G53,'Base de donnée simple'!$A$6:'Base de donnée simple'!$A$17,0),MATCH('DashBoard Igraze'!$BI$270,Tableau13[#Headers],0)) -> 65 | D13: 84.5 | E13: 2015 | F13: 2619.5 | G13: 10.90909091 | H13: =INDEX('Base de donnée simple'!$B$6:'Base de donnée simple'!$E$17,MATCH('Calcul Et Courbes 1'!G53,'Base de donnée simple'!$A$6:'Base de donnée simple'!$A$17,0),MATCH('DashBoard Igraze'!$BI$270,Tableau1[#Headers],0)) -> 12 | I13: 1014 | J13: 21981.81818 | K13: 31434 | L13: 2011776 | N13: Juillet | O13: 1395 | P13: 1813.5 | Q13: 11413.63636 | R13: 16321.5 | S13: 11229.75 | T13: =K15*Accueuil!$D$6*$T$19 -> 13057.2 | U13: =E34*Accueuil!B25*$U$19 -> 12834
A14: juin | B14: 30 | C14: =INDEX('Base de donnée simple'!$B$23:'Base de donnée simple'!$E$34,MATCH('Calcul Et Courbes 1'!G54,'Base de donnée simple'!$A$6:'Base de donnée simple'!$A$17,0),MATCH('DashBoard Igraze'!$BI$270,Tableau13[#Headers],0)) -> 60 | D14: 78 | E14: 1800 | F14: 2340 | G14: 10 | H14: =INDEX('Base de donnée simple'!$B$6:'Base de donnée simple'!$E$17,MATCH('Calcul Et Courbes 1'!G54,'Base de donnée simple'!$A$6:'Base de donnée simple'!$A$17,0),MATCH('DashBoard Igraze'!$BI$270,Tableau1[#Headers],0)) -> 11 | I14: 858 | J14: 18000 | K14: 25740 | L14: 1647360 | N14: Août | O14: 713 | P14: 926.9 | Q14: 3889.090909 | R14: 5561.4 | S14: 9548 | T14: =K16*Accueuil!$D$6*$T$19 -> 4449.12 | U14: =E35*Accueuil!B26*$U$19 -> 10912
A15: juillet | B15: 31 | C15: =INDEX('Base de donnée simple'!$B$23:'Base de donnée simple'!$E$34,MATCH('Calcul Et Courbes 1'!G55,'Base de donnée simple'!$A$6:'Base de donnée simple'!$A$17,0),MATCH('DashBoard Igraze'!$BI$270,Tableau13[#Headers],0)) -> 45 | D15: 58.5 | E15: 1395 | F15: 1813.5 | G15: 8.181818182 | H15: =INDEX('Base de donnée simple'!$B$6:'Base de donnée simple'!$E$17,MATCH('Calcul Et Courbes 1'!G55,'Base de donnée simple'!$A$6:'Base de donnée simple'!$A$17,0),MATCH('DashBoard Igraze'!$BI$270,Tableau1[#Headers],0)) -> 9 | I15: 526.5 | J15: 11413.63636 | K15: 16321.5 | L15: 1044576 | N15: Septembre | O15: 900 | P15: 1170 | Q15: 8181.818182 | R15: 11700 | S15: 8452.5 | T15: =K17*Accueuil!$D$6*$T$19 -> 9360 | U15: =E36*Accueuil!B27*$U$19 -> 9660
A16: aout | B16: 31 | C16: =INDEX('Base de donnée simple'!$B$23:'Base de donnée simple'!$E$34,MATCH('Calcul Et Courbes 1'!G56,'Base de donnée simple'!$A$6:'Base de donnée simple'!$A$17,0),MATCH('DashBoard Igraze'!$BI$270,Tableau13[#Headers],0)) -> 23 | D16: 29.9 | E16: 713 | F16: 926.9 | G16: 5.454545455 | H16: =INDEX('Base de donnée simple'!$B$6:'Base de donnée simple'!$E$17,MATCH('Calcul Et Courbes 1'!G56,'Base de donnée simple'!$A$6:'Base de donnée simple'!$A$17,0),MATCH('DashBoard Igraze'!$BI$270,Tableau1[#Headers],0)) -> 6 | I16: 179.4 | J16: 3889.090909 | K16: 5561.4 | L16: 355929.6 | N16: Octobre | O16: 620 | P16: 806 | Q16: 6200 | R16: 8866 | S16: 7974.75 | T16: =K18*Accueuil!$D$6*$T$19 -> 7092.8 | U16: =E37*Accueuil!B28*$U$19 -> 9114
A17: sept | B17: 30 | C17: =INDEX('Base de donnée simple'!$B$23:'Base de donnée simple'!$E$34,MATCH('Calcul Et Courbes 1'!G57,'Base de donnée simple'!$A$6:'Base de donnée simple'!$A$17,0),MATCH('DashBoard Igraze'!$BI$270,Tableau13[#Headers],0)) -> 30 | D17: 39 | E17: 900 | F17: 1170 | G17: 9.090909091 | H17: =INDEX('Base de donnée simple'!$B$6:'Base de donnée simple'!$E$17,MATCH('Calcul Et Courbes 1'!G57,'Base de donnée simple'!$A$6:'Base de donnée simple'!$A$17,0),MATCH('DashBoard Igraze'!$BI$270,Tableau1[#Headers],0)) -> 10 | I17: 390 | J17: 8181.818182 | K17: 11700 | L17: 748800 | N17: Novembre | O17: 300 | P17: 390 | Q17: 2454.545455 | R17: 3510 | S17: 6300 | T17: =K19*Accueuil!$D$6*$T$19 -> 2808 | U17: =E38*Accueuil!B29*$U$19 -> 7200
A18: oct | B18: 31 | C18: =INDEX('Base de donnée simple'!$B$23:'Base de donnée simple'!$E$34,MATCH('Calcul Et Courbes 1'!G58,'Base de donnée simple'!$A$6:'Base de donnée simple'!$A$17,0),MATCH('DashBoard Igraze'!$BI$270,Tableau13[#Headers],0)) -> 20 | D18: 26 | E18: 620 | F18: 806 | G18: 10 | H18: =INDEX('Base de donnée simple'!$B$6:'Base de donnée simple'!$E$17,MATCH('Calcul Et Courbes 1'!G58,'Base de donnée simple'!$A$6:'Base de donnée simple'!$A$17,0),MATCH('DashBoard Igraze'!$BI$270,Tableau1[#Headers],0)) -> 11 | I18: 286 | J18: 6200 | K18: 8866 | L18: 567424 | N18: Décembre | O18: 93 | P18: 120.9 | Q18: 591.8181818 | R18: 846.3 | S18: 4882.5 | T18: =K20*Accueuil!$D$6*$T$19 -> 677.04 | U18: =E39*Accueuil!B30*$U$19 -> 5580 | X18: Modificateur de courbe , Dont touch
A19: nov | B19: 30 | C19: =INDEX('Base de donnée simple'!$B$23:'Base de donnée simple'!$E$34,MATCH('Calcul Et Courbes 1'!G59,'Base de donnée simple'!$A$6:'Base de donnée simple'!$A$17,0),MATCH('DashBoard Igraze'!$BI$270,Tableau13[#Headers],0)) -> 10 | D19: 13 | E19: 300 | F19: 390 | G19: 8.181818182 | H19: =INDEX('Base de donnée simple'!$B$6:'Base de donnée simple'!$E$17,MATCH('Calcul Et Courbes 1'!G59,'Base de donnée simple'!$A$6:'Base de donnée simple'!$A$17,0),MATCH('DashBoard Igraze'!$BI$270,Tableau1[#Headers],0)) -> 9 | I19: 117 | J19: 2454.545455 | K19: 3510 | L19: 224640 | M19: Forcage | N19: 1/0 | O19: 1 | P19: 1 | Q19: 1 | R19: 1 | S19: 1 | T19: 1 | U19: 1 | Y19: Activé | Z19: Desactivé
A20: dec | B20: 31 | C20: =INDEX('Base de donnée simple'!$B$23:'Base de donnée simple'!$E$34,MATCH('Calcul Et Courbes 1'!G60,'Base de donnée simple'!$A$6:'Base de donnée simple'!$A$17,0),MATCH('DashBoard Igraze'!$BI$270,Tableau13[#Headers],0)) -> 3 | D20: 3.9 | E20: 93 | F20: 120.9 | G20: 6.363636364 | H20: =INDEX('Base de donnée simple'!$B$6:'Base de donnée simple'!$E$17,MATCH('Calcul Et Courbes 1'!G60,'Base de donnée simple'!$A$6:'Base de donnée simple'!$A$17,0),MATCH('DashBoard Igraze'!$BI$270,Tableau1[#Headers],0)) -> 7 | I20: 27.3 | J20: 591.8181818 | K20: 846.3 | L20: 54163.2 | O20: Permet d'activer ou desactivé les courbes directement ici | Y20: 1 | Z20: 0
C21: =SUM(C9:C20) -> 310 | D21: =SUM(D9:D20) -> 403 | E21: =SUM(E9:E20) -> 9466 | F21: =SUM(F9:F20) -> 12305.8 | G21: =AVERAGE(G9:G20) -> 8.371212121 | H21: =AVERAGE(H9:H20) -> 9.208333333 | I21: =SUM(I9:I20) -> 4093.7 | J21: =AVERAGE(J9:J20) -> 7283.484848 | K21: =SUM(K9:K20) -> 124984.6 | L21: =SUM(L9:L20) -> 7999014.4
H22: Moy
A25: Besoins MS/MJME | D25: (Tableau automatisé , Pour modification voir Page accueuil ou base de données)
A27: Mois | B27: MJME/jr | C27: KgMS/day | D27: Total/jr | E27: Total/mois | F27: Total nombre d'animaux/mois | H27: Nombre d'animaux | K27: ='DashBoard Igraze'!BI273 -> 35
A28: jan | B28: =INDEX('Base de donnée simple'!$I$6:'Base de donnée simple'!$L$17,MATCH('Calcul Et Courbes 1'!K49,'Base de donnée simple'!$H$6:'Base de donnée simple'!$H$17,0),MATCH('DashBoard Igraze'!$BI$271,Tableau3[#Headers],0)) -> 9 | C28: =INDEX('Base de donnée simple'!$I$23:'Base de donnée simple'!$L$34,MATCH('Calcul Et Courbes 1'!K49,'Base de donnée simple'!$H$6:'Base de donnée simple'!$H$17,0),MATCH('DashBoard Igraze'!$BI$271,Tableau3[#Headers],0)) -> 14 | D28: =C28*B28 -> 126 | E28: =D28*B9 -> 3906 | F28: =E28*$K$27/'DashBoard Igraze'!$BI$272 -> 6835.5 | H28: A renseigné Page "accueuil"
A29: fev | B29: =INDEX('Base de donnée simple'!$I$6:'Base de donnée simple'!$L$17,MATCH('Calcul Et Courbes 1'!K50,'Base de donnée simple'!$H$6:'Base de donnée simple'!$H$17,0),MATCH('DashBoard Igraze'!$BI$271,Tableau3[#Headers],0)) -> 10 | C29: =INDEX('Base de donnée simple'!$I$23:'Base de donnée simple'!$L$34,MATCH('Calcul Et Courbes 1'!K50,'Base de donnée simple'!$H$6:'Base de donnée simple'!$H$17,0),MATCH('DashBoard Igraze'!$BI$271,Tableau3[#Headers],0)) -> 16 | D29: =C29*B29 -> 160 | E29: 4640 | F29: =E29*$K$27/'DashBoard Igraze'!$BI$272 -> 8120 | Z29: =O5 -> TRUE | AA29: TRUE | AB29: TRUE | AC29: TRUE | AD29: TRUE | AE29: TRUE | AF29: FALSE
A30: mars | B30: =INDEX('Base de donnée simple'!$I$6:'Base de donnée simple'!$L$17,MATCH('Calcul Et Courbes 1'!K51,'Base de donnée simple'!$H$6:'Base de donnée simple'!$H$17,0),MATCH('DashBoard Igraze'!$BI$271,Tableau3[#Headers],0)) -> 11 | C30: =INDEX('Base de donnée simple'!$I$23:'Base de donnée simple'!$L$34,MATCH('Calcul Et Courbes 1'!K51,'Base de donnée simple'!$H$6:'Base de donnée simple'!$H$17,0),MATCH('DashBoard Igraze'!$BI$271,Tableau3[#Headers],0)) -> 16 | D30: 176 | E30: 5456 | F30: =E30*$K$27/'DashBoard Igraze'!$BI$272 -> 9548 | Y30: =N6 -> 0 | Z30: Curve Passive | AA30: Curve Active | AB30: Curve MJME Passive | AC30: Curve MJME Active | AD30: Requirement curve livestock | AE30: Curve Objectif MJME | AF30: Secondary Livestock
A31: avril | B31: =INDEX('Base de donnée simple'!$I$6:'Base de donnée simple'!$L$17,MATCH('Calcul Et Courbes 1'!K52,'Base de donnée simple'!$H$6:'Base de donnée simple'!$H$17,0),MATCH('DashBoard Igraze'!$BI$271,Tableau3[#Headers],0)) -> 12 | C31: =INDEX('Base de donnée simple'!$I$23:'Base de donnée simple'!$L$34,MATCH('Calcul Et Courbes 1'!K52,'Base de donnée simple'!$H$6:'Base de donnée simple'!$H$17,0),MATCH('DashBoard Igraze'!$BI$271,Tableau3[#Headers],0)) -> 16 | D31: 192 | E31: 5760 | F31: =E31*$K$27/'DashBoard Igraze'!$BI$272 -> 10080 | Y31: January | Z31: =O7*$Z$29 -> 62 | AA31: =P7*$AA$29 -> 80.6 | AB31: =Q7*$AB$29 -> 394.5454545 | AC31: =R7*$AC$29 -> 564.2 | AD31: =S7*$AD$29 -> 6835.5 | AE31: =T7*$AE$29 -> 451.36 | AF31: =U7*$AF$29 -> 0
A32: mai | B32: =INDEX('Base de donnée simple'!$I$6:'Base de donnée simple'!$L$17,MATCH('Calcul Et Courbes 1'!K53,'Base de donnée simple'!$H$6:'Base de donnée simple'!$H$17,0),MATCH('DashBoard Igraze'!$BI$271,Tableau3[#Headers],0)) -> 12.5 | C32: =INDEX('Base de donnée simple'!$I$23:'Base de donnée simple'!$L$34,MATCH('Calcul Et Courbes 1'!K53,'Base de donnée simple'!$H$6:'Base de donnée simple'!$H$17,0),MATCH('DashBoard Igraze'!$BI$271,Tableau3[#Headers],0)) -> 18 | D32: 225 | E32: 6975 | F32: =E32*$K$27/'DashBoard Igraze'!$BI$272 -> 12206.25 | Y32: February | Z32: =O8*$Z$29 -> 203 | AA32: =P8*$AA$29 -> 263.9 | AB32: =Q8*$AB$29 -> 1476.363636 | AC32: =R8*$AC$29 -> 2111.2 | AD32: =S8*$AD$29 -> 8120 | AE32: =T8*$AE$29 -> 1688.96 | AF32: =U8*$AF$29 -> 0
A33: juin | B33: =INDEX('Base de donnée simple'!$I$6:'Base de donnée simple'!$L$17,MATCH('Calcul Et Courbes 1'!K54,'Base de donnée simple'!$H$6:'Base de donnée simple'!$H$17,0),MATCH('DashBoard Igraze'!$BI$271,Tableau3[#Headers],0)) -> 12 | C33: =INDEX('Base de donnée simple'!$I$23:'Base de donnée simple'!$L$34,MATCH('Calcul Et Courbes 1'!K54,'Base de donnée simple'!$H$6:'Base de donnée simple'!$H$17,0),MATCH('DashBoard Igraze'!$BI$271,Tableau3[#Headers],0)) -> 18 | D33: 216 | E33: 6480 | F33: =E33*$K$27/'DashBoard Igraze'!$BI$272 -> 11340 | Y33: March | Z33: 465 | AA33: 604.5 | AB33: 4227.272727 | AC33: 6045 | AD33: 9548 | AE33: 4836 | AF33: 0
A34: juillet | B34: =INDEX('Base de donnée simple'!$I$6:'Base de donnée simple'!$L$17,MATCH('Calcul Et Courbes 1'!K55,'Base de donnée simple'!$H$6:'Base de donnée simple'!$H$17,0),MATCH('DashBoard Igraze'!$BI$271,Tableau3[#Headers],0)) -> 11.5 | C34: =INDEX('Base de donnée simple'!$I$23:'Base de donnée simple'!$L$34,MATCH('Calcul Et Courbes 1'!K55,'Base de donnée simple'!$H$6:'Base de donnée simple'!$H$17,0),MATCH('DashBoard Igraze'!$BI$271,Tableau3[#Headers],0)) -> 18 | D34: 207 | E34: 6417 | F34: =E34*$K$27/'DashBoard Igraze'!$BI$272 -> 11229.75 | Y34: April | Z34: 900 | AA34: 1170 | AB34: 8590.909091 | AC34: 12285 | AD34: 10080 | AE34: 9828 | AF34: 0
A35: aout | B35: =INDEX('Base de donnée simple'!$I$6:'Base de donnée simple'!$L$17,MATCH('Calcul Et Courbes 1'!K56,'Base de donnée simple'!$H$6:'Base de donnée simple'!$H$17,0),MATCH('DashBoard Igraze'!$BI$271,Tableau3[#Headers],0)) -> 11 | C35: =INDEX('Base de donnée simple'!$I$23:'Base de donnée simple'!$L$34,MATCH('Calcul Et Courbes 1'!K56,'Base de donnée simple'!$H$6:'Base de donnée simple'!$H$17,0),MATCH('DashBoard Igraze'!$BI$271,Tableau3[#Headers],0)) -> 16 | D35: 176 | E35: 5456 | F35: =E35*$K$27/'DashBoard Igraze'!$BI$272 -> 9548 | Y35: May | Z35: 2015 | AA35: 2619.5 | AB35: 21981.81818 | AC35: 31434 | AD35: 12206.25 | AE35: 25147.2 | AF35: 0
A36: sept | B36: =INDEX('Base de donnée simple'!$I$6:'Base de donnée simple'!$L$17,MATCH('Calcul Et Courbes 1'!K57,'Base de donnée simple'!$H$6:'Base de donnée simple'!$H$17,0),MATCH('DashBoard Igraze'!$BI$271,Tableau3[#Headers],0)) -> 11.5 | C36: =INDEX('Base de donnée simple'!$I$23:'Base de donnée simple'!$L$34,MATCH('Calcul Et Courbes 1'!K57,'Base de donnée simple'!$H$6:'Base de donnée simple'!$H$17,0),MATCH('DashBoard Igraze'!$BI$271,Tableau3[#Headers],0)) -> 14 | D36: 161 | E36: 4830 | F36: =E36*$K$27/'DashBoard Igraze'!$BI$272 -> 8452.5 | Y36: June | Z36: 1800 | AA36: 2340 | AB36: 18000 | AC36: 25740 | AD36: 11340 | AE36: 20592 | AF36: 0
A37: oct | B37: =INDEX('Base de donnée simple'!$I$6:'Base de donnée simple'!$L$17,MATCH('Calcul Et Courbes 1'!K58,'Base de donnée simple'!$H$6:'Base de donnée simple'!$H$17,0),MATCH('DashBoard Igraze'!$BI$271,Tableau3[#Headers],0)) -> 10.5 | C37: =INDEX('Base de donnée simple'!$I$23:'Base de donnée simple'!$L$34,MATCH('Calcul Et Courbes 1'!K58,'Base de donnée simple'!$H$6:'Base de donnée simple'!$H$17,0),MATCH('DashBoard Igraze'!$BI$271,Tableau3[#Headers],0)) -> 14 | D37: 147 | E37: 4557 | F37: =E37*$K$27/'DashBoard Igraze'!$BI$272 -> 7974.75 | Y37: July | Z37: 1395 | AA37: 1813.5 | AB37: 11413.63636 | AC37: 16321.5 | AD37: 11229.75 | AE37: 13057.2 | AF37: 0
A38: nov | B38: =INDEX('Base de donnée simple'!$I$6:'Base de donnée simple'!$L$17,MATCH('Calcul Et Courbes 1'!K59,'Base de donnée simple'!$H$6:'Base de donnée simple'!$H$17,0),MATCH('DashBoard Igraze'!$BI$271,Tableau3[#Headers],0)) -> 10 | C38: =INDEX('Base de donnée simple'!$I$23:'Base de donnée simple'!$L$34,MATCH('Calcul Et Courbes 1'!K59,'Base de donnée simple'!$H$6:'Base de donnée simple'!$H$17,0),MATCH('DashBoard Igraze'!$BI$271,Tableau3[#Headers],0)) -> 12 | D38: 120 | E38: 3600 | F38: =E38*$K$27/'DashBoard Igraze'!$BI$272 -> 6300 | Y38: August | Z38: 713 | AA38: 926.9 | AB38: 3889.090909 | AC38: 5561.4 | AD38: 9548 | AE38: 4449.12 | AF38: 0
A39: dec | B39: =INDEX('Base de donnée simple'!$I$6:'Base de donnée simple'!$L$17,MATCH('Calcul Et Courbes 1'!K60,'Base de donnée simple'!$H$6:'Base de donnée simple'!$H$17,0),MATCH('DashBoard Igraze'!$BI$271,Tableau3[#Headers],0)) -> 9 | C39: =INDEX('Base de donnée simple'!$I$23:'Base de donnée simple'!$L$34,MATCH('Calcul Et Courbes 1'!K60,'Base de donnée simple'!$H$6:'Base de donnée simple'!$H$17,0),MATCH('DashBoard Igraze'!$BI$271,Tableau3[#Headers],0)) -> 10 | D39: 90 | E39: 2790 | F39: =E39*$K$27/'DashBoard Igraze'!$BI$272 -> 4882.5 | Y39: September | Z39: 900 | AA39: 1170 | AB39: 8181.818182 | AC39: 11700 | AD39: 8452.5 | AE39: 9360 | AF39: 0
C40: Besoin brebis MJME/MS/an | E40: =SUM(E28:E39) -> 60867 | Y40: October | Z40: 620 | AA40: 806 | AB40: 6200 | AC40: 8866 | AD40: 7974.75 | AE40: 7092.8 | AF40: 0
Y41: November | Z41: 300 | AA41: 390 | AB41: 2454.545455 | AC41: 3510 | AD41: 6300 | AE41: 2808 | AF41: 0
Y42: December | Z42: 93 | AA42: 120.9 | AB42: 591.8181818 | AC42: 846.3 | AD42: 4882.5 | AE42: 677.04 | AF42: 0
P45: Pas touche !(Données prise tableurs au dessus)
H47: Mes grigri de devellopement je vais les effacer rapidement | P47: Courbe Passive | Q47: Courbe active | R47: Courbe megajoule( Passive) | S47: Courbe megajoule dispo(active) | T47: Courbe besoin chaptel | U47: Courbe Megajoule Objectif | V47: Besoin different
H48: MEGA active | J48: Passive | M48: Chaptel | N48: Chaptel 2 | O48: Octobre | P48: =O16 -> 620 | Q48: 806 | R48: 6200 | S48: 8866 | T48: 7974.75 | U48: 7092.8 | V48: 9114
G49: 1 | I49: =INDEX('Base de donnée simple'!$B$6:'Base de donnée simple'!$D$17,MATCH('Calcul Et Courbes 1'!G49,'Base de donnée simple'!$A$6:'Base de donnée simple'!$A$17,0),MATCH(Accueuil!$C$4,Tableau1[#Headers],0)) ->  | J49: =INDEX('Base de donnée simple'!$B$23:'Base de donnée simple'!$D$34,MATCH('Calcul Et Courbes 1'!G49,'Base de donnée simple'!$A$6:'Base de donnée simple'!$A$17,0),MATCH(Accueuil!$C$4,Tableau13[#Headers],0)) ->  | K49: 1 | M49: =INDEX('Base de donnée simple'!$I$6:'Base de donnée simple'!$K$17,MATCH('Calcul Et Courbes 1'!K49,'Base de donnée simple'!$H$6:'Base de donnée simple'!$H$17,0),MATCH(Accueuil!$C$2,Tableau3[#Headers],0)) ->  | N49: =INDEX('Base de donnée simple'!$I$23:'Base de donnée simple'!$K$34,MATCH('Calcul Et Courbes 1'!K49,'Base de donnée simple'!$H$6:'Base de donnée simple'!$H$17,0),MATCH(Accueuil!$C$2,Tableau3[#Headers],0)) ->  | O49: Novembre | P49: 300 | Q49: 390 | R49: 2454.545455 | S49: 3510 | T49: 6300 | U49: =T17 -> 2808 | V49: =U17 -> 7200
G50: 2 | I50: =INDEX('Base de donnée simple'!$B$6:'Base de donnée simple'!$D$17,MATCH('Calcul Et Courbes 1'!G50,'Base de donnée simple'!$A$6:'Base de donnée simple'!$A$17,0),MATCH(Accueuil!$C$4,Tableau1[#Headers],0)) ->  | J50: =INDEX('Base de donnée simple'!$B$23:'Base de donnée simple'!$D$34,MATCH('Calcul Et Courbes 1'!G50,'Base de donnée simple'!$A$6:'Base de donnée simple'!$A$17,0),MATCH(Accueuil!$C$4,Tableau13[#Headers],0)) ->  | K50: 2 | M50: =INDEX('Base de donnée simple'!$I$6:'Base de donnée simple'!$K$17,MATCH('Calcul Et Courbes 1'!K50,'Base de donnée simple'!$H$6:'Base de donnée simple'!$H$17,0),MATCH(Accueuil!$C$2,Tableau3[#Headers],0)) ->  | N50: =INDEX('Base de donnée simple'!$I$23:'Base de donnée simple'!$K$34,MATCH('Calcul Et Courbes 1'!K50,'Base de donnée simple'!$H$6:'Base de donnée simple'!$H$17,0),MATCH(Accueuil!$C$2,Tableau3[#Headers],0)) ->  | O50: Décembre | P50: 93 | Q50: 120.9 | R50: 591.8181818 | S50: 846.3 | T50: 4882.5 | U50: =T18 -> 677.04 | V50: =U18 -> 5580
G51: 3 | I51: =INDEX('Base de donnée simple'!$B$6:'Base de donnée simple'!$D$17,MATCH('Calcul Et Courbes 1'!G51,'Base de donnée simple'!$A$6:'Base de donnée simple'!$A$17,0),MATCH(Accueuil!$C$4,Tableau1[#Headers],0)) ->  | J51: =INDEX('Base de donnée simple'!$B$23:'Base de donnée simple'!$D$34,MATCH('Calcul Et Courbes 1'!G51,'Base de donnée simple'!$A$6:'Base de donnée simple'!$A$17,0),MATCH(Accueuil!$C$4,Tableau13[#Headers],0)) ->  | K51: 3 | M51: =INDEX('Base de donnée simple'!$I$6:'Base de donnée simple'!$K$17,MATCH('Calcul Et Courbes 1'!K51,'Base de donnée simple'!$H$6:'Base de donnée simple'!$H$17,0),MATCH(Accueuil!$C$2,Tableau3[#Headers],0)) ->  | N51: =INDEX('Base de donnée simple'!$I$23:'Base de donnée simple'!$K$34,MATCH('Calcul Et Courbes 1'!K51,'Base de donnée simple'!$H$6:'Base de donnée simple'!$H$17,0),MATCH(Accueuil!$C$2,Tableau3[#Headers],0)) ->  | O51: Janvier | P51: =O7 -> 62 | Q51: 80.6 | R51: 394.5454545 | S51: 564.2 | T51: 6835.5 | U51: 451.36 | V51: 7812
G52: 4 | I52: =INDEX('Base de donnée simple'!$B$6:'Base de donnée simple'!$D$17,MATCH('Calcul Et Courbes 1'!G52,'Base de donnée simple'!$A$6:'Base de donnée simple'!$A$17,0),MATCH(Accueuil!$C$4,Tableau1[#Headers],0)) ->  | J52: =INDEX('Base de donnée simple'!$B$23:'Base de donnée simple'!$D$34,MATCH('Calcul Et Courbes 1'!G52,'Base de donnée simple'!$A$6:'Base de donnée simple'!$A$17,0),MATCH(Accueuil!$C$4,Tableau13[#Headers],0)) ->  | K52: 4 | M52: =INDEX('Base de donnée simple'!$I$6:'Base de donnée simple'!$K$17,MATCH('Calcul Et Courbes 1'!K52,'Base de donnée simple'!$H$6:'Base de donnée simple'!$H$17,0),MATCH(Accueuil!$C$2,Tableau3[#Headers],0)) ->  | N52: =INDEX('Base de donnée simple'!$I$23:'Base de donnée simple'!$K$34,MATCH('Calcul Et Courbes 1'!K52,'Base de donnée simple'!$H$6:'Base de donnée simple'!$H$17,0),MATCH(Accueuil!$C$2,Tableau3[#Headers],0)) ->  | O52: Février | P52: 203 | Q52: 263.9 | R52: 1476.363636 | S52: 2111.2 | T52: 8120 | U52: 1688.96 | V52: 9280
G53: 5 | I53: =INDEX('Base de donnée simple'!$B$6:'Base de donnée simple'!$D$17,MATCH('Calcul Et Courbes 1'!G53,'Base de donnée simple'!$A$6:'Base de donnée simple'!$A$17,0),MATCH(Accueuil!$C$4,Tableau1[#Headers],0)) ->  | J53: =INDEX('Base de donnée simple'!$B$23:'Base de donnée simple'!$D$34,MATCH('Calcul Et Courbes 1'!G53,'Base de donnée simple'!$A$6:'Base de donnée simple'!$A$17,0),MATCH(Accueuil!$C$4,Tableau13[#Headers],0)) ->  | K53: 5 | M53: =INDEX('Base de donnée simple'!$I$6:'Base de donnée simple'!$K$17,MATCH('Calcul Et Courbes 1'!K53,'Base de donnée simple'!$H$6:'Base de donnée simple'!$H$17,0),MATCH(Accueuil!$C$2,Tableau3[#Headers],0)) ->  | N53: =INDEX('Base de donnée simple'!$I$23:'Base de donnée simple'!$K$34,MATCH('Calcul Et Courbes 1'!K53,'Base de donnée simple'!$H$6:'Base de donnée simple'!$H$17,0),MATCH(Accueuil!$C$2,Tableau3[#Headers],0)) ->  | O53: Mars | P53: 465 | Q53: 604.5 | R53: 4227.272727 | S53: 6045 | T53: 9548 | U53: 4836 | V53: 10912
G54: 6 | I54: =INDEX('Base de donnée simple'!$B$6:'Base de donnée simple'!$D$17,MATCH('Calcul Et Courbes 1'!G54,'Base de donnée simple'!$A$6:'Base de donnée simple'!$A$17,0),MATCH(Accueuil!$C$4,Tableau1[#Headers],0)) ->  | J54: =INDEX('Base de donnée simple'!$B$23:'Base de donnée simple'!$D$34,MATCH('Calcul Et Courbes 1'!G54,'Base de donnée simple'!$A$6:'Base de donnée simple'!$A$17,0),MATCH(Accueuil!$C$4,Tableau13[#Headers],0)) ->  | K54: 6 | M54: =INDEX('Base de donnée simple'!$I$6:'Base de donnée simple'!$K$17,MATCH('Calcul Et Courbes 1'!K54,'Base de donnée simple'!$H$6:'Base de donnée simple'!$H$17,0),MATCH(Accueuil!$C$2,Tableau3[#Headers],0)) ->  | N54: =INDEX('Base de donnée simple'!$I$23:'Base de donnée simple'!$K$34,MATCH('Calcul Et Courbes 1'!K54,'Base de donnée simple'!$H$6:'Base de donnée simple'!$H$17,0),MATCH(Accueuil!$C$2,Tableau3[#Headers],0)) ->  | O54: Avril | P54: 900 | Q54: 1170 | R54: 8590.909091 | S54: 12285 | T54: 10080 | U54: 9828 | V54: 11520
G55: 7 | I55: =INDEX('Base de donnée simple'!$B$6:'Base de donnée simple'!$D$17,MATCH('Calcul Et Courbes 1'!G55,'Base de donnée simple'!$A$6:'Base de donnée simple'!$A$17,0),MATCH(Accueuil!$C$4,Tableau1[#Headers],0)) ->  | J55: =INDEX('Base de donnée simple'!$B$23:'Base de donnée simple'!$D$34,MATCH('Calcul Et Courbes 1'!G55,'Base de donnée simple'!$A$6:'Base de donnée simple'!$A$17,0),MATCH(Accueuil!$C$4,Tableau13[#Headers],0)) ->  | K55: 7 | M55: =INDEX('Base de donnée simple'!$I$6:'Base de donnée simple'!$K$17,MATCH('Calcul Et Courbes 1'!K55,'Base de donnée simple'!$H$6:'Base de donnée simple'!$H$17,0),MATCH(Accueuil!$C$2,Tableau3[#Headers],0)) ->  | N55: =INDEX('Base de donnée simple'!$I$23:'Base de donnée simple'!$K$34,MATCH('Calcul Et Courbes 1'!K55,'Base de donnée simple'!$H$6:'Base de donnée simple'!$H$17,0),MATCH(Accueuil!$C$2,Tableau3[#Headers],0)) ->  | O55: Mai | P55: 2015 | Q55: 2619.5 | R55: 21981.81818 | S55: 31434 | T55: 12206.25 | U55: 25147.2 | V55: 13950
G56: 8 | I56: =INDEX('Base de donnée simple'!$B$6:'Base de donnée simple'!$D$17,MATCH('Calcul Et Courbes 1'!G56,'Base de donnée simple'!$A$6:'Base de donnée simple'!$A$17,0),MATCH(Accueuil!$C$4,Tableau1[#Headers],0)) ->  | J56: =INDEX('Base de donnée simple'!$B$23:'Base de donnée simple'!$D$34,MATCH('Calcul Et Courbes 1'!G56,'Base de donnée simple'!$A$6:'Base de donnée simple'!$A$17,0),MATCH(Accueuil!$C$4,Tableau13[#Headers],0)) ->  | K56: 8 | M56: =INDEX('Base de donnée simple'!$I$6:'Base de donnée simple'!$K$17,MATCH('Calcul Et Courbes 1'!K56,'Base de donnée simple'!$H$6:'Base de donnée simple'!$H$17,0),MATCH(Accueuil!$C$2,Tableau3[#Headers],0)) ->  | N56: =INDEX('Base de donnée simple'!$I$23:'Base de donnée simple'!$K$34,MATCH('Calcul Et Courbes 1'!K56,'Base de donnée simple'!$H$6:'Base de donnée simple'!$H$17,0),MATCH(Accueuil!$C$2,Tableau3[#Headers],0)) ->  | O56: Juin | P56: 1800 | Q56: 2340 | R56: 18000 | S56: 25740 | T56: 11340 | U56: 20592 | V56: 12960
G57: 9 | I57: =INDEX('Base de donnée simple'!$B$6:'Base de donnée simple'!$D$17,MATCH('Calcul Et Courbes 1'!G57,'Base de donnée simple'!$A$6:'Base de donnée simple'!$A$17,0),MATCH(Accueuil!$C$4,Tableau1[#Headers],0)) ->  | J57: =INDEX('Base de donnée simple'!$B$23:'Base de donnée simple'!$D$34,MATCH('Calcul Et Courbes 1'!G57,'Base de donnée simple'!$A$6:'Base de donnée simple'!$A$17,0),MATCH(Accueuil!$C$4,Tableau13[#Headers],0)) ->  | K57: 9 | M57: =INDEX('Base de donnée simple'!$I$6:'Base de donnée simple'!$K$17,MATCH('Calcul Et Courbes 1'!K57,'Base de donnée simple'!$H$6:'Base de donnée simple'!$H$17,0),MATCH(Accueuil!$C$2,Tableau3[#Headers],0)) ->  | N57: =INDEX('Base de donnée simple'!$I$23:'Base de donnée simple'!$K$34,MATCH('Calcul Et Courbes 1'!K57,'Base de donnée simple'!$H$6:'Base de donnée simple'!$H$17,0),MATCH(Accueuil!$C$2,Tableau3[#Headers],0)) ->  | O57: Juillet | P57: 1395 | Q57: 1813.5 | R57: 11413.63636 | S57: 16321.5 | T57: 11229.75 | U57: 13057.2 | V57: 12834
G58: 10 | I58: =INDEX('Base de donnée simple'!$B$6:'Base de donnée simple'!$D$17,MATCH('Calcul Et Courbes 1'!G58,'Base de donnée simple'!$A$6:'Base de donnée simple'!$A$17,0),MATCH(Accueuil!$C$4,Tableau1[#Headers],0)) ->  | J58: =INDEX('Base de donnée simple'!$B$23:'Base de donnée simple'!$D$34,MATCH('Calcul Et Courbes 1'!G58,'Base de donnée simple'!$A$6:'Base de donnée simple'!$A$17,0),MATCH(Accueuil!$C$4,Tableau13[#Headers],0)) ->  | K58: 10 | M58: =INDEX('Base de donnée simple'!$I$6:'Base de donnée simple'!$K$17,MATCH('Calcul Et Courbes 1'!K58,'Base de donnée simple'!$H$6:'Base de donnée simple'!$H$17,0),MATCH(Accueuil!$C$2,Tableau3[#Headers],0)) ->  | N58: =INDEX('Base de donnée simple'!$I$23:'Base de donnée simple'!$K$34,MATCH('Calcul Et Courbes 1'!K58,'Base de donnée simple'!$H$6:'Base de donnée simple'!$H$17,0),MATCH(Accueuil!$C$2,Tableau3[#Headers],0)) ->  | O58: Août | P58: 713 | Q58: 926.9 | R58: 3889.090909 | S58: 5561.4 | T58: 9548 | U58: 4449.12 | V58: 10912
G59: 11 | I59: =INDEX('Base de donnée simple'!$B$6:'Base de donnée simple'!$D$17,MATCH('Calcul Et Courbes 1'!G59,'Base de donnée simple'!$A$6:'Base de donnée simple'!$A$17,0),MATCH(Accueuil!$C$4,Tableau1[#Headers],0)) ->  | J59: =INDEX('Base de donnée simple'!$B$23:'Base de donnée simple'!$D$34,MATCH('Calcul Et Courbes 1'!G59,'Base de donnée simple'!$A$6:'Base de donnée simple'!$A$17,0),MATCH(Accueuil!$C$4,Tableau13[#Headers],0)) ->  | K59: 11 | M59: =INDEX('Base de donnée simple'!$I$6:'Base de donnée simple'!$K$17,MATCH('Calcul Et Courbes 1'!K59,'Base de donnée simple'!$H$6:'Base de donnée simple'!$H$17,0),MATCH(Accueuil!$C$2,Tableau3[#Headers],0)) ->  | N59: =INDEX('Base de donnée simple'!$I$23:'Base de donnée simple'!$K$34,MATCH('Calcul Et Courbes 1'!K59,'Base de donnée simple'!$H$6:'Base de donnée simple'!$H$17,0),MATCH(Accueuil!$C$2,Tableau3[#Headers],0)) ->  | O59: Septembre | P59: 900 | Q59: 1170 | R59: 8181.818182 | S59: 11700 | T59: 8452.5 | U59: 9360 | V59: 9660
G60: 12 | I60: =INDEX('Base de donnée simple'!$B$6:'Base de donnée simple'!$D$17,MATCH('Calcul Et Courbes 1'!G60,'Base de donnée simple'!$A$6:'Base de donnée simple'!$A$17,0),MATCH(Accueuil!$C$4,Tableau1[#Headers],0)) ->  | J60: =INDEX('Base de donnée simple'!$B$23:'Base de donnée simple'!$D$34,MATCH('Calcul Et Courbes 1'!G60,'Base de donnée simple'!$A$6:'Base de donnée simple'!$A$17,0),MATCH(Accueuil!$C$4,Tableau13[#Headers],0)) ->  | K60: 12 | M60: =INDEX('Base de donnée simple'!$I$6:'Base de donnée simple'!$K$17,MATCH('Calcul Et Courbes 1'!K60,'Base de donnée simple'!$H$6:'Base de donnée simple'!$H$17,0),MATCH(Accueuil!$C$2,Tableau3[#Headers],0)) ->  | N60: =INDEX('Base de donnée simple'!$I$23:'Base de donnée simple'!$K$34,MATCH('Calcul Et Courbes 1'!K60,'Base de donnée simple'!$H$6:'Base de donnée simple'!$H$17,0),MATCH(Accueuil!$C$2,Tableau3[#Headers],0)) ->  | O60: Octobre | P60: 620 | Q60: 806 | R60: 6200 | S60: 8866 | T60: 7974.75 | U60: 7092.8 | V60: 9114
O61: Novembre | P61: 300 | Q61: 390 | R61: 2454.545455 | S61: 3510 | T61: 6300 | U61: 2808 | V61: 7200
O62: Décembre | P62: 93 | Q62: 120.9 | R62: 591.8181818 | S62: 846.3 | T62: 4882.5 | U62: 677.04 | V62: 5580
O63: Janvier | P63: =O7 -> 62 | Q63: 80.6 | R63: 394.5454545 | S63: 564.2 | T63: 6835.5 | U63: 451.36 | V63: 7812
O64: Février | P64: 203 | Q64: 263.9 | R64: 1476.363636 | S64: 2111.2 | T64: 8120 | U64: 1688.96 | V64: 9280
O65: Mars | P65: 465 | Q65: 604.5 | R65: 4227.272727 | S65: 6045 | T65: 9548 | U65: 4836 | V65: 10912

Sheet Decoupage et Rotation total 1 (hidden)
I1: Decoupage et rotation avec Dates et nombre de jours
B3: Valeurs prise grace au base de donnée( Choisir page 1)
B4: Courbe active (Pousse/jour) | Z4: 2016-01-01 | AA4: Nombre de jour pour la rotation | AB4: Taille parcelle
B5: ='Calcul Et Courbes 1'!D9 -> 2.6 | H5: Calendrier | I5: Pousse/Jour | J5: Total pousse | K5: Date des rotations | L5: Compteur de jours de rotations | Q5: Besoin Moyen | S5: Besoin Moyen | U5: Dispo/Besoin | W5: Parcelle | X5: Total besoin rota | Y5: TT | Z5: Étiquettes de lignes | AC5: Étiquettes de lignes | AD5: Besoin en Ha Rotation
B6: ='Calcul Et Courbes 1'!D10 -> 9.1 | Z6: 2016-04-10 | AA6: =Z6-Z4 -> 100 | AB6: =IFERROR(AD6/AA6,"") -> 0.4140769231 | AC6: 1 | AD6: 41.40769231 | AE6: =LARGE(AD6:AD14,1) -> 41.40769231
B7: ='Calcul Et Courbes 1'!D11 -> 19.5 | J7: =D46 -> 1200 | Z7: 2016-05-07 | AA7: =IF(Z7>0,Z7-Z6-1,"") -> 26 | AB7: =IFERROR(AD7/AA7,"") -> 0.4618343195 | AC7: 2 | AD7: 12.00769231 | AE7: =LARGE(AB6:AB14,1) -> 0.5169230769
B8: ='Calcul Et Courbes 1'!D12 -> 39 | H8: 2016-01-01 | I8: =$B$5 -> 2.6 | J8: =IF(J7>$E$46,$D$46+I8,J7+I8) -> 1202.6 | K8: =IF(J7>$E$46,H7,"") ->  | L8: =IF(K8="",1+L7,0) -> 1 | N8: =$D$26 -> 490 | P8: =IF(L8=0,N8,N8+P7) -> 490 | Q8: =IF(L8=0,P7/L7,"") ->  | S8: =IF(L8=0,P7/L7,"") ->  | U8: =IF(L8=0,$F$46/S8,"") ->  | W8: =IF(L8=0,1/U8,"") ->  | X8: =IF(L8=0,W8*L7,0) -> 0 | Y8: =IF(X8>0,Y7+1,Y7) -> 0 | Z8: 2016-05-23 | AA8: 15 | AB8: 0.5169230769 | AC8: 3 | AD8: 7.753846154
B9: ='Calcul Et Courbes 1'!D13 -> 84.5 | H9: 2016-01-02 | I9: 2.6 | J9: =IF(J8>$E$46,$D$46+I9,J8+I9) -> 1205.2 | K9: =IF(J8>$E$46,H8,"") ->  | L9: =IF(K9="",1+L8,0) -> 2 | N9: =$D$26 -> 490 | P9: =IF(L9=0,N9,N9+P8) -> 980 | Q9: =IF(L9=0,P8/L8,"") ->  | S9: =IF(L9=0,P8/L8,"") ->  | U9: =IF(L9=0,$F$46/S9,"") ->  | W9: =IF(L9=0,1/U9,"") ->  | X9: =IF(L9=0,W9*L8,0) -> 0 | Y9: =IF(X9>0,Y8+1,Y8) -> 0 | Z9: 2016-06-09 | AA9: 16 | AB9: 0.5149038462 | AC9: 4 | AD9: 8.238461538
B10: ='Calcul Et Courbes 1'!D14 -> 78 | H10: 2016-01-03 | I10: 2.6 | J10: 1207.8 | L10: 3 | N10: 490 | P10: 1470 | X10: 0 | Y10: 0 | Z10: 2016-06-26 | AA10: 16 | AB10: 0.5149038462 | AC10: 5 | AD10: 8.238461538
B11: ='Calcul Et Courbes 1'!D15 -> 58.5 | H11: 2016-01-04 | I11: 2.6 | J11: 1210.4 | L11: 4 | N11: 490 | P11: 1960 | X11: 0 | Y11: 0 | Z11: 2016-07-17 | AA11: 20 | AB11: 0.5088461538 | AC11: 6 | AD11: 10.17692308
B12: ='Calcul Et Courbes 1'!D16 -> 29.9 | H12: 2016-01-05 | I12: 2.6 | J12: 1213 | L12: 5 | N12: 490 | P12: 2450 | X12: 0 | Y12: 0 | Z12: 2016-08-17 | AA12: 30 | AB12: 0.4702564103 | AC12: 7 | AD12: 14.10769231
B13: ='Calcul Et Courbes 1'!D17 -> 39 | H13: 2016-01-06 | I13: 2.6 | J13: 1215.6 | L13: 6 | N13: 490 | P13: 2940 | X13: 0 | Y13: 0 | Z13: 2016-09-23 | AA13: 36 | AB13: 0.4083333333 | AC13: 8 | AD13: 14.7
B14: ='Calcul Et Courbes 1'!D18 -> 26 | H14: 2016-01-07 | I14: 2.6 | J14: 1218.2 | L14: 7 | N14: 490 | P14: 3430 | X14: 0 | Y14: 0 | Z14: 2016-11-18 | AA14: 55 | AB14: 0.3661538462 | AC14: 9 | AD14: 20.13846154
B15: ='Calcul Et Courbes 1'!D19 -> 13 | H15: 2016-01-08 | I15: 2.6 | J15: 1220.8 | L15: 8 | N15: 490 | P15: 3920 | X15: 0 | Y15: 0
B16: ='Calcul Et Courbes 1'!D20 -> 3.9 | H16: 2016-01-09 | I16: 2.6 | J16: 1223.4 | L16: 9 | N16: 490 | P16: 4410 | X16: 0 | Y16: 0
H17: 2016-01-10 | I17: 2.6 | J17: 1226 | L17: 10 | N17: 490 | P17: 4900 | X17: 0 | Y17: 0
C18: Coupe haute | D18: ='DashBoard Igraze'!AG67 -> 2500 | H18: 2016-01-11 | I18: 2.6 | J18: 1228.6 | L18: 11 | N18: 490 | P18: 5390 | X18: 0 | Y18: 0
C19: Coupe basse | D19: ='DashBoard Igraze'!AG68 -> 1200 | H19: 2016-01-12 | I19: 2.6 | J19: 1231.2 | L19: 12 | N19: 490 | P19: 5880 | X19: 0 | Y19: 0 | AC19: =IFERROR(AA19*$D$39,"") -> 
C20: A Remplir | H20: 2016-01-13 | I20: 2.6 | J20: 1233.8 | L20: 13 | N20: 490 | P20: 6370 | X20: 0 | Y20: 0
C21: Ressource dispo | D21: =D18-D19 -> 1300 | H21: 2016-01-14 | I21: 2.6 | J21: 1236.4 | L21: 14 | N21: 490 | P21: 6860 | X21: 0 | Y21: 0
H22: 2016-01-15 | I22: 2.6 | J22: 1239 | L22: 15 | N22: 490 | P22: 7350 | X22: 0 | Y22: 0 | AA22: =IF(Z22>0,Z22-Z21-1,"") -> 
H23: 2016-01-16 | I23: 2.6 | J23: 1241.6 | L23: 16 | N23: 490 | P23: 7840 | X23: 0 | Y23: 0
A24: Taille du chaptel | B24: Besoin par animal KgMS/day | D24: Besoin du chaptel par jour | H24: 2016-01-17 | I24: 2.6 | J24: 1244.2 | L24: 17 | N24: 490 | P24: 8330 | X24: 0 | Y24: 0
H25: 2016-01-18 | I25: 2.6 | J25: 1246.8 | L25: 18 | N25: 490 | P25: 8820 | X25: 0 | Y25: 0
A26: ='Calcul Et Courbes 1'!K27 -> 35 | B26: ='Calcul Et Courbes 1'!C28 -> 14 | D26: =B26*$A$26 -> 490 | H26: 2016-01-19 | I26: 2.6 | J26: 1249.4 | L26: 19 | N26: 490 | P26: 9310 | X26: 0 | Y26: 0
B27: ='Calcul Et Courbes 1'!C29 -> 16 | D27: =B27*$A$26 -> 560 | H27: 2016-01-20 | I27: 2.6 | J27: 1252 | L27: 20 | N27: 490 | P27: 9800 | X27: 0 | Y27: 0
B28: ='Calcul Et Courbes 1'!C30 -> 16 | D28: 560 | H28: 2016-01-21 | I28: 2.6 | J28: 1254.6 | L28: 21 | N28: 490 | P28: 10290 | X28: 0 | Y28: 0
B29: ='Calcul Et Courbes 1'!C31 -> 16 | D29: 560 | H29: 2016-01-22 | I29: 2.6 | J29: 1257.2 | L29: 22 | N29: 490 | P29: 10780 | X29: 0 | Y29: 0
B30: ='Calcul Et Courbes 1'!C32 -> 18 | D30: 630 | H30: 2016-01-23 | I30: 2.6 | J30: 1259.8 | L30: 23 | N30: 490 | P30: 11270 | X30: 0 | Y30: 0
B31: ='Calcul Et Courbes 1'!C33 -> 18 | D31: 630 | H31: 2016-01-24 | I31: 2.6 | J31: 1262.4 | L31: 24 | N31: 490 | P31: 11760 | X31: 0 | Y31: 0
B32: ='Calcul Et Courbes 1'!C34 -> 18 | D32: 630 | H32: 2016-01-25 | I32: 2.6 | J32: 1265 | L32: 25 | N32: 490 | P32: 12250 | X32: 0 | Y32: 0
B33: ='Calcul Et Courbes 1'!C35 -> 16 | D33: 560 | H33: 2016-01-26 | I33: 2.6 | J33: 1267.6 | L33: 26 | N33: 490 | P33: 12740 | X33: 0 | Y33: 0
B34: ='Calcul Et Courbes 1'!C36 -> 14 | D34: 490 | H34: 2016-01-27 | I34: 2.6 | J34: 1270.2 | L34: 27 | N34: 490 | P34: 13230 | X34: 0 | Y34: 0
B35: ='Calcul Et Courbes 1'!C37 -> 14 | D35: 490 | H35: 2016-01-28 | I35: 2.6 | J35: 1272.8 | L35: 28 | N35: 490 | P35: 13720 | X35: 0 | Y35: 0
B36: ='Calcul Et Courbes 1'!C38 -> 12 | D36: 420 | H36: 2016-01-29 | I36: 2.6 | J36: 1275.4 | L36: 29 | N36: 490 | P36: 14210 | X36: 0 | Y36: 0
B37: ='Calcul Et Courbes 1'!C39 -> 10 | D37: 350 | H37: 2016-01-30 | I37: 2.6 | J37: 1278 | L37: 30 | N37: 490 | P37: 14700 | X37: 0 | Y37: 0
H38: 2016-01-31 | I38: 2.6 | J38: 1280.6 | L38: 31 | N38: 490 | P38: 15190 | X38: 0 | Y38: 0
H39: 2016-02-01 | I39: =$B$6 -> 9.1 | J39: =IF(J38>$E$47,$D$47+I39,J38+I39) -> 1289.7 | K39: =IF(J38>$E$47,H38,"") ->  | L39: 32 | N39: =$D$27 -> 560 | P39: 15750 | U39: =IF(L39=0,$F$47/S39,"") ->  | X39: 0 | Y39: 0
H40: 2016-02-02 | I40: 9.1 | J40: =IF(J39>$E$47,$D$47+I40,J39+I40) -> 1298.8 | K40: =IF(J39>$E$47,H39,"") ->  | L40: 33 | N40: =$D$27 -> 560 | P40: 16310 | U40: =IF(L40=0,$F$47/S40,"") ->  | X40: 0 | Y40: 0
H41: 2016-02-03 | I41: 9.1 | J41: 1307.9 | L41: 34 | N41: 560 | P41: 16870 | X41: 0 | Y41: 0
H42: 2016-02-04 | I42: 9.1 | J42: 1317 | L42: 35 | N42: 560 | P42: 17430 | X42: 0 | Y42: 0
H43: 2016-02-05 | I43: 9.1 | J43: 1326.1 | L43: 36 | N43: 560 | P43: 17990 | X43: 0 | Y43: 0
A44: Incrémentation mensuelle des coupes | D44: Resultat | H44: 2016-02-06 | I44: 9.1 | J44: 1335.2 | L44: 37 | N44: 560 | P44: 18550 | X44: 0 | Y44: 0
B45: Coupe basse | C45: Coupe haute | D45: Coupe Basse | E45: Coupe haute | F45: Ressource Dispo mois | H45: 2016-02-07 | I45: 9.1 | J45: 1344.3 | L45: 38 | N45: 560 | P45: 19110 | X45: 0 | Y45: 0
A46: Janvier | B46: ='DashBoard Igraze'!AH139 -> 0 | C46: ='DashBoard Igraze'!AJ139 -> 0 | D46: ='DashBoard Igraze'!AE71 -> 1200 | E46: ='DashBoard Igraze'!AG71 -> 2500 | F46: =E46-D46 -> 1300 | H46: 2016-02-08 | I46: 9.1 | J46: 1353.4 | L46: 39 | N46: 560 | P46: 19670 | X46: 0 | Y46: 0
A47: Février | B47: ='DashBoard Igraze'!AH140 -> 0 | C47: ='DashBoard Igraze'!AJ140 -> 0 | D47: ='DashBoard Igraze'!AE72 -> 1200 | E47: ='DashBoard Igraze'!AG72 -> 2500 | F47: =E47-D47 -> 1300 | H47: 2016-02-09 | I47: 9.1 | J47: 1362.5 | L47: 40 | N47: 560 | P47: 20230 | X47: 0 | Y47: 0
A48: Mars | B48: ='DashBoard Igraze'!AH141 -> 0 | C48: ='DashBoard Igraze'!AJ141 -> 0 | D48: ='DashBoard Igraze'!AE73 -> 1200 | E48: ='DashBoard Igraze'!AG73 -> 2500 | F48: 1300 | H48: 2016-02-10 | I48: 9.1 | J48: 1371.6 | L48: 41 | N48: 560 | P48: 20790 | X48: 0 | Y48: 0
A49: Avril | B49: ='DashBoard Igraze'!AH142 -> 0 | C49: ='DashBoard Igraze'!AJ142 -> 0 | D49: ='DashBoard Igraze'!AE74 -> 1200 | E49: ='DashBoard Igraze'!AG74 -> 2500 | F49: 1300 | H49: 2016-02-11 | I49: 9.1 | J49: 1380.7 | L49: 42 | N49: 560 | P49: 21350 | X49: 0 | Y49: 0
A50: Mai | B50: ='DashBoard Igraze'!AH143 -> 0 | C50: ='DashBoard Igraze'!AJ143 -> 0 | D50: ='DashBoard Igraze'!AE75 -> 1200 | E50: ='DashBoard Igraze'!AG75 -> 2500 | F50: 1300 | H50: 2016-02-12 | I50: 9.1 | J50: 1389.8 | L50: 43 | N50: 560 | P50: 21910 | X50: 0 | Y50: 0
A51: Juin | B51: ='DashBoard Igraze'!AH144 -> 0 | C51: ='DashBoard Igraze'!AJ144 -> 0 | D51: ='DashBoard Igraze'!AE76 -> 1200 | E51: ='DashBoard Igraze'!AG76 -> 2500 | F51: 1300 | H51: 2016-02-13 | I51: 9.1 | J51: 1398.9 | L51: 44 | N51: 560 | P51: 22470 | X51: 0 | Y51: 0
A52: Juillet | B52: ='DashBoard Igraze'!AH145 -> 0 | C52: ='DashBoard Igraze'!AJ145 -> 0 | D52: ='DashBoard Igraze'!AE77 -> 1200 | E52: ='DashBoard Igraze'!AG77 -> 2500 | F52: 1300 | H52: 2016-02-14 | I52: 9.1 | J52: 1408 | L52: 45 | N52: 560 | P52: 23030 | X52: 0 | Y52: 0
A53: Août | B53: ='DashBoard Igraze'!AH146 -> 0 | C53: ='DashBoard Igraze'!AJ146 -> 0 | D53: ='DashBoard Igraze'!AE78 -> 1200 | E53: ='DashBoard Igraze'!AG78 -> 2500 | F53: 1300 | H53: 2016-02-15 | I53: 9.1 | J53: 1417.1 | L53: 46 | N53: 560 | P53: 23590 | X53: 0 | Y53: 0
A54: Septembre | B54: ='DashBoard Igraze'!AH147 -> 0 | C54: ='DashBoard Igraze'!AJ147 -> 0 | D54: ='DashBoard Igraze'!AE79 -> 1200 | E54: ='DashBoard Igraze'!AG79 -> 2500 | F54: 1300 | H54: 2016-02-16 | I54: 9.1 | J54: 1426.2 | L54: 47 | N54: 560 | P54: 24150 | X54: 0 | Y54: 0
A55: Octobre | B55: ='DashBoard Igraze'!AH148 -> 0 | C55: ='DashBoard Igraze'!AJ148 -> 0 | D55: ='DashBoard Igraze'!AE80 -> 1200 | E55: ='DashBoard Igraze'!AG80 -> 2500 | F55: 1300 | H55: 2016-02-17 | I55: 9.1 | J55: 1435.3 | L55: 48 | N55: 560 | P55: 24710 | X55: 0 | Y55: 0
A56: Novembre | B56: ='DashBoard Igraze'!AH149 -> 0 | C56: ='DashBoard Igraze'!AJ149 -> 0 | D56: ='DashBoard Igraze'!AE81 -> 1200 | E56: ='DashBoard Igraze'!AG81 -> 2500 | F56: 1300 | H56: 2016-02-18 | I56: 9.1 | J56: 1444.4 | L56: 49 | N56: 560 | P56: 25270 | X56: 0 | Y56: 0
A57: Décembre | B57: ='DashBoard Igraze'!AH150 -> 0 | C57: ='DashBoard Igraze'!AJ150 -> 0 | D57: ='DashBoard Igraze'!AE82 -> 1200 | E57: ='DashBoard Igraze'!AG82 -> 2500 | F57: 1300 | H57: 2016-02-19 | I57: 9.1 | J57: 1453.5 | L57: 50 | N57: 560 | P57: 25830 | X57: 0 | Y57: 0
A58: A remplir avec + X ou -X | D58: Ne pas touchez | H58: 2016-02-20 | I58: 9.1 | J58: 1462.6 | L58: 51 | N58: 560 | P58: 26390 | X58: 0 | Y58: 0
H59: 2016-02-21 | I59: 9.1 | J59: 1471.7 | L59: 52 | N59: 560 | P59: 26950 | X59: 0 | Y59: 0
H60: 2016-02-22 | I60: 9.1 | J60: 1480.8 | L60: 53 | N60: 560 | P60: 27510 | X60: 0 | Y60: 0
H61: 2016-02-23 | I61: 9.1 | J61: 1489.9 | L61: 54 | N61: 560 | P61: 28070 | X61: 0 | Y61: 0
H62: 2016-02-24 | I62: 9.1 | J62: 1499 | L62: 55 | N62: 560 | P62: 28630 | X62: 0 | Y62: 0
H63: 2016-02-25 | I63: 9.1 | J63: 1508.1 | L63: 56 | N63: 560 | P63: 29190 | X63: 0 | Y63: 0
H64: 2016-02-26 | I64: 9.1 | J64: 1517.2 | L64: 57 | N64: 560 | P64: 29750 | X64: 0 | Y64: 0
H65: 2016-02-27 | I65: 9.1 | J65: 1526.3 | L65: 58 | N65: 560 | P65: 30310 | X65: 0 | Y65: 0
H66: 2016-02-28 | I66: 9.1 | J66: 1535.4 | L66: 59 | N66: 560 | P66: 30870 | X66: 0 | Y66: 0
H67: 2016-03-01 | I67: =$B$7 -> 19.5 | J67: =IF(J66>$E$48,$D$48+I67,J66+I67) -> 1554.9 | K67: =IF(J66>$E$48,H66,"") ->  | L67: 60 | N67: =$D$28 -> 560 | P67: 31430 | U67: =IF(L67=0,$F$48/S67,"") ->  | X67: 0 | Y67: 0
H68: 2016-03-02 | I68: 19.5 | J68: =IF(J67>$E$48,$D$48+I68,J67+I68) -> 1574.4 | K68: =IF(J67>$E$48,H67,"") ->  | L68: 61 | N68: =$D$28 -> 560 | P68: 31990 | U68: =IF(L68=0,$F$48/S68,"") ->  | X68: 0 | Y68: 0
H69: 2016-03-03 | I69: 19.5 | J69: 1593.9 | L69: 62 | N69: 560 | P69: 32550 | X69: 0 | Y69: 0
H70: 2016-03-04 | I70: 19.5 | J70: 1613.4 | L70: 63 | N70: 560 | P70: 33110 | X70: 0 | Y70: 0
H71: 2016-03-05 | I71: 19.5 | J71: 1632.9 | L71: 64 | N71: 560 | P71: 33670 | X71: 0 | Y71: 0 | AB71: =IFERROR(AD71/AA71,"") -> 
H72: 2016-03-06 | I72: 19.5 | J72: 1652.4 | L72: 65 | N72: 560 | P72: 34230 | X72: 0 | Y72: 0
H73: 2016-03-07 | I73: 19.5 | J73: 1671.9 | L73: =IF(K73="",1+L72,0) -> 66 | N73: 560 | P73: =IF(L73=0,N73,N73+P72) -> 34790 | Q73: =IF(L73=0,P72/L72,"") ->  | S73: =IF(L73=0,P72/L72,"") ->  | W73: =IF(L73=0,1/U73,"") ->  | X73: =IF(L73=0,W73*L72,0) -> 0 | Y73: =IF(X73>0,Y72+1,Y72) -> 0
H74: 2016-03-08 | I74: 19.5 | J74: 1691.4 | L74: 67 | N74: 560 | P74: 35350 | X74: 0 | Y74: 0
H75: 2016-03-09 | I75: 19.5 | J75: 1710.9 | L75: 68 | N75: 560 | P75: 35910 | X75: 0 | Y75: 0
H76: 2016-03-10 | I76: 19.5 | J76: 1730.4 | L76: 69 | N76: 560 | P76: 36470 | X76: 0 | Y76: 0
H77: 2016-03-11 | I77: 19.5 | J77: 1749.9 | L77: 70 | N77: 560 | P77: 37030 | X77: 0 | Y77: 0
H78: 2016-03-12 | I78: 19.5 | J78: 1769.4 | L78: 71 | N78: 560 | P78: 37590 | X78: 0 | Y78: 0
H79: 2016-03-13 | I79: 19.5 | J79: 1788.9 | L79: 72 | N79: 560 | P79: 38150 | X79: 0 | Y79: 0
H80: 2016-03-14 | I80: 19.5 | J80: 1808.4 | L80: 73 | N80: 560 | P80: 38710 | X80: 0 | Y80: 0
H81: 2016-03-15 | I81: 19.5 | J81: 1827.9 | L81: 74 | N81: 560 | P81: 39270 | X81: 0 | Y81: 0
H82: 2016-03-16 | I82: 19.5 | J82: 1847.4 | L82: 75 | N82: 560 | P82: 39830 | X82: 0 | Y82: 0
H83: 2016-03-17 | I83: 19.5 | J83: 1866.9 | L83: 76 | N83: 560 | P83: 40390 | X83: 0 | Y83: 0
H84: 2016-03-18 | I84: 19.5 | J84: 1886.4 | L84: 77 | N84: 560 | P84: 40950 | X84: 0 | Y84: 0
H85: 2016-03-19 | I85: 19.5 | J85: 1905.9 | L85: 78 | N85: 560 | P85: 41510 | X85: 0 | Y85: 0
H86: 2016-03-20 | I86: 19.5 | J86: 1925.4 | L86: 79 | N86: 560 | P86: 42070 | X86: 0 | Y86: 0
H87: 2016-03-21 | I87: 19.5 | J87: 1944.9 | L87: 80 | N87: 560 | P87: 42630 | X87: 0 | Y87: 0
H88: 2016-03-22 | I88: 19.5 | J88: 1964.4 | L88: 81 | N88: 560 | P88: 43190 | X88: 0 | Y88: 0
H89: 2016-03-23 | I89: 19.5 | J89: 1983.9 | L89: 82 | N89: 560 | P89: 43750 | X89: 0 | Y89: 0
H90: 2016-03-24 | I90: 19.5 | J90: =IF(J89>$E$48,$D$48+I90,J89+I90) -> 2003.4 | L90: 83 | N90: 560 | P90: 44310 | X90: 0 | Y90: 0
H91: 2016-03-25 | I91: 19.5 | J91: 2022.9 | L91: 84 | N91: 560 | P91: 44870 | X91: 0 | Y91: 0
H92: 2016-03-26 | I92: 19.5 | J92: 2042.4 | L92: 85 | N92: 560 | P92: 45430 | X92: 0 | Y92: 0
H93: 2016-03-27 | I93: 19.5 | J93: 2061.9 | L93: 86 | N93: 560 | P93: 45990 | X93: 0 | Y93: 0
H94: 2016-03-28 | I94: 19.5 | J94: 2081.4 | L94: 87 | N94: 560 | P94: 46550 | X94: 0 | Y94: 0
H95: 2016-03-29 | I95: 19.5 | J95: 2100.9 | L95: 88 | N95: 560 | P95: 47110 | X95: 0 | Y95: 0
H96: 2016-03-30 | I96: 19.5 | J96: 2120.4 | L96: 89 | N96: 560 | P96: 47670 | X96: 0 | Y96: 0
H97: 2016-03-31 | I97: 19.5 | J97: 2139.9 | L97: 90 | N97: 560 | P97: 48230 | X97: 0 | Y97: 0
H98: 2016-04-01 | I98: =$B$8 -> 39 | J98: =IF(J97>$E$49,$D$49+I98,J97+I98) -> 2178.9 | K98: =IF(J97>$E$49,H97,"") ->  | L98: 91 | N98: =$D$29 -> 560 | P98: 48790 | U98: =IF(L98=0,$F$49/S98,"") ->  | X98: 0 | Y98: 0
H99: 2016-04-02 | I99: 39 | J99: =IF(J98>$E$49,$D$49+I99,J98+I99) -> 2217.9 | K99: =IF(J98>$E$49,H98,"") ->  | L99: 92 | N99: =$D$29 -> 560 | P99: 49350 | U99: =IF(L99=0,$F$49/S99,"") ->  | X99: 0 | Y99: 0
H100: 2016-04-03 | I100: 39 | J100: 2256.9 | L100: 93 | N100: 560 | P100: 49910 | X100: 0 | Y100: 0
H101: 2016-04-04 | I101: 39 | J101: 2295.9 | L101: 94 | N101: 560 | P101: 50470 | X101: 0 | Y101: 0
H102: 2016-04-05 | I102: 39 | J102: 2334.9 | L102: 95 | N102: 560 | P102: 51030 | X102: 0 | Y102: 0
H103: 2016-04-06 | I103: 39 | J103: 2373.9 | L103: 96 | N103: 560 | P103: 51590 | X103: 0 | Y103: 0
H104: 2016-04-07 | I104: 39 | J104: 2412.9 | L104: 97 | N104: 560 | P104: 52150 | X104: 0 | Y104: 0
H105: 2016-04-08 | I105: 39 | J105: 2451.9 | L105: 98 | N105: 560 | P105: 52710 | X105: 0 | Y105: 0
H106: 2016-04-09 | I106: 39 | J106: 2490.9 | L106: 99 | N106: 560 | P106: 53270 | X106: 0 | Y106: 0
H107: 2016-04-10 | I107: 39 | J107: 2529.9 | L107: 100 | N107: 560 | P107: 53830 | X107: 0 | Y107: 0
H108: 2016-04-11 | I108: 39 | J108: 1239 | K108: 2016-04-10 | L108: 0 | N108: 560 | P108: 560 | Q108: 538.3 | S108: 538.3 | U108: 2.415010217 | W108: 0.4140769231 | X108: 41.40769231 | Y108: 1
H109: 2016-04-12 | I109: 39 | J109: 1278 | L109: 1 | N109: 560 | P109: 1120 | X109: 0 | Y109: 1
H110: 2016-04-13 | I110: 39 | J110: 1317 | L110: 2 | N110: 560 | P110: 1680 | X110: 0 | Y110: 1
H111: 2016-04-14 | I111: 39 | J111: 1356 | L111: 3 | N111: 560 | P111: 2240 | X111: 0 | Y111: 1
H112: 2016-04-15 | I112: 39 | J112: 1395 | L112: 4 | N112: 560 | P112: 2800 | X112: 0 | Y112: 1
H113: 2016-04-16 | I113: 39 | J113: 1434 | L113: 5 | N113: 560 | P113: 3360 | X113: 0 | Y113: 1
H114: 2016-04-17 | I114: 39 | J114: 1473 | L114: 6 | N114: 560 | P114: 3920 | X114: 0 | Y114: 1
H115: 2016-04-18 | I115: 39 | J115: 1512 | L115: 7 | N115: 560 | P115: 4480 | X115: 0 | Y115: 1
H116: 2016-04-19 | I116: 39 | J116: 1551 | L116: 8 | N116: 560 | P116: 5040 | X116: 0 | Y116: 1
H117: 2016-04-20 | I117: 39 | J117: 1590 | L117: 9 | N117: 560 | P117: 5600 | X117: 0 | Y117: 1
H118: 2016-04-21 | I118: 39 | J118: 1629 | L118: 10 | N118: 560 | P118: 6160 | X118: 0 | Y118: 1
H119: 2016-04-22 | I119: 39 | J119: 1668 | L119: 11 | N119: 560 | P119: 6720 | X119: 0 | Y119: 1
H120: 2016-04-23 | I120: 39 | J120: 1707 | L120: 12 | N120: 560 | P120: 7280 | X120: 0 | Y120: 1
H121: 2016-04-24 | I121: 39 | J121: 1746 | L121: 13 | N121: 560 | P121: 7840 | X121: 0 | Y121: 1
H122: 2016-04-25 | I122: 39 | J122: 1785 | L122: 14 | N122: 560 | P122: 8400 | X122: 0 | Y122: 1
H123: 2016-04-26 | I123: 39 | J123: 1824 | L123: 15 | N123: 560 | P123: 8960 | X123: 0 | Y123: 1
H124: 2016-04-27 | I124: 39 | J124: 1863 | K124: =IF(J123>$E$49,H123,"") ->  | L124: 16 | N124: 560 | P124: 9520 | X124: 0 | Y124: 1
H125: 2016-04-28 | I125: 39 | J125: 1902 | L125: 17 | N125: 560 | P125: 10080 | X125: 0 | Y125: 1
H126: 2016-04-29 | I126: 39 | J126: 1941 | L126: 18 | N126: 560 | P126: 10640 | X126: 0 | Y126: 1
H127: 2016-04-30 | I127: 39 | J127: 1980 | L127: 19 | N127: 560 | P127: 11200 | X127: 0 | Y127: 1
H128: 2016-05-01 | I128: =$B$9 -> 84.5 | J128: =IF(J127>$E$50,$D$50+I128,J127+I128) -> 2064.5 | K128: =IF(J127>$E$50,H127,"") ->  | L128: 20 | N128: =$D$30 -> 630 | P128: 11830 | U128: =IF(L128=0,$F$50/S128,"") ->  | X128: 0 | Y128: 1
H129: 2016-05-02 | I129: 84.5 | J129: =IF(J128>$E$50,$D$50+I129,J128+I129) -> 2149 | K129: =IF(J128>$E$50,H128,"") ->  | L129: 21 | N129: =$D$30 -> 630 | P129: 12460 | U129: =IF(L129=0,$F$50/S129,"") ->  | X129: 0 | Y129: 1
H130: 2016-05-03 | I130: 84.5 | J130: 2233.5 | L130: 22 | N130: 630 | P130: 13090 | X130: 0 | Y130: 1
H131: 2016-05-04 | I131: 84.5 | J131: 2318 | L131: 23 | N131: 630 | P131: 13720 | X131: 0 | Y131: 1
H132: 2016-05-05 | I132: 84.5 | J132: 2402.5 | L132: 24 | N132: 630 | P132: 14350 | X132: 0 | Y132: 1
H133: 2016-05-06 | I133: 84.5 | J133: 2487 | L133: 25 | N133: 630 | P133: 14980 | X133: 0 | Y133: 1
H134: 2016-05-07 | I134: 84.5 | J134: 2571.5 | L134: 26 | N134: 630 | P134: 15610 | X134: 0 | Y134: 1
H135: 2016-05-08 | I135: 84.5 | J135: 1284.5 | K135: 2016-05-07 | L135: 0 | N135: 630 | P135: 630 | Q135: 600.3846154 | S135: 600.3846154 | U135: 2.165278668 | W135: 0.4618343195 | X135: 12.00769231 | Y135: 2 | AB135: =IFERROR(AD135/AA135,"") -> 
H136: 2016-05-09 | I136: 84.5 | J136: 1369 | L136: 1 | N136: 630 | P136: 1260 | X136: 0 | Y136: 2
H137: 2016-05-10 | I137: 84.5 | J137: 1453.5 | L137: =IF(K137="",1+L136,0) -> 2 | N137: 630 | P137: =IF(L137=0,N137,N137+P136) -> 1890 | Q137: =IF(L137=0,P136/L136,"") ->  | S137: =IF(L137=0,P136/L136,"") ->  | W137: =IF(L137=0,1/U137,"") ->  | X137: =IF(L137=0,W137*L136,0) -> 0 | Y137: =IF(X137>0,Y136+1,Y136) -> 2
H138: 2016-05-11 | I138: 84.5 | J138: 1538 | L138: 3 | N138: 630 | P138: 2520 | X138: 0 | Y138: 2
H139: 2016-05-12 | I139: 84.5 | J139: 1622.5 | L139: 4 | N139: 630 | P139: 3150 | X139: 0 | Y139: 2
H140: 2016-05-13 | I140: 84.5 | J140: 1707 | L140: 5 | N140: 630 | P140: 3780 | X140: 0 | Y140: 2
H141: 2016-05-14 | I141: 84.5 | J141: 1791.5 | L141: 6 | N141: 630 | P141: 4410 | X141: 0 | Y141: 2
H142: 2016-05-15 | I142: 84.5 | J142: 1876 | L142: 7 | N142: 630 | P142: 5040 | X142: 0 | Y142: 2
H143: 2016-05-16 | I143: 84.5 | J143: 1960.5 | L143: 8 | N143: 630 | P143: 5670 | X143: 0 | Y143: 2
H144: 2016-05-17 | I144: 84.5 | J144: 2045 | L144: 9 | N144: 630 | P144: 6300 | X144: 0 | Y144: 2
H145: 2016-05-18 | I145: 84.5 | J145: 2129.5 | L145: 10 | N145: 630 | P145: 6930 | X145: 0 | Y145: 2
H146: 2016-05-19 | I146: 84.5 | J146: 2214 | L146: 11 | N146: 630 | P146: 7560 | X146: 0 | Y146: 2
H147: 2016-05-20 | I147: 84.5 | J147: 2298.5 | L147: 12 | N147: 630 | P147: 8190 | X147: 0 | Y147: 2
H148: 2016-05-21 | I148: 84.5 | J148: 2383 | L148: 13 | N148: 630 | P148: 8820 | X148: 0 | Y148: 2
H149: 2016-05-22 | I149: 84.5 | J149: 2467.5 | L149: 14 | N149: 630 | P149: 9450 | X149: 0 | Y149: 2
H150: 2016-05-23 | I150: 84.5 | J150: 2552 | L150: 15 | N150: 630 | P150: 10080 | X150: 0 | Y150: 2
H151: 2016-05-24 | I151: 84.5 | J151: 1284.5 | K151: 2016-05-23 | L151: 0 | N151: 630 | P151: 630 | Q151: 672 | S151: 672 | U151: 1.93452381 | W151: 0.5169230769 | X151: 7.753846154 | Y151: 3
H152: 2016-05-25 | I152: 84.5 | J152: 1369 | L152: 1 | N152: 630 | P152: 1260 | X152: 0 | Y152: 3
H153: 2016-05-26 | I153: 84.5 | J153: 1453.5 | L153: 2 | N153: 630 | P153: 1890 | X153: 0 | Y153: 3
H154: 2016-05-27 | I154: 84.5 | J154: 1538 | L154: 3 | N154: 630 | P154: 2520 | X154: 0 | Y154: 3
H155: 2016-05-28 | I155: 84.5 | J155: 1622.5 | L155: 4 | N155: 630 | P155: 3150 | X155: 0 | Y155: 3
H156: 2016-05-29 | I156: 84.5 | J156: 1707 | L156: 5 | N156: 630 | P156: 3780 | X156: 0 | Y156: 3
H157: 2016-05-30 | I157: 84.5 | J157: 1791.5 | L157: 6 | N157: 630 | P157: 4410 | X157: 0 | Y157: 3
H158: 2016-05-31 | I158: 84.5 | J158: 1876 | L158: 7 | N158: 630 | P158: 5040 | X158: 0 | Y158: 3
H159: 2016-06-01 | I159: =$B$10 -> 78 | J159: =IF(J158>$E$51,$D$51+I159,J158+I159) -> 1954 | K159: =IF(J158>$E$51,H158,"") ->  | L159: 8 | N159: =$D$31 -> 630 | P159: 5670 | U159: =IF(L159=0,$F$51/S159,"") ->  | X159: 0 | Y159: 3
H160: 2016-06-02 | I160: 78 | J160: =IF(J159>$E$51,$D$51+I160,J159+I160) -> 2032 | K160: =IF(J159>$E$51,H159,"") ->  | L160: 9 | N160: =$D$31 -> 630 | P160: 6300 | U160: =IF(L160=0,$F$51/S160,"") ->  | X160: 0 | Y160: 3
H161: 2016-06-03 | I161: 78 | J161: 2110 | L161: 10 | N161: 630 | P161: 6930 | X161: 0 | Y161: 3
H162: 2016-06-04 | I162: 78 | J162: 2188 | L162: 11 | N162: 630 | P162: 7560 | X162: 0 | Y162: 3
H163: 2016-06-05 | I163: 78 | J163: 2266 | L163: 12 | N163: 630 | P163: 8190 | X163: 0 | Y163: 3
H164: 2016-06-06 | I164: 78 | J164: 2344 | L164: 13 | N164: 630 | P164: 8820 | X164: 0 | Y164: 3
H165: 2016-06-07 | I165: 78 | J165: 2422 | L165: 14 | N165: 630 | P165: 9450 | X165: 0 | Y165: 3
H166: 2016-06-08 | I166: 78 | J166: 2500 | L166: 15 | N166: 630 | P166: 10080 | X166: 0 | Y166: 3
H167: 2016-06-09 | I167: 78 | J167: 2578 | L167: 16 | N167: 630 | P167: 10710 | X167: 0 | Y167: 3
H168: 2016-06-10 | I168: 78 | J168: 1278 | K168: 2016-06-09 | L168: 0 | N168: 630 | P168: 630 | Q168: 669.375 | S168: 669.375 | U168: 1.942110177 | W168: 0.5149038462 | X168: 8.238461538 | Y168: 4
H169: 2016-06-11 | I169: 78 | J169: 1356 | L169: 1 | N169: 630 | P169: 1260 | X169: 0 | Y169: 4
H170: 2016-06-12 | I170: 78 | J170: 1434 | L170: 2 | N170: 630 | P170: 1890 | X170: 0 | Y170: 4
H171: 2016-06-13 | I171: 78 | J171: 1512 | L171: 3 | N171: 630 | P171: 2520 | X171: 0 | Y171: 4
H172: 2016-06-14 | I172: 78 | J172: 1590 | L172: 4 | N172: 630 | P172: 3150 | X172: 0 | Y172: 4
H173: 2016-06-15 | I173: 78 | J173: 1668 | L173: 5 | N173: 630 | P173: 3780 | X173: 0 | Y173: 4
H174: 2016-06-16 | I174: 78 | J174: 1746 | L174: 6 | N174: 630 | P174: 4410 | X174: 0 | Y174: 4
H175: 2016-06-17 | I175: 78 | J175: 1824 | L175: 7 | N175: 630 | P175: 5040 | X175: 0 | Y175: 4
H176: 2016-06-18 | I176: 78 | J176: 1902 | L176: 8 | N176: 630 | P176: 5670 | X176: 0 | Y176: 4
H177: 2016-06-19 | I177: 78 | J177: 1980 | L177: 9 | N177: 630 | P177: 6300 | X177: 0 | Y177: 4
H178: 2016-06-20 | I178: 78 | J178: 2058 | L178: 10 | N178: 630 | P178: 6930 | X178: 0 | Y178: 4
H179: 2016-06-21 | I179: 78 | J179: 2136 | L179: 11 | N179: 630 | P179: 7560 | X179: 0 | Y179: 4
H180: 2016-06-22 | I180: 78 | J180: 2214 | L180: 12 | N180: 630 | P180: 8190 | X180: 0 | Y180: 4
H181: 2016-06-23 | I181: 78 | J181: 2292 | L181: 13 | N181: 630 | P181: 8820 | X181: 0 | Y181: 4
H182: 2016-06-24 | I182: 78 | J182: 2370 | L182: 14 | N182: 630 | P182: 9450 | X182: 0 | Y182: 4
H183: 2016-06-25 | I183: 78 | J183: 2448 | L183: 15 | N183: 630 | P183: 10080 | X183: 0 | Y183: 4
H184: 2016-06-26 | I184: 78 | J184: 2526 | L184: 16 | N184: 630 | P184: 10710 | X184: 0 | Y184: 4
H185: 2016-06-27 | I185: 78 | J185: 1278 | K185: 2016-06-26 | L185: 0 | N185: 630 | P185: 630 | Q185: 669.375 | S185: 669.375 | U185: 1.942110177 | W185: 0.5149038462 | X185: 8.238461538 | Y185: 5
H186: 2016-06-28 | I186: 78 | J186: 1356 | L186: 1 | N186: 630 | P186: 1260 | X186: 0 | Y186: 5
H187: 2016-06-29 | I187: 78 | J187: 1434 | L187: 2 | N187: 630 | P187: 1890 | X187: 0 | Y187: 5
H188: 2016-06-30 | I188: 78 | J188: 1512 | L188: 3 | N188: 630 | P188: 2520 | X188: 0 | Y188: 5
H189: 2016-07-01 | I189: =$B$11 -> 58.5 | J189: =IF(J188>$E$52,$D$52+I189,J188+I189) -> 1570.5 | K189: =IF(J188>$E$52,H188,"") ->  | L189: 4 | N189: =$D$32 -> 630 | P189: 3150 | U189: =IF(L189=0,$F$52/S189,"") ->  | X189: 0 | Y189: 5
H190: 2016-07-02 | I190: 58.5 | J190: =IF(J189>$E$52,$D$52+I190,J189+I190) -> 1629 | K190: =IF(J189>$E$52,H189,"") ->  | L190: 5 | N190: =$D$32 -> 630 | P190: 3780 | U190: =IF(L190=0,$F$52/S190,"") ->  | X190: 0 | Y190: 5
H191: 2016-07-03 | I191: 58.5 | J191: 1687.5 | L191: 6 | N191: 630 | P191: 4410 | X191: 0 | Y191: 5
H192: 2016-07-04 | I192: 58.5 | J192: 1746 | L192: 7 | N192: 630 | P192: 5040 | X192: 0 | Y192: 5
H193: 2016-07-05 | I193: 58.5 | J193: 1804.5 | L193: 8 | N193: 630 | P193: 5670 | X193: 0 | Y193: 5
H194: 2016-07-06 | I194: 58.5 | J194: 1863 | L194: 9 | N194: 630 | P194: 6300 | X194: 0 | Y194: 5
H195: 2016-07-07 | I195: 58.5 | J195: 1921.5 | L195: 10 | N195: 630 | P195: 6930 | X195: 0 | Y195: 5
H196: 2016-07-08 | I196: 58.5 | J196: 1980 | L196: 11 | N196: 630 | P196: 7560 | X196: 0 | Y196: 5
H197: 2016-07-09 | I197: 58.5 | J197: 2038.5 | L197: 12 | N197: 630 | P197: 8190 | X197: 0 | Y197: 5
H198: 2016-07-10 | I198: 58.5 | J198: 2097 | L198: 13 | N198: 630 | P198: 8820 | X198: 0 | Y198: 5
H199: 2016-07-11 | I199: 58.5 | J199: 2155.5 | L199: 14 | N199: 630 | P199: 9450 | X199: 0 | Y199: 5
H200: 2016-07-12 | I200: 58.5 | J200: 2214 | L200: 15 | N200: 630 | P200: 10080 | X200: 0 | Y200: 5
H201: 2016-07-13 | I201: 58.5 | J201: 2272.5 | L201: =IF(K201="",1+L200,0) -> 16 | N201: 630 | P201: =IF(L201=0,N201,N201+P200) -> 10710 | Q201: =IF(L201=0,P200/L200,"") ->  | S201: =IF(L201=0,P200/L200,"") ->  | W201: =IF(L201=0,1/U201,"") ->  | X201: =IF(L201=0,W201*L200,0) -> 0 | Y201: =IF(X201>0,Y200+1,Y200) -> 5
... 171 more rows

Sheet Calcul Et Courbes 2 (hidden)
I1: Code couleur en fonction des Courbes
A3: Courbe étude POTENTIEL ET OBJECTIVE | F3: (Tableau automatisé , Pour modification voir Page accueuil ou base de données) | O3: Activé | P3: Activé | Q3: Activé | R3: Activé | S3: Activé | T3: Activé | U3: Activé
E4: Total/mois | F4: Total/mois | G4: Qualité Passive | H4: Qualité | I4: MS x MJME | J4: Total MjME Passive/mois | K4: Total/mois | L4: TOTAL | O4: Pas Touche (Données prise sur le coté +calculs)
C5: PASSIVE | D5: ACTIVE | E5: PASSIVE | F5: ACTIVE MS | G5: MJ ME /jr | H5: MJ ME /jr | I5: /jour | K5: MJ ME | L5: Annuel | O5: ='DashBoard Igraze'!DI652 -> TRUE | P5: ='DashBoard Igraze'!DI653 -> TRUE | Q5: ='DashBoard Igraze'!DI654 -> TRUE | R5: ='DashBoard Igraze'!DI655 -> TRUE | S5: ='DashBoard Igraze'!DI656 -> TRUE | T5: ='DashBoard Igraze'!DI657 -> TRUE | U5: ='DashBoard Igraze'!DI658 -> FALSE
O6: Courbe Passive | P6: Courbe active | Q6: Courbe megajoule( Passive) | R6: Courbe megajoule dispo(active) | S6: Courbe besoin chaptel | T6: Courbe Megajoule Objectif | U6: Besoin different
E7: Dont Touch ( pour faire des test , changer les valeurs dans la base de donnés) | N7: Janvier | O7: =E9*$O$19 -> 155 | P7: =F9*$P$19 -> 201.5 | Q7: =J9*$Q$19 -> 1197.727273 | R7: =K9*$R$19 -> 1712.75 | S7: =F28*$S$19 -> 2092.5 | T7: =K9*Accueuil!$D$6*$T$19 -> 1370.2 | U7: =E28*Accueuil!B19*$U$19/'DashBoard Igraze'!$BP$272 -> 23.25
A8: Mois | B8: jrs/mois | C8: kg/MS/Ha/jr | D8: =Accueuil!D4 -> 1.3 | E8: kg/MS/Ha | F8: kg/MS/Ha | G8: 1.1 | K8: kg/MS/Ha | L8: 64 Ha | N8: Février | O8: =E10*$O$19 -> 290 | P8: =F10*$P$19 -> 377 | Q8: =J10*$Q$19 -> 2504.545455 | R8: =K10*$R$19 -> 3581.5 | S8: =F29*$S$19 -> 3588.75 | T8: =K10*Accueuil!$D$6*$T$19 -> 2865.2 | U8: =E29*Accueuil!B20*$U$19/'DashBoard Igraze'!$BP$272 -> 39.875
A9: jan | B9: 31 | C9: =INDEX('Base de donnée simple'!$B$23:'Base de donnée simple'!$E$34,MATCH('Calcul Et Courbes 2'!G49,'Base de donnée simple'!$A$6:'Base de donnée simple'!$A$17,0),MATCH('DashBoard Igraze'!$BP$270,Tableau13[#Headers],0)) -> 5 | D9: =C9*$D$8 -> 6.5 | E9: =B9*C9 -> 155 | F9: =E9*$D$8 -> 201.5 | G9: =H9/$G$8 -> 7.727272727 | H9: =INDEX('Base de donnée simple'!$B$6:'Base de donnée simple'!$E$17,MATCH('Calcul Et Courbes 2'!G49,'Base de donnée simple'!$A$6:'Base de donnée simple'!$A$17,0),MATCH('DashBoard Igraze'!$BP$270,Tableau1[#Headers],0)) -> 8.5 | I9: =H9*D9 -> 55.25 | J9: =G9*C9*B9 -> 1197.727273 | K9: =I9*B9 -> 1712.75 | L9: =K9*64 -> 109616 | N9: Mars | O9: 465 | P9: 604.5 | Q9: 4438.636364 | R9: 6347.25 | S9: 4296.6 | T9: =K11*Accueuil!$D$6*$T$19 -> 5077.8 | U9: =E30*Accueuil!B21*$U$19/'DashBoard Igraze'!$BP$272 -> 47.74
A10: fev | B10: 29 | C10: =INDEX('Base de donnée simple'!$B$23:'Base de donnée simple'!$E$34,MATCH('Calcul Et Courbes 2'!G50,'Base de donnée simple'!$A$6:'Base de donnée simple'!$A$17,0),MATCH('DashBoard Igraze'!$BP$270,Tableau13[#Headers],0)) -> 10 | D10: =C10*$D$8 -> 13 | E10: =B10*C10 -> 290 | F10: =E10*$D$8 -> 377 | G10: =H10/$G$8 -> 8.636363636 | H10: =INDEX('Base de donnée simple'!$B$6:'Base de donnée simple'!$E$17,MATCH('Calcul Et Courbes 2'!G50,'Base de donnée simple'!$A$6:'Base de donnée simple'!$A$17,0),MATCH('DashBoard Igraze'!$BP$270,Tableau1[#Headers],0)) -> 9.5 | I10: =H10*D10 -> 123.5 | J10: 2504.545455 | K10: 3581.5 | L10: =K10*64 -> 229216 | N10: Avril | O10: 1140 | P10: 1482 | Q10: 11918.18182 | R10: 17043 | S10: 7290 | T10: =K12*Accueuil!$D$6*$T$19 -> 13634.4 | U10: =E31*Accueuil!B22*$U$19/'DashBoard Igraze'!$BP$272 -> 81
A11: mars | B11: 31 | C11: =INDEX('Base de donnée simple'!$B$23:'Base de donnée simple'!$E$34,MATCH('Calcul Et Courbes 2'!G51,'Base de donnée simple'!$A$6:'Base de donnée simple'!$A$17,0),MATCH('DashBoard Igraze'!$BP$270,Tableau13[#Headers],0)) -> 15 | D11: 19.5 | E11: 465 | F11: 604.5 | G11: 9.545454545 | H11: =INDEX('Base de donnée simple'!$B$6:'Base de donnée simple'!$E$17,MATCH('Calcul Et Courbes 2'!G51,'Base de donnée simple'!$A$6:'Base de donnée simple'!$A$17,0),MATCH('DashBoard Igraze'!$BP$270,Tableau1[#Headers],0)) -> 10.5 | I11: 204.75 | J11: 4438.636364 | K11: 6347.25 | L11: 406224 | N11: Mai | O11: 1860 | P11: 2418 | Q11: 20290.90909 | R11: 29016 | S11: 10044 | T11: =K13*Accueuil!$D$6*$T$19 -> 23212.8 | U11: =E32*Accueuil!B23*$U$19/'DashBoard Igraze'!$BP$272 -> 111.6
A12: avril | B12: 30 | C12: =INDEX('Base de donnée simple'!$B$23:'Base de donnée simple'!$E$34,MATCH('Calcul Et Courbes 2'!G52,'Base de donnée simple'!$A$6:'Base de donnée simple'!$A$17,0),MATCH('DashBoard Igraze'!$BP$270,Tableau13[#Headers],0)) -> 38 | D12: 49.4 | E12: 1140 | F12: 1482 | G12: 10.45454545 | H12: =INDEX('Base de donnée simple'!$B$6:'Base de donnée simple'!$E$17,MATCH('Calcul Et Courbes 2'!G52,'Base de donnée simple'!$A$6:'Base de donnée simple'!$A$17,0),MATCH('DashBoard Igraze'!$BP$270,Tableau1[#Headers],0)) -> 11.5 | I12: 568.1 | J12: 11918.18182 | K12: 17043 | L12: 1090752 | N12: Juin | O12: 1500 | P12: 1950 | Q12: 15000 | R12: 21450 | S12: 8100 | T12: =K14*Accueuil!$D$6*$T$19 -> 17160 | U12: =E33*Accueuil!B24*$U$19/'DashBoard Igraze'!$BP$272 -> 90
A13: mai | B13: 31 | C13: =INDEX('Base de donnée simple'!$B$23:'Base de donnée simple'!$E$34,MATCH('Calcul Et Courbes 2'!G53,'Base de donnée simple'!$A$6:'Base de donnée simple'!$A$17,0),MATCH('DashBoard Igraze'!$BP$270,Tableau13[#Headers],0)) -> 60 | D13: 78 | E13: 1860 | F13: 2418 | G13: 10.90909091 | H13: =INDEX('Base de donnée simple'!$B$6:'Base de donnée simple'!$E$17,MATCH('Calcul Et Courbes 2'!G53,'Base de donnée simple'!$A$6:'Base de donnée simple'!$A$17,0),MATCH('DashBoard Igraze'!$BP$270,Tableau1[#Headers],0)) -> 12 | I13: 936 | J13: 20290.90909 | K13: 29016 | L13: 1857024 | N13: Juillet | O13: 775 | P13: 1007.5 | Q13: 6340.909091 | R13: 9067.5 | S13: 2092.5 | T13: =K15*Accueuil!$D$6*$T$19 -> 7254 | U13: =E34*Accueuil!B25*$U$19/'DashBoard Igraze'!$BP$272 -> 23.25
A14: juin | B14: 30 | C14: =INDEX('Base de donnée simple'!$B$23:'Base de donnée simple'!$E$34,MATCH('Calcul Et Courbes 2'!G54,'Base de donnée simple'!$A$6:'Base de donnée simple'!$A$17,0),MATCH('DashBoard Igraze'!$BP$270,Tableau13[#Headers],0)) -> 50 | D14: 65 | E14: 1500 | F14: 1950 | G14: 10 | H14: =INDEX('Base de donnée simple'!$B$6:'Base de donnée simple'!$E$17,MATCH('Calcul Et Courbes 2'!G54,'Base de donnée simple'!$A$6:'Base de donnée simple'!$A$17,0),MATCH('DashBoard Igraze'!$BP$270,Tableau1[#Headers],0)) -> 11 | I14: 715 | J14: 15000 | K14: 21450 | L14: 1372800 | N14: Août | O14: 155 | P14: 201.5 | Q14: 986.3636364 | R14: 1410.5 | S14: 1883.25 | T14: =K16*Accueuil!$D$6*$T$19 -> 1128.4 | U14: =E35*Accueuil!B26*$U$19/'DashBoard Igraze'!$BP$272 -> 20.925
A15: juillet | B15: 31 | C15: =INDEX('Base de donnée simple'!$B$23:'Base de donnée simple'!$E$34,MATCH('Calcul Et Courbes 2'!G55,'Base de donnée simple'!$A$6:'Base de donnée simple'!$A$17,0),MATCH('DashBoard Igraze'!$BP$270,Tableau13[#Headers],0)) -> 25 | D15: 32.5 | E15: 775 | F15: 1007.5 | G15: 8.181818182 | H15: =INDEX('Base de donnée simple'!$B$6:'Base de donnée simple'!$E$17,MATCH('Calcul Et Courbes 2'!G55,'Base de donnée simple'!$A$6:'Base de donnée simple'!$A$17,0),MATCH('DashBoard Igraze'!$BP$270,Tableau1[#Headers],0)) -> 9 | I15: 292.5 | J15: 6340.909091 | K15: 9067.5 | L15: 580320 | N15: Septembre | O15: 750 | P15: 975 | Q15: 6477.272727 | R15: 9262.5 | S15: 2430 | T15: =K17*Accueuil!$D$6*$T$19 -> 7410 | U15: =E36*Accueuil!B27*$U$19/'DashBoard Igraze'!$BP$272 -> 27
A16: aout | B16: 31 | C16: =INDEX('Base de donnée simple'!$B$23:'Base de donnée simple'!$E$34,MATCH('Calcul Et Courbes 2'!G56,'Base de donnée simple'!$A$6:'Base de donnée simple'!$A$17,0),MATCH('DashBoard Igraze'!$BP$270,Tableau13[#Headers],0)) -> 5 | D16: 6.5 | E16: 155 | F16: 201.5 | G16: 6.363636364 | H16: =INDEX('Base de donnée simple'!$B$6:'Base de donnée simple'!$E$17,MATCH('Calcul Et Courbes 2'!G56,'Base de donnée simple'!$A$6:'Base de donnée simple'!$A$17,0),MATCH('DashBoard Igraze'!$BP$270,Tableau1[#Headers],0)) -> 7 | I16: 45.5 | J16: 986.3636364 | K16: 1410.5 | L16: 90272 | N16: Octobre | O16: 620 | P16: 806 | Q16: 5918.181818 | R16: 8463 | S16: 2762.1 | T16: =K18*Accueuil!$D$6*$T$19 -> 6770.4 | U16: =E37*Accueuil!B28*$U$19/'DashBoard Igraze'!$BP$272 -> 30.69
A17: sept | B17: 30 | C17: =INDEX('Base de donnée simple'!$B$23:'Base de donnée simple'!$E$34,MATCH('Calcul Et Courbes 2'!G57,'Base de donnée simple'!$A$6:'Base de donnée simple'!$A$17,0),MATCH('DashBoard Igraze'!$BP$270,Tableau13[#Headers],0)) -> 25 | D17: 32.5 | E17: 750 | F17: 975 | G17: 8.636363636 | H17: =INDEX('Base de donnée simple'!$B$6:'Base de donnée simple'!$E$17,MATCH('Calcul Et Courbes 2'!G57,'Base de donnée simple'!$A$6:'Base de donnée simple'!$A$17,0),MATCH('DashBoard Igraze'!$BP$270,Tableau1[#Headers],0)) -> 9.5 | I17: 308.75 | J17: 6477.272727 | K17: 9262.5 | L17: 592800 | N17: Novembre | O17: 450 | P17: 585 | Q17: 3886.363636 | R17: 5557.5 | S17: 2160 | T17: =K19*Accueuil!$D$6*$T$19 -> 4446 | U17: =E38*Accueuil!B29*$U$19/'DashBoard Igraze'!$BP$272 -> 24
A18: oct | B18: 31 | C18: =INDEX('Base de donnée simple'!$B$23:'Base de donnée simple'!$E$34,MATCH('Calcul Et Courbes 2'!G58,'Base de donnée simple'!$A$6:'Base de donnée simple'!$A$17,0),MATCH('DashBoard Igraze'!$BP$270,Tableau13[#Headers],0)) -> 20 | D18: 26 | E18: 620 | F18: 806 | G18: 9.545454545 | H18: =INDEX('Base de donnée simple'!$B$6:'Base de donnée simple'!$E$17,MATCH('Calcul Et Courbes 2'!G58,'Base de donnée simple'!$A$6:'Base de donnée simple'!$A$17,0),MATCH('DashBoard Igraze'!$BP$270,Tableau1[#Headers],0)) -> 10.5 | I18: 273 | J18: 5918.181818 | K18: 8463 | L18: 541632 | N18: Décembre | O18: 310 | P18: 403 | Q18: 2536.363636 | R18: 3627 | S18: 1883.25 | T18: =K20*Accueuil!$D$6*$T$19 -> 2901.6 | U18: =E39*Accueuil!B30*$U$19/'DashBoard Igraze'!$BP$272 -> 20.925 | X18: Modificateur de courbe , Dont touch
A19: nov | B19: 30 | C19: =INDEX('Base de donnée simple'!$B$23:'Base de donnée simple'!$E$34,MATCH('Calcul Et Courbes 2'!G59,'Base de donnée simple'!$A$6:'Base de donnée simple'!$A$17,0),MATCH('DashBoard Igraze'!$BP$270,Tableau13[#Headers],0)) -> 15 | D19: 19.5 | E19: 450 | F19: 585 | G19: 8.636363636 | H19: =INDEX('Base de donnée simple'!$B$6:'Base de donnée simple'!$E$17,MATCH('Calcul Et Courbes 2'!G59,'Base de donnée simple'!$A$6:'Base de donnée simple'!$A$17,0),MATCH('DashBoard Igraze'!$BP$270,Tableau1[#Headers],0)) -> 9.5 | I19: 185.25 | J19: 3886.363636 | K19: 5557.5 | L19: 355680 | M19: Forcage | N19: 1/0 | O19: 1 | P19: 1 | Q19: 1 | R19: 1 | S19: 1 | T19: 1 | U19: 1 | Y19: Activé | Z19: Desactivé
A20: dec | B20: 31 | C20: =INDEX('Base de donnée simple'!$B$23:'Base de donnée simple'!$E$34,MATCH('Calcul Et Courbes 2'!G60,'Base de donnée simple'!$A$6:'Base de donnée simple'!$A$17,0),MATCH('DashBoard Igraze'!$BP$270,Tableau13[#Headers],0)) -> 10 | D20: 13 | E20: 310 | F20: 403 | G20: 8.181818182 | H20: =INDEX('Base de donnée simple'!$B$6:'Base de donnée simple'!$E$17,MATCH('Calcul Et Courbes 2'!G60,'Base de donnée simple'!$A$6:'Base de donnée simple'!$A$17,0),MATCH('DashBoard Igraze'!$BP$270,Tableau1[#Headers],0)) -> 9 | I20: 117 | J20: 2536.363636 | K20: 3627 | L20: 232128 | O20: Permet d'activer ou desactivé les courbes directement ici | Y20: 1 | Z20: 0
C21: =SUM(C9:C20) -> 278 | D21: =SUM(D9:D20) -> 361.4 | E21: =SUM(E9:E20) -> 8470 | F21: =SUM(F9:F20) -> 11011 | G21: =AVERAGE(G9:G20) -> 8.901515152 | H21: =AVERAGE(H9:H20) -> 9.791666667 | I21: =SUM(I9:I20) -> 3824.6 | J21: =AVERAGE(J9:J20) -> 6791.287879 | K21: =SUM(K9:K20) -> 116538.5 | L21: =SUM(L9:L20) -> 7458464
H22: Moy
A25: Besoins MS/MJME | D25: (Tableau automatisé , Pour modification voir Page accueuil ou base de données)
A27: Mois | B27: MJME/jr | C27: KgMS/day | D27: Total/jr | E27: Total/mois | F27: Total nombre d'animaux/mois | H27: Nombre d'animaux | K27: ='DashBoard Igraze'!BP273 -> 180
A28: jan | B28: =INDEX('Base de donnée simple'!$I$6:'Base de donnée simple'!$L$17,MATCH('Calcul Et Courbes 2'!K49,'Base de donnée simple'!$H$6:'Base de donnée simple'!$H$17,0),MATCH('DashBoard Igraze'!$BP$271,Tableau3[#Headers],0)) -> 10 | C28: =INDEX('Base de donnée simple'!$I$23:'Base de donnée simple'!$L$34,MATCH('Calcul Et Courbes 2'!K49,'Base de donnée simple'!$H$6:'Base de donnée simple'!$H$17,0),MATCH('DashBoard Igraze'!$BP$271,Tableau3[#Headers],0)) -> 1.5 | D28: =C28*B28 -> 15 | E28: =D28*B9 -> 465 | F28: =E28*$K$27/'DashBoard Igraze'!$BP$272 -> 2092.5 | H28: A renseigné Page "accueuil" | Z28: =O6 -> Courbe Passive | AA28: =P6 -> Courbe active | AB28: =Q6 -> Courbe megajoule( Passive) | AC28: =R6 -> Courbe megajoule dispo(active) | AD28: =S6 -> Courbe besoin chaptel | AE28: =T6 -> Courbe Megajoule Objectif | AF28: =U6 -> Besoin different
A29: fev | B29: =INDEX('Base de donnée simple'!$I$6:'Base de donnée simple'!$L$17,MATCH('Calcul Et Courbes 2'!K50,'Base de donnée simple'!$H$6:'Base de donnée simple'!$H$17,0),MATCH('DashBoard Igraze'!$BP$271,Tableau3[#Headers],0)) -> 11 | C29: =INDEX('Base de donnée simple'!$I$23:'Base de donnée simple'!$L$34,MATCH('Calcul Et Courbes 2'!K50,'Base de donnée simple'!$H$6:'Base de donnée simple'!$H$17,0),MATCH('DashBoard Igraze'!$BP$271,Tableau3[#Headers],0)) -> 2.5 | D29: =C29*B29 -> 27.5 | E29: 797.5 | F29: =E29*$K$27/'DashBoard Igraze'!$BP$272 -> 3588.75 | Y29: January | Z29: =O7*$O$5 -> 155 | AA29: =P7*$P$5 -> 201.5 | AB29: =Q7*$Q$5 -> 1197.727273 | AC29: =R7*$R$5 -> 1712.75 | AD29: =S7*$S$5 -> 2092.5 | AE29: =T7*$T$5 -> 1370.2 | AF29: =U7*$U$5 -> 0
A30: mars | B30: =INDEX('Base de donnée simple'!$I$6:'Base de donnée simple'!$L$17,MATCH('Calcul Et Courbes 2'!K51,'Base de donnée simple'!$H$6:'Base de donnée simple'!$H$17,0),MATCH('DashBoard Igraze'!$BP$271,Tableau3[#Headers],0)) -> 11 | C30: =INDEX('Base de donnée simple'!$I$23:'Base de donnée simple'!$L$34,MATCH('Calcul Et Courbes 2'!K51,'Base de donnée simple'!$H$6:'Base de donnée simple'!$H$17,0),MATCH('DashBoard Igraze'!$BP$271,Tableau3[#Headers],0)) -> 2.8 | D30: 30.8 | E30: 954.8 | F30: =E30*$K$27/'DashBoard Igraze'!$BP$272 -> 4296.6 | Y30: February | Z30: =O8*$O$5 -> 290 | AA30: =P8*$P$5 -> 377 | AB30: =Q8*$Q$5 -> 2504.545455 | AC30: =R8*$R$5 -> 3581.5 | AD30: =S8*$S$5 -> 3588.75 | AE30: =T8*$T$5 -> 2865.2 | AF30: =U8*$U$5 -> 0
A31: avril | B31: =INDEX('Base de donnée simple'!$I$6:'Base de donnée simple'!$L$17,MATCH('Calcul Et Courbes 2'!K52,'Base de donnée simple'!$H$6:'Base de donnée simple'!$H$17,0),MATCH('DashBoard Igraze'!$BP$271,Tableau3[#Headers],0)) -> 12 | C31: =INDEX('Base de donnée simple'!$I$23:'Base de donnée simple'!$L$34,MATCH('Calcul Et Courbes 2'!K52,'Base de donnée simple'!$H$6:'Base de donnée simple'!$H$17,0),MATCH('DashBoard Igraze'!$BP$271,Tableau3[#Headers],0)) -> 4.5 | D31: 54 | E31: 1620 | F31: =E31*$K$27/'DashBoard Igraze'!$BP$272 -> 7290 | Y31: March | Z31: 465 | AA31: 604.5 | AB31: 4438.636364 | AC31: 6347.25 | AD31: 4296.6 | AE31: 5077.8 | AF31: 0
A32: mai | B32: =INDEX('Base de donnée simple'!$I$6:'Base de donnée simple'!$L$17,MATCH('Calcul Et Courbes 2'!K53,'Base de donnée simple'!$H$6:'Base de donnée simple'!$H$17,0),MATCH('DashBoard Igraze'!$BP$271,Tableau3[#Headers],0)) -> 12 | C32: =INDEX('Base de donnée simple'!$I$23:'Base de donnée simple'!$L$34,MATCH('Calcul Et Courbes 2'!K53,'Base de donnée simple'!$H$6:'Base de donnée simple'!$H$17,0),MATCH('DashBoard Igraze'!$BP$271,Tableau3[#Headers],0)) -> 6 | D32: 72 | E32: 2232 | F32: =E32*$K$27/'DashBoard Igraze'!$BP$272 -> 10044 | Y32: April | Z32: 1140 | AA32: 1482 | AB32: 11918.18182 | AC32: 17043 | AD32: 7290 | AE32: 13634.4 | AF32: 0
A33: juin | B33: =INDEX('Base de donnée simple'!$I$6:'Base de donnée simple'!$L$17,MATCH('Calcul Et Courbes 2'!K54,'Base de donnée simple'!$H$6:'Base de donnée simple'!$H$17,0),MATCH('DashBoard Igraze'!$BP$271,Tableau3[#Headers],0)) -> 12 | C33: =INDEX('Base de donnée simple'!$I$23:'Base de donnée simple'!$L$34,MATCH('Calcul Et Courbes 2'!K54,'Base de donnée simple'!$H$6:'Base de donnée simple'!$H$17,0),MATCH('DashBoard Igraze'!$BP$271,Tableau3[#Headers],0)) -> 5 | D33: 60 | E33: 1800 | F33: =E33*$K$27/'DashBoard Igraze'!$BP$272 -> 8100 | Y33: May | Z33: 1860 | AA33: 2418 | AB33: 20290.90909 | AC33: 29016 | AD33: 10044 | AE33: 23212.8 | AF33: 0
A34: juillet | B34: =INDEX('Base de donnée simple'!$I$6:'Base de donnée simple'!$L$17,MATCH('Calcul Et Courbes 2'!K55,'Base de donnée simple'!$H$6:'Base de donnée simple'!$H$17,0),MATCH('DashBoard Igraze'!$BP$271,Tableau3[#Headers],0)) -> 10 | C34: =INDEX('Base de donnée simple'!$I$23:'Base de donnée simple'!$L$34,MATCH('Calcul Et Courbes 2'!K55,'Base de donnée simple'!$H$6:'Base de donnée simple'!$H$17,0),MATCH('DashBoard Igraze'!$BP$271,Tableau3[#Headers],0)) -> 1.5 | D34: 15 | E34: 465 | F34: =E34*$K$27/'DashBoard Igraze'!$BP$272 -> 2092.5 | Y34: June | Z34: 1500 | AA34: 1950 | AB34: 15000 | AC34: 21450 | AD34: 8100 | AE34: 17160 | AF34: 0
A35: aout | B35: =INDEX('Base de donnée simple'!$I$6:'Base de donnée simple'!$L$17,MATCH('Calcul Et Courbes 2'!K56,'Base de donnée simple'!$H$6:'Base de donnée simple'!$H$17,0),MATCH('DashBoard Igraze'!$BP$271,Tableau3[#Headers],0)) -> 9 | C35: =INDEX('Base de donnée simple'!$I$23:'Base de donnée simple'!$L$34,MATCH('Calcul Et Courbes 2'!K56,'Base de donnée simple'!$H$6:'Base de donnée simple'!$H$17,0),MATCH('DashBoard Igraze'!$BP$271,Tableau3[#Headers],0)) -> 1.5 | D35: 13.5 | E35: 418.5 | F35: =E35*$K$27/'DashBoard Igraze'!$BP$272 -> 1883.25 | Y35: July | Z35: 775 | AA35: 1007.5 | AB35: 6340.909091 | AC35: 9067.5 | AD35: 2092.5 | AE35: 7254 | AF35: 0
A36: sept | B36: =INDEX('Base de donnée simple'!$I$6:'Base de donnée simple'!$L$17,MATCH('Calcul Et Courbes 2'!K57,'Base de donnée simple'!$H$6:'Base de donnée simple'!$H$17,0),MATCH('DashBoard Igraze'!$BP$271,Tableau3[#Headers],0)) -> 10 | C36: =INDEX('Base de donnée simple'!$I$23:'Base de donnée simple'!$L$34,MATCH('Calcul Et Courbes 2'!K57,'Base de donnée simple'!$H$6:'Base de donnée simple'!$H$17,0),MATCH('DashBoard Igraze'!$BP$271,Tableau3[#Headers],0)) -> 1.8 | D36: 18 | E36: 540 | F36: =E36*$K$27/'DashBoard Igraze'!$BP$272 -> 2430 | Y36: August | Z36: 155 | AA36: 201.5 | AB36: 986.3636364 | AC36: 1410.5 | AD36: 1883.25 | AE36: 1128.4 | AF36: 0
A37: oct | B37: =INDEX('Base de donnée simple'!$I$6:'Base de donnée simple'!$L$17,MATCH('Calcul Et Courbes 2'!K58,'Base de donnée simple'!$H$6:'Base de donnée simple'!$H$17,0),MATCH('DashBoard Igraze'!$BP$271,Tableau3[#Headers],0)) -> 11 | C37: =INDEX('Base de donnée simple'!$I$23:'Base de donnée simple'!$L$34,MATCH('Calcul Et Courbes 2'!K58,'Base de donnée simple'!$H$6:'Base de donnée simple'!$H$17,0),MATCH('DashBoard Igraze'!$BP$271,Tableau3[#Headers],0)) -> 1.8 | D37: 19.8 | E37: 613.8 | F37: =E37*$K$27/'DashBoard Igraze'!$BP$272 -> 2762.1 | Y37: September | Z37: 750 | AA37: 975 | AB37: 6477.272727 | AC37: 9262.5 | AD37: 2430 | AE37: 7410 | AF37: 0
A38: nov | B38: =INDEX('Base de donnée simple'!$I$6:'Base de donnée simple'!$L$17,MATCH('Calcul Et Courbes 2'!K59,'Base de donnée simple'!$H$6:'Base de donnée simple'!$H$17,0),MATCH('DashBoard Igraze'!$BP$271,Tableau3[#Headers],0)) -> 10 | C38: =INDEX('Base de donnée simple'!$I$23:'Base de donnée simple'!$L$34,MATCH('Calcul Et Courbes 2'!K59,'Base de donnée simple'!$H$6:'Base de donnée simple'!$H$17,0),MATCH('DashBoard Igraze'!$BP$271,Tableau3[#Headers],0)) -> 1.6 | D38: 16 | E38: 480 | F38: =E38*$K$27/'DashBoard Igraze'!$BP$272 -> 2160 | Y38: October | Z38: 620 | AA38: 806 | AB38: 5918.181818 | AC38: 8463 | AD38: 2762.1 | AE38: 6770.4 | AF38: 0
A39: dec | B39: =INDEX('Base de donnée simple'!$I$6:'Base de donnée simple'!$L$17,MATCH('Calcul Et Courbes 2'!K60,'Base de donnée simple'!$H$6:'Base de donnée simple'!$H$17,0),MATCH('DashBoard Igraze'!$BP$271,Tableau3[#Headers],0)) -> 9 | C39: =INDEX('Base de donnée simple'!$I$23:'Base de donnée simple'!$L$34,MATCH('Calcul Et Courbes 2'!K60,'Base de donnée simple'!$H$6:'Base de donnée simple'!$H$17,0),MATCH('DashBoard Igraze'!$BP$271,Tableau3[#Headers],0)) -> 1.5 | D39: 13.5 | E39: 418.5 | F39: =E39*$K$27/'DashBoard Igraze'!$BP$272 -> 1883.25 | Y39: November | Z39: 450 | AA39: 585 | AB39: 3886.363636 | AC39: 5557.5 | AD39: 2160 | AE39: 4446 | AF39: 0
C40: Besoin brebis MJME/MS/an | E40: =SUM(E28:E39) -> 10805.1 | Y40: December | Z40: 310 | AA40: 403 | AB40: 2536.363636 | AC40: 3627 | AD40: 1883.25 | AE40: 2901.6 | AF40: 0
P45: Pas touche !(Données prise tableurs au dessus)
H47: Mes grigri de devellopement je vais les effacer rapidement | P47: Courbe Passive | Q47: Courbe active | R47: Courbe megajoule( Passive) | S47: Courbe megajoule dispo(active) | T47: Courbe besoin chaptel | U47: Courbe Megajoule Objectif | V47: Besoin different
H48: MEGA active | J48: Passive | M48: Chaptel | N48: Chaptel 2 | O48: Octobre | P48: =O16 -> 620 | Q48: 806 | R48: 5918.181818 | S48: 8463 | T48: 2762.1 | U48: 6770.4 | V48: 30.69
G49: 1 | I49: =INDEX('Base de donnée simple'!$B$6:'Base de donnée simple'!$D$17,MATCH('Calcul Et Courbes 2'!G49,'Base de donnée simple'!$A$6:'Base de donnée simple'!$A$17,0),MATCH(Accueuil!$C$4,Tableau1[#Headers],0)) ->  | J49: =INDEX('Base de donnée simple'!$B$23:'Base de donnée simple'!$D$34,MATCH('Calcul Et Courbes 2'!G49,'Base de donnée simple'!$A$6:'Base de donnée simple'!$A$17,0),MATCH(Accueuil!$C$4,Tableau13[#Headers],0)) ->  | K49: 1 | M49: =INDEX('Base de donnée simple'!$I$6:'Base de donnée simple'!$K$17,MATCH('Calcul Et Courbes 2'!K49,'Base de donnée simple'!$H$6:'Base de donnée simple'!$H$17,0),MATCH(Accueuil!$C$2,Tableau3[#Headers],0)) ->  | N49: =INDEX('Base de donnée simple'!$I$23:'Base de donnée simple'!$K$34,MATCH('Calcul Et Courbes 2'!K49,'Base de donnée simple'!$H$6:'Base de donnée simple'!$H$17,0),MATCH(Accueuil!$C$2,Tableau3[#Headers],0)) ->  | O49: Novembre | P49: 450 | Q49: 585 | R49: 3886.363636 | S49: 5557.5 | T49: 2160 | U49: =T17 -> 4446 | V49: =U17 -> 24
G50: 2 | I50: =INDEX('Base de donnée simple'!$B$6:'Base de donnée simple'!$D$17,MATCH('Calcul Et Courbes 2'!G50,'Base de donnée simple'!$A$6:'Base de donnée simple'!$A$17,0),MATCH(Accueuil!$C$4,Tableau1[#Headers],0)) ->  | J50: =INDEX('Base de donnée simple'!$B$23:'Base de donnée simple'!$D$34,MATCH('Calcul Et Courbes 2'!G50,'Base de donnée simple'!$A$6:'Base de donnée simple'!$A$17,0),MATCH(Accueuil!$C$4,Tableau13[#Headers],0)) ->  | K50: 2 | M50: =INDEX('Base de donnée simple'!$I$6:'Base de donnée simple'!$K$17,MATCH('Calcul Et Courbes 2'!K50,'Base de donnée simple'!$H$6:'Base de donnée simple'!$H$17,0),MATCH(Accueuil!$C$2,Tableau3[#Headers],0)) ->  | N50: =INDEX('Base de donnée simple'!$I$23:'Base de donnée simple'!$K$34,MATCH('Calcul Et Courbes 2'!K50,'Base de donnée simple'!$H$6:'Base de donnée simple'!$H$17,0),MATCH(Accueuil!$C$2,Tableau3[#Headers],0)) ->  | O50: Décembre | P50: 310 | Q50: 403 | R50: 2536.363636 | S50: 3627 | T50: 1883.25 | U50: =T18 -> 2901.6 | V50: =U18 -> 20.925
G51: 3 | I51: =INDEX('Base de donnée simple'!$B$6:'Base de donnée simple'!$D$17,MATCH('Calcul Et Courbes 2'!G51,'Base de donnée simple'!$A$6:'Base de donnée simple'!$A$17,0),MATCH(Accueuil!$C$4,Tableau1[#Headers],0)) ->  | J51: =INDEX('Base de donnée simple'!$B$23:'Base de donnée simple'!$D$34,MATCH('Calcul Et Courbes 2'!G51,'Base de donnée simple'!$A$6:'Base de donnée simple'!$A$17,0),MATCH(Accueuil!$C$4,Tableau13[#Headers],0)) ->  | K51: 3 | M51: =INDEX('Base de donnée simple'!$I$6:'Base de donnée simple'!$K$17,MATCH('Calcul Et Courbes 2'!K51,'Base de donnée simple'!$H$6:'Base de donnée simple'!$H$17,0),MATCH(Accueuil!$C$2,Tableau3[#Headers],0)) ->  | N51: =INDEX('Base de donnée simple'!$I$23:'Base de donnée simple'!$K$34,MATCH('Calcul Et Courbes 2'!K51,'Base de donnée simple'!$H$6:'Base de donnée simple'!$H$17,0),MATCH(Accueuil!$C$2,Tableau3[#Headers],0)) ->  | O51: Janvier | P51: =O7 -> 155 | Q51: 201.5 | R51: 1197.727273 | S51: 1712.75 | T51: 2092.5 | U51: 1370.2 | V51: 23.25
G52: 4 | I52: =INDEX('Base de donnée simple'!$B$6:'Base de donnée simple'!$D$17,MATCH('Calcul Et Courbes 2'!G52,'Base de donnée simple'!$A$6:'Base de donnée simple'!$A$17,0),MATCH(Accueuil!$C$4,Tableau1[#Headers],0)) ->  | J52: =INDEX('Base de donnée simple'!$B$23:'Base de donnée simple'!$D$34,MATCH('Calcul Et Courbes 2'!G52,'Base de donnée simple'!$A$6:'Base de donnée simple'!$A$17,0),MATCH(Accueuil!$C$4,Tableau13[#Headers],0)) ->  | K52: 4 | M52: =INDEX('Base de donnée simple'!$I$6:'Base de donnée simple'!$K$17,MATCH('Calcul Et Courbes 2'!K52,'Base de donnée simple'!$H$6:'Base de donnée simple'!$H$17,0),MATCH(Accueuil!$C$2,Tableau3[#Headers],0)) ->  | N52: =INDEX('Base de donnée simple'!$I$23:'Base de donnée simple'!$K$34,MATCH('Calcul Et Courbes 2'!K52,'Base de donnée simple'!$H$6:'Base de donnée simple'!$H$17,0),MATCH(Accueuil!$C$2,Tableau3[#Headers],0)) ->  | O52: Février | P52: 290 | Q52: 377 | R52: 2504.545455 | S52: 3581.5 | T52: 3588.75 | U52: 2865.2 | V52: 39.875
G53: 5 | I53: =INDEX('Base de donnée simple'!$B$6:'Base de donnée simple'!$D$17,MATCH('Calcul Et Courbes 2'!G53,'Base de donnée simple'!$A$6:'Base de donnée simple'!$A$17,0),MATCH(Accueuil!$C$4,Tableau1[#Headers],0)) ->  | J53: =INDEX('Base de donnée simple'!$B$23:'Base de donnée simple'!$D$34,MATCH('Calcul Et Courbes 2'!G53,'Base de donnée simple'!$A$6:'Base de donnée simple'!$A$17,0),MATCH(Accueuil!$C$4,Tableau13[#Headers],0)) ->  | K53: 5 | M53: =INDEX('Base de donnée simple'!$I$6:'Base de donnée simple'!$K$17,MATCH('Calcul Et Courbes 2'!K53,'Base de donnée simple'!$H$6:'Base de donnée simple'!$H$17,0),MATCH(Accueuil!$C$2,Tableau3[#Headers],0)) ->  | N53: =INDEX('Base de donnée simple'!$I$23:'Base de donnée simple'!$K$34,MATCH('Calcul Et Courbes 2'!K53,'Base de donnée simple'!$H$6:'Base de donnée simple'!$H$17,0),MATCH(Accueuil!$C$2,Tableau3[#Headers],0)) ->  | O53: Mars | P53: 465 | Q53: 604.5 | R53: 4438.636364 | S53: 6347.25 | T53: 4296.6 | U53: 5077.8 | V53: 47.74
G54: 6 | I54: =INDEX('Base de donnée simple'!$B$6:'Base de donnée simple'!$D$17,MATCH('Calcul Et Courbes 2'!G54,'Base de donnée simple'!$A$6:'Base de donnée simple'!$A$17,0),MATCH(Accueuil!$C$4,Tableau1[#Headers],0)) ->  | J54: =INDEX('Base de donnée simple'!$B$23:'Base de donnée simple'!$D$34,MATCH('Calcul Et Courbes 2'!G54,'Base de donnée simple'!$A$6:'Base de donnée simple'!$A$17,0),MATCH(Accueuil!$C$4,Tableau13[#Headers],0)) ->  | K54: 6 | M54: =INDEX('Base de donnée simple'!$I$6:'Base de donnée simple'!$K$17,MATCH('Calcul Et Courbes 2'!K54,'Base de donnée simple'!$H$6:'Base de donnée simple'!$H$17,0),MATCH(Accueuil!$C$2,Tableau3[#Headers],0)) ->  | N54: =INDEX('Base de donnée simple'!$I$23:'Base de donnée simple'!$K$34,MATCH('Calcul Et Courbes 2'!K54,'Base de donnée simple'!$H$6:'Base de donnée simple'!$H$17,0),MATCH(Accueuil!$C$2,Tableau3[#Headers],0)) ->  | O54: Avril | P54: 1140 | Q54: 1482 | R54: 11918.18182 | S54: 17043 | T54: 7290 | U54: 13634.4 | V54: 81
G55: 7 | I55: =INDEX('Base de donnée simple'!$B$6:'Base de donnée simple'!$D$17,MATCH('Calcul Et Courbes 2'!G55,'Base de donnée simple'!$A$6:'Base de donnée simple'!$A$17,0),MATCH(Accueuil!$C$4,Tableau1[#Headers],0)) ->  | J55: =INDEX('Base de donnée simple'!$B$23:'Base de donnée simple'!$D$34,MATCH('Calcul Et Courbes 2'!G55,'Base de donnée simple'!$A$6:'Base de donnée simple'!$A$17,0),MATCH(Accueuil!$C$4,Tableau13[#Headers],0)) ->  | K55: 7 | M55: =INDEX('Base de donnée simple'!$I$6:'Base de donnée simple'!$K$17,MATCH('Calcul Et Courbes 2'!K55,'Base de donnée simple'!$H$6:'Base de donnée simple'!$H$17,0),MATCH(Accueuil!$C$2,Tableau3[#Headers],0)) ->  | N55: =INDEX('Base de donnée simple'!$I$23:'Base de donnée simple'!$K$34,MATCH('Calcul Et Courbes 2'!K55,'Base de donnée simple'!$H$6:'Base de donnée simple'!$H$17,0),MATCH(Accueuil!$C$2,Tableau3[#Headers],0)) ->  | O55: Mai | P55: 1860 | Q55: 2418 | R55: 20290.90909 | S55: 29016 | T55: 10044 | U55: 23212.8 | V55: 111.6
G56: 8 | I56: =INDEX('Base de donnée simple'!$B$6:'Base de donnée simple'!$D$17,MATCH('Calcul Et Courbes 2'!G56,'Base de donnée simple'!$A$6:'Base de donnée simple'!$A$17,0),MATCH(Accueuil!$C$4,Tableau1[#Headers],0)) ->  | J56: =INDEX('Base de donnée simple'!$B$23:'Base de donnée simple'!$D$34,MATCH('Calcul Et Courbes 2'!G56,'Base de donnée simple'!$A$6:'Base de donnée simple'!$A$17,0),MATCH(Accueuil!$C$4,Tableau13[#Headers],0)) ->  | K56: 8 | M56: =INDEX('Base de donnée simple'!$I$6:'Base de donnée simple'!$K$17,MATCH('Calcul Et Courbes 2'!K56,'Base de donnée simple'!$H$6:'Base de donnée simple'!$H$17,0),MATCH(Accueuil!$C$2,Tableau3[#Headers],0)) ->  | N56: =INDEX('Base de donnée simple'!$I$23:'Base de donnée simple'!$K$34,MATCH('Calcul Et Courbes 2'!K56,'Base de donnée simple'!$H$6:'Base de donnée simple'!$H$17,0),MATCH(Accueuil!$C$2,Tableau3[#Headers],0)) ->  | O56: Juin | P56: 1500 | Q56: 1950 | R56: 15000 | S56: 21450 | T56: 8100 | U56: 17160 | V56: 90
G57: 9 | I57: =INDEX('Base de donnée simple'!$B$6:'Base de donnée simple'!$D$17,MATCH('Calcul Et Courbes 2'!G57,'Base de donnée simple'!$A$6:'Base de donnée simple'!$A$17,0),MATCH(Accueuil!$C$4,Tableau1[#Headers],0)) ->  | J57: =INDEX('Base de donnée simple'!$B$23:'Base de donnée simple'!$D$34,MATCH('Calcul Et Courbes 2'!G57,'Base de donnée simple'!$A$6:'Base de donnée simple'!$A$17,0),MATCH(Accueuil!$C$4,Tableau13[#Headers],0)) ->  | K57: 9 | M57: =INDEX('Base de donnée simple'!$I$6:'Base de donnée simple'!$K$17,MATCH('Calcul Et Courbes 2'!K57,'Base de donnée simple'!$H$6:'Base de donnée simple'!$H$17,0),MATCH(Accueuil!$C$2,Tableau3[#Headers],0)) ->  | N57: =INDEX('Base de donnée simple'!$I$23:'Base de donnée simple'!$K$34,MATCH('Calcul Et Courbes 2'!K57,'Base de donnée simple'!$H$6:'Base de donnée simple'!$H$17,0),MATCH(Accueuil!$C$2,Tableau3[#Headers],0)) ->  | O57: Juillet | P57: 775 | Q57: 1007.5 | R57: 6340.909091 | S57: 9067.5 | T57: 2092.5 | U57: 7254 | V57: 23.25
G58: 10 | I58: =INDEX('Base de donnée simple'!$B$6:'Base de donnée simple'!$D$17,MATCH('Calcul Et Courbes 2'!G58,'Base de donnée simple'!$A$6:'Base de donnée simple'!$A$17,0),MATCH(Accueuil!$C$4,Tableau1[#Headers],0)) ->  | J58: =INDEX('Base de donnée simple'!$B$23:'Base de donnée simple'!$D$34,MATCH('Calcul Et Courbes 2'!G58,'Base de donnée simple'!$A$6:'Base de donnée simple'!$A$17,0),MATCH(Accueuil!$C$4,Tableau13[#Headers],0)) ->  | K58: 10 | M58: =INDEX('Base de donnée simple'!$I$6:'Base de donnée simple'!$K$17,MATCH('Calcul Et Courbes 2'!K58,'Base de donnée simple'!$H$6:'Base de donnée simple'!$H$17,0),MATCH(Accueuil!$C$2,Tableau3[#Headers],0)) ->  | N58: =INDEX('Base de donnée simple'!$I$23:'Base de donnée simple'!$K$34,MATCH('Calcul Et Courbes 2'!K58,'Base de donnée simple'!$H$6:'Base de donnée simple'!$H$17,0),MATCH(Accueuil!$C$2,Tableau3[#Headers],0)) ->  | O58: Août | P58: 155 | Q58: 201.5 | R58: 986.3636364 | S58: 1410.5 | T58: 1883.25 | U58: 1128.4 | V58: 20.925
G59: 11 | I59: =INDEX('Base de donnée simple'!$B$6:'Base de donnée simple'!$D$17,MATCH('Calcul Et Courbes 2'!G59,'Base de donnée simple'!$A$6:'Base de donnée simple'!$A$17,0),MATCH(Accueuil!$C$4,Tableau1[#Headers],0)) ->  | J59: =INDEX('Base de donnée simple'!$B$23:'Base de donnée simple'!$D$34,MATCH('Calcul Et Courbes 2'!G59,'Base de donnée simple'!$A$6:'Base de donnée simple'!$A$17,0),MATCH(Accueuil!$C$4,Tableau13[#Headers],0)) ->  | K59: 11 | M59: =INDEX('Base de donnée simple'!$I$6:'Base de donnée simple'!$K$17,MATCH('Calcul Et Courbes 2'!K59,'Base de donnée simple'!$H$6:'Base de donnée simple'!$H$17,0),MATCH(Accueuil!$C$2,Tableau3[#Headers],0)) ->  | N59: =INDEX('Base de donnée simple'!$I$23:'Base de donnée simple'!$K$34,MATCH('Calcul Et Courbes 2'!K59,'Base de donnée simple'!$H$6:'Base de donnée simple'!$H$17,0),MATCH(Accueuil!$C$2,Tableau3[#Headers],0)) ->  | O59: Septembre | P59: 750 | Q59: 975 | R59: 6477.272727 | S59: 9262.5 | T59: 2430 | U59: 7410 | V59: 27
G60: 12 | I60: =INDEX('Base de donnée simple'!$B$6:'Base de donnée simple'!$D$17,MATCH('Calcul Et Courbes 2'!G60,'Base de donnée simple'!$A$6:'Base de donnée simple'!$A$17,0),MATCH(Accueuil!$C$4,Tableau1[#Headers],0)) ->  | J60: =INDEX('Base de donnée simple'!$B$23:'Base de donnée simple'!$D$34,MATCH('Calcul Et Courbes 2'!G60,'Base de donnée simple'!$A$6:'Base de donnée simple'!$A$17,0),MATCH(Accueuil!$C$4,Tableau13[#Headers],0)) ->  | K60: 12 | M60: =INDEX('Base de donnée simple'!$I$6:'Base de donnée simple'!$K$17,MATCH('Calcul Et Courbes 2'!K60,'Base de donnée simple'!$H$6:'Base de donnée simple'!$H$17,0),MATCH(Accueuil!$C$2,Tableau3[#Headers],0)) ->  | N60: =INDEX('Base de donnée simple'!$I$23:'Base de donnée simple'!$K$34,MATCH('Calcul Et Courbes 2'!K60,'Base de donnée simple'!$H$6:'Base de donnée simple'!$H$17,0),MATCH(Accueuil!$C$2,Tableau3[#Headers],0)) ->  | O60: Octobre | P60: 620 | Q60: 806 | R60: 5918.181818 | S60: 8463 | T60: 2762.1 | U60: 6770.4 | V60: 30.69
O61: Novembre | P61: 450 | Q61: 585 | R61: 3886.363636 | S61: 5557.5 | T61: 2160 | U61: 4446 | V61: 24
O62: Décembre | P62: 310 | Q62: 403 | R62: 2536.363636 | S62: 3627 | T62: 1883.25 | U62: 2901.6 | V62: 20.925
O63: Janvier | P63: =O7 -> 155 | Q63: 201.5 | R63: 1197.727273 | S63: 1712.75 | T63: 2092.5 | U63: 1370.2 | V63: 23.25
O64: Février | P64: 290 | Q64: 377 | R64: 2504.545455 | S64: 3581.5 | T64: 3588.75 | U64: 2865.2 | V64: 39.875
O65: Mars | P65: 465 | Q65: 604.5 | R65: 4438.636364 | S65: 6347.25 | T65: 4296.6 | U65: 5077.8 | V65: 47.74

Sheet Decoupage et Rotation total 2 (hidden)
I1: Decoupage et rotation avec Dates et nombre de jours
B3: Valeurs prise grace au base de donnée( Choisir page 1)
B4: Courbe active (Pousse/jour) | Z4: 2016-01-01 | AA4: Nombre de jour pour la rotation | AB4: Taille parcelle
B5: ='Calcul Et Courbes 2'!D9 -> 6.5 | H5: Calendrier | I5: Pousse/Jour | J5: Total pousse | K5: Date des rotations | L5: Compteur de jours de rotations | Q5: Moyenne du besoin par rota | S5: Besoin Moyen | U5: Dispo/Besoin | W5: Parcelle | X5: Total besoin rota | Y5: TT | Z5: Étiquettes de lignes | AC5: Étiquettes de lignes | AD5: Besoin Ha par rota
B6: ='Calcul Et Courbes 2'!D10 -> 13 | Z6: 2016-04-03 | AA6: =Z6-Z4 -> 93 | AB6: =IFERROR(AD6/AA6,"") -> 0.3227791563 | AC6: 1 | AD6: 30.01846154 | AE6: =LARGE(AD6:AD14,1) -> 30.01846154 | AF6: Besoin en HA le plus haut
B7: ='Calcul Et Courbes 2'!D11 -> 19.5 | J7: =D46 -> 1200 | Z7: 2016-04-30 | AA7: =IF(Z7>0,Z7-Z6-1,"") -> 26 | AB7: =IFERROR(AD7/AA7,"") -> 0.6470414201 | AC7: 2 | AD7: 16.82307692 | AE7: =LARGE(AB6:AB14,1) -> 0.8826923077 | AF7: Parcelle la plus haute
B8: ='Calcul Et Courbes 2'!D12 -> 49.4 | H8: 2016-01-01 | I8: =$B$5 -> 6.5 | J8: =IF(J7>$E$46,$D$46+I8,J7+I8) -> 1206.5 | K8: =IF(J7>$E$46,H7,"") ->  | L8: =IF(K8="",1+L7,0) -> 1 | N8: =$D$26 -> 270 | P8: =IF(L8=0,N8,N8+P7) -> 270 | Q8: =IF(L8=0,P7/L7,"") ->  | S8: =IF(L8=0,P7/L7,"") ->  | U8: =IF(L8=0,$F$46/S8,"") ->  | W8: =IF(L8=0,1/U8,"") ->  | X8: =IF(L8=0,W8*L7,0) -> 0 | Y8: =IF(X8>0,Y7+1,Y7) -> 0 | Z8: 2016-05-17 | AA8: 16 | AB8: 0.8826923077 | AC8: 3 | AD8: 14.12307692
B9: ='Calcul Et Courbes 2'!D13 -> 78 | H9: 2016-01-02 | I9: 6.5 | J9: =IF(J8>$E$46,$D$46+I9,J8+I9) -> 1213 | K9: =IF(J8>$E$46,H8,"") ->  | L9: =IF(K9="",1+L8,0) -> 2 | N9: =$D$26 -> 270 | P9: =IF(L9=0,N9,N9+P8) -> 540 | Q9: =IF(L9=0,P8/L8,"") ->  | S9: =IF(L9=0,P8/L8,"") ->  | U9: =IF(L9=0,$F$46/S9,"") ->  | W9: =IF(L9=0,1/U9,"") ->  | X9: =IF(L9=0,W9*L8,0) -> 0 | Y9: =IF(X9>0,Y8+1,Y8) -> 0 | Z9: 2016-06-04 | AA9: 17 | AB9: 0.8470588235 | AC9: 4 | AD9: 14.4
B10: ='Calcul Et Courbes 2'!D14 -> 65 | H10: 2016-01-03 | I10: 6.5 | J10: 1219.5 | L10: 3 | N10: 270 | P10: 810 | X10: 0 | Y10: 0 | Z10: 2016-06-25 | AA10: 20 | AB10: 0.7269230769 | AC10: 5 | AD10: 14.53846154
B11: ='Calcul Et Courbes 2'!D15 -> 32.5 | H11: 2016-01-04 | I11: 6.5 | J11: 1226 | L11: 4 | N11: 270 | P11: 1080 | X11: 0 | Y11: 0 | Z11: 2016-07-31 | AA11: 35 | AB11: 0.2828571429 | AC11: 6 | AD11: 9.9
B12: ='Calcul Et Courbes 2'!D16 -> 6.5 | H12: 2016-01-05 | I12: 6.5 | J12: 1232.5 | L12: 5 | N12: 270 | P12: 1350 | X12: 0 | Y12: 0 | Z12: 2016-10-05 | AA12: 65 | AB12: 0.2332544379 | AC12: 7 | AD12: 15.16153846
B13: ='Calcul Et Courbes 2'!D17 -> 32.5 | H13: 2016-01-06 | I13: 6.5 | J13: 1239 | L13: 6 | N13: 270 | P13: 1620 | X13: 0 | Y13: 0 | Z13: 2016-12-04 | AA13: 59 | AB13: 0.2365580183 | AC13: 8 | AD13: 13.95692308
B14: ='Calcul Et Courbes 2'!D18 -> 26 | H14: 2016-01-07 | I14: 6.5 | J14: 1245.5 | L14: 7 | N14: 270 | P14: 1890 | X14: 0 | Y14: 0
B15: ='Calcul Et Courbes 2'!D19 -> 19.5 | H15: 2016-01-08 | I15: 6.5 | J15: 1252 | L15: 8 | N15: 270 | P15: 2160 | X15: 0 | Y15: 0
B16: ='Calcul Et Courbes 2'!D20 -> 13 | H16: 2016-01-09 | I16: 6.5 | J16: 1258.5 | L16: 9 | N16: 270 | P16: 2430 | X16: 0 | Y16: 0
H17: 2016-01-10 | I17: 6.5 | J17: 1265 | L17: 10 | N17: 270 | P17: 2700 | X17: 0 | Y17: 0
C18: Coupe haute | D18: ='DashBoard Igraze'!AP67 -> 2500 | H18: 2016-01-11 | I18: 6.5 | J18: 1271.5 | L18: 11 | N18: 270 | P18: 2970 | X18: 0 | Y18: 0
C19: Coupe basse | D19: ='DashBoard Igraze'!AP68 -> 1200 | H19: 2016-01-12 | I19: 6.5 | J19: 1278 | L19: 12 | N19: 270 | P19: 3240 | X19: 0 | Y19: 0
C20: A Remplir | H20: 2016-01-13 | I20: 6.5 | J20: 1284.5 | L20: 13 | N20: 270 | P20: 3510 | X20: 0 | Y20: 0
C21: Ressource dispo | D21: =D18-D19 -> 1300 | H21: 2016-01-14 | I21: 6.5 | J21: 1291 | L21: 14 | N21: 270 | P21: 3780 | X21: 0 | Y21: 0
H22: 2016-01-15 | I22: 6.5 | J22: 1297.5 | L22: 15 | N22: 270 | P22: 4050 | X22: 0 | Y22: 0
H23: 2016-01-16 | I23: 6.5 | J23: 1304 | L23: 16 | N23: 270 | P23: 4320 | X23: 0 | Y23: 0
A24: Taille du chaptel | B24: Besoin par animal KgMS/day | D24: Besoin du chaptel par jour | H24: 2016-01-17 | I24: 6.5 | J24: 1310.5 | L24: 17 | N24: 270 | P24: 4590 | X24: 0 | Y24: 0
H25: 2016-01-18 | I25: 6.5 | J25: 1317 | L25: 18 | N25: 270 | P25: 4860 | X25: 0 | Y25: 0
A26: ='Calcul Et Courbes 2'!K27 -> 180 | B26: ='Calcul Et Courbes 2'!C28 -> 1.5 | D26: =B26*$A$26 -> 270 | H26: 2016-01-19 | I26: 6.5 | J26: 1323.5 | L26: 19 | N26: 270 | P26: 5130 | X26: 0 | Y26: 0
B27: ='Calcul Et Courbes 2'!C29 -> 2.5 | D27: =B27*$A$26 -> 450 | H27: 2016-01-20 | I27: 6.5 | J27: 1330 | L27: 20 | N27: 270 | P27: 5400 | X27: 0 | Y27: 0
B28: ='Calcul Et Courbes 2'!C30 -> 2.8 | D28: 504 | H28: 2016-01-21 | I28: 6.5 | J28: 1336.5 | L28: 21 | N28: 270 | P28: 5670 | X28: 0 | Y28: 0
B29: ='Calcul Et Courbes 2'!C31 -> 4.5 | D29: 810 | H29: 2016-01-22 | I29: 6.5 | J29: 1343 | L29: 22 | N29: 270 | P29: 5940 | X29: 0 | Y29: 0
B30: ='Calcul Et Courbes 2'!C32 -> 6 | D30: 1080 | H30: 2016-01-23 | I30: 6.5 | J30: 1349.5 | L30: 23 | N30: 270 | P30: 6210 | X30: 0 | Y30: 0 | AB30: =IFERROR(AA30*$D$39,"") -> 
B31: ='Calcul Et Courbes 2'!C33 -> 5 | D31: 900 | H31: 2016-01-24 | I31: 6.5 | J31: 1356 | L31: 24 | N31: 270 | P31: 6480 | X31: 0 | Y31: 0
B32: ='Calcul Et Courbes 2'!C34 -> 1.5 | D32: 270 | H32: 2016-01-25 | I32: 6.5 | J32: 1362.5 | L32: 25 | N32: 270 | P32: 6750 | X32: 0 | Y32: 0
B33: ='Calcul Et Courbes 2'!C35 -> 1.5 | D33: 270 | H33: 2016-01-26 | I33: 6.5 | J33: 1369 | L33: 26 | N33: 270 | P33: 7020 | X33: 0 | Y33: 0
B34: ='Calcul Et Courbes 2'!C36 -> 1.8 | D34: 324 | H34: 2016-01-27 | I34: 6.5 | J34: 1375.5 | L34: 27 | N34: 270 | P34: 7290 | X34: 0 | Y34: 0
B35: ='Calcul Et Courbes 2'!C37 -> 1.8 | D35: 324 | H35: 2016-01-28 | I35: 6.5 | J35: 1382 | L35: 28 | N35: 270 | P35: 7560 | X35: 0 | Y35: 0
B36: ='Calcul Et Courbes 2'!C38 -> 1.6 | D36: 288 | H36: 2016-01-29 | I36: 6.5 | J36: 1388.5 | L36: 29 | N36: 270 | P36: 7830 | X36: 0 | Y36: 0
B37: ='Calcul Et Courbes 2'!C39 -> 1.5 | D37: 270 | H37: 2016-01-30 | I37: 6.5 | J37: 1395 | L37: 30 | N37: 270 | P37: 8100 | X37: 0 | Y37: 0
H38: 2016-01-31 | I38: 6.5 | J38: 1401.5 | L38: 31 | N38: 270 | P38: 8370 | X38: 0 | Y38: 0
H39: 2016-02-01 | I39: =$B$6 -> 13 | J39: =IF(J38>$E$47,$D$47+I39,J38+I39) -> 1414.5 | K39: =IF(J38>$E$47,H38,"") ->  | L39: 32 | N39: =$D$27 -> 450 | P39: 8820 | U39: =IF(L39=0,$F$47/S39,"") ->  | X39: 0 | Y39: 0
H40: 2016-02-02 | I40: 13 | J40: =IF(J39>$E$47,$D$47+I40,J39+I40) -> 1427.5 | K40: =IF(J39>$E$47,H39,"") ->  | L40: 33 | N40: =$D$27 -> 450 | P40: 9270 | U40: =IF(L40=0,$F$47/S40,"") ->  | X40: 0 | Y40: 0
H41: 2016-02-03 | I41: 13 | J41: 1440.5 | L41: 34 | N41: 450 | P41: 9720 | X41: 0 | Y41: 0
H42: 2016-02-04 | I42: 13 | J42: 1453.5 | L42: 35 | N42: 450 | P42: 10170 | X42: 0 | Y42: 0
H43: 2016-02-05 | I43: 13 | J43: 1466.5 | L43: 36 | N43: 450 | P43: 10620 | X43: 0 | Y43: 0
A44: Incrémentation mensuelle des coupes | D44: Resultat | H44: 2016-02-06 | I44: 13 | J44: 1479.5 | L44: 37 | N44: 450 | P44: 11070 | X44: 0 | Y44: 0
B45: Coupe basse | C45: Coupe haute | D45: Coupe Basse | E45: Coupe haute | F45: Ressource Dispo mois | H45: 2016-02-07 | I45: 13 | J45: 1492.5 | L45: 38 | N45: 450 | P45: 11520 | X45: 0 | Y45: 0
A46: Janvier | B46: ='DashBoard Igraze'!AH139 -> 0 | C46: ='DashBoard Igraze'!AJ139 -> 0 | D46: ='DashBoard Igraze'!AN71 -> 1200 | E46: ='DashBoard Igraze'!AP71 -> 2500 | F46: =E46-D46 -> 1300 | H46: 2016-02-08 | I46: 13 | J46: 1505.5 | L46: 39 | N46: 450 | P46: 11970 | X46: 0 | Y46: 0
A47: Février | B47: ='DashBoard Igraze'!AH140 -> 0 | C47: ='DashBoard Igraze'!AJ140 -> 0 | D47: ='DashBoard Igraze'!AN72 -> 1200 | E47: ='DashBoard Igraze'!AP72 -> 2500 | F47: =E47-D47 -> 1300 | H47: 2016-02-09 | I47: 13 | J47: 1518.5 | L47: 40 | N47: 450 | P47: 12420 | X47: 0 | Y47: 0
A48: Mars | B48: ='DashBoard Igraze'!AH141 -> 0 | C48: ='DashBoard Igraze'!AJ141 -> 0 | D48: ='DashBoard Igraze'!AN73 -> 1200 | E48: ='DashBoard Igraze'!AP73 -> 2500 | F48: 1300 | H48: 2016-02-10 | I48: 13 | J48: 1531.5 | L48: 41 | N48: 450 | P48: 12870 | X48: 0 | Y48: 0
A49: Avril | B49: ='DashBoard Igraze'!AH142 -> 0 | C49: ='DashBoard Igraze'!AJ142 -> 0 | D49: ='DashBoard Igraze'!AN74 -> 1200 | E49: ='DashBoard Igraze'!AP74 -> 2500 | F49: 1300 | H49: 2016-02-11 | I49: 13 | J49: 1544.5 | L49: 42 | N49: 450 | P49: 13320 | X49: 0 | Y49: 0
A50: Mai | B50: ='DashBoard Igraze'!AH143 -> 0 | C50: ='DashBoard Igraze'!AJ143 -> 0 | D50: ='DashBoard Igraze'!AN75 -> 1200 | E50: ='DashBoard Igraze'!AP75 -> 2500 | F50: 1300 | H50: 2016-02-12 | I50: 13 | J50: 1557.5 | L50: 43 | N50: 450 | P50: 13770 | X50: 0 | Y50: 0
A51: Juin | B51: ='DashBoard Igraze'!AH144 -> 0 | C51: ='DashBoard Igraze'!AJ144 -> 0 | D51: ='DashBoard Igraze'!AN76 -> 1200 | E51: ='DashBoard Igraze'!AP76 -> 2500 | F51: 1300 | H51: 2016-02-13 | I51: 13 | J51: 1570.5 | L51: 44 | N51: 450 | P51: 14220 | X51: 0 | Y51: 0
A52: Juillet | B52: ='DashBoard Igraze'!AH145 -> 0 | C52: ='DashBoard Igraze'!AJ145 -> 0 | D52: ='DashBoard Igraze'!AN77 -> 1200 | E52: ='DashBoard Igraze'!AP77 -> 2500 | F52: 1300 | H52: 2016-02-14 | I52: 13 | J52: 1583.5 | L52: 45 | N52: 450 | P52: 14670 | X52: 0 | Y52: 0
A53: Août | B53: ='DashBoard Igraze'!AH146 -> 0 | C53: ='DashBoard Igraze'!AJ146 -> 0 | D53: ='DashBoard Igraze'!AN78 -> 1200 | E53: ='DashBoard Igraze'!AP78 -> 2500 | F53: 1300 | H53: 2016-02-15 | I53: 13 | J53: 1596.5 | L53: 46 | N53: 450 | P53: 15120 | X53: 0 | Y53: 0
A54: Septembre | B54: ='DashBoard Igraze'!AH147 -> 0 | C54: ='DashBoard Igraze'!AJ147 -> 0 | D54: ='DashBoard Igraze'!AN79 -> 1200 | E54: ='DashBoard Igraze'!AP79 -> 2500 | F54: 1300 | H54: 2016-02-16 | I54: 13 | J54: 1609.5 | L54: 47 | N54: 450 | P54: 15570 | X54: 0 | Y54: 0
A55: Octobre | B55: ='DashBoard Igraze'!AH148 -> 0 | C55: ='DashBoard Igraze'!AJ148 -> 0 | D55: ='DashBoard Igraze'!AN80 -> 1200 | E55: ='DashBoard Igraze'!AP80 -> 2500 | F55: 1300 | H55: 2016-02-17 | I55: 13 | J55: 1622.5 | L55: 48 | N55: 450 | P55: 16020 | X55: 0 | Y55: 0
A56: Novembre | B56: ='DashBoard Igraze'!AH149 -> 0 | C56: ='DashBoard Igraze'!AJ149 -> 0 | D56: ='DashBoard Igraze'!AN81 -> 1200 | E56: ='DashBoard Igraze'!AP81 -> 2500 | F56: 1300 | H56: 2016-02-18 | I56: 13 | J56: 1635.5 | L56: 49 | N56: 450 | P56: 16470 | X56: 0 | Y56: 0
A57: Décembre | B57: ='DashBoard Igraze'!AH150 -> 0 | C57: ='DashBoard Igraze'!AJ150 -> 0 | D57: ='DashBoard Igraze'!AN82 -> 1200 | E57: ='DashBoard Igraze'!AP82 -> 2500 | F57: 1300 | H57: 2016-02-19 | I57: 13 | J57: 1648.5 | L57: 50 | N57: 450 | P57: 16920 | X57: 0 | Y57: 0
A58: A remplir avec + X ou -X | D58: Ne pas touchez | H58: 2016-02-20 | I58: 13 | J58: 1661.5 | L58: 51 | N58: 450 | P58: 17370 | X58: 0 | Y58: 0
H59: 2016-02-21 | I59: 13 | J59: 1674.5 | L59: 52 | N59: 450 | P59: 17820 | X59: 0 | Y59: 0
H60: 2016-02-22 | I60: 13 | J60: 1687.5 | L60: 53 | N60: 450 | P60: 18270 | X60: 0 | Y60: 0
H61: 2016-02-23 | I61: 13 | J61: 1700.5 | L61: 54 | N61: 450 | P61: 18720 | X61: 0 | Y61: 0
H62: 2016-02-24 | I62: 13 | J62: 1713.5 | L62: 55 | N62: 450 | P62: 19170 | X62: 0 | Y62: 0
H63: 2016-02-25 | I63: 13 | J63: 1726.5 | L63: 56 | N63: 450 | P63: 19620 | X63: 0 | Y63: 0
H64: 2016-02-26 | I64: 13 | J64: 1739.5 | L64: 57 | N64: 450 | P64: 20070 | X64: 0 | Y64: 0
H65: 2016-02-27 | I65: 13 | J65: 1752.5 | L65: 58 | N65: 450 | P65: 20520 | X65: 0 | Y65: 0
H66: 2016-02-28 | I66: 13 | J66: 1765.5 | L66: 59 | N66: 450 | P66: 20970 | X66: 0 | Y66: 0
H67: 2016-03-01 | I67: =$B$7 -> 19.5 | J67: =IF(J66>$E$48,$D$48+I67,J66+I67) -> 1785 | K67: =IF(J66>$E$48,H66,"") ->  | L67: 60 | N67: =$D$28 -> 504 | P67: 21474 | U67: =IF(L67=0,$F$48/S67,"") ->  | X67: 0 | Y67: 0
H68: 2016-03-02 | I68: 19.5 | J68: =IF(J67>$E$48,$D$48+I68,J67+I68) -> 1804.5 | K68: =IF(J67>$E$48,H67,"") ->  | L68: 61 | N68: =$D$28 -> 504 | P68: 21978 | U68: =IF(L68=0,$F$48/S68,"") ->  | X68: 0 | Y68: 0
H69: 2016-03-03 | I69: 19.5 | J69: 1824 | L69: 62 | N69: 504 | P69: 22482 | X69: 0 | Y69: 0
H70: 2016-03-04 | I70: 19.5 | J70: 1843.5 | L70: 63 | N70: 504 | P70: 22986 | X70: 0 | Y70: 0
H71: 2016-03-05 | I71: 19.5 | J71: 1863 | L71: 64 | N71: 504 | P71: 23490 | X71: 0 | Y71: 0
H72: 2016-03-06 | I72: 19.5 | J72: 1882.5 | L72: 65 | N72: 504 | P72: 23994 | X72: 0 | Y72: 0
H73: 2016-03-07 | I73: 19.5 | J73: 1902 | L73: =IF(K73="",1+L72,0) -> 66 | N73: 504 | P73: =IF(L73=0,N73,N73+P72) -> 24498 | Q73: =IF(L73=0,P72/L72,"") ->  | S73: =IF(L73=0,P72/L72,"") ->  | W73: =IF(L73=0,1/U73,"") ->  | X73: =IF(L73=0,W73*L72,0) -> 0 | Y73: =IF(X73>0,Y72+1,Y72) -> 0
H74: 2016-03-08 | I74: 19.5 | J74: 1921.5 | L74: 67 | N74: 504 | P74: 25002 | X74: 0 | Y74: 0
H75: 2016-03-09 | I75: 19.5 | J75: 1941 | L75: 68 | N75: 504 | P75: 25506 | X75: 0 | Y75: 0
H76: 2016-03-10 | I76: 19.5 | J76: 1960.5 | L76: 69 | N76: 504 | P76: 26010 | X76: 0 | Y76: 0
H77: 2016-03-11 | I77: 19.5 | J77: 1980 | L77: 70 | N77: 504 | P77: 26514 | X77: 0 | Y77: 0
H78: 2016-03-12 | I78: 19.5 | J78: 1999.5 | L78: 71 | N78: 504 | P78: 27018 | X78: 0 | Y78: 0
H79: 2016-03-13 | I79: 19.5 | J79: 2019 | L79: 72 | N79: 504 | P79: 27522 | X79: 0 | Y79: 0
H80: 2016-03-14 | I80: 19.5 | J80: 2038.5 | L80: 73 | N80: 504 | P80: 28026 | X80: 0 | Y80: 0
H81: 2016-03-15 | I81: 19.5 | J81: 2058 | L81: 74 | N81: 504 | P81: 28530 | X81: 0 | Y81: 0
H82: 2016-03-16 | I82: 19.5 | J82: 2077.5 | L82: 75 | N82: 504 | P82: 29034 | X82: 0 | Y82: 0
H83: 2016-03-17 | I83: 19.5 | J83: 2097 | L83: 76 | N83: 504 | P83: 29538 | X83: 0 | Y83: 0
H84: 2016-03-18 | I84: 19.5 | J84: 2116.5 | L84: 77 | N84: 504 | P84: 30042 | X84: 0 | Y84: 0
H85: 2016-03-19 | I85: 19.5 | J85: 2136 | L85: 78 | N85: 504 | P85: 30546 | X85: 0 | Y85: 0
H86: 2016-03-20 | I86: 19.5 | J86: 2155.5 | L86: 79 | N86: 504 | P86: 31050 | X86: 0 | Y86: 0
H87: 2016-03-21 | I87: 19.5 | J87: 2175 | L87: 80 | N87: 504 | P87: 31554 | X87: 0 | Y87: 0
H88: 2016-03-22 | I88: 19.5 | J88: 2194.5 | L88: 81 | N88: 504 | P88: 32058 | X88: 0 | Y88: 0
H89: 2016-03-23 | I89: 19.5 | J89: 2214 | L89: 82 | N89: 504 | P89: 32562 | X89: 0 | Y89: 0
H90: 2016-03-24 | I90: 19.5 | J90: =IF(J89>$E$48,$D$48+I90,J89+I90) -> 2233.5 | L90: 83 | N90: 504 | P90: 33066 | X90: 0 | Y90: 0
H91: 2016-03-25 | I91: 19.5 | J91: 2253 | L91: 84 | N91: 504 | P91: 33570 | X91: 0 | Y91: 0
H92: 2016-03-26 | I92: 19.5 | J92: 2272.5 | L92: 85 | N92: 504 | P92: 34074 | X92: 0 | Y92: 0
H93: 2016-03-27 | I93: 19.5 | J93: 2292 | L93: 86 | N93: 504 | P93: 34578 | X93: 0 | Y93: 0
H94: 2016-03-28 | I94: 19.5 | J94: 2311.5 | L94: 87 | N94: 504 | P94: 35082 | X94: 0 | Y94: 0
H95: 2016-03-29 | I95: 19.5 | J95: 2331 | L95: 88 | N95: 504 | P95: 35586 | X95: 0 | Y95: 0
H96: 2016-03-30 | I96: 19.5 | J96: 2350.5 | L96: 89 | N96: 504 | P96: 36090 | X96: 0 | Y96: 0
H97: 2016-03-31 | I97: 19.5 | J97: 2370 | L97: 90 | N97: 504 | P97: 36594 | X97: 0 | Y97: 0
H98: 2016-04-01 | I98: =$B$8 -> 49.4 | J98: =IF(J97>$E$49,$D$49+I98,J97+I98) -> 2419.4 | K98: =IF(J97>$E$49,H97,"") ->  | L98: 91 | N98: =$D$29 -> 810 | P98: 37404 | U98: =IF(L98=0,$F$49/S98,"") ->  | X98: 0 | Y98: 0
H99: 2016-04-02 | I99: 49.4 | J99: =IF(J98>$E$49,$D$49+I99,J98+I99) -> 2468.8 | K99: =IF(J98>$E$49,H98,"") ->  | L99: 92 | N99: =$D$29 -> 810 | P99: 38214 | U99: =IF(L99=0,$F$49/S99,"") ->  | X99: 0 | Y99: 0
H100: 2016-04-03 | I100: 49.4 | J100: 2518.2 | L100: 93 | N100: 810 | P100: 39024 | X100: 0 | Y100: 0
H101: 2016-04-04 | I101: 49.4 | J101: 1249.4 | K101: 2016-04-03 | L101: 0 | N101: 810 | P101: 810 | Q101: 419.6129032 | S101: 419.6129032 | U101: 3.098093481 | W101: 0.3227791563 | X101: 30.01846154 | Y101: 1
H102: 2016-04-05 | I102: 49.4 | J102: 1298.8 | L102: 1 | N102: 810 | P102: 1620 | X102: 0 | Y102: 1
H103: 2016-04-06 | I103: 49.4 | J103: 1348.2 | L103: 2 | N103: 810 | P103: 2430 | X103: 0 | Y103: 1
H104: 2016-04-07 | I104: 49.4 | J104: 1397.6 | L104: 3 | N104: 810 | P104: 3240 | X104: 0 | Y104: 1
H105: 2016-04-08 | I105: 49.4 | J105: 1447 | L105: 4 | N105: 810 | P105: 4050 | X105: 0 | Y105: 1
H106: 2016-04-09 | I106: 49.4 | J106: 1496.4 | L106: 5 | N106: 810 | P106: 4860 | X106: 0 | Y106: 1
H107: 2016-04-10 | I107: 49.4 | J107: 1545.8 | L107: 6 | N107: 810 | P107: 5670 | X107: 0 | Y107: 1
H108: 2016-04-11 | I108: 49.4 | J108: 1595.2 | L108: 7 | N108: 810 | P108: 6480 | X108: 0 | Y108: 1
H109: 2016-04-12 | I109: 49.4 | J109: 1644.6 | L109: 8 | N109: 810 | P109: 7290 | X109: 0 | Y109: 1
H110: 2016-04-13 | I110: 49.4 | J110: 1694 | L110: 9 | N110: 810 | P110: 8100 | X110: 0 | Y110: 1
H111: 2016-04-14 | I111: 49.4 | J111: 1743.4 | L111: 10 | N111: 810 | P111: 8910 | X111: 0 | Y111: 1
H112: 2016-04-15 | I112: 49.4 | J112: 1792.8 | L112: 11 | N112: 810 | P112: 9720 | X112: 0 | Y112: 1
H113: 2016-04-16 | I113: 49.4 | J113: 1842.2 | L113: 12 | N113: 810 | P113: 10530 | X113: 0 | Y113: 1
H114: 2016-04-17 | I114: 49.4 | J114: 1891.6 | L114: 13 | N114: 810 | P114: 11340 | X114: 0 | Y114: 1
H115: 2016-04-18 | I115: 49.4 | J115: 1941 | L115: 14 | N115: 810 | P115: 12150 | X115: 0 | Y115: 1
H116: 2016-04-19 | I116: 49.4 | J116: 1990.4 | L116: 15 | N116: 810 | P116: 12960 | X116: 0 | Y116: 1
H117: 2016-04-20 | I117: 49.4 | J117: 2039.8 | L117: 16 | N117: 810 | P117: 13770 | X117: 0 | Y117: 1
H118: 2016-04-21 | I118: 49.4 | J118: 2089.2 | L118: 17 | N118: 810 | P118: 14580 | X118: 0 | Y118: 1
H119: 2016-04-22 | I119: 49.4 | J119: 2138.6 | L119: 18 | N119: 810 | P119: 15390 | X119: 0 | Y119: 1
H120: 2016-04-23 | I120: 49.4 | J120: 2188 | L120: 19 | N120: 810 | P120: 16200 | X120: 0 | Y120: 1
H121: 2016-04-24 | I121: 49.4 | J121: 2237.4 | L121: 20 | N121: 810 | P121: 17010 | X121: 0 | Y121: 1
H122: 2016-04-25 | I122: 49.4 | J122: 2286.8 | L122: 21 | N122: 810 | P122: 17820 | X122: 0 | Y122: 1
H123: 2016-04-26 | I123: 49.4 | J123: 2336.2 | L123: 22 | N123: 810 | P123: 18630 | X123: 0 | Y123: 1
H124: 2016-04-27 | I124: 49.4 | J124: 2385.6 | K124: =IF(J123>$E$49,H123,"") ->  | L124: 23 | N124: 810 | P124: 19440 | X124: 0 | Y124: 1
H125: 2016-04-28 | I125: 49.4 | J125: 2435 | L125: 24 | N125: 810 | P125: 20250 | X125: 0 | Y125: 1
H126: 2016-04-29 | I126: 49.4 | J126: 2484.4 | L126: 25 | N126: 810 | P126: 21060 | X126: 0 | Y126: 1
H127: 2016-04-30 | I127: 49.4 | J127: 2533.8 | L127: 26 | N127: 810 | P127: 21870 | X127: 0 | Y127: 1
H128: 2016-05-01 | I128: =$B$9 -> 78 | J128: =IF(J127>$E$50,$D$50+I128,J127+I128) -> 1278 | K128: =IF(J127>$E$50,H127,"") -> 2016-04-30 | L128: 0 | N128: =$D$30 -> 1080 | P128: 1080 | Q128: 841.1538462 | S128: 841.1538462 | U128: =IF(L128=0,$F$50/S128,"") -> 1.545496113 | W128: 0.6470414201 | X128: 16.82307692 | Y128: 2
H129: 2016-05-02 | I129: 78 | J129: =IF(J128>$E$50,$D$50+I129,J128+I129) -> 1356 | K129: =IF(J128>$E$50,H128,"") ->  | L129: 1 | N129: =$D$30 -> 1080 | P129: 2160 | U129: =IF(L129=0,$F$50/S129,"") ->  | X129: 0 | Y129: 2
H130: 2016-05-03 | I130: 78 | J130: 1434 | L130: 2 | N130: 1080 | P130: 3240 | X130: 0 | Y130: 2
H131: 2016-05-04 | I131: 78 | J131: 1512 | L131: 3 | N131: 1080 | P131: 4320 | X131: 0 | Y131: 2
H132: 2016-05-05 | I132: 78 | J132: 1590 | L132: 4 | N132: 1080 | P132: 5400 | X132: 0 | Y132: 2
H133: 2016-05-06 | I133: 78 | J133: 1668 | L133: 5 | N133: 1080 | P133: 6480 | X133: 0 | Y133: 2
H134: 2016-05-07 | I134: 78 | J134: 1746 | L134: 6 | N134: 1080 | P134: 7560 | X134: 0 | Y134: 2
H135: 2016-05-08 | I135: 78 | J135: 1824 | L135: 7 | N135: 1080 | P135: 8640 | X135: 0 | Y135: 2
H136: 2016-05-09 | I136: 78 | J136: 1902 | L136: 8 | N136: 1080 | P136: 9720 | X136: 0 | Y136: 2
H137: 2016-05-10 | I137: 78 | J137: 1980 | L137: =IF(K137="",1+L136,0) -> 9 | N137: 1080 | P137: =IF(L137=0,N137,N137+P136) -> 10800 | Q137: =IF(L137=0,P136/L136,"") ->  | S137: =IF(L137=0,P136/L136,"") ->  | W137: =IF(L137=0,1/U137,"") ->  | X137: =IF(L137=0,W137*L136,0) -> 0 | Y137: =IF(X137>0,Y136+1,Y136) -> 2
H138: 2016-05-11 | I138: 78 | J138: 2058 | L138: 10 | N138: 1080 | P138: 11880 | X138: 0 | Y138: 2
H139: 2016-05-12 | I139: 78 | J139: 2136 | L139: 11 | N139: 1080 | P139: 12960 | X139: 0 | Y139: 2
H140: 2016-05-13 | I140: 78 | J140: 2214 | L140: 12 | N140: 1080 | P140: 14040 | X140: 0 | Y140: 2
H141: 2016-05-14 | I141: 78 | J141: 2292 | L141: 13 | N141: 1080 | P141: 15120 | X141: 0 | Y141: 2
H142: 2016-05-15 | I142: 78 | J142: 2370 | L142: 14 | N142: 1080 | P142: 16200 | X142: 0 | Y142: 2
H143: 2016-05-16 | I143: 78 | J143: 2448 | L143: 15 | N143: 1080 | P143: 17280 | X143: 0 | Y143: 2
H144: 2016-05-17 | I144: 78 | J144: 2526 | L144: 16 | N144: 1080 | P144: 18360 | X144: 0 | Y144: 2
H145: 2016-05-18 | I145: 78 | J145: 1278 | K145: 2016-05-17 | L145: 0 | N145: 1080 | P145: 1080 | Q145: 1147.5 | S145: 1147.5 | U145: 1.132897603 | W145: 0.8826923077 | X145: 14.12307692 | Y145: 3
H146: 2016-05-19 | I146: 78 | J146: 1356 | L146: 1 | N146: 1080 | P146: 2160 | X146: 0 | Y146: 3
H147: 2016-05-20 | I147: 78 | J147: 1434 | L147: 2 | N147: 1080 | P147: 3240 | X147: 0 | Y147: 3
H148: 2016-05-21 | I148: 78 | J148: 1512 | L148: 3 | N148: 1080 | P148: 4320 | X148: 0 | Y148: 3
H149: 2016-05-22 | I149: 78 | J149: 1590 | L149: 4 | N149: 1080 | P149: 5400 | X149: 0 | Y149: 3
H150: 2016-05-23 | I150: 78 | J150: 1668 | L150: 5 | N150: 1080 | P150: 6480 | X150: 0 | Y150: 3
H151: 2016-05-24 | I151: 78 | J151: 1746 | L151: 6 | N151: 1080 | P151: 7560 | X151: 0 | Y151: 3
H152: 2016-05-25 | I152: 78 | J152: 1824 | L152: 7 | N152: 1080 | P152: 8640 | X152: 0 | Y152: 3
H153: 2016-05-26 | I153: 78 | J153: 1902 | L153: 8 | N153: 1080 | P153: 9720 | X153: 0 | Y153: 3
H154: 2016-05-27 | I154: 78 | J154: 1980 | L154: 9 | N154: 1080 | P154: 10800 | X154: 0 | Y154: 3
H155: 2016-05-28 | I155: 78 | J155: 2058 | L155: 10 | N155: 1080 | P155: 11880 | X155: 0 | Y155: 3
H156: 2016-05-29 | I156: 78 | J156: 2136 | L156: 11 | N156: 1080 | P156: 12960 | X156: 0 | Y156: 3
H157: 2016-05-30 | I157: 78 | J157: 2214 | L157: 12 | N157: 1080 | P157: 14040 | X157: 0 | Y157: 3
H158: 2016-05-31 | I158: 78 | J158: 2292 | L158: 13 | N158: 1080 | P158: 15120 | X158: 0 | Y158: 3
H159: 2016-06-01 | I159: =$B$10 -> 65 | J159: =IF(J158>$E$51,$D$51+I159,J158+I159) -> 2357 | K159: =IF(J158>$E$51,H158,"") ->  | L159: 14 | N159: =$D$31 -> 900 | P159: 16020 | U159: =IF(L159=0,$F$51/S159,"") ->  | X159: 0 | Y159: 3
H160: 2016-06-02 | I160: 65 | J160: =IF(J159>$E$51,$D$51+I160,J159+I160) -> 2422 | K160: =IF(J159>$E$51,H159,"") ->  | L160: 15 | N160: =$D$31 -> 900 | P160: 16920 | U160: =IF(L160=0,$F$51/S160,"") ->  | X160: 0 | Y160: 3
H161: 2016-06-03 | I161: 65 | J161: 2487 | L161: 16 | N161: 900 | P161: 17820 | X161: 0 | Y161: 3
H162: 2016-06-04 | I162: 65 | J162: 2552 | L162: 17 | N162: 900 | P162: 18720 | X162: 0 | Y162: 3
H163: 2016-06-05 | I163: 65 | J163: 1265 | K163: 2016-06-04 | L163: 0 | N163: 900 | P163: 900 | Q163: 1101.176471 | S163: 1101.176471 | U163: 1.180555556 | W163: 0.8470588235 | X163: 14.4 | Y163: 4
H164: 2016-06-06 | I164: 65 | J164: 1330 | L164: 1 | N164: 900 | P164: 1800 | X164: 0 | Y164: 4
H165: 2016-06-07 | I165: 65 | J165: 1395 | L165: 2 | N165: 900 | P165: 2700 | X165: 0 | Y165: 4
H166: 2016-06-08 | I166: 65 | J166: 1460 | L166: 3 | N166: 900 | P166: 3600 | X166: 0 | Y166: 4
H167: 2016-06-09 | I167: 65 | J167: 1525 | L167: 4 | N167: 900 | P167: 4500 | X167: 0 | Y167: 4
H168: 2016-06-10 | I168: 65 | J168: 1590 | L168: 5 | N168: 900 | P168: 5400 | X168: 0 | Y168: 4
H169: 2016-06-11 | I169: 65 | J169: 1655 | L169: 6 | N169: 900 | P169: 6300 | X169: 0 | Y169: 4
H170: 2016-06-12 | I170: 65 | J170: 1720 | L170: 7 | N170: 900 | P170: 7200 | X170: 0 | Y170: 4
H171: 2016-06-13 | I171: 65 | J171: 1785 | L171: 8 | N171: 900 | P171: 8100 | X171: 0 | Y171: 4
H172: 2016-06-14 | I172: 65 | J172: 1850 | L172: 9 | N172: 900 | P172: 9000 | X172: 0 | Y172: 4
H173: 2016-06-15 | I173: 65 | J173: 1915 | L173: 10 | N173: 900 | P173: 9900 | X173: 0 | Y173: 4
H174: 2016-06-16 | I174: 65 | J174: 1980 | L174: 11 | N174: 900 | P174: 10800 | X174: 0 | Y174: 4
H175: 2016-06-17 | I175: 65 | J175: 2045 | L175: 12 | N175: 900 | P175: 11700 | X175: 0 | Y175: 4
H176: 2016-06-18 | I176: 65 | J176: 2110 | L176: 13 | N176: 900 | P176: 12600 | X176: 0 | Y176: 4
H177: 2016-06-19 | I177: 65 | J177: 2175 | L177: 14 | N177: 900 | P177: 13500 | X177: 0 | Y177: 4
H178: 2016-06-20 | I178: 65 | J178: 2240 | L178: 15 | N178: 900 | P178: 14400 | X178: 0 | Y178: 4
H179: 2016-06-21 | I179: 65 | J179: 2305 | L179: 16 | N179: 900 | P179: 15300 | X179: 0 | Y179: 4
H180: 2016-06-22 | I180: 65 | J180: 2370 | L180: 17 | N180: 900 | P180: 16200 | X180: 0 | Y180: 4
H181: 2016-06-23 | I181: 65 | J181: 2435 | L181: 18 | N181: 900 | P181: 17100 | X181: 0 | Y181: 4
H182: 2016-06-24 | I182: 65 | J182: 2500 | L182: 19 | N182: 900 | P182: 18000 | X182: 0 | Y182: 4
H183: 2016-06-25 | I183: 65 | J183: 2565 | L183: 20 | N183: 900 | P183: 18900 | X183: 0 | Y183: 4
H184: 2016-06-26 | I184: 65 | J184: 1265 | K184: 2016-06-25 | L184: 0 | N184: 900 | P184: 900 | Q184: 945 | S184: 945 | U184: 1.375661376 | W184: 0.7269230769 | X184: 14.53846154 | Y184: 5
H185: 2016-06-27 | I185: 65 | J185: 1330 | L185: 1 | N185: 900 | P185: 1800 | X185: 0 | Y185: 5
H186: 2016-06-28 | I186: 65 | J186: 1395 | L186: 2 | N186: 900 | P186: 2700 | X186: 0 | Y186: 5
H187: 2016-06-29 | I187: 65 | J187: 1460 | L187: 3 | N187: 900 | P187: 3600 | X187: 0 | Y187: 5
H188: 2016-06-30 | I188: 65 | J188: 1525 | L188: 4 | N188: 900 | P188: 4500 | X188: 0 | Y188: 5
H189: 2016-07-01 | I189: =$B$11 -> 32.5 | J189: =IF(J188>$E$52,$D$52+I189,J188+I189) -> 1557.5 | K189: =IF(J188>$E$52,H188,"") ->  | L189: 5 | N189: =$D$32 -> 270 | P189: 4770 | U189: =IF(L189=0,$F$52/S189,"") ->  | X189: 0 | Y189: 5
H190: 2016-07-02 | I190: 32.5 | J190: =IF(J189>$E$52,$D$52+I190,J189+I190) -> 1590 | K190: =IF(J189>$E$52,H189,"") ->  | L190: 6 | N190: =$D$32 -> 270 | P190: 5040 | U190: =IF(L190=0,$F$52/S190,"") ->  | X190: 0 | Y190: 5
H191: 2016-07-03 | I191: 32.5 | J191: 1622.5 | L191: 7 | N191: 270 | P191: 5310 | X191: 0 | Y191: 5
H192: 2016-07-04 | I192: 32.5 | J192: 1655 | L192: 8 | N192: 270 | P192: 5580 | X192: 0 | Y192: 5
H193: 2016-07-05 | I193: 32.5 | J193: 1687.5 | L193: 9 | N193: 270 | P193: 5850 | X193: 0 | Y193: 5
H194: 2016-07-06 | I194: 32.5 | J194: 1720 | L194: 10 | N194: 270 | P194: 6120 | X194: 0 | Y194: 5
H195: 2016-07-07 | I195: 32.5 | J195: 1752.5 | L195: 11 | N195: 270 | P195: 6390 | X195: 0 | Y195: 5
H196: 2016-07-08 | I196: 32.5 | J196: 1785 | L196: 12 | N196: 270 | P196: 6660 | X196: 0 | Y196: 5
H197: 2016-07-09 | I197: 32.5 | J197: 1817.5 | L197: 13 | N197: 270 | P197: 6930 | X197: 0 | Y197: 5
H198: 2016-07-10 | I198: 32.5 | J198: 1850 | L198: 14 | N198: 270 | P198: 7200 | X198: 0 | Y198: 5
H199: 2016-07-11 | I199: 32.5 | J199: 1882.5 | L199: 15 | N199: 270 | P199: 7470 | X199: 0 | Y199: 5
H200: 2016-07-12 | I200: 32.5 | J200: 1915 | L200: 16 | N200: 270 | P200: 7740 | X200: 0 | Y200: 5
H201: 2016-07-13 | I201: 32.5 | J201: 1947.5 | L201: =IF(K201="",1+L200,0) -> 17 | N201: 270 | P201: =IF(L201=0,N201,N201+P200) -> 8010 | Q201: =IF(L201=0,P200/L200,"") ->  | S201: =IF(L201=0,P200/L200,"") ->  | W201: =IF(L201=0,1/U201,"") ->  | X201: =IF(L201=0,W201*L200,0) -> 0 | Y201: =IF(X201>0,Y200+1,Y200) -> 5
... 171 more rows

Sheet Calcul Et Courbes 3 (hidden)
I1: Code couleur en fonction des Courbes
A3: Courbe étude POTENTIEL ET OBJECTIVE | F3: (Tableau automatisé , Pour modification voir Page accueuil ou base de données) | O3: Activé | P3: Activé | Q3: Activé | R3: Activé | S3: Activé | T3: Activé | U3: Activé
E4: Total/mois | F4: Total/mois | G4: Qualité Passive | H4: Qualité | I4: MS x MJME | J4: Total MjME Passive/mois | K4: Total/mois | L4: TOTAL | O4: Pas Touche (Données prise sur le coté +calculs)
C5: PASSIVE | D5: ACTIVE | E5: PASSIVE | F5: ACTIVE MS | G5: MJ ME /jr | H5: MJ ME /jr | I5: /jour | K5: MJ ME | L5: Annuel | O5: ='DashBoard Igraze'!DN758 -> TRUE | P5: ='DashBoard Igraze'!DN759 -> TRUE | Q5: ='DashBoard Igraze'!DN760 -> TRUE | R5: ='DashBoard Igraze'!DN761 -> TRUE | S5: ='DashBoard Igraze'!DN762 -> TRUE | T5: ='DashBoard Igraze'!DN763 -> TRUE | U5: ='DashBoard Igraze'!DN764 -> FALSE
O6: Courbe Passive | P6: Courbe active | Q6: Courbe megajoule( Passive) | R6: Courbe megajoule dispo(active) | S6: Courbe besoin chaptel | T6: Courbe Megajoule Objectif | U6: Besoin different
E7: Dont Touch ( pour faire des test , changer les valeurs dans la base de donnés) | N7: Janvier | O7: =E9*$O$19 -> 62 | P7: =F9*$P$19 -> 80.6 | Q7: =J9*$Q$19 -> 394.5454545 | R7: =K9*$R$19 -> 564.2 | S7: =F28*$S$19 -> 4394.25 | T7: =K9*Accueuil!$D$6*$T$19 -> 451.36 | U7: =E28*Accueuil!B19*$U$19 -> 7812
A8: Mois | B8: jrs/mois | C8: kg/MS/Ha/jr | D8: =Accueuil!D4 -> 1.3 | E8: kg/MS/Ha | F8: kg/MS/Ha | G8: 1.1 | K8: kg/MS/Ha | L8: 64 Ha | N8: Février | O8: =E10*$O$19 -> 174 | P8: =F10*$P$19 -> 226.2 | Q8: =J10*$Q$19 -> 1107.272727 | R8: =K10*$R$19 -> 1583.4 | S8: =F29*$S$19 -> 5220 | T8: =K10*Accueuil!$D$6*$T$19 -> 1266.72 | U8: =E29*Accueuil!B20*$U$19 -> 9280
A9: jan | B9: 31 | C9: =INDEX('Base de donnée simple'!$B$23:'Base de donnée simple'!$E$34,MATCH('Calcul Et Courbes 3'!G49,'Base de donnée simple'!$A$6:'Base de donnée simple'!$A$17,0),MATCH('DashBoard Igraze'!$BV$270,Tableau13[#Headers],0)) -> 2 | D9: =C9*$D$8 -> 2.6 | E9: =B9*C9 -> 62 | F9: =E9*$D$8 -> 80.6 | G9: =H9/$G$8 -> 6.363636364 | H9: =INDEX('Base de donnée simple'!$B$6:'Base de donnée simple'!$E$17,MATCH('Calcul Et Courbes 3'!G49,'Base de donnée simple'!$A$6:'Base de donnée simple'!$A$17,0),MATCH('DashBoard Igraze'!$BV$270,Tableau1[#Headers],0)) -> 7 | I9: =H9*D9 -> 18.2 | J9: =G9*C9*B9 -> 394.5454545 | K9: =I9*B9 -> 564.2 | L9: =K9*64 -> 36108.8 | N9: Mars | O9: 372 | P9: 483.6 | Q9: 2705.454545 | R9: 3868.8 | S9: 6138 | T9: =K11*Accueuil!$D$6*$T$19 -> 3095.04 | U9: =E30*Accueuil!B21*$U$19 -> 10912
A10: fev | B10: 29 | C10: =INDEX('Base de donnée simple'!$B$23:'Base de donnée simple'!$E$34,MATCH('Calcul Et Courbes 3'!G50,'Base de donnée simple'!$A$6:'Base de donnée simple'!$A$17,0),MATCH('DashBoard Igraze'!$BV$270,Tableau13[#Headers],0)) -> 6 | D10: =C10*$D$8 -> 7.8 | E10: =B10*C10 -> 174 | F10: =E10*$D$8 -> 226.2 | G10: =H10/$G$8 -> 6.363636364 | H10: =INDEX('Base de donnée simple'!$B$6:'Base de donnée simple'!$E$17,MATCH('Calcul Et Courbes 3'!G50,'Base de donnée simple'!$A$6:'Base de donnée simple'!$A$17,0),MATCH('DashBoard Igraze'!$BV$270,Tableau1[#Headers],0)) -> 7 | I10: =H10*D10 -> 54.6 | J10: 1107.272727 | K10: 1583.4 | L10: =K10*64 -> 101337.6 | N10: Avril | O10: 600 | P10: 780 | Q10: 5727.272727 | R10: 8190 | S10: 6480 | T10: =K12*Accueuil!$D$6*$T$19 -> 6552 | U10: =E31*Accueuil!B22*$U$19 -> 11520
A11: mars | B11: 31 | C11: =INDEX('Base de donnée simple'!$B$23:'Base de donnée simple'!$E$34,MATCH('Calcul Et Courbes 3'!G51,'Base de donnée simple'!$A$6:'Base de donnée simple'!$A$17,0),MATCH('DashBoard Igraze'!$BV$270,Tableau13[#Headers],0)) -> 12 | D11: 15.6 | E11: 372 | F11: 483.6 | G11: 7.272727273 | H11: =INDEX('Base de donnée simple'!$B$6:'Base de donnée simple'!$E$17,MATCH('Calcul Et Courbes 3'!G51,'Base de donnée simple'!$A$6:'Base de donnée simple'!$A$17,0),MATCH('DashBoard Igraze'!$BV$270,Tableau1[#Headers],0)) -> 8 | I11: 124.8 | J11: 2705.454545 | K11: 3868.8 | L11: 247603.2 | N11: Mai | O11: 1550 | P11: 2015 | Q11: 15500 | R11: 22165 | S11: 7846.875 | T11: =K13*Accueuil!$D$6*$T$19 -> 17732 | U11: =E32*Accueuil!B23*$U$19 -> 13950
A12: avril | B12: 30 | C12: =INDEX('Base de donnée simple'!$B$23:'Base de donnée simple'!$E$34,MATCH('Calcul Et Courbes 3'!G52,'Base de donnée simple'!$A$6:'Base de donnée simple'!$A$17,0),MATCH('DashBoard Igraze'!$BV$270,Tableau13[#Headers],0)) -> 20 | D12: 26 | E12: 600 | F12: 780 | G12: 9.545454545 | H12: =INDEX('Base de donnée simple'!$B$6:'Base de donnée simple'!$E$17,MATCH('Calcul Et Courbes 3'!G52,'Base de donnée simple'!$A$6:'Base de donnée simple'!$A$17,0),MATCH('DashBoard Igraze'!$BV$270,Tableau1[#Headers],0)) -> 10.5 | I12: 273 | J12: 5727.272727 | K12: 8190 | L12: 524160 | N12: Juin | O12: 1800 | P12: 2340 | Q12: 19636.36364 | R12: 28080 | S12: 7290 | T12: =K14*Accueuil!$D$6*$T$19 -> 22464 | U12: =E33*Accueuil!B24*$U$19 -> 12960
A13: mai | B13: 31 | C13: =INDEX('Base de donnée simple'!$B$23:'Base de donnée simple'!$E$34,MATCH('Calcul Et Courbes 3'!G53,'Base de donnée simple'!$A$6:'Base de donnée simple'!$A$17,0),MATCH('DashBoard Igraze'!$BV$270,Tableau13[#Headers],0)) -> 50 | D13: 65 | E13: 1550 | F13: 2015 | G13: 10 | H13: =INDEX('Base de donnée simple'!$B$6:'Base de donnée simple'!$E$17,MATCH('Calcul Et Courbes 3'!G53,'Base de donnée simple'!$A$6:'Base de donnée simple'!$A$17,0),MATCH('DashBoard Igraze'!$BV$270,Tableau1[#Headers],0)) -> 11 | I13: 715 | J13: 15500 | K13: 22165 | L13: 1418560 | N13: Juillet | O13: 1550 | P13: 2015 | Q13: 16909.09091 | R13: 24180 | S13: 7219.125 | T13: =K15*Accueuil!$D$6*$T$19 -> 19344 | U13: =E34*Accueuil!B25*$U$19 -> 12834
A14: juin | B14: 30 | C14: =INDEX('Base de donnée simple'!$B$23:'Base de donnée simple'!$E$34,MATCH('Calcul Et Courbes 3'!G54,'Base de donnée simple'!$A$6:'Base de donnée simple'!$A$17,0),MATCH('DashBoard Igraze'!$BV$270,Tableau13[#Headers],0)) -> 60 | D14: 78 | E14: 1800 | F14: 2340 | G14: 10.90909091 | H14: =INDEX('Base de donnée simple'!$B$6:'Base de donnée simple'!$E$17,MATCH('Calcul Et Courbes 3'!G54,'Base de donnée simple'!$A$6:'Base de donnée simple'!$A$17,0),MATCH('DashBoard Igraze'!$BV$270,Tableau1[#Headers],0)) -> 12 | I14: 936 | J14: 19636.36364 | K14: 28080 | L14: 1797120 | N14: Août | O14: 930 | P14: 1209 | Q14: 9300 | R14: 13299 | S14: 6138 | T14: =K16*Accueuil!$D$6*$T$19 -> 10639.2 | U14: =E35*Accueuil!B26*$U$19 -> 10912
A15: juillet | B15: 31 | C15: =INDEX('Base de donnée simple'!$B$23:'Base de donnée simple'!$E$34,MATCH('Calcul Et Courbes 3'!G55,'Base de donnée simple'!$A$6:'Base de donnée simple'!$A$17,0),MATCH('DashBoard Igraze'!$BV$270,Tableau13[#Headers],0)) -> 50 | D15: 65 | E15: 1550 | F15: 2015 | G15: 10.90909091 | H15: =INDEX('Base de donnée simple'!$B$6:'Base de donnée simple'!$E$17,MATCH('Calcul Et Courbes 3'!G55,'Base de donnée simple'!$A$6:'Base de donnée simple'!$A$17,0),MATCH('DashBoard Igraze'!$BV$270,Tableau1[#Headers],0)) -> 12 | I15: 780 | J15: 16909.09091 | K15: 24180 | L15: 1547520 | N15: Septembre | O15: 600 | P15: 780 | Q15: 6272.727273 | R15: 8970 | S15: 5433.75 | T15: =K17*Accueuil!$D$6*$T$19 -> 7176 | U15: =E36*Accueuil!B27*$U$19 -> 9660
A16: aout | B16: 31 | C16: =INDEX('Base de donnée simple'!$B$23:'Base de donnée simple'!$E$34,MATCH('Calcul Et Courbes 3'!G56,'Base de donnée simple'!$A$6:'Base de donnée simple'!$A$17,0),MATCH('DashBoard Igraze'!$BV$270,Tableau13[#Headers],0)) -> 30 | D16: 39 | E16: 930 | F16: 1209 | G16: 10 | H16: =INDEX('Base de donnée simple'!$B$6:'Base de donnée simple'!$E$17,MATCH('Calcul Et Courbes 3'!G56,'Base de donnée simple'!$A$6:'Base de donnée simple'!$A$17,0),MATCH('DashBoard Igraze'!$BV$270,Tableau1[#Headers],0)) -> 11 | I16: 429 | J16: 9300 | K16: 13299 | L16: 851136 | N16: Octobre | O16: 310 | P16: 403 | Q16: 2536.363636 | R16: 3627 | S16: 5126.625 | T16: =K18*Accueuil!$D$6*$T$19 -> 2901.6 | U16: =E37*Accueuil!B28*$U$19 -> 9114
A17: sept | B17: 30 | C17: =INDEX('Base de donnée simple'!$B$23:'Base de donnée simple'!$E$34,MATCH('Calcul Et Courbes 3'!G57,'Base de donnée simple'!$A$6:'Base de donnée simple'!$A$17,0),MATCH('DashBoard Igraze'!$BV$270,Tableau13[#Headers],0)) -> 20 | D17: 26 | E17: 600 | F17: 780 | G17: 10.45454545 | H17: =INDEX('Base de donnée simple'!$B$6:'Base de donnée simple'!$E$17,MATCH('Calcul Et Courbes 3'!G57,'Base de donnée simple'!$A$6:'Base de donnée simple'!$A$17,0),MATCH('DashBoard Igraze'!$BV$270,Tableau1[#Headers],0)) -> 11.5 | I17: 299 | J17: 6272.727273 | K17: 8970 | L17: 574080 | N17: Novembre | O17: 240 | P17: 312 | Q17: 1745.454545 | R17: 2496 | S17: 4050 | T17: =K19*Accueuil!$D$6*$T$19 -> 1996.8 | U17: =E38*Accueuil!B29*$U$19 -> 7200
A18: oct | B18: 31 | C18: =INDEX('Base de donnée simple'!$B$23:'Base de donnée simple'!$E$34,MATCH('Calcul Et Courbes 3'!G58,'Base de donnée simple'!$A$6:'Base de donnée simple'!$A$17,0),MATCH('DashBoard Igraze'!$BV$270,Tableau13[#Headers],0)) -> 10 | D18: 13 | E18: 310 | F18: 403 | G18: 8.181818182 | H18: =INDEX('Base de donnée simple'!$B$6:'Base de donnée simple'!$E$17,MATCH('Calcul Et Courbes 3'!G58,'Base de donnée simple'!$A$6:'Base de donnée simple'!$A$17,0),MATCH('DashBoard Igraze'!$BV$270,Tableau1[#Headers],0)) -> 9 | I18: 117 | J18: 2536.363636 | K18: 3627 | L18: 232128 | N18: Décembre | O18: 124 | P18: 161.2 | Q18: 789.0909091 | R18: 1128.4 | S18: 3138.75 | T18: =K20*Accueuil!$D$6*$T$19 -> 902.72 | U18: =E39*Accueuil!B30*$U$19 -> 5580 | X18: Modificateur de courbe , Dont touch
A19: nov | B19: 30 | C19: =INDEX('Base de donnée simple'!$B$23:'Base de donnée simple'!$E$34,MATCH('Calcul Et Courbes 3'!G59,'Base de donnée simple'!$A$6:'Base de donnée simple'!$A$17,0),MATCH('DashBoard Igraze'!$BV$270,Tableau13[#Headers],0)) -> 8 | D19: 10.4 | E19: 240 | F19: 312 | G19: 7.272727273 | H19: =INDEX('Base de donnée simple'!$B$6:'Base de donnée simple'!$E$17,MATCH('Calcul Et Courbes 3'!G59,'Base de donnée simple'!$A$6:'Base de donnée simple'!$A$17,0),MATCH('DashBoard Igraze'!$BV$270,Tableau1[#Headers],0)) -> 8 | I19: 83.2 | J19: 1745.454545 | K19: 2496 | L19: 159744 | M19: Forcage | N19: 1/0 | O19: 1 | P19: 1 | Q19: 1 | R19: 1 | S19: 1 | T19: 1 | U19: 1 | Y19: Activé | Z19: Desactivé
A20: dec | B20: 31 | C20: =INDEX('Base de donnée simple'!$B$23:'Base de donnée simple'!$E$34,MATCH('Calcul Et Courbes 3'!G60,'Base de donnée simple'!$A$6:'Base de donnée simple'!$A$17,0),MATCH('DashBoard Igraze'!$BV$270,Tableau13[#Headers],0)) -> 4 | D20: 5.2 | E20: 124 | F20: 161.2 | G20: 6.363636364 | H20: =INDEX('Base de donnée simple'!$B$6:'Base de donnée simple'!$E$17,MATCH('Calcul Et Courbes 3'!G60,'Base de donnée simple'!$A$6:'Base de donnée simple'!$A$17,0),MATCH('DashBoard Igraze'!$BV$270,Tableau1[#Headers],0)) -> 7 | I20: 36.4 | J20: 789.0909091 | K20: 1128.4 | L20: 72217.6 | O20: Permet d'activer ou desactivé les courbes directement ici | Y20: 1 | Z20: 0
C21: =SUM(C9:C20) -> 272 | D21: =SUM(D9:D20) -> 353.6 | E21: =SUM(E9:E20) -> 8312 | F21: =SUM(F9:F20) -> 10805.6 | G21: =AVERAGE(G9:G20) -> 8.636363636 | H21: =AVERAGE(H9:H20) -> 9.5 | I21: =SUM(I9:I20) -> 3866.2 | J21: =AVERAGE(J9:J20) -> 6885.30303 | K21: =SUM(K9:K20) -> 118151.8 | L21: =SUM(L9:L20) -> 7561715.2
H22: Moy
A25: Besoins MS/MJME | D25: (Tableau automatisé , Pour modification voir Page accueuil ou base de données)
A27: Mois | B27: MJME/jr | C27: KgMS/day | D27: Total/jr | E27: Total/mois | F27: Total nombre d'animaux/mois | H27: Nombre d'animaux | K27: ='DashBoard Igraze'!BV273 -> 45
A28: jan | B28: =INDEX('Base de donnée simple'!$I$6:'Base de donnée simple'!$L$17,MATCH('Calcul Et Courbes 3'!K49,'Base de donnée simple'!$H$6:'Base de donnée simple'!$H$17,0),MATCH('DashBoard Igraze'!$BV$271,Tableau3[#Headers],0)) -> 9 | C28: =INDEX('Base de donnée simple'!$I$23:'Base de donnée simple'!$L$34,MATCH('Calcul Et Courbes 3'!K49,'Base de donnée simple'!$H$6:'Base de donnée simple'!$H$17,0),MATCH('DashBoard Igraze'!$BV$271,Tableau3[#Headers],0)) -> 14 | D28: =C28*B28 -> 126 | E28: =D28*B9 -> 3906 | F28: =E28*$K$27/'DashBoard Igraze'!$BV$272 -> 4394.25 | H28: A renseigné Page "accueuil"
A29: fev | B29: =INDEX('Base de donnée simple'!$I$6:'Base de donnée simple'!$L$17,MATCH('Calcul Et Courbes 3'!K50,'Base de donnée simple'!$H$6:'Base de donnée simple'!$H$17,0),MATCH('DashBoard Igraze'!$BV$271,Tableau3[#Headers],0)) -> 10 | C29: =INDEX('Base de donnée simple'!$I$23:'Base de donnée simple'!$L$34,MATCH('Calcul Et Courbes 3'!K50,'Base de donnée simple'!$H$6:'Base de donnée simple'!$H$17,0),MATCH('DashBoard Igraze'!$BV$271,Tableau3[#Headers],0)) -> 16 | D29: =C29*B29 -> 160 | E29: 4640 | F29: =E29*$K$27/'DashBoard Igraze'!$BV$272 -> 5220
A30: mars | B30: =INDEX('Base de donnée simple'!$I$6:'Base de donnée simple'!$L$17,MATCH('Calcul Et Courbes 3'!K51,'Base de donnée simple'!$H$6:'Base de donnée simple'!$H$17,0),MATCH('DashBoard Igraze'!$BV$271,Tableau3[#Headers],0)) -> 11 | C30: =INDEX('Base de donnée simple'!$I$23:'Base de donnée simple'!$L$34,MATCH('Calcul Et Courbes 3'!K51,'Base de donnée simple'!$H$6:'Base de donnée simple'!$H$17,0),MATCH('DashBoard Igraze'!$BV$271,Tableau3[#Headers],0)) -> 16 | D30: 176 | E30: 5456 | F30: =E30*$K$27/'DashBoard Igraze'!$BV$272 -> 6138
A31: avril | B31: =INDEX('Base de donnée simple'!$I$6:'Base de donnée simple'!$L$17,MATCH('Calcul Et Courbes 3'!K52,'Base de donnée simple'!$H$6:'Base de donnée simple'!$H$17,0),MATCH('DashBoard Igraze'!$BV$271,Tableau3[#Headers],0)) -> 12 | C31: =INDEX('Base de donnée simple'!$I$23:'Base de donnée simple'!$L$34,MATCH('Calcul Et Courbes 3'!K52,'Base de donnée simple'!$H$6:'Base de donnée simple'!$H$17,0),MATCH('DashBoard Igraze'!$BV$271,Tableau3[#Headers],0)) -> 16 | D31: 192 | E31: 5760 | F31: =E31*$K$27/'DashBoard Igraze'!$BV$272 -> 6480
A32: mai | B32: =INDEX('Base de donnée simple'!$I$6:'Base de donnée simple'!$L$17,MATCH('Calcul Et Courbes 3'!K53,'Base de donnée simple'!$H$6:'Base de donnée simple'!$H$17,0),MATCH('DashBoard Igraze'!$BV$271,Tableau3[#Headers],0)) -> 12.5 | C32: =INDEX('Base de donnée simple'!$I$23:'Base de donnée simple'!$L$34,MATCH('Calcul Et Courbes 3'!K53,'Base de donnée simple'!$H$6:'Base de donnée simple'!$H$17,0),MATCH('DashBoard Igraze'!$BV$271,Tableau3[#Headers],0)) -> 18 | D32: 225 | E32: 6975 | F32: =E32*$K$27/'DashBoard Igraze'!$BV$272 -> 7846.875
A33: juin | B33: =INDEX('Base de donnée simple'!$I$6:'Base de donnée simple'!$L$17,MATCH('Calcul Et Courbes 3'!K54,'Base de donnée simple'!$H$6:'Base de donnée simple'!$H$17,0),MATCH('DashBoard Igraze'!$BV$271,Tableau3[#Headers],0)) -> 12 | C33: =INDEX('Base de donnée simple'!$I$23:'Base de donnée simple'!$L$34,MATCH('Calcul Et Courbes 3'!K54,'Base de donnée simple'!$H$6:'Base de donnée simple'!$H$17,0),MATCH('DashBoard Igraze'!$BV$271,Tableau3[#Headers],0)) -> 18 | D33: 216 | E33: 6480 | F33: =E33*$K$27/'DashBoard Igraze'!$BV$272 -> 7290 | Y33: =O6 -> Courbe Passive | Z33: =P6 -> Courbe active | AA33: =Q6 -> Courbe megajoule( Passive) | AB33: =R6 -> Courbe megajoule dispo(active) | AC33: =S6 -> Courbe besoin chaptel | AD33: =T6 -> Courbe Megajoule Objectif | AE33: =U6 -> Besoin different
A34: juillet | B34: =INDEX('Base de donnée simple'!$I$6:'Base de donnée simple'!$L$17,MATCH('Calcul Et Courbes 3'!K55,'Base de donnée simple'!$H$6:'Base de donnée simple'!$H$17,0),MATCH('DashBoard Igraze'!$BV$271,Tableau3[#Headers],0)) -> 11.5 | C34: =INDEX('Base de donnée simple'!$I$23:'Base de donnée simple'!$L$34,MATCH('Calcul Et Courbes 3'!K55,'Base de donnée simple'!$H$6:'Base de donnée simple'!$H$17,0),MATCH('DashBoard Igraze'!$BV$271,Tableau3[#Headers],0)) -> 18 | D34: 207 | E34: 6417 | F34: =E34*$K$27/'DashBoard Igraze'!$BV$272 -> 7219.125 | X34: January | Y34: =O7*$O$5 -> 62 | Z34: =P7*$P$5 -> 80.6 | AA34: =Q7*$Q$5 -> 394.5454545 | AB34: =R7*$R$5 -> 564.2 | AC34: =S7*$S$5 -> 4394.25 | AD34: =T7*$T$5 -> 451.36 | AE34: =U7*$U$5 -> 0
A35: aout | B35: =INDEX('Base de donnée simple'!$I$6:'Base de donnée simple'!$L$17,MATCH('Calcul Et Courbes 3'!K56,'Base de donnée simple'!$H$6:'Base de donnée simple'!$H$17,0),MATCH('DashBoard Igraze'!$BV$271,Tableau3[#Headers],0)) -> 11 | C35: =INDEX('Base de donnée simple'!$I$23:'Base de donnée simple'!$L$34,MATCH('Calcul Et Courbes 3'!K56,'Base de donnée simple'!$H$6:'Base de donnée simple'!$H$17,0),MATCH('DashBoard Igraze'!$BV$271,Tableau3[#Headers],0)) -> 16 | D35: 176 | E35: 5456 | F35: =E35*$K$27/'DashBoard Igraze'!$BV$272 -> 6138 | X35: February | Y35: =O8*$O$5 -> 174 | Z35: =P8*$P$5 -> 226.2 | AA35: =Q8*$Q$5 -> 1107.272727 | AB35: =R8*$R$5 -> 1583.4 | AC35: =S8*$S$5 -> 5220 | AD35: =T8*$T$5 -> 1266.72 | AE35: =U8*$U$5 -> 0
A36: sept | B36: =INDEX('Base de donnée simple'!$I$6:'Base de donnée simple'!$L$17,MATCH('Calcul Et Courbes 3'!K57,'Base de donnée simple'!$H$6:'Base de donnée simple'!$H$17,0),MATCH('DashBoard Igraze'!$BV$271,Tableau3[#Headers],0)) -> 11.5 | C36: =INDEX('Base de donnée simple'!$I$23:'Base de donnée simple'!$L$34,MATCH('Calcul Et Courbes 3'!K57,'Base de donnée simple'!$H$6:'Base de donnée simple'!$H$17,0),MATCH('DashBoard Igraze'!$BV$271,Tableau3[#Headers],0)) -> 14 | D36: 161 | E36: 4830 | F36: =E36*$K$27/'DashBoard Igraze'!$BV$272 -> 5433.75 | X36: March | Y36: 372 | Z36: 483.6 | AA36: 2705.454545 | AB36: 3868.8 | AC36: 6138 | AD36: 3095.04 | AE36: 0
A37: oct | B37: =INDEX('Base de donnée simple'!$I$6:'Base de donnée simple'!$L$17,MATCH('Calcul Et Courbes 3'!K58,'Base de donnée simple'!$H$6:'Base de donnée simple'!$H$17,0),MATCH('DashBoard Igraze'!$BV$271,Tableau3[#Headers],0)) -> 10.5 | C37: =INDEX('Base de donnée simple'!$I$23:'Base de donnée simple'!$L$34,MATCH('Calcul Et Courbes 3'!K58,'Base de donnée simple'!$H$6:'Base de donnée simple'!$H$17,0),MATCH('DashBoard Igraze'!$BV$271,Tableau3[#Headers],0)) -> 14 | D37: 147 | E37: 4557 | F37: =E37*$K$27/'DashBoard Igraze'!$BV$272 -> 5126.625 | X37: April | Y37: 600 | Z37: 780 | AA37: 5727.272727 | AB37: 8190 | AC37: 6480 | AD37: 6552 | AE37: 0
A38: nov | B38: =INDEX('Base de donnée simple'!$I$6:'Base de donnée simple'!$L$17,MATCH('Calcul Et Courbes 3'!K59,'Base de donnée simple'!$H$6:'Base de donnée simple'!$H$17,0),MATCH('DashBoard Igraze'!$BV$271,Tableau3[#Headers],0)) -> 10 | C38: =INDEX('Base de donnée simple'!$I$23:'Base de donnée simple'!$L$34,MATCH('Calcul Et Courbes 3'!K59,'Base de donnée simple'!$H$6:'Base de donnée simple'!$H$17,0),MATCH('DashBoard Igraze'!$BV$271,Tableau3[#Headers],0)) -> 12 | D38: 120 | E38: 3600 | F38: =E38*$K$27/'DashBoard Igraze'!$BV$272 -> 4050 | X38: May | Y38: 1550 | Z38: 2015 | AA38: 15500 | AB38: 22165 | AC38: 7846.875 | AD38: 17732 | AE38: 0
A39: dec | B39: =INDEX('Base de donnée simple'!$I$6:'Base de donnée simple'!$L$17,MATCH('Calcul Et Courbes 3'!K60,'Base de donnée simple'!$H$6:'Base de donnée simple'!$H$17,0),MATCH('DashBoard Igraze'!$BV$271,Tableau3[#Headers],0)) -> 9 | C39: =INDEX('Base de donnée simple'!$I$23:'Base de donnée simple'!$L$34,MATCH('Calcul Et Courbes 3'!K60,'Base de donnée simple'!$H$6:'Base de donnée simple'!$H$17,0),MATCH('DashBoard Igraze'!$BV$271,Tableau3[#Headers],0)) -> 10 | D39: 90 | E39: 2790 | F39: =E39*$K$27/'DashBoard Igraze'!$BV$272 -> 3138.75 | X39: June | Y39: 1800 | Z39: 2340 | AA39: 19636.36364 | AB39: 28080 | AC39: 7290 | AD39: 22464 | AE39: 0
C40: Besoin brebis MJME/MS/an | E40: =SUM(E28:E39) -> 60867 | X40: July | Y40: 1550 | Z40: 2015 | AA40: 16909.09091 | AB40: 24180 | AC40: 7219.125 | AD40: 19344 | AE40: 0
X41: August | Y41: 930 | Z41: 1209 | AA41: 9300 | AB41: 13299 | AC41: 6138 | AD41: 10639.2 | AE41: 0
X42: September | Y42: 600 | Z42: 780 | AA42: 6272.727273 | AB42: 8970 | AC42: 5433.75 | AD42: 7176 | AE42: 0
X43: October | Y43: 310 | Z43: 403 | AA43: 2536.363636 | AB43: 3627 | AC43: 5126.625 | AD43: 2901.6 | AE43: 0
X44: November | Y44: 240 | Z44: 312 | AA44: 1745.454545 | AB44: 2496 | AC44: 4050 | AD44: 1996.8 | AE44: 0
P45: Pas touche !(Données prise tableurs au dessus) | X45: December | Y45: 124 | Z45: 161.2 | AA45: 789.0909091 | AB45: 1128.4 | AC45: 3138.75 | AD45: 902.72 | AE45: 0
H47: Mes grigri de devellopement je vais les effacer rapidement | P47: Courbe Passive | Q47: Courbe active | R47: Courbe megajoule( Passive) | S47: Courbe megajoule dispo(active) | T47: Courbe besoin chaptel | U47: Courbe Megajoule Objectif | V47: Besoin different
H48: MEGA active | J48: Passive | M48: Chaptel | N48: Chaptel 2 | O48: Octobre | P48: =O16 -> 310 | Q48: 403 | R48: 2536.363636 | S48: 3627 | T48: 5126.625 | U48: 2901.6 | V48: 9114
G49: 1 | I49: =INDEX('Base de donnée simple'!$B$6:'Base de donnée simple'!$D$17,MATCH('Calcul Et Courbes 3'!G49,'Base de donnée simple'!$A$6:'Base de donnée simple'!$A$17,0),MATCH(Accueuil!$C$4,Tableau1[#Headers],0)) ->  | J49: =INDEX('Base de donnée simple'!$B$23:'Base de donnée simple'!$D$34,MATCH('Calcul Et Courbes 3'!G49,'Base de donnée simple'!$A$6:'Base de donnée simple'!$A$17,0),MATCH(Accueuil!$C$4,Tableau13[#Headers],0)) ->  | K49: 1 | M49: =INDEX('Base de donnée simple'!$I$6:'Base de donnée simple'!$K$17,MATCH('Calcul Et Courbes 3'!K49,'Base de donnée simple'!$H$6:'Base de donnée simple'!$H$17,0),MATCH(Accueuil!$C$2,Tableau3[#Headers],0)) ->  | N49: =INDEX('Base de donnée simple'!$I$23:'Base de donnée simple'!$K$34,MATCH('Calcul Et Courbes 3'!K49,'Base de donnée simple'!$H$6:'Base de donnée simple'!$H$17,0),MATCH(Accueuil!$C$2,Tableau3[#Headers],0)) ->  | O49: Novembre | P49: 240 | Q49: 312 | R49: 1745.454545 | S49: 2496 | T49: 4050 | U49: =T17 -> 1996.8 | V49: =U17 -> 7200
G50: 2 | I50: =INDEX('Base de donnée simple'!$B$6:'Base de donnée simple'!$D$17,MATCH('Calcul Et Courbes 3'!G50,'Base de donnée simple'!$A$6:'Base de donnée simple'!$A$17,0),MATCH(Accueuil!$C$4,Tableau1[#Headers],0)) ->  | J50: =INDEX('Base de donnée simple'!$B$23:'Base de donnée simple'!$D$34,MATCH('Calcul Et Courbes 3'!G50,'Base de donnée simple'!$A$6:'Base de donnée simple'!$A$17,0),MATCH(Accueuil!$C$4,Tableau13[#Headers],0)) ->  | K50: 2 | M50: =INDEX('Base de donnée simple'!$I$6:'Base de donnée simple'!$K$17,MATCH('Calcul Et Courbes 3'!K50,'Base de donnée simple'!$H$6:'Base de donnée simple'!$H$17,0),MATCH(Accueuil!$C$2,Tableau3[#Headers],0)) ->  | N50: =INDEX('Base de donnée simple'!$I$23:'Base de donnée simple'!$K$34,MATCH('Calcul Et Courbes 3'!K50,'Base de donnée simple'!$H$6:'Base de donnée simple'!$H$17,0),MATCH(Accueuil!$C$2,Tableau3[#Headers],0)) ->  | O50: Décembre | P50: 124 | Q50: 161.2 | R50: 789.0909091 | S50: 1128.4 | T50: 3138.75 | U50: =T18 -> 902.72 | V50: =U18 -> 5580
G51: 3 | I51: =INDEX('Base de donnée simple'!$B$6:'Base de donnée simple'!$D$17,MATCH('Calcul Et Courbes 3'!G51,'Base de donnée simple'!$A$6:'Base de donnée simple'!$A$17,0),MATCH(Accueuil!$C$4,Tableau1[#Headers],0)) ->  | J51: =INDEX('Base de donnée simple'!$B$23:'Base de donnée simple'!$D$34,MATCH('Calcul Et Courbes 3'!G51,'Base de donnée simple'!$A$6:'Base de donnée simple'!$A$17,0),MATCH(Accueuil!$C$4,Tableau13[#Headers],0)) ->  | K51: 3 | M51: =INDEX('Base de donnée simple'!$I$6:'Base de donnée simple'!$K$17,MATCH('Calcul Et Courbes 3'!K51,'Base de donnée simple'!$H$6:'Base de donnée simple'!$H$17,0),MATCH(Accueuil!$C$2,Tableau3[#Headers],0)) ->  | N51: =INDEX('Base de donnée simple'!$I$23:'Base de donnée simple'!$K$34,MATCH('Calcul Et Courbes 3'!K51,'Base de donnée simple'!$H$6:'Base de donnée simple'!$H$17,0),MATCH(Accueuil!$C$2,Tableau3[#Headers],0)) ->  | O51: Janvier | P51: =O7 -> 62 | Q51: 80.6 | R51: 394.5454545 | S51: 564.2 | T51: 4394.25 | U51: 451.36 | V51: 7812
G52: 4 | I52: =INDEX('Base de donnée simple'!$B$6:'Base de donnée simple'!$D$17,MATCH('Calcul Et Courbes 3'!G52,'Base de donnée simple'!$A$6:'Base de donnée simple'!$A$17,0),MATCH(Accueuil!$C$4,Tableau1[#Headers],0)) ->  | J52: =INDEX('Base de donnée simple'!$B$23:'Base de donnée simple'!$D$34,MATCH('Calcul Et Courbes 3'!G52,'Base de donnée simple'!$A$6:'Base de donnée simple'!$A$17,0),MATCH(Accueuil!$C$4,Tableau13[#Headers],0)) ->  | K52: 4 | M52: =INDEX('Base de donnée simple'!$I$6:'Base de donnée simple'!$K$17,MATCH('Calcul Et Courbes 3'!K52,'Base de donnée simple'!$H$6:'Base de donnée simple'!$H$17,0),MATCH(Accueuil!$C$2,Tableau3[#Headers],0)) ->  | N52: =INDEX('Base de donnée simple'!$I$23:'Base de donnée simple'!$K$34,MATCH('Calcul Et Courbes 3'!K52,'Base de donnée simple'!$H$6:'Base de donnée simple'!$H$17,0),MATCH(Accueuil!$C$2,Tableau3[#Headers],0)) ->  | O52: Février | P52: 174 | Q52: 226.2 | R52: 1107.272727 | S52: 1583.4 | T52: 5220 | U52: 1266.72 | V52: 9280
G53: 5 | I53: =INDEX('Base de donnée simple'!$B$6:'Base de donnée simple'!$D$17,MATCH('Calcul Et Courbes 3'!G53,'Base de donnée simple'!$A$6:'Base de donnée simple'!$A$17,0),MATCH(Accueuil!$C$4,Tableau1[#Headers],0)) ->  | J53: =INDEX('Base de donnée simple'!$B$23:'Base de donnée simple'!$D$34,MATCH('Calcul Et Courbes 3'!G53,'Base de donnée simple'!$A$6:'Base de donnée simple'!$A$17,0),MATCH(Accueuil!$C$4,Tableau13[#Headers],0)) ->  | K53: 5 | M53: =INDEX('Base de donnée simple'!$I$6:'Base de donnée simple'!$K$17,MATCH('Calcul Et Courbes 3'!K53,'Base de donnée simple'!$H$6:'Base de donnée simple'!$H$17,0),MATCH(Accueuil!$C$2,Tableau3[#Headers],0)) ->  | N53: =INDEX('Base de donnée simple'!$I$23:'Base de donnée simple'!$K$34,MATCH('Calcul Et Courbes 3'!K53,'Base de donnée simple'!$H$6:'Base de donnée simple'!$H$17,0),MATCH(Accueuil!$C$2,Tableau3[#Headers],0)) ->  | O53: Mars | P53: 372 | Q53: 483.6 | R53: 2705.454545 | S53: 3868.8 | T53: 6138 | U53: 3095.04 | V53: 10912
G54: 6 | I54: =INDEX('Base de donnée simple'!$B$6:'Base de donnée simple'!$D$17,MATCH('Calcul Et Courbes 3'!G54,'Base de donnée simple'!$A$6:'Base de donnée simple'!$A$17,0),MATCH(Accueuil!$C$4,Tableau1[#Headers],0)) ->  | J54: =INDEX('Base de donnée simple'!$B$23:'Base de donnée simple'!$D$34,MATCH('Calcul Et Courbes 3'!G54,'Base de donnée simple'!$A$6:'Base de donnée simple'!$A$17,0),MATCH(Accueuil!$C$4,Tableau13[#Headers],0)) ->  | K54: 6 | M54: =INDEX('Base de donnée simple'!$I$6:'Base de donnée simple'!$K$17,MATCH('Calcul Et Courbes 3'!K54,'Base de donnée simple'!$H$6:'Base de donnée simple'!$H$17,0),MATCH(Accueuil!$C$2,Tableau3[#Headers],0)) ->  | N54: =INDEX('Base de donnée simple'!$I$23:'Base de donnée simple'!$K$34,MATCH('Calcul Et Courbes 3'!K54,'Base de donnée simple'!$H$6:'Base de donnée simple'!$H$17,0),MATCH(Accueuil!$C$2,Tableau3[#Headers],0)) ->  | O54: Avril | P54: 600 | Q54: 780 | R54: 5727.272727 | S54: 8190 | T54: 6480 | U54: 6552 | V54: 11520
G55: 7 | I55: =INDEX('Base de donnée simple'!$B$6:'Base de donnée simple'!$D$17,MATCH('Calcul Et Courbes 3'!G55,'Base de donnée simple'!$A$6:'Base de donnée simple'!$A$17,0),MATCH(Accueuil!$C$4,Tableau1[#Headers],0)) ->  | J55: =INDEX('Base de donnée simple'!$B$23:'Base de donnée simple'!$D$34,MATCH('Calcul Et Courbes 3'!G55,'Base de donnée simple'!$A$6:'Base de donnée simple'!$A$17,0),MATCH(Accueuil!$C$4,Tableau13[#Headers],0)) ->  | K55: 7 | M55: =INDEX('Base de donnée simple'!$I$6:'Base de donnée simple'!$K$17,MATCH('Calcul Et Courbes 3'!K55,'Base de donnée simple'!$H$6:'Base de donnée simple'!$H$17,0),MATCH(Accueuil!$C$2,Tableau3[#Headers],0)) ->  | N55: =INDEX('Base de donnée simple'!$I$23:'Base de donnée simple'!$K$34,MATCH('Calcul Et Courbes 3'!K55,'Base de donnée simple'!$H$6:'Base de donnée simple'!$H$17,0),MATCH(Accueuil!$C$2,Tableau3[#Headers],0)) ->  | O55: Mai | P55: 1550 | Q55: 2015 | R55: 15500 | S55: 22165 | T55: 7846.875 | U55: 17732 | V55: 13950
G56: 8 | I56: =INDEX('Base de donnée simple'!$B$6:'Base de donnée simple'!$D$17,MATCH('Calcul Et Courbes 3'!G56,'Base de donnée simple'!$A$6:'Base de donnée simple'!$A$17,0),MATCH(Accueuil!$C$4,Tableau1[#Headers],0)) ->  | J56: =INDEX('Base de donnée simple'!$B$23:'Base de donnée simple'!$D$34,MATCH('Calcul Et Courbes 3'!G56,'Base de donnée simple'!$A$6:'Base de donnée simple'!$A$17,0),MATCH(Accueuil!$C$4,Tableau13[#Headers],0)) ->  | K56: 8 | M56: =INDEX('Base de donnée simple'!$I$6:'Base de donnée simple'!$K$17,MATCH('Calcul Et Courbes 3'!K56,'Base de donnée simple'!$H$6:'Base de donnée simple'!$H$17,0),MATCH(Accueuil!$C$2,Tableau3[#Headers],0)) ->  | N56: =INDEX('Base de donnée simple'!$I$23:'Base de donnée simple'!$K$34,MATCH('Calcul Et Courbes 3'!K56,'Base de donnée simple'!$H$6:'Base de donnée simple'!$H$17,0),MATCH(Accueuil!$C$2,Tableau3[#Headers],0)) ->  | O56: Juin | P56: 1800 | Q56: 2340 | R56: 19636.36364 | S56: 28080 | T56: 7290 | U56: 22464 | V56: 12960
G57: 9 | I57: =INDEX('Base de donnée simple'!$B$6:'Base de donnée simple'!$D$17,MATCH('Calcul Et Courbes 3'!G57,'Base de donnée simple'!$A$6:'Base de donnée simple'!$A$17,0),MATCH(Accueuil!$C$4,Tableau1[#Headers],0)) ->  | J57: =INDEX('Base de donnée simple'!$B$23:'Base de donnée simple'!$D$34,MATCH('Calcul Et Courbes 3'!G57,'Base de donnée simple'!$A$6:'Base de donnée simple'!$A$17,0),MATCH(Accueuil!$C$4,Tableau13[#Headers],0)) ->  | K57: 9 | M57: =INDEX('Base de donnée simple'!$I$6:'Base de donnée simple'!$K$17,MATCH('Calcul Et Courbes 3'!K57,'Base de donnée simple'!$H$6:'Base de donnée simple'!$H$17,0),MATCH(Accueuil!$C$2,Tableau3[#Headers],0)) ->  | N57: =INDEX('Base de donnée simple'!$I$23:'Base de donnée simple'!$K$34,MATCH('Calcul Et Courbes 3'!K57,'Base de donnée simple'!$H$6:'Base de donnée simple'!$H$17,0),MATCH(Accueuil!$C$2,Tableau3[#Headers],0)) ->  | O57: Juillet | P57: 1550 | Q57: 2015 | R57: 16909.09091 | S57: 24180 | T57: 7219.125 | U57: 19344 | V57: 12834
G58: 10 | I58: =INDEX('Base de donnée simple'!$B$6:'Base de donnée simple'!$D$17,MATCH('Calcul Et Courbes 3'!G58,'Base de donnée simple'!$A$6:'Base de donnée simple'!$A$17,0),MATCH(Accueuil!$C$4,Tableau1[#Headers],0)) ->  | J58: =INDEX('Base de donnée simple'!$B$23:'Base de donnée simple'!$D$34,MATCH('Calcul Et Courbes 3'!G58,'Base de donnée simple'!$A$6:'Base de donnée simple'!$A$17,0),MATCH(Accueuil!$C$4,Tableau13[#Headers],0)) ->  | K58: 10 | M58: =INDEX('Base de donnée simple'!$I$6:'Base de donnée simple'!$K$17,MATCH('Calcul Et Courbes 3'!K58,'Base de donnée simple'!$H$6:'Base de donnée simple'!$H$17,0),MATCH(Accueuil!$C$2,Tableau3[#Headers],0)) ->  | N58: =INDEX('Base de donnée simple'!$I$23:'Base de donnée simple'!$K$34,MATCH('Calcul Et Courbes 3'!K58,'Base de donnée simple'!$H$6:'Base de donnée simple'!$H$17,0),MATCH(Accueuil!$C$2,Tableau3[#Headers],0)) ->  | O58: Août | P58: 930 | Q58: 1209 | R58: 9300 | S58: 13299 | T58: 6138 | U58: 10639.2 | V58: 10912
G59: 11 | I59: =INDEX('Base de donnée simple'!$B$6:'Base de donnée simple'!$D$17,MATCH('Calcul Et Courbes 3'!G59,'Base de donnée simple'!$A$6:'Base de donnée simple'!$A$17,0),MATCH(Accueuil!$C$4,Tableau1[#Headers],0)) ->  | J59: =INDEX('Base de donnée simple'!$B$23:'Base de donnée simple'!$D$34,MATCH('Calcul Et Courbes 3'!G59,'Base de donnée simple'!$A$6:'Base de donnée simple'!$A$17,0),MATCH(Accueuil!$C$4,Tableau13[#Headers],0)) ->  | K59: 11 | M59: =INDEX('Base de donnée simple'!$I$6:'Base de donnée simple'!$K$17,MATCH('Calcul Et Courbes 3'!K59,'Base de donnée simple'!$H$6:'Base de donnée simple'!$H$17,0),MATCH(Accueuil!$C$2,Tableau3[#Headers],0)) ->  | N59: =INDEX('Base de donnée simple'!$I$23:'Base de donnée simple'!$K$34,MATCH('Calcul Et Courbes 3'!K59,'Base de donnée simple'!$H$6:'Base de donnée simple'!$H$17,0),MATCH(Accueuil!$C$2,Tableau3[#Headers],0)) ->  | O59: Septembre | P59: 600 | Q59: 780 | R59: 6272.727273 | S59: 8970 | T59: 5433.75 | U59: 7176 | V59: 9660
G60: 12 | I60: =INDEX('Base de donnée simple'!$B$6:'Base de donnée simple'!$D$17,MATCH('Calcul Et Courbes 3'!G60,'Base de donnée simple'!$A$6:'Base de donnée simple'!$A$17,0),MATCH(Accueuil!$C$4,Tableau1[#Headers],0)) ->  | J60: =INDEX('Base de donnée simple'!$B$23:'Base de donnée simple'!$D$34,MATCH('Calcul Et Courbes 3'!G60,'Base de donnée simple'!$A$6:'Base de donnée simple'!$A$17,0),MATCH(Accueuil!$C$4,Tableau13[#Headers],0)) ->  | K60: 12 | M60: =INDEX('Base de donnée simple'!$I$6:'Base de donnée simple'!$K$17,MATCH('Calcul Et Courbes 3'!K60,'Base de donnée simple'!$H$6:'Base de donnée simple'!$H$17,0),MATCH(Accueuil!$C$2,Tableau3[#Headers],0)) ->  | N60: =INDEX('Base de donnée simple'!$I$23:'Base de donnée simple'!$K$34,MATCH('Calcul Et Courbes 3'!K60,'Base de donnée simple'!$H$6:'Base de donnée simple'!$H$17,0),MATCH(Accueuil!$C$2,Tableau3[#Headers],0)) ->  | O60: Octobre | P60: 310 | Q60: 403 | R60: 2536.363636 | S60: 3627 | T60: 5126.625 | U60: 2901.6 | V60: 9114
O61: Novembre | P61: 240 | Q61: 312 | R61: 1745.454545 | S61: 2496 | T61: 4050 | U61: 1996.8 | V61: 7200
O62: Décembre | P62: 124 | Q62: 161.2 | R62: 789.0909091 | S62: 1128.4 | T62: 3138.75 | U62: 902.72 | V62: 5580
O63: Janvier | P63: =O7 -> 62 | Q63: 80.6 | R63: 394.5454545 | S63: 564.2 | T63: 4394.25 | U63: 451.36 | V63: 7812
O64: Février | P64: 174 | Q64: 226.2 | R64: 1107.272727 | S64: 1583.4 | T64: 5220 | U64: 1266.72 | V64: 9280
O65: Mars | P65: 372 | Q65: 483.6 | R65: 2705.454545 | S65: 3868.8 | T65: 6138 | U65: 3095.04 | V65: 10912

Sheet Decoupage et Rotation total 3 (hidden)
I1: Decoupage et rotation avec Dates et nombre de jours
B3: Valeurs prise grace au base de donnée( Choisir page 1)
B4: Courbe active (Pousse/jour) | Z4: 2016-01-01 | AA4: Nombre de jour pour la rotation | AB4: Taille parcelle
B5: ='Calcul Et Courbes 3'!D9 -> 2.6 | H5: Calendrier | I5: Pousse/Jour | J5: Total pousse | K5: Date des rotations | L5: Compteur de jours de rotations | Q5: Moyenne du besoin par rota | S5: Besoin Moyen | U5: Dispo/Besoin | W5: Parcelle | X5: Total besoin rota | Y5: TT | Z5: Étiquettes de lignes | AC5: Étiquettes de lignes | AD5: Besoin total ha par rota
B6: ='Calcul Et Courbes 3'!D10 -> 7.8 | Z6: 2016-04-20 | AA6: =Z6-Z4 -> 110 | AB6: =IFERROR(AD6/AA6,"") -> 0.5343356643 | AC6: 1 | AD6: 58.77692308 | AE6: =LARGE(AD6:AD14,1) -> 58.77692308 | AF6: Besoin en HA le plus haut
B7: ='Calcul Et Courbes 3'!D11 -> 15.6 | J7: =D46 -> 1200 | Z7: 2016-05-17 | AA7: =IF(Z7>0,Z7-Z6-1,"") -> 26 | AB7: =IFERROR(AD7/AA7,"") -> 0.6204142012 | AC7: 2 | AD7: 16.13076923 | AE7: =LARGE(AB6:AB14,1) -> 0.6620192308 | AF7: Parcelle la plus haute
B8: ='Calcul Et Courbes 3'!D12 -> 26 | H8: 2016-01-01 | I8: =$B$5 -> 2.6 | J8: =IF(J7>$E$46,$D$46+I8,J7+I8) -> 1202.6 | K8: =IF(J7>$E$46,H7,"") ->  | L8: =IF(K8="",1+L7,0) -> 1 | N8: =$D$26 -> 630 | P8: =IF(L8=0,N8,N8+P7) -> 630 | Q8: =IF(L8=0,P7/L7,"") ->  | S8: =IF(L8=0,P7/L7,"") ->  | U8: =IF(L8=0,$F$46/S8,"") ->  | W8: =IF(L8=0,1/U8,"") ->  | X8: =IF(L8=0,W8*L7,0) -> 0 | Y8: =IF(X8>0,Y7+1,Y7) -> 0 | Z8: 2016-06-06 | AA8: 19 | AB8: 0.6558704453 | AC8: 3 | AD8: 12.46153846
B9: ='Calcul Et Courbes 3'!D13 -> 65 | H9: 2016-01-02 | I9: 2.6 | J9: =IF(J8>$E$46,$D$46+I9,J8+I9) -> 1205.2 | K9: =IF(J8>$E$46,H8,"") ->  | L9: =IF(K9="",1+L8,0) -> 2 | N9: =$D$26 -> 630 | P9: =IF(L9=0,N9,N9+P8) -> 1260 | Q9: =IF(L9=0,P8/L8,"") ->  | S9: =IF(L9=0,P8/L8,"") ->  | U9: =IF(L9=0,$F$46/S9,"") ->  | W9: =IF(L9=0,1/U9,"") ->  | X9: =IF(L9=0,W9*L8,0) -> 0 | Y9: =IF(X9>0,Y8+1,Y8) -> 0 | Z9: 2016-06-23 | AA9: 16 | AB9: 0.6620192308 | AC9: 4 | AD9: 10.59230769
B10: ='Calcul Et Courbes 3'!D14 -> 78 | H10: 2016-01-03 | I10: 2.6 | J10: 1207.8 | L10: 3 | N10: 630 | P10: 1890 | X10: 0 | Y10: 0 | Z10: 2016-07-12 | AA10: 18 | AB10: 0.6576923077 | AC10: 5 | AD10: 11.83846154
B11: ='Calcul Et Courbes 3'!D15 -> 65 | H11: 2016-01-04 | I11: 2.6 | J11: 1210.4 | L11: 4 | N11: 630 | P11: 2520 | X11: 0 | Y11: 0 | Z11: 2016-08-02 | AA11: 20 | AB11: 0.6473076923 | AC11: 6 | AD11: 12.94615385
B12: ='Calcul Et Courbes 3'!D16 -> 39 | H12: 2016-01-05 | I12: 2.6 | J12: 1213 | L12: 5 | N12: 630 | P12: 3150 | X12: 0 | Y12: 0 | Z12: 2016-09-07 | AA12: 35 | AB12: 0.5558241758 | AC12: 7 | AD12: 19.45384615
B13: ='Calcul Et Courbes 3'!D17 -> 26 | H13: 2016-01-06 | I13: 2.6 | J13: 1215.6 | L13: 6 | N13: 630 | P13: 3780 | X13: 0 | Y13: 0 | Z13: 2016-11-29 | AA13: 82 | AB13: 0.4660412758 | AC13: 8 | AD13: 38.21538462
B14: ='Calcul Et Courbes 3'!D18 -> 13 | H14: 2016-01-07 | I14: 2.6 | J14: 1218.2 | L14: 7 | N14: 630 | P14: 4410 | X14: 0 | Y14: 0
B15: ='Calcul Et Courbes 3'!D19 -> 10.4 | H15: 2016-01-08 | I15: 2.6 | J15: 1220.8 | L15: 8 | N15: 630 | P15: 5040 | X15: 0 | Y15: 0
B16: ='Calcul Et Courbes 3'!D20 -> 5.2 | H16: 2016-01-09 | I16: 2.6 | J16: 1223.4 | L16: 9 | N16: 630 | P16: 5670 | X16: 0 | Y16: 0
H17: 2016-01-10 | I17: 2.6 | J17: 1226 | L17: 10 | N17: 630 | P17: 6300 | X17: 0 | Y17: 0
C18: Coupe haute | D18: ='DashBoard Igraze'!AG90 -> 2500 | H18: 2016-01-11 | I18: 2.6 | J18: 1228.6 | L18: 11 | N18: 630 | P18: 6930 | X18: 0 | Y18: 0
